Workbook

Sheet Project Summary
B2: x | R2: x
C3: Project Summary
C4: Post Oak Square
C6: PROJECT OVERVIEW | L6: DISPOSITION
C7: Address | J7: 1100 Harvey Road | L7: Hold Period | Q7: 3
C8: City, State Zip | J8: College Station, TX 77840 | L8: Exit Date | Q8: =+EOMONTH($J$14,$Q$7*12) -> 2021-07-31
C9: Year Built / Renvoated | P9: $ Actual | Q9: $ PSF
C10: Class | J10: B | L10: NTM NOI | P10: =+SUMIFS('Monthly CF'!$F$37:$EG$37,'Monthly CF'!$F$6:$EG$6,">"&$Q$8,'Monthly CF'!$F$6:$EG$6,"<="&(EOMONTH($Q$8,12))) -> 973084.4327 | Q10: =+P10/$J$12 -> 9.545190375
C11: Owner | J11: Fidelis | L11: Exit Cap | P11: 0.08
C12: Net Rentable SF | J12: 101945 | L12: Gross Sales Price | P12: =+P10/P11 -> 12163555.41 | Q12: =+P12/$J$12 -> 119.3148797
C13: Occupancy at Close | J13: 0.8383 | L13: Less: Closing Costs | O13: 0.01 | P13: =+-P12*O13 -> -121635.5541 | Q13: -1.193148797
C14: Acquisition Date | J14: 2018-07-01 | L14: Net Sales Proceeds | P14: =SUM(P12:P13) -> 12041919.86 | Q14: =+P14/$J$12 -> 118.1217309
C15: Stabilization Date | J15: 2020-06-30 | L15: Less: Debt Repayment | P15: =+SUM('Monthly CF'!E62:EG62) -> -4864731.142 | Q15: =+P15/$J$12 -> -47.71917349
C16: Hold Period (Months) to Reach Stabilization | J16: =(J15-J14)/(365/12) -> 24 | L16: Sales Distribution after Debt Repayment | P16: =+P14+P15 -> 7177188.713 | Q16: =+P16/$J$12 -> 70.40255739
C18: SOURCES & USES AT CLOSING | L18: MARK-TO-MARKET ANALYSIS
C19: Sources | I19: $ Actual | J19: $ PSF | P19: $ Actual | Q19: $ PSF
D20: Loan Proceeds | H20: 0.6275 | I20: =+H20*I34 -> 5213195.484 | J20: =+I20/$J$12 -> 51.1373337 | L20: Stabilized Basis | P20: =+M40 -> 8506642.16 | Q20: =+P20/$J$12 -> 83.44344657
D21: Equity | H21: =1-H20 -> 0.3725 | I21: =+H21*I34 -> 3094685.766 | J21: =+I21/$J$12 -> 30.35642519 | L21: Market Rent at Close (NNN) | P21: =+Q21*$J$12 -> 1529175 | Q21: 15
C22: Total Sources | I22: =SUM(I20:I21) -> 8307881.25 | J22: =+I22/$J$12 -> 81.49375889 | L22: Less: General Vacancy | O22: 0.05 | P22: =+-P21*O22 -> -76458.75 | Q22: =+P22/$J$12 -> -0.75
L23: Market Rent after Vacancy (NNN) | P23: =+P21+P22 -> 1452716.25 | Q23: =+P23/$J$12 -> 14.25
C24: Uses | I24: $ Actual | J24: $ PSF | L24: Untrended Mark-to-Market YOC @ Stabilization | Q24: =+Q23/Q20 -> 0.1707743458
D25: Purchase Price | I25: 8105250 | J25: =+I25/$J$12 -> 79.50610623
D26: Renovation Budget | I26: 0 | J26: =+I26/$J$12 -> 0 | L26: OPERATING METRICS
D27: Closing Costs & Loan Fees | M27: Last | P27: NTM Cap Rate | Q27: Economic
E28: Legal Fees | I28: 0 | J28: =+I28/$J$12 -> 0 | L28: Period | M28: Dollar Basis | N28: PSF | O28: NOI (NTM) | P28: on Total Basis | Q28: Occupancy
E29: Lender Fees | H29: 0 | I29: =H29*I20 -> 0 | J29: 0 | L29: At Close | M29: =+I34-SUM(I26) -> 8307881.25 | N29: =+M29/$J$12 -> 81.49375889 | O29: =+SUM('Monthly CF'!F37:Q37) -> 822868.904 | P29: =+O29/M29 -> 0.09904678212 | Q29: =+'Annual CF'!G$8 -> 0.8636029231
E30: Appraisal, Structural, Environmental & Survey | I30: 0 | J30: 0 | L30: 1 | M30: =+M29+SUMIF('Monthly CF'!$E$4:$EG$4,'Project Summary'!L30,'Monthly CF'!$E$44:$EG$44)+SUMIF('Monthly CF'!$E$4:$EG$4,'Project Summary'!L30,'Monthly CF'!$E$81:$EG$81)+SUMIF('Monthly CF'!$E$4:$EG$4,'Project Summary'!L30,'Monthly CF'!$E$82:$EG$82) -> 8497297.202 | N30: 83.3517799 | O30: =+SUMIF('Monthly CF'!$F$4:$EG$4,'Project Summary'!L30+1,'Monthly CF'!$F$37:$EG$37) -> 947630.0938 | P30: 0.1115213545 | Q30: =+'Annual CF'!G$8 -> 0.8636029231
E31: Title (Endorsements) | I31: 0 | J31: 0 | L31: =+L30+1 -> 2 | M31: =+M30+SUMIF('Monthly CF'!$E$4:$EG$4,'Project Summary'!L31,'Monthly CF'!$E$44:$EG$44)+SUMIF('Monthly CF'!$E$4:$EG$4,'Project Summary'!L31,'Monthly CF'!$E$81:$EG$81)+SUMIF('Monthly CF'!$E$4:$EG$4,'Project Summary'!L31,'Monthly CF'!$E$82:$EG$82) -> 8507491.702 | N31: 83.4517799 | O31: =+SUMIF('Monthly CF'!$F$4:$EG$4,'Project Summary'!L31+1,'Monthly CF'!$F$37:$EG$37) -> 967646.2164 | P31: 0.1137404831 | Q31: =+'Annual CF'!H$8 -> 0.9545670051
E32: Acquisition Fee | H32: 0.025 | I32: =+H32*I25 -> 202631.25 | J32: 1.987652656 | L32: 3 | M32: =+M31+SUMIF('Monthly CF'!$E$4:$EG$4,'Project Summary'!L32,'Monthly CF'!$E$44:$EG$44)+SUMIF('Monthly CF'!$E$4:$EG$4,'Project Summary'!L32,'Monthly CF'!$E$81:$EG$81)+SUMIF('Monthly CF'!$E$4:$EG$4,'Project Summary'!L32,'Monthly CF'!$E$82:$EG$82) -> 8517686.202 | N32: 83.5517799 | O32: =+SUMIF('Monthly CF'!$F$4:$EG$4,'Project Summary'!L32+1,'Monthly CF'!$F$37:$EG$37) -> 973084.4327 | P32: 0.1142428131 | Q32: =+'Annual CF'!I$8 -> 1
D33: Total Closing Costs & Loan Fees | I33: =+SUM(I28:I32) -> 202631.25 | J33: 1.987652656 | L33: 4 | M33: =+M32+SUMIF('Monthly CF'!$E$4:$EG$4,'Project Summary'!L33,'Monthly CF'!$E$44:$EG$44)+SUMIF('Monthly CF'!$E$4:$EG$4,'Project Summary'!L33,'Monthly CF'!$E$81:$EG$81)+SUMIF('Monthly CF'!$E$4:$EG$4,'Project Summary'!L33,'Monthly CF'!$E$82:$EG$82) -> 8527880.702 | N33: 83.6517799 | O33: =+SUMIF('Monthly CF'!$F$4:$EG$4,'Project Summary'!L33+1,'Monthly CF'!$F$37:$EG$37) -> 976154.817 | P33: 0.1144662843 | Q33: =+'Annual CF'!J$8 -> 1
C34: Total Costs | I34: =+I25+I26+I33 -> 8307881.25 | J34: 81.49375889 | L34: 5 | M34: =+M33+SUMIF('Monthly CF'!$E$4:$EG$4,'Project Summary'!L34,'Monthly CF'!$E$44:$EG$44)+SUMIF('Monthly CF'!$E$4:$EG$4,'Project Summary'!L34,'Monthly CF'!$E$81:$EG$81)+SUMIF('Monthly CF'!$E$4:$EG$4,'Project Summary'!L34,'Monthly CF'!$E$82:$EG$82) -> 8538075.202 | N34: 83.7517799 | O34: =+SUMIF('Monthly CF'!$F$4:$EG$4,'Project Summary'!L34+1,'Monthly CF'!$F$37:$EG$37) -> 838159.1265 | P34: 0.09816722231 | Q34: =+'Annual CF'!K$8 -> 1
L35: 6 | M35: =+M34+SUMIF('Monthly CF'!$E$4:$EG$4,'Project Summary'!L35,'Monthly CF'!$E$44:$EG$44)+SUMIF('Monthly CF'!$E$4:$EG$4,'Project Summary'!L35,'Monthly CF'!$E$81:$EG$81)+SUMIF('Monthly CF'!$E$4:$EG$4,'Project Summary'!L35,'Monthly CF'!$E$82:$EG$82) -> 8548269.702 | N35: 83.8517799 | O35: =+SUMIF('Monthly CF'!$F$4:$EG$4,'Project Summary'!L35+1,'Monthly CF'!$F$37:$EG$37) -> 737665.8777 | P35: 0.08629417454 | Q35: =+'Annual CF'!L$8 -> 1
C36: SOURCES & USES - FULLY FUNDED | L36: 7 | M36: =+M35+SUMIF('Monthly CF'!$E$4:$EG$4,'Project Summary'!L36,'Monthly CF'!$E$44:$EG$44)+SUMIF('Monthly CF'!$E$4:$EG$4,'Project Summary'!L36,'Monthly CF'!$E$81:$EG$81)+SUMIF('Monthly CF'!$E$4:$EG$4,'Project Summary'!L36,'Monthly CF'!$E$82:$EG$82) -> 8558464.202 | N36: 83.9517799 | O36: =+SUMIF('Monthly CF'!$F$4:$EG$4,'Project Summary'!L36+1,'Monthly CF'!$F$37:$EG$37) -> 726520.7975 | P36: 0.08488915539 | Q36: =+'Annual CF'!M$8 -> 1
C37: Sources | I37: $ Actual | J37: $ PSF | L37: 8 | M37: =+M36+SUMIF('Monthly CF'!$E$4:$EG$4,'Project Summary'!L37,'Monthly CF'!$E$44:$EG$44)+SUMIF('Monthly CF'!$E$4:$EG$4,'Project Summary'!L37,'Monthly CF'!$E$81:$EG$81)+SUMIF('Monthly CF'!$E$4:$EG$4,'Project Summary'!L37,'Monthly CF'!$E$82:$EG$82) -> 8568658.702 | N37: 84.0517799 | O37: =+SUMIF('Monthly CF'!$F$4:$EG$4,'Project Summary'!L37+1,'Monthly CF'!$F$37:$EG$37) -> 715041.3649 | P37: 0.08344845907 | Q37: =+'Annual CF'!N$8 -> 1
D38: Loan Proceeds | F38: =+I38/$I$47 -> 0.616418699 | I38: =+I20 -> 5213195.484 | J38: =+I38/$J$12 -> 51.1373337 | L38: 9 | M38: =+M37+SUMIF('Monthly CF'!$E$4:$EG$4,'Project Summary'!L38,'Monthly CF'!$E$44:$EG$44)+SUMIF('Monthly CF'!$E$4:$EG$4,'Project Summary'!L38,'Monthly CF'!$E$81:$EG$81)+SUMIF('Monthly CF'!$E$4:$EG$4,'Project Summary'!L38,'Monthly CF'!$E$82:$EG$82) -> 8578853.202 | N38: 84.1517799 | O38: =+SUMIF('Monthly CF'!$F$4:$EG$4,'Project Summary'!L38+1,'Monthly CF'!$F$37:$EG$37) -> 703217.5494 | P38: 0.08197104354 | Q38: =+'Annual CF'!O$8 -> 1
D39: Equity | F39: =+I39/$I$47 -> 0.3710827455 | I39: =+MAX('Monthly CF'!E70:EG70) -> 3138332.592 | J39: 30.78456611 | L39: 10 | M39: =+M38+SUMIF('Monthly CF'!$E$4:$EG$4,'Project Summary'!L39,'Monthly CF'!$E$44:$EG$44)+SUMIF('Monthly CF'!$E$4:$EG$4,'Project Summary'!L39,'Monthly CF'!$E$81:$EG$81)+SUMIF('Monthly CF'!$E$4:$EG$4,'Project Summary'!L39,'Monthly CF'!$E$82:$EG$82) -> 8589047.702 | N39: 84.2517799 | O39: =+SUMIF('Monthly CF'!$F$4:$EG$4,'Project Summary'!L39+1,'Monthly CF'!$F$37:$EG$37) -> 692081.7364 | P39: 0.08057723748 | Q39: =+'Annual CF'!P$8 -> 1
D40: Cash Flow | F40: =+I40/$I$47 -> 0.01249855544 | I40: =+I47-SUM(I38:I39) -> 105703.1736 | J40: 1.036864718 | L40: At Stabilization | M40: =+INDEX('Monthly CF'!$E$84:$EG$84,MATCH('Project Summary'!$J$15,'Monthly CF'!$E$6:$EG$6)) -> 8506642.16 | N40: 83.44344657 | O40: =+INDEX('Monthly CF'!$E$86:$EG$86,MATCH('Project Summary'!$J$15,'Monthly CF'!$E$6:$EG$6)) -> 967190.0286 | P40: 0.1136982149 | Q40: 0.938
C41: Total Sources | I41: =SUM(I38:I40) -> 8457231.25 | J41: =SUM(J38:J40) -> 82.95876453
L42: ROLLOVER SCHEDULE
C43: Uses | I43: $ Actual | J43: $ PSF | N43: Current | P43: Cumulative
D44: Acquisition Costs | I44: =+I34-SUM(I26) -> 8307881.25 | J44: =+I44/$J$12 -> 81.49375889 | L44: Period | M44: Year Ending | N44: SF Expired | O44: % Expired | P44: SF Expired | Q44: % Expired
D45: TI & LCs | I45: =+SUM('Monthly CF'!F40:EG41) -> 149350 | J45: 1.46500564 | L45: At Close | M45: =+J14 -> 2018-07-01 | N45: 17265 | O45: =+N45/$J$12 -> 0.1693560253 | P45: =+N45 -> 17265 | Q45: =+O45 -> 0.1693560253
D46: Renovation Capex | I46: =+I26 -> 0 | J46: 0 | L46: 1 | M46: =+EOMONTH(M45,12) -> 2019-07-31 | N46: 8985 | O46: =+N46/$J$12 -> 0.08813575948 | P46: =+P45+N46 -> 26250 | Q46: =+Q45+O46 -> 0.2574917848
C47: Total Capitalization | I47: =SUM(I44:I46) -> 8457231.25 | J47: 82.95876453 | L47: =+L46+1 -> 2 | M47: =+EOMONTH(M46,12) -> 2020-07-31 | N47: 17271 | O47: =+N47/$J$12 -> 0.1694148806 | P47: =+P46+N47 -> 43521 | Q47: =+Q46+O47 -> 0.4269066654
L48: 3 | M48: 2021-07-31 | N48: 5025 | O48: 0.04929128452 | P48: 48546 | Q48: 0.4761979499
C49: RENOVATION | L49: 4 | M49: 2022-07-31 | N49: 8335 | O49: 0.08175977243 | P49: 56881 | Q49: 0.5579577223
I50: $ Actual | J50: $ PSF | L50: 5 | M50: 2023-07-31 | N50: 24200 | O50: 0.2373829025 | P50: 81081 | Q50: 0.7953406248
C51: Total Capex Spend | I51: =+I26 -> 0 | J51: =+I51/$J$12 -> 0 | L51: 6 | M51: 2024-07-31 | N51: 29000 | O51: 0.2844671146 | P51: 110081 | Q51: 1.079807739
L52: 7 | M52: 2025-07-31 | N52: 2700 | O52: 0.02648486929 | P52: 112781 | Q52: 1.106292609
C53: Capex Start | L53: 8 | M53: 2026-07-31 | N53: 1000 | O53: 0.009809210849 | P53: 113781 | Q53: 1.11610182
C54: Time to Complete | L54: 9 | M54: 2027-07-31 | N54: =+SUMIF('Tenant Summary'!$O$8:$O$25,'Project Summary'!L54,'Tenant Summary'!$D$8:$D$25) -> 0 | O54: 0 | P54: 113781 | Q54: 1.11610182
C55: Capex End | L55: 10 | M55: 2028-07-31 | N55: =+SUMIF('Tenant Summary'!$O$8:$O$25,'Project Summary'!L55,'Tenant Summary'!$D$8:$D$25) -> 0 | O55: 0 | P55: 113781 | Q55: 1.11610182
C56: Capex Spend per Month
L57: RETURNS
C58: FINANCING | L58: Unlevered IRR | Q58: =+'Monthly CF'!$D$50 -> 0.230442062
C59: Acquisition Loan Proceeds | J59: =+I20-J60 -> 5213195.484 | L59: Unlevered Multiple | Q59: =+'Monthly CF'!$D$51 -> 1.756129531
C60: Additional Debt Reserve / Holdback Proceeds | J60: =+SUM(I26)*H20 -> 0 | L60: Levered IRR | Q60: =+'Monthly CF'!D65 -> 0.4634872349
C61: Term | J61: =Q7 -> 3 | L61: Levered Multiple | Q61: =+'Monthly CF'!D66 -> 2.773343722
C62: Rate | J62: 0.048 | L62: Levered Analysis | O62: % of Total Profit | P62: $ Actual | Q62: $ PSF
C63: Initial IO? | J63: no | L63: NPV of Total Cash Flows | O63: =+P63/$P$63 -> 1 | P63: =NPV(((($Q$60+1)^(1/12)-1)),'Monthly CF'!F63:EG63) -> 3094685.766 | Q63: =+P63/$J$12 -> 30.35642519
C64: Switch to Amo | J64: 0 | L64: Cash Flows | O64: =+P64/$P$63 -> 0.2601034675 | P64: =NPV(((($Q$60+1)^(1/12)-1)),'Monthly CF'!F88:EG88) -> 804938.4984 | Q64: =+P64/$J$12 -> 7.895811451
C65: Amortization Period | J65: 25 | L65: Sales Proceeds | O65: =+P65/$P$63 -> 0.7398965325 | P65: =NPV(((($Q$60+1)^(1/12)-1)),'Monthly CF'!F89:EG89) -> 2289747.267 | Q65: =+P65/$J$12 -> 22.46061374
B66: x | R66: x

Sheet Annual CF
B2: Annual Cash Flows
B3: =+'Project Summary'!C4 -> Post Oak Square
B4: Year | F4: 0 | G4: =+F4+1 -> 1 | H4: =+G4+1 -> 2 | I4: 3 | J4: 4 | K4: 5 | L4: 6 | M4: 7 | N4: 8 | O4: 9 | P4: 10 | Q4: 11
B5: Date | F5: =+'Project Summary'!$J$14 -> 2018-07-01 | G5: =+EOMONTH(F5,12) -> 2019-07-31 | H5: =+EOMONTH(G5,12) -> 2020-07-31 | I5: 2021-07-31 | J5: 2022-07-31 | K5: 2023-07-31 | L5: 2024-07-31 | M5: 2025-07-31 | N5: 2026-07-31 | O5: 2027-07-31 | P5: 2028-07-31 | Q5: 2029-07-31
B7: Average Occupancy | G7: =+INDEX(Occupancy!$B$18:$L$18,MATCH('Annual CF'!G5,Occupancy!$B$2:$L$2))/'Project Summary'!$J$12 -> 0.8636029231 | H7: =+INDEX(Occupancy!$B$18:$L$18,MATCH('Annual CF'!H5,Occupancy!$B$2:$L$2))/'Project Summary'!$J$12 -> 0.9545670051 | I7: =+INDEX(Occupancy!$B$18:$L$18,MATCH('Annual CF'!I5,Occupancy!$B$2:$L$2))/'Project Summary'!$J$12 -> 1 | J7: =+INDEX(Occupancy!$B$18:$L$18,MATCH('Annual CF'!J5,Occupancy!$B$2:$L$2))/'Project Summary'!$J$12 -> 1 | K7: =+INDEX(Occupancy!$B$18:$L$18,MATCH('Annual CF'!K5,Occupancy!$B$2:$L$2))/'Project Summary'!$J$12 -> 1 | L7: =+INDEX(Occupancy!$B$18:$L$18,MATCH('Annual CF'!L5,Occupancy!$B$2:$L$2))/'Project Summary'!$J$12 -> 1 | M7: =+INDEX(Occupancy!$B$18:$L$18,MATCH('Annual CF'!M5,Occupancy!$B$2:$L$2))/'Project Summary'!$J$12 -> 1 | N7: =+INDEX(Occupancy!$B$18:$L$18,MATCH('Annual CF'!N5,Occupancy!$B$2:$L$2))/'Project Summary'!$J$12 -> 1 | O7: =+INDEX(Occupancy!$B$18:$L$18,MATCH('Annual CF'!O5,Occupancy!$B$2:$L$2))/'Project Summary'!$J$12 -> 1 | P7: =+INDEX(Occupancy!$B$18:$L$18,MATCH('Annual CF'!P5,Occupancy!$B$2:$L$2))/'Project Summary'!$J$12 -> 1 | Q7: =+INDEX(Occupancy!$B$18:$L$18,MATCH('Annual CF'!Q5,Occupancy!$B$2:$L$2))/'Project Summary'!$J$12 -> 1
B8: Economic Occupancy (w/ General Vacancy) | G8: =+G7 -> 0.8636029231 | H8: =+H7 -> 0.9545670051 | I8: 1 | J8: 1 | K8: 1 | L8: 1 | M8: 1 | N8: 1 | O8: 1 | P8: 1 | Q8: 1
B9: Gross Rent / Occupied SF | G9: =(G15+G16+G17)/(G7*'Project Summary'!$J$12) -> 12.8804696 | H9: =(H15+H16+H17)/(H7*'Project Summary'!$J$12) -> 13.03101558 | I9: =(I15+I16+I17)/(I7*'Project Summary'!$J$12) -> 12.7296241 | J9: =(J15+J16+J17)/(J7*'Project Summary'!$J$12) -> 12.88010206 | K9: =(K15+K16+K17)/(K7*'Project Summary'!$J$12) -> 13.01026746 | L9: =(L15+L16+L17)/(L7*'Project Summary'!$J$12) -> 11.75968741 | M9: =(M15+M16+M17)/(M7*'Project Summary'!$J$12) -> 10.88006817 | N9: =(N15+N16+N17)/(N7*'Project Summary'!$J$12) -> 10.88006817 | O9: =(O15+O16+O17)/(O7*'Project Summary'!$J$12) -> 10.88006817 | P9: =(P15+P16+P17)/(P7*'Project Summary'!$J$12) -> 10.88006817 | Q9: =(Q15+Q16+Q17)/(Q7*'Project Summary'!$J$12) -> 10.88006817
B10: Gross Rent / Occupied SF Growth Rate | H10: =+(H9-G9)/G9 -> 0.01168792613 | I10: =+(I9-H9)/H9 -> -0.02312877855 | J10: 0.01182108436 | K10: 0.010105929 | L10: -0.0961225476 | M10: -0.07479954201 | N10: 0 | O10: 0 | P10: 0 | Q10: 0
B12: Acquisition Cost | F12: =+'Monthly CF'!E7 -> -8307881.25
B13: Base Rental Revenue | G13: =+SUMIF('Monthly CF'!$F$4:$EG$4,'Annual CF'!G$4,'Monthly CF'!$F10:$EG10) -> 962347.4667 | H13: =+SUMIF('Monthly CF'!$F$4:$EG$4,'Annual CF'!H$4,'Monthly CF'!$F10:$EG10) -> 1074496.05 | I13: =+SUMIF('Monthly CF'!$F$4:$EG$4,'Annual CF'!I$4,'Monthly CF'!$F10:$EG10) -> 1092336.05 | J13: =+SUMIF('Monthly CF'!$F$4:$EG$4,'Annual CF'!J$4,'Monthly CF'!$F10:$EG10) -> 1095168.55 | K13: =+SUMIF('Monthly CF'!$F$4:$EG$4,'Annual CF'!K$4,'Monthly CF'!$F10:$EG10) -> 1095168.55 | L13: =+SUMIF('Monthly CF'!$F$4:$EG$4,'Annual CF'!L$4,'Monthly CF'!$F10:$EG10) -> 1098668.55 | M13: =+SUMIF('Monthly CF'!$F$4:$EG$4,'Annual CF'!M$4,'Monthly CF'!$F10:$EG10) -> 1109168.55 | N13: =+SUMIF('Monthly CF'!$F$4:$EG$4,'Annual CF'!N$4,'Monthly CF'!$F10:$EG10) -> 1109168.55 | O13: =+SUMIF('Monthly CF'!$F$4:$EG$4,'Annual CF'!O$4,'Monthly CF'!$F10:$EG10) -> 1109168.55 | P13: =+SUMIF('Monthly CF'!$F$4:$EG$4,'Annual CF'!P$4,'Monthly CF'!$F10:$EG10) -> 1109168.55 | Q13: =+SUMIF('Monthly CF'!$F$4:$EG$4,'Annual CF'!Q$4,'Monthly CF'!$F10:$EG10) -> 1109168.55
B14: Less: Vacancy Loss | G14: =+SUMIF('Monthly CF'!$F$4:$EG$4,'Annual CF'!G$4,'Monthly CF'!$F11:$EG11) -> 0 | H14: =+SUMIF('Monthly CF'!$F$4:$EG$4,'Annual CF'!H$4,'Monthly CF'!$F11:$EG11) -> 0 | I14: =+SUMIF('Monthly CF'!$F$4:$EG$4,'Annual CF'!I$4,'Monthly CF'!$F11:$EG11) -> 0 | J14: =+SUMIF('Monthly CF'!$F$4:$EG$4,'Annual CF'!J$4,'Monthly CF'!$F11:$EG11) -> 0 | K14: =+SUMIF('Monthly CF'!$F$4:$EG$4,'Annual CF'!K$4,'Monthly CF'!$F11:$EG11) -> 0 | L14: =+SUMIF('Monthly CF'!$F$4:$EG$4,'Annual CF'!L$4,'Monthly CF'!$F11:$EG11) -> 0 | M14: =+SUMIF('Monthly CF'!$F$4:$EG$4,'Annual CF'!M$4,'Monthly CF'!$F11:$EG11) -> 0 | N14: =+SUMIF('Monthly CF'!$F$4:$EG$4,'Annual CF'!N$4,'Monthly CF'!$F11:$EG11) -> 0 | O14: =+SUMIF('Monthly CF'!$F$4:$EG$4,'Annual CF'!O$4,'Monthly CF'!$F11:$EG11) -> 0 | P14: =+SUMIF('Monthly CF'!$F$4:$EG$4,'Annual CF'!P$4,'Monthly CF'!$F11:$EG11) -> 0 | Q14: =+SUMIF('Monthly CF'!$F$4:$EG$4,'Annual CF'!Q$4,'Monthly CF'!$F11:$EG11) -> 0
B15: Scheduled Base Rental Revenue | G15: =SUM(G13:G14) -> 962347.4667 | H15: =SUM(H13:H14) -> 1074496.05 | I15: 1092336.05 | J15: 1095168.55 | K15: 1095168.55 | L15: 1098668.55 | M15: 1109168.55 | N15: 1109168.55 | O15: 1109168.55 | P15: 1109168.55 | Q15: 1109168.55
B16: Expense Reimbursement Revenue | G16: =+SUMPRODUCT(--('Monthly CF'!$E$4:$EG$4='Annual CF'!G$4),--('Monthly CF'!$E14:$EG14)) -> 171649.0768 | H16: =+SUMPRODUCT(--('Monthly CF'!$E$4:$EG$4='Annual CF'!H$4),--('Monthly CF'!$E14:$EG14)) -> 193595.5124 | I16: =+SUMPRODUCT(--('Monthly CF'!$E$4:$EG$4='Annual CF'!I$4),--('Monthly CF'!$E14:$EG14)) -> 205385.4791 | J16: =+SUMPRODUCT(--('Monthly CF'!$E$4:$EG$4='Annual CF'!J$4),--('Monthly CF'!$E14:$EG14)) -> 217893.4548 | K16: =+SUMPRODUCT(--('Monthly CF'!$E$4:$EG$4='Annual CF'!K$4),--('Monthly CF'!$E14:$EG14)) -> 231163.1661 | L16: =+SUMPRODUCT(--('Monthly CF'!$E$4:$EG$4='Annual CF'!L$4),--('Monthly CF'!$E14:$EG14)) -> 100172.7826 | M16: =+SUMPRODUCT(--('Monthly CF'!$E$4:$EG$4='Annual CF'!M$4),--('Monthly CF'!$E14:$EG14)) -> 0 | N16: =+SUMPRODUCT(--('Monthly CF'!$E$4:$EG$4='Annual CF'!N$4),--('Monthly CF'!$E14:$EG14)) -> 0 | O16: =+SUMPRODUCT(--('Monthly CF'!$E$4:$EG$4='Annual CF'!O$4),--('Monthly CF'!$E14:$EG14)) -> 0 | P16: =+SUMPRODUCT(--('Monthly CF'!$E$4:$EG$4='Annual CF'!P$4),--('Monthly CF'!$E14:$EG14)) -> 0 | Q16: =+SUMPRODUCT(--('Monthly CF'!$E$4:$EG$4='Annual CF'!Q$4),--('Monthly CF'!$E14:$EG14)) -> 0
B17: Other Income | G17: =+SUMPRODUCT(--('Monthly CF'!$E$4:$EG$4='Annual CF'!G$4),--('Monthly CF'!$E15:$EG15)) -> 0 | H17: =+SUMPRODUCT(--('Monthly CF'!$E$4:$EG$4='Annual CF'!H$4),--('Monthly CF'!$E15:$EG15)) -> 0 | I17: =+SUMPRODUCT(--('Monthly CF'!$E$4:$EG$4='Annual CF'!I$4),--('Monthly CF'!$E15:$EG15)) -> 0 | J17: =+SUMPRODUCT(--('Monthly CF'!$E$4:$EG$4='Annual CF'!J$4),--('Monthly CF'!$E15:$EG15)) -> 0 | K17: =+SUMPRODUCT(--('Monthly CF'!$E$4:$EG$4='Annual CF'!K$4),--('Monthly CF'!$E15:$EG15)) -> 0 | L17: =+SUMPRODUCT(--('Monthly CF'!$E$4:$EG$4='Annual CF'!L$4),--('Monthly CF'!$E15:$EG15)) -> 0 | M17: =+SUMPRODUCT(--('Monthly CF'!$E$4:$EG$4='Annual CF'!M$4),--('Monthly CF'!$E15:$EG15)) -> 0 | N17: =+SUMPRODUCT(--('Monthly CF'!$E$4:$EG$4='Annual CF'!N$4),--('Monthly CF'!$E15:$EG15)) -> 0 | O17: =+SUMPRODUCT(--('Monthly CF'!$E$4:$EG$4='Annual CF'!O$4),--('Monthly CF'!$E15:$EG15)) -> 0 | P17: =+SUMPRODUCT(--('Monthly CF'!$E$4:$EG$4='Annual CF'!P$4),--('Monthly CF'!$E15:$EG15)) -> 0 | Q17: =+SUMPRODUCT(--('Monthly CF'!$E$4:$EG$4='Annual CF'!Q$4),--('Monthly CF'!$E15:$EG15)) -> 0
B18: Less: General Vacancy | G18: =+SUMPRODUCT(--('Monthly CF'!$E$4:$EG$4='Annual CF'!G$4),--('Monthly CF'!$E19:$EG19)) -> 0 | H18: =+SUMPRODUCT(--('Monthly CF'!$E$4:$EG$4='Annual CF'!H$4),--('Monthly CF'!$E19:$EG19)) -> 0 | I18: =+SUMPRODUCT(--('Monthly CF'!$E$4:$EG$4='Annual CF'!I$4),--('Monthly CF'!$E19:$EG19)) -> 0 | J18: =+SUMPRODUCT(--('Monthly CF'!$E$4:$EG$4='Annual CF'!J$4),--('Monthly CF'!$E19:$EG19)) -> 0 | K18: =+SUMPRODUCT(--('Monthly CF'!$E$4:$EG$4='Annual CF'!K$4),--('Monthly CF'!$E19:$EG19)) -> 0 | L18: =+SUMPRODUCT(--('Monthly CF'!$E$4:$EG$4='Annual CF'!L$4),--('Monthly CF'!$E19:$EG19)) -> 0 | M18: =+SUMPRODUCT(--('Monthly CF'!$E$4:$EG$4='Annual CF'!M$4),--('Monthly CF'!$E19:$EG19)) -> 0 | N18: =+SUMPRODUCT(--('Monthly CF'!$E$4:$EG$4='Annual CF'!N$4),--('Monthly CF'!$E19:$EG19)) -> 0 | O18: =+SUMPRODUCT(--('Monthly CF'!$E$4:$EG$4='Annual CF'!O$4),--('Monthly CF'!$E19:$EG19)) -> 0 | P18: =+SUMPRODUCT(--('Monthly CF'!$E$4:$EG$4='Annual CF'!P$4),--('Monthly CF'!$E19:$EG19)) -> 0 | Q18: =+SUMPRODUCT(--('Monthly CF'!$E$4:$EG$4='Annual CF'!Q$4),--('Monthly CF'!$E19:$EG19)) -> 0
B19: Less: Operating Expenses | G19: =+SUMPRODUCT(--('Monthly CF'!$E$4:$EG$4='Annual CF'!G$4),--('Monthly CF'!$E35:$EG35)) -> -311127.6394 | H19: =+SUMPRODUCT(--('Monthly CF'!$E$4:$EG$4='Annual CF'!H$4),--('Monthly CF'!$E35:$EG35)) -> -320461.4686 | I19: =+SUMPRODUCT(--('Monthly CF'!$E$4:$EG$4='Annual CF'!I$4),--('Monthly CF'!$E35:$EG35)) -> -330075.3126 | J19: =+SUMPRODUCT(--('Monthly CF'!$E$4:$EG$4='Annual CF'!J$4),--('Monthly CF'!$E35:$EG35)) -> -339977.572 | K19: =+SUMPRODUCT(--('Monthly CF'!$E$4:$EG$4='Annual CF'!K$4),--('Monthly CF'!$E35:$EG35)) -> -350176.8992 | L19: =+SUMPRODUCT(--('Monthly CF'!$E$4:$EG$4='Annual CF'!L$4),--('Monthly CF'!$E35:$EG35)) -> -360682.2062 | M19: =+SUMPRODUCT(--('Monthly CF'!$E$4:$EG$4='Annual CF'!M$4),--('Monthly CF'!$E35:$EG35)) -> -371502.6723 | N19: =+SUMPRODUCT(--('Monthly CF'!$E$4:$EG$4='Annual CF'!N$4),--('Monthly CF'!$E35:$EG35)) -> -382647.7525 | O19: =+SUMPRODUCT(--('Monthly CF'!$E$4:$EG$4='Annual CF'!O$4),--('Monthly CF'!$E35:$EG35)) -> -394127.1851 | P19: =+SUMPRODUCT(--('Monthly CF'!$E$4:$EG$4='Annual CF'!P$4),--('Monthly CF'!$E35:$EG35)) -> -405951.0006 | Q19: =+SUMPRODUCT(--('Monthly CF'!$E$4:$EG$4='Annual CF'!Q$4),--('Monthly CF'!$E35:$EG35)) -> -417086.8136
B20: Net Operating Income | G20: =SUM(G15:G19) -> 822868.904 | H20: =SUM(H15:H19) -> 947630.0938 | I20: 967646.2164 | J20: 973084.4327 | K20: 976154.817 | L20: 838159.1265 | M20: 737665.8777 | N20: 726520.7975 | O20: 715041.3649 | P20: 703217.5494 | Q20: 692081.7364
B21: NOI Growth Rate | H21: =+(H20-G20)/G20 -> 0.1516173344 | I21: =+(I20-H20)/H20 -> 0.02112229527 | J21: 0.00562004605 | K21: 0.003155311225 | L21: -0.141366603 | M21: -0.1198975775 | N21: -0.01510857491 | O21: -0.01580055604 | P21: -0.01653584832 | Q21: -0.01583551633
B23: Tenant Improvements | G23: =+SUMPRODUCT(--('Monthly CF'!$E$4:$EG$4='Annual CF'!G$4),--('Monthly CF'!$E40:$EG$40)) -> 103000 | H23: =+SUMPRODUCT(--('Monthly CF'!$E$4:$EG$4='Annual CF'!H$4),--('Monthly CF'!$E40:$EG$40)) -> 0 | I23: =+SUMPRODUCT(--('Monthly CF'!$E$4:$EG$4='Annual CF'!I$4),--('Monthly CF'!$E40:$EG$40)) -> 0 | J23: =+SUMPRODUCT(--('Monthly CF'!$E$4:$EG$4='Annual CF'!J$4),--('Monthly CF'!$E40:$EG$40)) -> 0 | K23: =+SUMPRODUCT(--('Monthly CF'!$E$4:$EG$4='Annual CF'!K$4),--('Monthly CF'!$E40:$EG$40)) -> 0 | L23: =+SUMPRODUCT(--('Monthly CF'!$E$4:$EG$4='Annual CF'!L$4),--('Monthly CF'!$E40:$EG$40)) -> 0 | M23: =+SUMPRODUCT(--('Monthly CF'!$E$4:$EG$4='Annual CF'!M$4),--('Monthly CF'!$E40:$EG$40)) -> 0 | N23: =+SUMPRODUCT(--('Monthly CF'!$E$4:$EG$4='Annual CF'!N$4),--('Monthly CF'!$E40:$EG$40)) -> 0 | O23: =+SUMPRODUCT(--('Monthly CF'!$E$4:$EG$4='Annual CF'!O$4),--('Monthly CF'!$E40:$EG$40)) -> 0 | P23: =+SUMPRODUCT(--('Monthly CF'!$E$4:$EG$4='Annual CF'!P$4),--('Monthly CF'!$E40:$EG$40)) -> 0 | Q23: =+SUMPRODUCT(--('Monthly CF'!$E$4:$EG$4='Annual CF'!Q$4),--('Monthly CF'!$E40:$EG$40)) -> 0
B24: Leasing Commissions | G24: =+SUMPRODUCT(--('Monthly CF'!$E$4:$EG$4='Annual CF'!G$4),--('Monthly CF'!$E41:$EG41)) -> 46350 | H24: =+SUMPRODUCT(--('Monthly CF'!$E$4:$EG$4='Annual CF'!H$4),--('Monthly CF'!$E41:$EG41)) -> 0 | I24: =+SUMPRODUCT(--('Monthly CF'!$E$4:$EG$4='Annual CF'!I$4),--('Monthly CF'!$E41:$EG41)) -> 0 | J24: =+SUMPRODUCT(--('Monthly CF'!$E$4:$EG$4='Annual CF'!J$4),--('Monthly CF'!$E41:$EG41)) -> 0 | K24: =+SUMPRODUCT(--('Monthly CF'!$E$4:$EG$4='Annual CF'!K$4),--('Monthly CF'!$E41:$EG41)) -> 0 | L24: =+SUMPRODUCT(--('Monthly CF'!$E$4:$EG$4='Annual CF'!L$4),--('Monthly CF'!$E41:$EG41)) -> 0 | M24: =+SUMPRODUCT(--('Monthly CF'!$E$4:$EG$4='Annual CF'!M$4),--('Monthly CF'!$E41:$EG41)) -> 0 | N24: =+SUMPRODUCT(--('Monthly CF'!$E$4:$EG$4='Annual CF'!N$4),--('Monthly CF'!$E41:$EG41)) -> 0 | O24: =+SUMPRODUCT(--('Monthly CF'!$E$4:$EG$4='Annual CF'!O$4),--('Monthly CF'!$E41:$EG41)) -> 0 | P24: =+SUMPRODUCT(--('Monthly CF'!$E$4:$EG$4='Annual CF'!P$4),--('Monthly CF'!$E41:$EG41)) -> 0 | Q24: =+SUMPRODUCT(--('Monthly CF'!$E$4:$EG$4='Annual CF'!Q$4),--('Monthly CF'!$E41:$EG41)) -> 0
B25: Reserves | G25: =+SUMPRODUCT(--('Monthly CF'!$E$4:$EG$4='Annual CF'!G$4),--('Monthly CF'!$E42:$EG42)) -> 10194.5 | H25: =+SUMPRODUCT(--('Monthly CF'!$E$4:$EG$4='Annual CF'!H$4),--('Monthly CF'!$E42:$EG42)) -> 10194.5 | I25: =+SUMPRODUCT(--('Monthly CF'!$E$4:$EG$4='Annual CF'!I$4),--('Monthly CF'!$E42:$EG42)) -> 10194.5 | J25: =+SUMPRODUCT(--('Monthly CF'!$E$4:$EG$4='Annual CF'!J$4),--('Monthly CF'!$E42:$EG42)) -> 10194.5 | K25: =+SUMPRODUCT(--('Monthly CF'!$E$4:$EG$4='Annual CF'!K$4),--('Monthly CF'!$E42:$EG42)) -> 10194.5 | L25: =+SUMPRODUCT(--('Monthly CF'!$E$4:$EG$4='Annual CF'!L$4),--('Monthly CF'!$E42:$EG42)) -> 10194.5 | M25: =+SUMPRODUCT(--('Monthly CF'!$E$4:$EG$4='Annual CF'!M$4),--('Monthly CF'!$E42:$EG42)) -> 10194.5 | N25: =+SUMPRODUCT(--('Monthly CF'!$E$4:$EG$4='Annual CF'!N$4),--('Monthly CF'!$E42:$EG42)) -> 10194.5 | O25: =+SUMPRODUCT(--('Monthly CF'!$E$4:$EG$4='Annual CF'!O$4),--('Monthly CF'!$E42:$EG42)) -> 10194.5 | P25: =+SUMPRODUCT(--('Monthly CF'!$E$4:$EG$4='Annual CF'!P$4),--('Monthly CF'!$E42:$EG42)) -> 10194.5 | Q25: =+SUMPRODUCT(--('Monthly CF'!$E$4:$EG$4='Annual CF'!Q$4),--('Monthly CF'!$E42:$EG42)) -> 10194.5
B26: Renovation Capex | G26: =+SUMPRODUCT(--('Monthly CF'!$E$4:$EG$4='Annual CF'!G$4),--('Monthly CF'!$E43:$EG43)) -> 0 | H26: =+SUMPRODUCT(--('Monthly CF'!$E$4:$EG$4='Annual CF'!H$4),--('Monthly CF'!$E43:$EG43)) -> 0 | I26: =+SUMPRODUCT(--('Monthly CF'!$E$4:$EG$4='Annual CF'!I$4),--('Monthly CF'!$E43:$EG43)) -> 0 | J26: =+SUMPRODUCT(--('Monthly CF'!$E$4:$EG$4='Annual CF'!J$4),--('Monthly CF'!$E43:$EG43)) -> 0 | K26: =+SUMPRODUCT(--('Monthly CF'!$E$4:$EG$4='Annual CF'!K$4),--('Monthly CF'!$E43:$EG43)) -> 0 | L26: =+SUMPRODUCT(--('Monthly CF'!$E$4:$EG$4='Annual CF'!L$4),--('Monthly CF'!$E43:$EG43)) -> 0 | M26: =+SUMPRODUCT(--('Monthly CF'!$E$4:$EG$4='Annual CF'!M$4),--('Monthly CF'!$E43:$EG43)) -> 0 | N26: =+SUMPRODUCT(--('Monthly CF'!$E$4:$EG$4='Annual CF'!N$4),--('Monthly CF'!$E43:$EG43)) -> 0 | O26: =+SUMPRODUCT(--('Monthly CF'!$E$4:$EG$4='Annual CF'!O$4),--('Monthly CF'!$E43:$EG43)) -> 0 | P26: =+SUMPRODUCT(--('Monthly CF'!$E$4:$EG$4='Annual CF'!P$4),--('Monthly CF'!$E43:$EG43)) -> 0 | Q26: =+SUMPRODUCT(--('Monthly CF'!$E$4:$EG$4='Annual CF'!Q$4),--('Monthly CF'!$E43:$EG43)) -> 0
B27: Total Leasing & Capital Costs | G27: =SUM(G23:G26) -> 159544.5 | H27: 10194.5 | I27: 10194.5 | J27: 10194.5 | K27: 10194.5 | L27: 10194.5 | M27: 10194.5 | N27: 10194.5 | O27: 10194.5 | P27: 10194.5 | Q27: 10194.5
B29: Cash Flow Before Debt Service | F29: =+SUMPRODUCT(--('Monthly CF'!$E$4:$EG$4='Annual CF'!F$4),--('Monthly CF'!$E46:$EG46)) -> -8307881.25 | G29: =+SUMPRODUCT(--('Monthly CF'!$E$4:$EG$4='Annual CF'!G$4),--('Monthly CF'!$E46:$EG46)) -> 663324.404 | H29: =+SUMPRODUCT(--('Monthly CF'!$E$4:$EG$4='Annual CF'!H$4),--('Monthly CF'!$E46:$EG46)) -> 937435.5938 | I29: =+SUMPRODUCT(--('Monthly CF'!$E$4:$EG$4='Annual CF'!I$4),--('Monthly CF'!$E46:$EG46)) -> 957451.7164 | J29: =+SUMPRODUCT(--('Monthly CF'!$E$4:$EG$4='Annual CF'!J$4),--('Monthly CF'!$E46:$EG46)) -> 0 | K29: =+SUMPRODUCT(--('Monthly CF'!$E$4:$EG$4='Annual CF'!K$4),--('Monthly CF'!$E46:$EG46)) -> 0 | L29: =+SUMPRODUCT(--('Monthly CF'!$E$4:$EG$4='Annual CF'!L$4),--('Monthly CF'!$E46:$EG46)) -> 0 | M29: =+SUMPRODUCT(--('Monthly CF'!$E$4:$EG$4='Annual CF'!M$4),--('Monthly CF'!$E46:$EG46)) -> 0 | N29: =+SUMPRODUCT(--('Monthly CF'!$E$4:$EG$4='Annual CF'!N$4),--('Monthly CF'!$E46:$EG46)) -> 0 | O29: =+SUMPRODUCT(--('Monthly CF'!$E$4:$EG$4='Annual CF'!O$4),--('Monthly CF'!$E46:$EG46)) -> 0 | P29: =+SUMPRODUCT(--('Monthly CF'!$E$4:$EG$4='Annual CF'!P$4),--('Monthly CF'!$E46:$EG46)) -> 0 | Q29: =+SUMPRODUCT(--('Monthly CF'!$E$4:$EG$4='Annual CF'!Q$4),--('Monthly CF'!$E46:$EG46)) -> 0
B30: Net Proceeds from Sale of Building | F30: =+SUMPRODUCT(--('Monthly CF'!$E$4:$EG$4='Annual CF'!F$4),--('Monthly CF'!$E47:$EG47)) -> 0 | G30: =+SUMPRODUCT(--('Monthly CF'!$E$4:$EG$4='Annual CF'!G$4),--('Monthly CF'!$E47:$EG47)) -> 0 | H30: =+SUMPRODUCT(--('Monthly CF'!$E$4:$EG$4='Annual CF'!H$4),--('Monthly CF'!$E47:$EG47)) -> 0 | I30: =+SUMPRODUCT(--('Monthly CF'!$E$4:$EG$4='Annual CF'!I$4),--('Monthly CF'!$E47:$EG47)) -> 12041919.86 | J30: =+SUMPRODUCT(--('Monthly CF'!$E$4:$EG$4='Annual CF'!J$4),--('Monthly CF'!$E47:$EG47)) -> 0 | K30: =+SUMPRODUCT(--('Monthly CF'!$E$4:$EG$4='Annual CF'!K$4),--('Monthly CF'!$E47:$EG47)) -> 0 | L30: =+SUMPRODUCT(--('Monthly CF'!$E$4:$EG$4='Annual CF'!L$4),--('Monthly CF'!$E47:$EG47)) -> 0 | M30: =+SUMPRODUCT(--('Monthly CF'!$E$4:$EG$4='Annual CF'!M$4),--('Monthly CF'!$E47:$EG47)) -> 0 | N30: =+SUMPRODUCT(--('Monthly CF'!$E$4:$EG$4='Annual CF'!N$4),--('Monthly CF'!$E47:$EG47)) -> 0 | O30: =+SUMPRODUCT(--('Monthly CF'!$E$4:$EG$4='Annual CF'!O$4),--('Monthly CF'!$E47:$EG47)) -> 0 | P30: =+SUMPRODUCT(--('Monthly CF'!$E$4:$EG$4='Annual CF'!P$4),--('Monthly CF'!$E47:$EG47)) -> 0 | Q30: =+SUMPRODUCT(--('Monthly CF'!$E$4:$EG$4='Annual CF'!Q$4),--('Monthly CF'!$E47:$EG47)) -> 0
B31: Unlevered Cash Flow | F31: =+F29+F30 -> -8307881.25 | G31: =+G29+G30 -> 663324.404 | H31: 937435.5938 | I31: 12999371.57 | J31: 0 | K31: 0 | L31: 0 | M31: 0 | N31: 0 | O31: 0 | P31: 0 | Q31: 0
B33: Loan Proceeds | F33: =+SUMPRODUCT(--('Monthly CF'!$E$4:$EG$4='Annual CF'!F$4),--('Monthly CF'!$E59:$EG59)) -> 5213195.484 | G33: =+SUMPRODUCT(--('Monthly CF'!$E$4:$EG$4='Annual CF'!G$4),--('Monthly CF'!$E59:$EG59)) -> 0 | H33: =+SUMPRODUCT(--('Monthly CF'!$E$4:$EG$4='Annual CF'!H$4),--('Monthly CF'!$E59:$EG59)) -> 0 | I33: =+SUMPRODUCT(--('Monthly CF'!$E$4:$EG$4='Annual CF'!I$4),--('Monthly CF'!$E59:$EG59)) -> 0 | J33: =+SUMPRODUCT(--('Monthly CF'!$E$4:$EG$4='Annual CF'!J$4),--('Monthly CF'!$E59:$EG59)) -> 0 | K33: =+SUMPRODUCT(--('Monthly CF'!$E$4:$EG$4='Annual CF'!K$4),--('Monthly CF'!$E59:$EG59)) -> 0 | L33: =+SUMPRODUCT(--('Monthly CF'!$E$4:$EG$4='Annual CF'!L$4),--('Monthly CF'!$E59:$EG59)) -> 0 | M33: =+SUMPRODUCT(--('Monthly CF'!$E$4:$EG$4='Annual CF'!M$4),--('Monthly CF'!$E59:$EG59)) -> 0 | N33: =+SUMPRODUCT(--('Monthly CF'!$E$4:$EG$4='Annual CF'!N$4),--('Monthly CF'!$E59:$EG59)) -> 0 | O33: =+SUMPRODUCT(--('Monthly CF'!$E$4:$EG$4='Annual CF'!O$4),--('Monthly CF'!$E59:$EG59)) -> 0 | P33: =+SUMPRODUCT(--('Monthly CF'!$E$4:$EG$4='Annual CF'!P$4),--('Monthly CF'!$E59:$EG59)) -> 0 | Q33: =+SUMPRODUCT(--('Monthly CF'!$E$4:$EG$4='Annual CF'!Q$4),--('Monthly CF'!$E59:$EG59)) -> 0
B34: Financing Fees | F34: =+SUMPRODUCT(--('Monthly CF'!$E$4:$EG$4='Annual CF'!F$4),--('Monthly CF'!$E60:$EG60)) -> 0 | G34: =+SUMPRODUCT(--('Monthly CF'!$E$4:$EG$4='Annual CF'!G$4),--('Monthly CF'!$E60:$EG60)) -> 0 | H34: =+SUMPRODUCT(--('Monthly CF'!$E$4:$EG$4='Annual CF'!H$4),--('Monthly CF'!$E60:$EG60)) -> 0 | I34: =+SUMPRODUCT(--('Monthly CF'!$E$4:$EG$4='Annual CF'!I$4),--('Monthly CF'!$E60:$EG60)) -> 0 | J34: =+SUMPRODUCT(--('Monthly CF'!$E$4:$EG$4='Annual CF'!J$4),--('Monthly CF'!$E60:$EG60)) -> 0 | K34: =+SUMPRODUCT(--('Monthly CF'!$E$4:$EG$4='Annual CF'!K$4),--('Monthly CF'!$E60:$EG60)) -> 0 | L34: =+SUMPRODUCT(--('Monthly CF'!$E$4:$EG$4='Annual CF'!L$4),--('Monthly CF'!$E60:$EG60)) -> 0 | M34: =+SUMPRODUCT(--('Monthly CF'!$E$4:$EG$4='Annual CF'!M$4),--('Monthly CF'!$E60:$EG60)) -> 0 | N34: =+SUMPRODUCT(--('Monthly CF'!$E$4:$EG$4='Annual CF'!N$4),--('Monthly CF'!$E60:$EG60)) -> 0 | O34: =+SUMPRODUCT(--('Monthly CF'!$E$4:$EG$4='Annual CF'!O$4),--('Monthly CF'!$E60:$EG60)) -> 0 | P34: =+SUMPRODUCT(--('Monthly CF'!$E$4:$EG$4='Annual CF'!P$4),--('Monthly CF'!$E60:$EG60)) -> 0 | Q34: =+SUMPRODUCT(--('Monthly CF'!$E$4:$EG$4='Annual CF'!Q$4),--('Monthly CF'!$E60:$EG60)) -> 0
B35: Debt Service | F35: =+SUMPRODUCT(--('Monthly CF'!$E$4:$EG$4='Annual CF'!F$4),--('Monthly CF'!$E61:$EG61)) -> 0 | G35: =+SUMPRODUCT(--('Monthly CF'!$E$4:$EG$4='Annual CF'!G$4),--('Monthly CF'!$E61:$EG61)) -> -358457.421 | H35: =+SUMPRODUCT(--('Monthly CF'!$E$4:$EG$4='Annual CF'!H$4),--('Monthly CF'!$E61:$EG61)) -> -358457.421 | I35: =+SUMPRODUCT(--('Monthly CF'!$E$4:$EG$4='Annual CF'!I$4),--('Monthly CF'!$E61:$EG61)) -> -358457.421 | J35: =+SUMPRODUCT(--('Monthly CF'!$E$4:$EG$4='Annual CF'!J$4),--('Monthly CF'!$E61:$EG61)) -> 0 | K35: =+SUMPRODUCT(--('Monthly CF'!$E$4:$EG$4='Annual CF'!K$4),--('Monthly CF'!$E61:$EG61)) -> 0 | L35: =+SUMPRODUCT(--('Monthly CF'!$E$4:$EG$4='Annual CF'!L$4),--('Monthly CF'!$E61:$EG61)) -> 0 | M35: =+SUMPRODUCT(--('Monthly CF'!$E$4:$EG$4='Annual CF'!M$4),--('Monthly CF'!$E61:$EG61)) -> 0 | N35: =+SUMPRODUCT(--('Monthly CF'!$E$4:$EG$4='Annual CF'!N$4),--('Monthly CF'!$E61:$EG61)) -> 0 | O35: =+SUMPRODUCT(--('Monthly CF'!$E$4:$EG$4='Annual CF'!O$4),--('Monthly CF'!$E61:$EG61)) -> 0 | P35: =+SUMPRODUCT(--('Monthly CF'!$E$4:$EG$4='Annual CF'!P$4),--('Monthly CF'!$E61:$EG61)) -> 0 | Q35: =+SUMPRODUCT(--('Monthly CF'!$E$4:$EG$4='Annual CF'!Q$4),--('Monthly CF'!$E61:$EG61)) -> 0
B36: Debt Repayment | F36: =+SUMPRODUCT(--('Monthly CF'!$E$4:$EG$4='Annual CF'!F$4),--('Monthly CF'!$E62:$EG62)) -> 0 | G36: =+SUMPRODUCT(--('Monthly CF'!$E$4:$EG$4='Annual CF'!G$4),--('Monthly CF'!$E62:$EG62)) -> 0 | H36: =+SUMPRODUCT(--('Monthly CF'!$E$4:$EG$4='Annual CF'!H$4),--('Monthly CF'!$E62:$EG62)) -> 0 | I36: =+SUMPRODUCT(--('Monthly CF'!$E$4:$EG$4='Annual CF'!I$4),--('Monthly CF'!$E62:$EG62)) -> -4864731.142 | J36: =+SUMPRODUCT(--('Monthly CF'!$E$4:$EG$4='Annual CF'!J$4),--('Monthly CF'!$E62:$EG62)) -> 0 | K36: =+SUMPRODUCT(--('Monthly CF'!$E$4:$EG$4='Annual CF'!K$4),--('Monthly CF'!$E62:$EG62)) -> 0 | L36: =+SUMPRODUCT(--('Monthly CF'!$E$4:$EG$4='Annual CF'!L$4),--('Monthly CF'!$E62:$EG62)) -> 0 | M36: =+SUMPRODUCT(--('Monthly CF'!$E$4:$EG$4='Annual CF'!M$4),--('Monthly CF'!$E62:$EG62)) -> 0 | N36: =+SUMPRODUCT(--('Monthly CF'!$E$4:$EG$4='Annual CF'!N$4),--('Monthly CF'!$E62:$EG62)) -> 0 | O36: =+SUMPRODUCT(--('Monthly CF'!$E$4:$EG$4='Annual CF'!O$4),--('Monthly CF'!$E62:$EG62)) -> 0 | P36: =+SUMPRODUCT(--('Monthly CF'!$E$4:$EG$4='Annual CF'!P$4),--('Monthly CF'!$E62:$EG62)) -> 0 | Q36: =+SUMPRODUCT(--('Monthly CF'!$E$4:$EG$4='Annual CF'!Q$4),--('Monthly CF'!$E62:$EG62)) -> 0
B37: Levered Cash Flow | F37: =SUM(F33:F36)+F31 -> -3094685.766 | G37: =SUM(G33:G36)+G31 -> 304866.983 | H37: 578978.1728 | I37: 7776183.009 | J37: 0 | K37: 0 | L37: 0 | M37: 0 | N37: 0 | O37: 0 | P37: 0 | Q37: 0
B39: Outstanding Debt Balance | F39: =+INDEX('Monthly CF'!$E$79:$EG$79,MATCH('Annual CF'!F5,'Monthly CF'!$E$6:$EG$6)) -> 5213195.484 | G39: =+INDEX('Monthly CF'!$E$79:$EG$79,MATCH('Annual CF'!G5,'Monthly CF'!$E$6:$EG$6)) -> 5102558.485 | H39: =+INDEX('Monthly CF'!$E$79:$EG$79,MATCH('Annual CF'!H5,'Monthly CF'!$E$6:$EG$6)) -> 4986492.504 | I39: =+INDEX('Monthly CF'!$E$79:$EG$79,MATCH('Annual CF'!I5,'Monthly CF'!$E$6:$EG$6)) -> 0 | J39: =+INDEX('Monthly CF'!$E$79:$EG$79,MATCH('Annual CF'!J5,'Monthly CF'!$E$6:$EG$6)) -> 0 | K39: =+INDEX('Monthly CF'!$E$79:$EG$79,MATCH('Annual CF'!K5,'Monthly CF'!$E$6:$EG$6)) -> 0 | L39: =+INDEX('Monthly CF'!$E$79:$EG$79,MATCH('Annual CF'!L5,'Monthly CF'!$E$6:$EG$6)) -> 0 | M39: =+INDEX('Monthly CF'!$E$79:$EG$79,MATCH('Annual CF'!M5,'Monthly CF'!$E$6:$EG$6)) -> 0 | N39: =+INDEX('Monthly CF'!$E$79:$EG$79,MATCH('Annual CF'!N5,'Monthly CF'!$E$6:$EG$6)) -> 0 | O39: =+INDEX('Monthly CF'!$E$79:$EG$79,MATCH('Annual CF'!O5,'Monthly CF'!$E$6:$EG$6)) -> 0 | P39: =+INDEX('Monthly CF'!$E$79:$EG$79,MATCH('Annual CF'!P5,'Monthly CF'!$E$6:$EG$6)) -> 0 | Q39: =+INDEX('Monthly CF'!$E$79:$EG$79,MATCH('Annual CF'!Q5,'Monthly CF'!$E$6:$EG$6)) -> 0
B41: NOI Yield on Initial Cost | G41: =+G20/-$F$12*(G5<'Project Summary'!$Q$8) -> 0.09904678212 | H41: =+H20/-$F$12 -> 0.1140639912 | I41: 0.1164732845 | J41: 0.1171278697 | K41: 0.1174974446 | L41: 0.10088723 | M41: 0.08879109552 | N41: 0.0874495886 | O41: 0.08606783648 | P41: 0.08464463179 | Q41: 0.08330424034
B42: NOI Yield on Total Cost | G42: =+G20/-($F$12-SUM($F$27:G27)) -> 0.09718052786 | H42: =+H20/-($F$12-SUM($F$27:H27)) -> 0.1117802008 | I42: =+I20/-($F$12-SUM($F$27:I27)) -> 0.114004163 | J42: =+J20/-($F$12-SUM($F$27:J27)) -> 0.1145073398 | K42: =+K20/-($F$12-SUM($F$27:K27)) -> 0.1147310109 | L42: =+L20/-($F$12-SUM($F$27:L27)) -> 0.09839398228 | M42: =+M20/-($F$12-SUM($F$27:M27)) -> 0.08649327026 | N42: =+N20/-($F$12-SUM($F$27:N27)) -> 0.08508477565 | O42: =+O20/-($F$12-SUM($F$27:O27)) -> 0.08364053005 | P42: =+P20/-($F$12-SUM($F$27:P27)) -> 0.08215948928 | Q42: =+Q20/-($F$12-SUM($F$27:Q27)) -> 0.08076225858
B43: Cash-on-cash Yield (Initial Cost) | G43: =+IF(EOMONTH(G$5,-1)>'Project Summary'!$Q$8,"NA",(G29+G33+G35)/-$F$37) -> 0.09851306598 | H43: =+IF(EOMONTH(H$5,-1)>'Project Summary'!$Q$8,"NA",(H29+H33+H35)/-$F$37) -> 0.1870878715 | I43: =+IF(EOMONTH(I$5,-1)>'Project Summary'!$Q$8,"NA",(I29+I33+I35)/-$F$37) -> 0.193555773 | J43: =+IF(EOMONTH(J$5,-1)>'Project Summary'!$Q$8,"NA",(J29+J33+J35)/-$F$37) -> NA | K43: =+IF(EOMONTH(K$5,-1)>'Project Summary'!$Q$8,"NA",(K29+K33+K35)/-$F$37) -> NA | L43: =+IF(EOMONTH(L$5,-1)>'Project Summary'!$Q$8,"NA",(L29+L33+L35)/-$F$37) -> NA | M43: =+IF(EOMONTH(M$5,-1)>'Project Summary'!$Q$8,"NA",(M29+M33+M35)/-$F$37) -> NA | N43: =+IF(EOMONTH(N$5,-1)>'Project Summary'!$Q$8,"NA",(N29+N33+N35)/-$F$37) -> NA | O43: =+IF(EOMONTH(O$5,-1)>'Project Summary'!$Q$8,"NA",(O29+O33+O35)/-$F$37) -> NA | P43: =+IF(EOMONTH(P$5,-1)>'Project Summary'!$Q$8,"NA",(P29+P33+P35)/-$F$37) -> NA | Q43: =+IF(EOMONTH(Q$5,-1)>'Project Summary'!$Q$8,"NA",(Q29+Q33+Q35)/-$F$37) -> NA
B44: Cash-on-cash Yield (Total Cost) | G44: =+IF(EOMONTH(G$5,-1)>'Project Summary'!$Q$8,"NA",(G29+G33+G35)/(INDEX('Monthly CF'!$E$70:$EG$70, MATCH('Annual CF'!G5,'Monthly CF'!$E$6:$EG$6)))) -> 0.09714298089 | H44: =+IF(EOMONTH(H$5,-1)>'Project Summary'!$Q$8,"NA",(H29+H33+H35)/(INDEX('Monthly CF'!$E$70:$EG$70, MATCH('Annual CF'!H5,'Monthly CF'!$E$6:$EG$6)))) -> 0.1844859191 | I44: =+IF(EOMONTH(I$5,-1)>'Project Summary'!$Q$8,"NA",(I29+I33+I35)/(INDEX('Monthly CF'!$E$70:$EG$70, MATCH('Annual CF'!I5,'Monthly CF'!$E$6:$EG$6)))) -> 0.1908638673 | J44: =+IF(EOMONTH(J$5,-1)>'Project Summary'!$Q$8,"NA",(J29+J33+J35)/(INDEX('Monthly CF'!$E$70:$EG$70, MATCH('Annual CF'!J5,'Monthly CF'!$E$6:$EG$6)))) -> NA | K44: =+IF(EOMONTH(K$5,-1)>'Project Summary'!$Q$8,"NA",(K29+K33+K35)/(INDEX('Monthly CF'!$E$70:$EG$70, MATCH('Annual CF'!K5,'Monthly CF'!$E$6:$EG$6)))) -> NA | L44: =+IF(EOMONTH(L$5,-1)>'Project Summary'!$Q$8,"NA",(L29+L33+L35)/(INDEX('Monthly CF'!$E$70:$EG$70, MATCH('Annual CF'!L5,'Monthly CF'!$E$6:$EG$6)))) -> NA | M44: =+IF(EOMONTH(M$5,-1)>'Project Summary'!$Q$8,"NA",(M29+M33+M35)/(INDEX('Monthly CF'!$E$70:$EG$70, MATCH('Annual CF'!M5,'Monthly CF'!$E$6:$EG$6)))) -> NA | N44: =+IF(EOMONTH(N$5,-1)>'Project Summary'!$Q$8,"NA",(N29+N33+N35)/(INDEX('Monthly CF'!$E$70:$EG$70, MATCH('Annual CF'!N5,'Monthly CF'!$E$6:$EG$6)))) -> NA | O44: =+IF(EOMONTH(O$5,-1)>'Project Summary'!$Q$8,"NA",(O29+O33+O35)/(INDEX('Monthly CF'!$E$70:$EG$70, MATCH('Annual CF'!O5,'Monthly CF'!$E$6:$EG$6)))) -> NA | P44: =+IF(EOMONTH(P$5,-1)>'Project Summary'!$Q$8,"NA",(P29+P33+P35)/(INDEX('Monthly CF'!$E$70:$EG$70, MATCH('Annual CF'!P5,'Monthly CF'!$E$6:$EG$6)))) -> NA | Q44: =+IF(EOMONTH(Q$5,-1)>'Project Summary'!$Q$8,"NA",(Q29+Q33+Q35)/(INDEX('Monthly CF'!$E$70:$EG$70, MATCH('Annual CF'!Q5,'Monthly CF'!$E$6:$EG$6)))) -> NA
B45: Debt Yield | G45: =+IF(G39>0,G20/G39,"NA") -> 0.1612659427 | H45: 0.1900394101 | I45: NA | J45: NA | K45: NA | L45: NA | M45: NA | N45: NA | O45: NA | P45: NA | Q45: NA
B46: Debt Coverage Ratio | G46: =+IF(G39>0,G20/-G35,"NA") -> 2.295583396 | H46: 2.643633632 | I46: NA | J46: NA | K46: NA | L46: NA | M46: NA | N46: NA | O46: NA | P46: NA | Q46: NA
G48: 2.652112513
B53: Cash Flow Before Debt Service Check | G53: =+G20-G27-G29 -> 0 | H53: 0 | I53: 0 | J53: 962889.9327 | K53: 965960.317 | L53: 827964.6265 | M53: 727471.3777 | N53: 716326.2975 | O53: 704846.8649 | P53: 693023.0494 | Q53: 681887.2364

Sheet Tenant Summary (hidden)
B2: x | N2: x
C3: Tenant Summary
C4: =+'Project Summary'!C4 -> Post Oak Square
F5: At Acquisition | K5: At Expiration
F6: In-place | G6: Mkt. Rent | H6: In-place as | I6: Lease | K6: NNN | L6: Mkt. Rate | M6: In-place as
C7: Tenant | D7: Total SF | F7: Rent | G7: (NNN) | H7: % of Mkt. | I7: Expiration | K7: Rent | L7: (NNN) | M7: % of Mkt. | O7: Expiration Year
C8: =+'Prevailing Market Rate'!A6 -> RA Salon and Spa, LLC | D8: =+'Prevailing Market Rate'!C6 -> 1200 | F8: =+'Scheduled Base Rental Revenue'!G6 -> 17 | G8: =+'Prevailing Market Rate'!G6 -> 17 | H8: =+F8/G8 -> 1 | I8: =+'Prevailing Market Rate'!E6 -> 2019-11-30 | K8: =+INDEX('Scheduled Base Rental Revenue'!$G6:$EH6,MATCH('Tenant Summary'!I8,'Scheduled Base Rental Revenue'!$G$3:$EH$3)) -> 18 | L8: =+INDEX('Prevailing Market Rate'!$H6:$EH6,MATCH('Tenant Summary'!I8,'Prevailing Market Rate'!$G$3:$EH$3)) -> 17.51 | M8: =+K8/L8 -> 1.027984009 | O8: =+INDEX('Monthly CF'!$F$4:$EG$4,MATCH('Tenant Summary'!I8,'Monthly CF'!$F$6:$EG$6)) -> 2
C9: =+'Prevailing Market Rate'!A7 -> Custom Alterations | D9: =+'Prevailing Market Rate'!C7 -> 1309 | F9: =+'Scheduled Base Rental Revenue'!G7 -> 17 | G9: =+'Prevailing Market Rate'!G7 -> 16 | H9: =+F9/G9 -> 1.0625 | I9: =+'Prevailing Market Rate'!E7 -> 2020-02-29 | K9: =+INDEX('Scheduled Base Rental Revenue'!$G7:$EH7,MATCH('Tenant Summary'!I9,'Scheduled Base Rental Revenue'!$G$3:$EH$3)) -> 18 | L9: =+INDEX('Prevailing Market Rate'!$H7:$EH7,MATCH('Tenant Summary'!I9,'Prevailing Market Rate'!$G$3:$EH$3)) -> 16.48 | M9: =+K9/L9 -> 1.09223301 | O9: =+INDEX('Monthly CF'!$F$4:$EG$4,MATCH('Tenant Summary'!I9,'Monthly CF'!$F$6:$EG$6)) -> 2
C10: =+'Prevailing Market Rate'!A8 -> Design Exchange, LLC | D10: =+'Prevailing Market Rate'!C8 -> 6230 | F10: =+'Scheduled Base Rental Revenue'!G8 -> 15.5 | G10: =+'Prevailing Market Rate'!G8 -> 15.5 | H10: 1 | I10: =+'Prevailing Market Rate'!E8 -> 2023-03-23 | K10: =+INDEX('Scheduled Base Rental Revenue'!$G8:$EH8,MATCH('Tenant Summary'!I10,'Scheduled Base Rental Revenue'!$G$3:$EH$3)) -> 15.5 | L10: =+INDEX('Prevailing Market Rate'!$H8:$EH8,MATCH('Tenant Summary'!I10,'Prevailing Market Rate'!$G$3:$EH$3)) -> 17.44538656 | M10: 0.8884870479 | O10: =+INDEX('Monthly CF'!$F$4:$EG$4,MATCH('Tenant Summary'!I10,'Monthly CF'!$F$6:$EG$6)) -> 5
C11: =+'Prevailing Market Rate'!A9 -> Formal Specialists | D11: =+'Prevailing Market Rate'!C9 -> 1800 | F11: =+'Scheduled Base Rental Revenue'!G9 -> 19.8 | G11: =+'Prevailing Market Rate'!G9 -> 19.8 | H11: 1 | I11: =+'Prevailing Market Rate'!E9 -> 2018-09-30 | K11: =+INDEX('Scheduled Base Rental Revenue'!$G9:$EH9,MATCH('Tenant Summary'!I11,'Scheduled Base Rental Revenue'!$G$3:$EH$3)) -> 19.8 | L11: =+INDEX('Prevailing Market Rate'!$H9:$EH9,MATCH('Tenant Summary'!I11,'Prevailing Market Rate'!$G$3:$EH$3)) -> 19.8 | M11: 1 | O11: =+INDEX('Monthly CF'!$F$4:$EG$4,MATCH('Tenant Summary'!I11,'Monthly CF'!$F$6:$EG$6)) -> 1
C12: =+'Prevailing Market Rate'!A10 -> Marmaxx Operating Company | D12: =+'Prevailing Market Rate'!C10 -> 28500 | F12: =+'Scheduled Base Rental Revenue'!G10 -> 6.25 | G12: =+'Prevailing Market Rate'!G10 -> 6.25 | H12: 1 | I12: =+'Prevailing Market Rate'!E10 -> 2025-01-31 | K12: =+INDEX('Scheduled Base Rental Revenue'!$G10:$EH10,MATCH('Tenant Summary'!I12,'Scheduled Base Rental Revenue'!$G$3:$EH$3)) -> 6.25 | L12: =+INDEX('Prevailing Market Rate'!$H10:$EH10,MATCH('Tenant Summary'!I12,'Prevailing Market Rate'!$G$3:$EH$3)) -> 7.462826853 | M12: 0.8374842567 | O12: =+INDEX('Monthly CF'!$F$4:$EG$4,MATCH('Tenant Summary'!I12,'Monthly CF'!$F$6:$EG$6)) -> 7
C13: =+'Prevailing Market Rate'!A11 -> Lifeway Christian Stores | D13: =+'Prevailing Market Rate'!C11 -> 6435 | F13: =+'Scheduled Base Rental Revenue'!G11 -> 14 | G13: =+'Prevailing Market Rate'!G11 -> 14 | H13: 1 | I13: =+'Prevailing Market Rate'!E11 -> 2023-09-30 | K13: =+INDEX('Scheduled Base Rental Revenue'!$G11:$EH11,MATCH('Tenant Summary'!I13,'Scheduled Base Rental Revenue'!$G$3:$EH$3)) -> 16 | L13: =+INDEX('Prevailing Market Rate'!$H11:$EH11,MATCH('Tenant Summary'!I13,'Prevailing Market Rate'!$G$3:$EH$3)) -> 16.22983704 | M13: 0.9858386107 | O13: =+INDEX('Monthly CF'!$F$4:$EG$4,MATCH('Tenant Summary'!I13,'Monthly CF'!$F$6:$EG$6)) -> 6
C14: =+'Prevailing Market Rate'!A12 -> Burke's Outlet Stores | D14: =+'Prevailing Market Rate'!C12 -> 18655 | F14: =+'Scheduled Base Rental Revenue'!G12 -> 7.21 | G14: =+'Prevailing Market Rate'!G12 -> 7.21 | H14: 1 | I14: =+'Prevailing Market Rate'!E12 -> 2023-01-31 | K14: =+INDEX('Scheduled Base Rental Revenue'!$G12:$EH12,MATCH('Tenant Summary'!I14,'Scheduled Base Rental Revenue'!$G$3:$EH$3)) -> 7.21 | L14: =+INDEX('Prevailing Market Rate'!$H12:$EH12,MATCH('Tenant Summary'!I14,'Prevailing Market Rate'!$G$3:$EH$3)) -> 8.11491852 | M14: 0.8884870479 | O14: =+INDEX('Monthly CF'!$F$4:$EG$4,MATCH('Tenant Summary'!I14,'Monthly CF'!$F$6:$EG$6)) -> 5
C15: =+'Prevailing Market Rate'!A13 -> Tuesday Morning | D15: =+'Prevailing Market Rate'!C13 -> 12636 | F15: =+'Scheduled Base Rental Revenue'!G13 -> 7.5 | G15: =+'Prevailing Market Rate'!G13 -> 7.5 | H15: 1 | I15: =+'Prevailing Market Rate'!E13 -> 2019-01-31 | K15: =+INDEX('Scheduled Base Rental Revenue'!$G13:$EH13,MATCH('Tenant Summary'!I15,'Scheduled Base Rental Revenue'!$G$3:$EH$3)) -> 7.5 | L15: =+INDEX('Prevailing Market Rate'!$H13:$EH13,MATCH('Tenant Summary'!I15,'Prevailing Market Rate'!$G$3:$EH$3)) -> 7.5 | M15: 1 | O15: 1
C16: =+'Prevailing Market Rate'!A14 -> Priscilla Flores / Fun | D16: =+'Prevailing Market Rate'!C14 -> 1500 | F16: =+'Scheduled Base Rental Revenue'!G14 -> 17.5 | G16: =+'Prevailing Market Rate'!G14 -> 17.5 | H16: 1 | I16: =+'Prevailing Market Rate'!E14 -> 2019-01-31 | K16: =+INDEX('Scheduled Base Rental Revenue'!$G14:$EH14,MATCH('Tenant Summary'!I16,'Scheduled Base Rental Revenue'!$G$3:$EH$3)) -> 17.5 | L16: =+INDEX('Prevailing Market Rate'!$H14:$EH14,MATCH('Tenant Summary'!I16,'Prevailing Market Rate'!$G$3:$EH$3)) -> 17.5 | M16: 1 | O16: =+INDEX('Monthly CF'!$F$4:$EG$4,MATCH('Tenant Summary'!I16,'Monthly CF'!$F$6:$EG$6)) -> 1
C17: =+'Prevailing Market Rate'!A15 -> Biosystems Fitness | D17: =+'Prevailing Market Rate'!C15 -> 3200 | F17: =+'Scheduled Base Rental Revenue'!G15 -> 13.92 | G17: =+'Prevailing Market Rate'!G15 -> 13.92 | H17: 1 | I17: =+'Prevailing Market Rate'!E15 -> 2022-11-30 | K17: =+INDEX('Scheduled Base Rental Revenue'!$G15:$EH15,MATCH('Tenant Summary'!I17,'Scheduled Base Rental Revenue'!$G$3:$EH$3)) -> 13.92 | L17: =+INDEX('Prevailing Market Rate'!$H15:$EH15,MATCH('Tenant Summary'!I17,'Prevailing Market Rate'!$G$3:$EH$3)) -> 15.66708264 | M17: 0.8884870479 | O17: =+INDEX('Monthly CF'!$F$4:$EG$4,MATCH('Tenant Summary'!I17,'Monthly CF'!$F$6:$EG$6)) -> 5
C18: =+'Prevailing Market Rate'!A16 -> Vacant | D18: =+'Prevailing Market Rate'!C16 -> 1700 | F18: =+'Scheduled Base Rental Revenue'!G16 -> 0 | G18: =+'Prevailing Market Rate'!G16 -> 15 | H18: 0 | I18: =+'Prevailing Market Rate'!E16 -> 00:00:00 | K18: =+INDEX('Scheduled Base Rental Revenue'!$G16:$EH16,MATCH('Tenant Summary'!I18,'Scheduled Base Rental Revenue'!$G$3:$EH$3)) ->  | L18: =+INDEX('Prevailing Market Rate'!$H16:$EH16,MATCH('Tenant Summary'!I18,'Prevailing Market Rate'!$G$3:$EH$3)) ->  | O18: =+INDEX('Monthly CF'!$F$4:$EG$4,MATCH('Tenant Summary'!I18,'Monthly CF'!$F$6:$EG$6)) -> 
C19: =+'Prevailing Market Rate'!A17 -> Vacant | D19: =+'Prevailing Market Rate'!C17 -> 2700 | F19: =+'Scheduled Base Rental Revenue'!G17 -> 0 | G19: =+'Prevailing Market Rate'!G17 -> 15 | H19: 0 | I19: =+'Prevailing Market Rate'!E17 -> 00:00:00 | K19: =+INDEX('Scheduled Base Rental Revenue'!$G17:$EH17,MATCH('Tenant Summary'!I19,'Scheduled Base Rental Revenue'!$G$3:$EH$3)) ->  | L19: =+INDEX('Prevailing Market Rate'!$H17:$EH17,MATCH('Tenant Summary'!I19,'Prevailing Market Rate'!$G$3:$EH$3)) ->  | O19: =+INDEX('Monthly CF'!$F$4:$EG$4,MATCH('Tenant Summary'!I19,'Monthly CF'!$F$6:$EG$6)) -> 
C20: =+'Prevailing Market Rate'!A18 -> Vacant | D20: =+'Prevailing Market Rate'!C18 -> 2100 | F20: =+'Scheduled Base Rental Revenue'!G18 -> 16 | G20: =+'Prevailing Market Rate'!G18 -> 15 | H20: 1.066666667 | I20: =+'Prevailing Market Rate'!E18 -> 00:00:00 | K20: =+INDEX('Scheduled Base Rental Revenue'!$G18:$EH18,MATCH('Tenant Summary'!I20,'Scheduled Base Rental Revenue'!$G$3:$EH$3)) ->  | L20: =+INDEX('Prevailing Market Rate'!$H18:$EH18,MATCH('Tenant Summary'!I20,'Prevailing Market Rate'!$G$3:$EH$3)) ->  | O20: =+INDEX('Monthly CF'!$F$4:$EG$4,MATCH('Tenant Summary'!I20,'Monthly CF'!$F$6:$EG$6)) -> 
C21: =+'Prevailing Market Rate'!A19 -> Vacant | D21: =+'Prevailing Market Rate'!C19 -> 5900 | F21: =+'Scheduled Base Rental Revenue'!G19 -> 0 | G21: =+'Prevailing Market Rate'!G19 -> 15 | H21: 0 | I21: =+'Prevailing Market Rate'!E19 -> 00:00:00 | K21: =+INDEX('Scheduled Base Rental Revenue'!$G19:$EH19,MATCH('Tenant Summary'!I21,'Scheduled Base Rental Revenue'!$G$3:$EH$3)) ->  | L21: =+INDEX('Prevailing Market Rate'!$H19:$EH19,MATCH('Tenant Summary'!I21,'Prevailing Market Rate'!$G$3:$EH$3)) ->  | O21: =+INDEX('Monthly CF'!$F$4:$EG$4,MATCH('Tenant Summary'!I21,'Monthly CF'!$F$6:$EG$6)) -> 
C22: =+'Prevailing Market Rate'!A20 -> Vacant | D22: =+'Prevailing Market Rate'!C20 -> 1750 | F22: =+'Scheduled Base Rental Revenue'!G20 -> 16 | G22: =+'Prevailing Market Rate'!G20 -> 15 | H22: 1.066666667 | I22: =+'Prevailing Market Rate'!E20 -> 00:00:00 | K22: =+INDEX('Scheduled Base Rental Revenue'!$G20:$EH20,MATCH('Tenant Summary'!I22,'Scheduled Base Rental Revenue'!$G$3:$EH$3)) ->  | L22: =+INDEX('Prevailing Market Rate'!$H20:$EH20,MATCH('Tenant Summary'!I22,'Prevailing Market Rate'!$G$3:$EH$3)) ->  | O22: =+INDEX('Monthly CF'!$F$4:$EG$4,MATCH('Tenant Summary'!I22,'Monthly CF'!$F$6:$EG$6)) -> 
C23: =+'Prevailing Market Rate'!A21 -> Vacant | D23: =+'Prevailing Market Rate'!C21 -> 2330 | F23: =+'Scheduled Base Rental Revenue'!G21 -> 16 | G23: =+'Prevailing Market Rate'!G21 -> 15 | H23: 1.066666667 | I23: =+'Prevailing Market Rate'!E21 -> 00:00:00 | K23: =+INDEX('Scheduled Base Rental Revenue'!$G21:$EH21,MATCH('Tenant Summary'!I23,'Scheduled Base Rental Revenue'!$G$3:$EH$3)) ->  | L23: =+INDEX('Prevailing Market Rate'!$H21:$EH21,MATCH('Tenant Summary'!I23,'Prevailing Market Rate'!$G$3:$EH$3)) ->  | O23: =+INDEX('Monthly CF'!$F$4:$EG$4,MATCH('Tenant Summary'!I23,'Monthly CF'!$F$6:$EG$6)) -> 
C24: =+'Prevailing Market Rate'!A22 -> Vacant | D24: =+'Prevailing Market Rate'!C22 -> 0 | F24: =+'Scheduled Base Rental Revenue'!G22 -> 0 | G24: =+'Prevailing Market Rate'!G22 -> 15 | H24: 0 | I24: =+'Prevailing Market Rate'!E22 -> 00:00:00 | K24: =+INDEX('Scheduled Base Rental Revenue'!$G22:$EH22,MATCH('Tenant Summary'!I24,'Scheduled Base Rental Revenue'!$G$3:$EH$3)) ->  | L24: =+INDEX('Prevailing Market Rate'!$H22:$EH22,MATCH('Tenant Summary'!I24,'Prevailing Market Rate'!$G$3:$EH$3)) ->  | O24: =+INDEX('Monthly CF'!$F$4:$EG$4,MATCH('Tenant Summary'!I24,'Monthly CF'!$F$6:$EG$6)) -> 
C25: =+'Prevailing Market Rate'!A23 -> Krispy Kreme | D25: =+'Prevailing Market Rate'!C23 -> 4000 | F25: =+'Scheduled Base Rental Revenue'!G23 -> 16 | G25: =+'Prevailing Market Rate'!G23 -> 17.5 | H25: 0.9142857143 | I25: =+'Prevailing Market Rate'!E23 -> 2038-02-28 | K25: =+INDEX('Scheduled Base Rental Revenue'!$G23:$EH23,MATCH('Tenant Summary'!I25,'Scheduled Base Rental Revenue'!$G$3:$EH$3)) -> 22 | L25: =+INDEX('Prevailing Market Rate'!$H23:$EH23,MATCH('Tenant Summary'!I25,'Prevailing Market Rate'!$G$3:$EH$3)) ->  | O25: =+INDEX('Monthly CF'!$F$4:$EG$4,MATCH('Tenant Summary'!I25,'Monthly CF'!$F$6:$EG$6)) -> 11
C26: Total / Wtd. Average | D26: =SUM(D8:D25) -> 101945 | F26: =SUMPRODUCT(F8:F25,$D$8:$D$25)/$D$26 -> 8.887336799 | G26: =SUMPRODUCT(G8:G25,$D$8:$D$25)/$D$26 -> 10.38825396 | H26: =SUMPRODUCT(H8:H25,$D$8:$D$25)/$D$26 -> 0.9004458812 | I26: =SUMPRODUCT(I8:I25,$D$8:$D$25)/$D$26 -> 2003-09-04T10:30:38.191 | K26: =SUMPRODUCT(K8:K25,$D$8:$D$25)/$D$26 ->  | L26: =SUMPRODUCT(L8:L25,$D$8:$D$25)/$D$26 ->  | M26: =SUMPRODUCT(M8:M25,$D$8:$D$25)/$D$26 -> 
B27: x | N27: x

Sheet MLA's (hidden)
B4: x | I4: x
C5: Market Leasing Assumptions
C6: =+'Project Summary'!C4 -> Post Oak Square
C8: MLA Categories | E8: Small Tenant Space | F8: dd's Expansion | G8: Anchor | H8: Junior Anchor
C10: Lease Date | E10: Every 4 Months | F10: Never | G10: 2019-01-01 | H10: 2019-06-01
C12: Market Rent | E12: $/SqFt/Yr | F12: $/SqFt/Yr | G12: $/SqFt/Yr | H12: $/SqFt/Yr
D13: New: | E13: 13.5 | F13: 0 | G13: 7 | H13: 10
D14: Renewal: | E14: 13.5 | F14: 0 | G14: 7 | H14: 10
D15: Result: | E15: 13.5 | F15: 0 | G15: 7 | H15: 10
C17: Leasing Commissions | E17: Percent | F17: Percent | G17: Percent | H17: Percent
D18: New: | E18: 0.06 | F18: 0.06 | G18: 0.06 | H18: 0.06
C20: Non-Weighted Items
C21: Rent Changes
C22: Reimbursements | E22: Net | F22: Net | G22: Net | H22: Net
C24: Term Lengths | E24: 5 | F24: 5 | G24: 5 | H24: 5
E25: Years | F25: Years | G25: Years | H25: Years
C27: Term Overrides | E27: No | F27: No | G27: No | H27: No
B28: x | I28: x

Sheet Monthly CF
B2: Monthly Cash Flows
B3: =+'Project Summary'!C4 -> Post Oak Square
B4: Year | E4: 0 | F4: 1 | G4: =IF(MONTH($F$6)=MONTH(G$6),F4+1,F4) -> 1 | H4: =IF(MONTH($F$6)=MONTH(H$6),G4+1,G4) -> 1 | I4: 1 | J4: 1 | K4: 1 | L4: 1 | M4: 1 | N4: 1 | O4: 1 | P4: 1 | Q4: 1 | R4: 2 | S4: 2 | T4: 2 | U4: 2 | V4: 2 | W4: 2 | X4: 2 | Y4: 2 | Z4: 2 | AA4: 2 | AB4: 2 | AC4: 2 | AD4: 3 | AE4: 3 | AF4: 3 | AG4: 3 | AH4: 3 | AI4: 3 | AJ4: 3 | AK4: 3 | AL4: 3 | AM4: 3 | AN4: 3 | AO4: 3 | AP4: 4 | AQ4: 4 | AR4: 4 | AS4: 4 | AT4: 4 | AU4: 4 | AV4: 4 | AW4: 4 | AX4: 4 | AY4: 4 | AZ4: 4 | BA4: 4 | BB4: 5 | BC4: 5 | BD4: 5 | BE4: 5 | BF4: 5 | BG4: 5 | BH4: 5 | BI4: 5 | BJ4: 5 | BK4: 5 | BL4: 5 | BM4: 5 | BN4: 6 | BO4: 6 | BP4: 6 | BQ4: 6 | BR4: 6 | BS4: 6 | BT4: =IF(MONTH($F$6)=MONTH(BT$6),BS4+1,BS4) -> 6 | BU4: 6 | BV4: 6 | BW4: 6 | BX4: 6 | BY4: 6 | BZ4: 7 | CA4: 7 | CB4: 7 | CC4: 7 | CD4: 7 | CE4: 7 | CF4: 7 | CG4: 7 | CH4: 7 | CI4: 7 | CJ4: 7 | CK4: 7 | CL4: 8 | CM4: 8 | CN4: 8 | CO4: 8 | CP4: 8 | CQ4: 8 | CR4: 8 | CS4: 8 | CT4: 8 | CU4: 8 | CV4: 8 | CW4: 8 | CX4: 9 | CY4: 9 | CZ4: 9 | DA4: 9 | DB4: 9 | DC4: 9 | DD4: 9 | DE4: 9 | DF4: 9 | DG4: 9 | DH4: 9 | DI4: 9 | DJ4: 10 | DK4: 10 | DL4: 10 | DM4: 10 | DN4: 10 | DO4: 10 | DP4: 10 | DQ4: 10 | DR4: 10 | DS4: 10 | DT4: 10 | DU4: 10 | DV4: 11 | DW4: 11 | DX4: 11 | DY4: 11 | DZ4: 11 | EA4: 11 | EB4: 11 | EC4: 11 | ED4: 11 | EE4: 11 | EF4: =IF(MONTH($F$6)=MONTH(EF$6),EE4+1,EE4) -> 11 | EG4: 11
B5: Month | E5: 0 | F5: =+E5+1 -> 1 | G5: =+F5+1 -> 2 | H5: 3 | I5: 4 | J5: 5 | K5: 6 | L5: 7 | M5: 8 | N5: 9 | O5: 10 | P5: 11 | Q5: 12 | R5: 13 | S5: 14 | T5: 15 | U5: 16 | V5: 17 | W5: 18 | X5: 19 | Y5: 20 | Z5: 21 | AA5: 22 | AB5: 23 | AC5: 24 | AD5: 25 | AE5: 26 | AF5: 27 | AG5: 28 | AH5: 29 | AI5: 30 | AJ5: 31 | AK5: 32 | AL5: 33 | AM5: 34 | AN5: 35 | AO5: 36 | AP5: 37 | AQ5: 38 | AR5: 39 | AS5: 40 | AT5: 41 | AU5: 42 | AV5: 43 | AW5: 44 | AX5: 45 | AY5: 46 | AZ5: 47 | BA5: 48 | BB5: 49 | BC5: 50 | BD5: 51 | BE5: 52 | BF5: 53 | BG5: 54 | BH5: 55 | BI5: 56 | BJ5: 57 | BK5: 58 | BL5: 59 | BM5: 60 | BN5: 61 | BO5: 62 | BP5: 63 | BQ5: 64 | BR5: 65 | BS5: =+BR5+1 -> 66 | BT5: 67 | BU5: 68 | BV5: 69 | BW5: 70 | BX5: 71 | BY5: 72 | BZ5: 73 | CA5: 74 | CB5: 75 | CC5: 76 | CD5: 77 | CE5: 78 | CF5: 79 | CG5: 80 | CH5: 81 | CI5: 82 | CJ5: 83 | CK5: 84 | CL5: 85 | CM5: 86 | CN5: 87 | CO5: 88 | CP5: 89 | CQ5: 90 | CR5: 91 | CS5: 92 | CT5: 93 | CU5: 94 | CV5: 95 | CW5: 96 | CX5: 97 | CY5: 98 | CZ5: 99 | DA5: 100 | DB5: 101 | DC5: 102 | DD5: 103 | DE5: 104 | DF5: 105 | DG5: 106 | DH5: 107 | DI5: 108 | DJ5: 109 | DK5: 110 | DL5: 111 | DM5: 112 | DN5: 113 | DO5: 114 | DP5: 115 | DQ5: 116 | DR5: 117 | DS5: 118 | DT5: 119 | DU5: 120 | DV5: 121 | DW5: 122 | DX5: 123 | DY5: 124 | DZ5: 125 | EA5: 126 | EB5: 127 | EC5: 128 | ED5: 129 | EE5: =+ED5+1 -> 130 | EF5: 131 | EG5: 132
B6: Date | E6: =+'Project Summary'!J14 -> 2018-07-01 | F6: =+EOMONTH(E6,1) -> 2018-08-31 | G6: =+EOMONTH(F6,1) -> 2018-09-30 | H6: 2018-10-31 | I6: 2018-11-30 | J6: 2018-12-31 | K6: 2019-01-31 | L6: 2019-02-28 | M6: 2019-03-31 | N6: 2019-04-30 | O6: 2019-05-31 | P6: 2019-06-30 | Q6: 2019-07-31 | R6: 2019-08-31 | S6: 2019-09-30 | T6: 2019-10-31 | U6: 2019-11-30 | V6: 2019-12-31 | W6: 2020-01-31 | X6: 2020-02-29 | Y6: 2020-03-31 | Z6: 2020-04-30 | AA6: 2020-05-31 | AB6: 2020-06-30 | AC6: 2020-07-31 | AD6: 2020-08-31 | AE6: 2020-09-30 | AF6: 2020-10-31 | AG6: 2020-11-30 | AH6: 2020-12-31 | AI6: 2021-01-31 | AJ6: 2021-02-28 | AK6: 2021-03-31 | AL6: 2021-04-30 | AM6: 2021-05-31 | AN6: 2021-06-30 | AO6: 2021-07-31 | AP6: 2021-08-31 | AQ6: 2021-09-30 | AR6: 2021-10-31 | AS6: 2021-11-30 | AT6: 2021-12-31 | AU6: 2022-01-31 | AV6: 2022-02-28 | AW6: 2022-03-31 | AX6: 2022-04-30 | AY6: 2022-05-31 | AZ6: 2022-06-30 | BA6: 2022-07-31 | BB6: 2022-08-31 | BC6: 2022-09-30 | BD6: 2022-10-31 | BE6: 2022-11-30 | BF6: 2022-12-31 | BG6: 2023-01-31 | BH6: 2023-02-28 | BI6: 2023-03-31 | BJ6: 2023-04-30 | BK6: 2023-05-31 | BL6: 2023-06-30 | BM6: 2023-07-31 | BN6: 2023-08-31 | BO6: 2023-09-30 | BP6: 2023-10-31 | BQ6: 2023-11-30 | BR6: 2023-12-31 | BS6: =+EOMONTH(BR6,1) -> 2024-01-31 | BT6: 2024-02-29 | BU6: 2024-03-31 | BV6: 2024-04-30 | BW6: 2024-05-31 | BX6: 2024-06-30 | BY6: 2024-07-31 | BZ6: 2024-08-31 | CA6: 2024-09-30 | CB6: 2024-10-31 | CC6: 2024-11-30 | CD6: 2024-12-31 | CE6: 2025-01-31 | CF6: 2025-02-28 | CG6: 2025-03-31 | CH6: 2025-04-30 | CI6: 2025-05-31 | CJ6: 2025-06-30 | CK6: 2025-07-31 | CL6: 2025-08-31 | CM6: 2025-09-30 | CN6: 2025-10-31 | CO6: 2025-11-30 | CP6: 2025-12-31 | CQ6: 2026-01-31 | CR6: 2026-02-28 | CS6: 2026-03-31 | CT6: 2026-04-30 | CU6: 2026-05-31 | CV6: 2026-06-30 | CW6: 2026-07-31 | CX6: 2026-08-31 | CY6: 2026-09-30 | CZ6: 2026-10-31 | DA6: 2026-11-30 | DB6: 2026-12-31 | DC6: 2027-01-31 | DD6: 2027-02-28 | DE6: 2027-03-31 | DF6: 2027-04-30 | DG6: 2027-05-31 | DH6: 2027-06-30 | DI6: 2027-07-31 | DJ6: 2027-08-31 | DK6: 2027-09-30 | DL6: 2027-10-31 | DM6: 2027-11-30 | DN6: 2027-12-31 | DO6: 2028-01-31 | DP6: 2028-02-29 | DQ6: 2028-03-31 | DR6: 2028-04-30 | DS6: 2028-05-31 | DT6: 2028-06-30 | DU6: 2028-07-31 | DV6: 2028-08-31 | DW6: 2028-09-30 | DX6: 2028-10-31 | DY6: 2028-11-30 | DZ6: 2028-12-31 | EA6: 2029-01-31 | EB6: 2029-02-28 | EC6: 2029-03-31 | ED6: 2029-04-30 | EE6: =+EOMONTH(ED6,1) -> 2029-05-31 | EF6: 2029-06-30 | EG6: 2029-07-31
B7: Acquisition Cost | E7: =-'Project Summary'!I34+'Project Summary'!I26 -> -8307881.25
B9: REVENUE
B10: =+'Monthly Cash Flows'!A16 -> Base Rental Revenue | F10: =+INDEX('Monthly Cash Flows'!$B16:$EC16,MATCH('Monthly CF'!F$6,'Monthly Cash Flows'!$B$13:$EC$13)) -> 75501.62917 | G10: =+INDEX('Monthly Cash Flows'!$B16:$EC16,MATCH('Monthly CF'!G$6,'Monthly Cash Flows'!$B$13:$EC$13)) -> 75501.62917 | H10: =+INDEX('Monthly Cash Flows'!$B16:$EC16,MATCH('Monthly CF'!H$6,'Monthly Cash Flows'!$B$13:$EC$13)) -> 78699.12917 | I10: =+INDEX('Monthly Cash Flows'!$B16:$EC16,MATCH('Monthly CF'!I$6,'Monthly Cash Flows'!$B$13:$EC$13)) -> 78699.12917 | J10: =+INDEX('Monthly Cash Flows'!$B16:$EC16,MATCH('Monthly CF'!J$6,'Monthly Cash Flows'!$B$13:$EC$13)) -> 78799.12917 | K10: =+INDEX('Monthly Cash Flows'!$B16:$EC16,MATCH('Monthly CF'!K$6,'Monthly Cash Flows'!$B$13:$EC$13)) -> 78799.12917 | L10: =+INDEX('Monthly Cash Flows'!$B16:$EC16,MATCH('Monthly CF'!L$6,'Monthly Cash Flows'!$B$13:$EC$13)) -> 82174.12917 | M10: =+INDEX('Monthly Cash Flows'!$B16:$EC16,MATCH('Monthly CF'!M$6,'Monthly Cash Flows'!$B$13:$EC$13)) -> 82283.2125 | N10: =+INDEX('Monthly Cash Flows'!$B16:$EC16,MATCH('Monthly CF'!N$6,'Monthly Cash Flows'!$B$13:$EC$13)) -> 82283.2125 | O10: =+INDEX('Monthly Cash Flows'!$B16:$EC16,MATCH('Monthly CF'!O$6,'Monthly Cash Flows'!$B$13:$EC$13)) -> 83116.54583 | P10: =+INDEX('Monthly Cash Flows'!$B16:$EC16,MATCH('Monthly CF'!P$6,'Monthly Cash Flows'!$B$13:$EC$13)) -> 83116.54583 | Q10: =+INDEX('Monthly Cash Flows'!$B16:$EC16,MATCH('Monthly CF'!Q$6,'Monthly Cash Flows'!$B$13:$EC$13)) -> 83374.04583 | R10: =+INDEX('Monthly Cash Flows'!$B16:$EC16,MATCH('Monthly CF'!R$6,'Monthly Cash Flows'!$B$13:$EC$13)) -> 83374.04583 | S10: =+INDEX('Monthly Cash Flows'!$B16:$EC16,MATCH('Monthly CF'!S$6,'Monthly Cash Flows'!$B$13:$EC$13)) -> 83374.04583 | T10: =+INDEX('Monthly Cash Flows'!$B16:$EC16,MATCH('Monthly CF'!T$6,'Monthly Cash Flows'!$B$13:$EC$13)) -> 90749.04583 | U10: =+INDEX('Monthly Cash Flows'!$B16:$EC16,MATCH('Monthly CF'!U$6,'Monthly Cash Flows'!$B$13:$EC$13)) -> 90749.04583 | V10: =+INDEX('Monthly Cash Flows'!$B16:$EC16,MATCH('Monthly CF'!V$6,'Monthly Cash Flows'!$B$13:$EC$13)) -> 90749.04583 | W10: =+INDEX('Monthly Cash Flows'!$B16:$EC16,MATCH('Monthly CF'!W$6,'Monthly Cash Flows'!$B$13:$EC$13)) -> 90749.04583 | X10: =+INDEX('Monthly Cash Flows'!$B16:$EC16,MATCH('Monthly CF'!X$6,'Monthly Cash Flows'!$B$13:$EC$13)) -> 90749.04583 | Y10: =+INDEX('Monthly Cash Flows'!$B16:$EC16,MATCH('Monthly CF'!Y$6,'Monthly Cash Flows'!$B$13:$EC$13)) -> 90749.04583 | Z10: =+INDEX('Monthly Cash Flows'!$B16:$EC16,MATCH('Monthly CF'!Z$6,'Monthly Cash Flows'!$B$13:$EC$13)) -> 90749.04583 | AA10: =+INDEX('Monthly Cash Flows'!$B16:$EC16,MATCH('Monthly CF'!AA$6,'Monthly Cash Flows'!$B$13:$EC$13)) -> 90749.04583 | AB10: =+INDEX('Monthly Cash Flows'!$B16:$EC16,MATCH('Monthly CF'!AB$6,'Monthly Cash Flows'!$B$13:$EC$13)) -> 90749.04583 | AC10: =+INDEX('Monthly Cash Flows'!$B16:$EC16,MATCH('Monthly CF'!AC$6,'Monthly Cash Flows'!$B$13:$EC$13)) -> 91006.54583 | AD10: =+INDEX('Monthly Cash Flows'!$B16:$EC16,MATCH('Monthly CF'!AD$6,'Monthly Cash Flows'!$B$13:$EC$13)) -> 91006.54583 | AE10: =+INDEX('Monthly Cash Flows'!$B16:$EC16,MATCH('Monthly CF'!AE$6,'Monthly Cash Flows'!$B$13:$EC$13)) -> 91006.54583 | AF10: =+INDEX('Monthly Cash Flows'!$B16:$EC16,MATCH('Monthly CF'!AF$6,'Monthly Cash Flows'!$B$13:$EC$13)) -> 91006.54583 | AG10: =+INDEX('Monthly Cash Flows'!$B16:$EC16,MATCH('Monthly CF'!AG$6,'Monthly Cash Flows'!$B$13:$EC$13)) -> 91006.54583 | AH10: =+INDEX('Monthly Cash Flows'!$B16:$EC16,MATCH('Monthly CF'!AH$6,'Monthly Cash Flows'!$B$13:$EC$13)) -> 91006.54583 | AI10: =+INDEX('Monthly Cash Flows'!$B16:$EC16,MATCH('Monthly CF'!AI$6,'Monthly Cash Flows'!$B$13:$EC$13)) -> 91006.54583 | AJ10: =+INDEX('Monthly Cash Flows'!$B16:$EC16,MATCH('Monthly CF'!AJ$6,'Monthly Cash Flows'!$B$13:$EC$13)) -> 91006.54583 | AK10: =+INDEX('Monthly Cash Flows'!$B16:$EC16,MATCH('Monthly CF'!AK$6,'Monthly Cash Flows'!$B$13:$EC$13)) -> 91006.54583 | AL10: =+INDEX('Monthly Cash Flows'!$B16:$EC16,MATCH('Monthly CF'!AL$6,'Monthly Cash Flows'!$B$13:$EC$13)) -> 91006.54583 | AM10: =+INDEX('Monthly Cash Flows'!$B16:$EC16,MATCH('Monthly CF'!AM$6,'Monthly Cash Flows'!$B$13:$EC$13)) -> 91006.54583 | AN10: =+INDEX('Monthly Cash Flows'!$B16:$EC16,MATCH('Monthly CF'!AN$6,'Monthly Cash Flows'!$B$13:$EC$13)) -> 91006.54583 | AO10: =+INDEX('Monthly Cash Flows'!$B16:$EC16,MATCH('Monthly CF'!AO$6,'Monthly Cash Flows'!$B$13:$EC$13)) -> 91264.04583 | AP10: =+INDEX('Monthly Cash Flows'!$B16:$EC16,MATCH('Monthly CF'!AP$6,'Monthly Cash Flows'!$B$13:$EC$13)) -> 91264.04583 | AQ10: =+INDEX('Monthly Cash Flows'!$B16:$EC16,MATCH('Monthly CF'!AQ$6,'Monthly Cash Flows'!$B$13:$EC$13)) -> 91264.04583 | AR10: =+INDEX('Monthly Cash Flows'!$B16:$EC16,MATCH('Monthly CF'!AR$6,'Monthly Cash Flows'!$B$13:$EC$13)) -> 91264.04583 | AS10: =+INDEX('Monthly Cash Flows'!$B16:$EC16,MATCH('Monthly CF'!AS$6,'Monthly Cash Flows'!$B$13:$EC$13)) -> 91264.04583 | AT10: =+INDEX('Monthly Cash Flows'!$B16:$EC16,MATCH('Monthly CF'!AT$6,'Monthly Cash Flows'!$B$13:$EC$13)) -> 91264.04583 | AU10: =+INDEX('Monthly Cash Flows'!$B16:$EC16,MATCH('Monthly CF'!AU$6,'Monthly Cash Flows'!$B$13:$EC$13)) -> 91264.04583 | AV10: =+INDEX('Monthly Cash Flows'!$B16:$EC16,MATCH('Monthly CF'!AV$6,'Monthly Cash Flows'!$B$13:$EC$13)) -> 91264.04583 | AW10: =+INDEX('Monthly Cash Flows'!$B16:$EC16,MATCH('Monthly CF'!AW$6,'Monthly Cash Flows'!$B$13:$EC$13)) -> 91264.04583 | AX10: =+INDEX('Monthly Cash Flows'!$B16:$EC16,MATCH('Monthly CF'!AX$6,'Monthly Cash Flows'!$B$13:$EC$13)) -> 91264.04583 | AY10: =+INDEX('Monthly Cash Flows'!$B16:$EC16,MATCH('Monthly CF'!AY$6,'Monthly Cash Flows'!$B$13:$EC$13)) -> 91264.04583 | AZ10: =+INDEX('Monthly Cash Flows'!$B16:$EC16,MATCH('Monthly CF'!AZ$6,'Monthly Cash Flows'!$B$13:$EC$13)) -> 91264.04583 | BA10: =+INDEX('Monthly Cash Flows'!$B16:$EC16,MATCH('Monthly CF'!BA$6,'Monthly Cash Flows'!$B$13:$EC$13)) -> 91264.04583 | BB10: =+INDEX('Monthly Cash Flows'!$B16:$EC16,MATCH('Monthly CF'!BB$6,'Monthly Cash Flows'!$B$13:$EC$13)) -> 91264.04583 | BC10: =+INDEX('Monthly Cash Flows'!$B16:$EC16,MATCH('Monthly CF'!BC$6,'Monthly Cash Flows'!$B$13:$EC$13)) -> 91264.04583 | BD10: =+INDEX('Monthly Cash Flows'!$B16:$EC16,MATCH('Monthly CF'!BD$6,'Monthly Cash Flows'!$B$13:$EC$13)) -> 91264.04583 | BE10: =+INDEX('Monthly Cash Flows'!$B16:$EC16,MATCH('Monthly CF'!BE$6,'Monthly Cash Flows'!$B$13:$EC$13)) -> 91264.04583 | BF10: =+INDEX('Monthly Cash Flows'!$B16:$EC16,MATCH('Monthly CF'!BF$6,'Monthly Cash Flows'!$B$13:$EC$13)) -> 91264.04583 | BG10: =+INDEX('Monthly Cash Flows'!$B16:$EC16,MATCH('Monthly CF'!BG$6,'Monthly Cash Flows'!$B$13:$EC$13)) -> 91264.04583 | BH10: =+INDEX('Monthly Cash Flows'!$B16:$EC16,MATCH('Monthly CF'!BH$6,'Monthly Cash Flows'!$B$13:$EC$13)) -> 91264.04583 | BI10: =+INDEX('Monthly Cash Flows'!$B16:$EC16,MATCH('Monthly CF'!BI$6,'Monthly Cash Flows'!$B$13:$EC$13)) -> 91264.04583 | BJ10: =+INDEX('Monthly Cash Flows'!$B16:$EC16,MATCH('Monthly CF'!BJ$6,'Monthly Cash Flows'!$B$13:$EC$13)) -> 91264.04583 | BK10: =+INDEX('Monthly Cash Flows'!$B16:$EC16,MATCH('Monthly CF'!BK$6,'Monthly Cash Flows'!$B$13:$EC$13)) -> 91264.04583 | BL10: =+INDEX('Monthly Cash Flows'!$B16:$EC16,MATCH('Monthly CF'!BL$6,'Monthly Cash Flows'!$B$13:$EC$13)) -> 91264.04583 | BM10: =+INDEX('Monthly Cash Flows'!$B16:$EC16,MATCH('Monthly CF'!BM$6,'Monthly Cash Flows'!$B$13:$EC$13)) -> 91264.04583 | BN10: =+INDEX('Monthly Cash Flows'!$B16:$EC16,MATCH('Monthly CF'!BN$6,'Monthly Cash Flows'!$B$13:$EC$13)) -> 91264.04583 | BO10: =+INDEX('Monthly Cash Flows'!$B16:$EC16,MATCH('Monthly CF'!BO$6,'Monthly Cash Flows'!$B$13:$EC$13)) -> 91264.04583 | BP10: =+INDEX('Monthly Cash Flows'!$B16:$EC16,MATCH('Monthly CF'!BP$6,'Monthly Cash Flows'!$B$13:$EC$13)) -> 91264.04583 | BQ10: =+INDEX('Monthly Cash Flows'!$B16:$EC16,MATCH('Monthly CF'!BQ$6,'Monthly Cash Flows'!$B$13:$EC$13)) -> 91264.04583 | BR10: =+INDEX('Monthly Cash Flows'!$B16:$EC16,MATCH('Monthly CF'!BR$6,'Monthly Cash Flows'!$B$13:$EC$13)) -> 91264.04583 | BS10: =+INDEX('Monthly Cash Flows'!$B16:$EC16,MATCH('Monthly CF'!BS$6,'Monthly Cash Flows'!$B$13:$EC$13)) -> 91264.04583 | BT10: =+INDEX('Monthly Cash Flows'!$B16:$EC16,MATCH('Monthly CF'!BT$6,'Monthly Cash Flows'!$B$13:$EC$13)) -> 91264.04583 | BU10: =+INDEX('Monthly Cash Flows'!$B16:$EC16,MATCH('Monthly CF'!BU$6,'Monthly Cash Flows'!$B$13:$EC$13)) -> 91264.04583 | BV10: =+INDEX('Monthly Cash Flows'!$B16:$EC16,MATCH('Monthly CF'!BV$6,'Monthly Cash Flows'!$B$13:$EC$13)) -> 91264.04583 | BW10: =+INDEX('Monthly Cash Flows'!$B16:$EC16,MATCH('Monthly CF'!BW$6,'Monthly Cash Flows'!$B$13:$EC$13)) -> 92430.7125 | BX10: =+INDEX('Monthly Cash Flows'!$B16:$EC16,MATCH('Monthly CF'!BX$6,'Monthly Cash Flows'!$B$13:$EC$13)) -> 92430.7125 | BY10: =+INDEX('Monthly Cash Flows'!$B16:$EC16,MATCH('Monthly CF'!BY$6,'Monthly Cash Flows'!$B$13:$EC$13)) -> 92430.7125 | BZ10: =+INDEX('Monthly Cash Flows'!$B16:$EC16,MATCH('Monthly CF'!BZ$6,'Monthly Cash Flows'!$B$13:$EC$13)) -> 92430.7125 | CA10: =+INDEX('Monthly Cash Flows'!$B16:$EC16,MATCH('Monthly CF'!CA$6,'Monthly Cash Flows'!$B$13:$EC$13)) -> 92430.7125 | CB10: =+INDEX('Monthly Cash Flows'!$B16:$EC16,MATCH('Monthly CF'!CB$6,'Monthly Cash Flows'!$B$13:$EC$13)) -> 92430.7125 | CC10: =+INDEX('Monthly Cash Flows'!$B16:$EC16,MATCH('Monthly CF'!CC$6,'Monthly Cash Flows'!$B$13:$EC$13)) -> 92430.7125 | CD10: =+INDEX('Monthly Cash Flows'!$B16:$EC16,MATCH('Monthly CF'!CD$6,'Monthly Cash Flows'!$B$13:$EC$13)) -> 92430.7125 | CE10: =+INDEX('Monthly Cash Flows'!$B16:$EC16,MATCH('Monthly CF'!CE$6,'Monthly Cash Flows'!$B$13:$EC$13)) -> 92430.7125 | CF10: =+INDEX('Monthly Cash Flows'!$B16:$EC16,MATCH('Monthly CF'!CF$6,'Monthly Cash Flows'!$B$13:$EC$13)) -> 92430.7125 | CG10: =+INDEX('Monthly Cash Flows'!$B16:$EC16,MATCH('Monthly CF'!CG$6,'Monthly Cash Flows'!$B$13:$EC$13)) -> 92430.7125 | CH10: =+INDEX('Monthly Cash Flows'!$B16:$EC16,MATCH('Monthly CF'!CH$6,'Monthly Cash Flows'!$B$13:$EC$13)) -> 92430.7125 | CI10: =+INDEX('Monthly Cash Flows'!$B16:$EC16,MATCH('Monthly CF'!CI$6,'Monthly Cash Flows'!$B$13:$EC$13)) -> 92430.7125 | CJ10: =+INDEX('Monthly Cash Flows'!$B16:$EC16,MATCH('Monthly CF'!CJ$6,'Monthly Cash Flows'!$B$13:$EC$13)) -> 92430.7125 | CK10: =+INDEX('Monthly Cash Flows'!$B16:$EC16,MATCH('Monthly CF'!CK$6,'Monthly Cash Flows'!$B$13:$EC$13)) -> 92430.7125 | CL10: =+INDEX('Monthly Cash Flows'!$B16:$EC16,MATCH('Monthly CF'!CL$6,'Monthly Cash Flows'!$B$13:$EC$13)) -> 92430.7125 | CM10: =+INDEX('Monthly Cash Flows'!$B16:$EC16,MATCH('Monthly CF'!CM$6,'Monthly Cash Flows'!$B$13:$EC$13)) -> 92430.7125 | CN10: =+INDEX('Monthly Cash Flows'!$B16:$EC16,MATCH('Monthly CF'!CN$6,'Monthly Cash Flows'!$B$13:$EC$13)) -> 92430.7125 | CO10: =+INDEX('Monthly Cash Flows'!$B16:$EC16,MATCH('Monthly CF'!CO$6,'Monthly Cash Flows'!$B$13:$EC$13)) -> 92430.7125 | CP10: =+INDEX('Monthly Cash Flows'!$B16:$EC16,MATCH('Monthly CF'!CP$6,'Monthly Cash Flows'!$B$13:$EC$13)) -> 92430.7125 | CQ10: =+INDEX('Monthly Cash Flows'!$B16:$EC16,MATCH('Monthly CF'!CQ$6,'Monthly Cash Flows'!$B$13:$EC$13)) -> 92430.7125 | CR10: =+INDEX('Monthly Cash Flows'!$B16:$EC16,MATCH('Monthly CF'!CR$6,'Monthly Cash Flows'!$B$13:$EC$13)) -> 92430.7125 | CS10: =+INDEX('Monthly Cash Flows'!$B16:$EC16,MATCH('Monthly CF'!CS$6,'Monthly Cash Flows'!$B$13:$EC$13)) -> 92430.7125 | CT10: =+INDEX('Monthly Cash Flows'!$B16:$EC16,MATCH('Monthly CF'!CT$6,'Monthly Cash Flows'!$B$13:$EC$13)) -> 92430.7125 | CU10: =+INDEX('Monthly Cash Flows'!$B16:$EC16,MATCH('Monthly CF'!CU$6,'Monthly Cash Flows'!$B$13:$EC$13)) -> 92430.7125 | CV10: =+INDEX('Monthly Cash Flows'!$B16:$EC16,MATCH('Monthly CF'!CV$6,'Monthly Cash Flows'!$B$13:$EC$13)) -> 92430.7125 | CW10: =+INDEX('Monthly Cash Flows'!$B16:$EC16,MATCH('Monthly CF'!CW$6,'Monthly Cash Flows'!$B$13:$EC$13)) -> 92430.7125 | CX10: =+INDEX('Monthly Cash Flows'!$B16:$EC16,MATCH('Monthly CF'!CX$6,'Monthly Cash Flows'!$B$13:$EC$13)) -> 92430.7125 | CY10: =+INDEX('Monthly Cash Flows'!$B16:$EC16,MATCH('Monthly CF'!CY$6,'Monthly Cash Flows'!$B$13:$EC$13)) -> 92430.7125 | CZ10: =+INDEX('Monthly Cash Flows'!$B16:$EC16,MATCH('Monthly CF'!CZ$6,'Monthly Cash Flows'!$B$13:$EC$13)) -> 92430.7125 | DA10: =+INDEX('Monthly Cash Flows'!$B16:$EC16,MATCH('Monthly CF'!DA$6,'Monthly Cash Flows'!$B$13:$EC$13)) -> 92430.7125 | DB10: =+INDEX('Monthly Cash Flows'!$B16:$EC16,MATCH('Monthly CF'!DB$6,'Monthly Cash Flows'!$B$13:$EC$13)) -> 92430.7125 | DC10: =+INDEX('Monthly Cash Flows'!$B16:$EC16,MATCH('Monthly CF'!DC$6,'Monthly Cash Flows'!$B$13:$EC$13)) -> 92430.7125 | DD10: =+INDEX('Monthly Cash Flows'!$B16:$EC16,MATCH('Monthly CF'!DD$6,'Monthly Cash Flows'!$B$13:$EC$13)) -> 92430.7125 | DE10: =+INDEX('Monthly Cash Flows'!$B16:$EC16,MATCH('Monthly CF'!DE$6,'Monthly Cash Flows'!$B$13:$EC$13)) -> 92430.7125 | DF10: =+INDEX('Monthly Cash Flows'!$B16:$EC16,MATCH('Monthly CF'!DF$6,'Monthly Cash Flows'!$B$13:$EC$13)) -> 92430.7125 | DG10: =+INDEX('Monthly Cash Flows'!$B16:$EC16,MATCH('Monthly CF'!DG$6,'Monthly Cash Flows'!$B$13:$EC$13)) -> 92430.7125 | DH10: =+INDEX('Monthly Cash Flows'!$B16:$EC16,MATCH('Monthly CF'!DH$6,'Monthly Cash Flows'!$B$13:$EC$13)) -> 92430.7125 | DI10: =+INDEX('Monthly Cash Flows'!$B16:$EC16,MATCH('Monthly CF'!DI$6,'Monthly Cash Flows'!$B$13:$EC$13)) -> 92430.7125 | DJ10: =+INDEX('Monthly Cash Flows'!$B16:$EC16,MATCH('Monthly CF'!DJ$6,'Monthly Cash Flows'!$B$13:$EC$13)) -> 92430.7125 | DK10: =+INDEX('Monthly Cash Flows'!$B16:$EC16,MATCH('Monthly CF'!DK$6,'Monthly Cash Flows'!$B$13:$EC$13)) -> 92430.7125 | DL10: =+INDEX('Monthly Cash Flows'!$B16:$EC16,MATCH('Monthly CF'!DL$6,'Monthly Cash Flows'!$B$13:$EC$13)) -> 92430.7125 | DM10: =+INDEX('Monthly Cash Flows'!$B16:$EC16,MATCH('Monthly CF'!DM$6,'Monthly Cash Flows'!$B$13:$EC$13)) -> 92430.7125 | DN10: =+INDEX('Monthly Cash Flows'!$B16:$EC16,MATCH('Monthly CF'!DN$6,'Monthly Cash Flows'!$B$13:$EC$13)) -> 92430.7125 | DO10: =+INDEX('Monthly Cash Flows'!$B16:$EC16,MATCH('Monthly CF'!DO$6,'Monthly Cash Flows'!$B$13:$EC$13)) -> 92430.7125 | DP10: =+INDEX('Monthly Cash Flows'!$B16:$EC16,MATCH('Monthly CF'!DP$6,'Monthly Cash Flows'!$B$13:$EC$13)) -> 92430.7125 | DQ10: =+INDEX('Monthly Cash Flows'!$B16:$EC16,MATCH('Monthly CF'!DQ$6,'Monthly Cash Flows'!$B$13:$EC$13)) -> 92430.7125 | DR10: =+INDEX('Monthly Cash Flows'!$B16:$EC16,MATCH('Monthly CF'!DR$6,'Monthly Cash Flows'!$B$13:$EC$13)) -> 92430.7125 | DS10: =+INDEX('Monthly Cash Flows'!$B16:$EC16,MATCH('Monthly CF'!DS$6,'Monthly Cash Flows'!$B$13:$EC$13)) -> 92430.7125 | DT10: =+INDEX('Monthly Cash Flows'!$B16:$EC16,MATCH('Monthly CF'!DT$6,'Monthly Cash Flows'!$B$13:$EC$13)) -> 92430.7125 | DU10: =+INDEX('Monthly Cash Flows'!$B16:$EC16,MATCH('Monthly CF'!DU$6,'Monthly Cash Flows'!$B$13:$EC$13)) -> 92430.7125 | DV10: =+INDEX('Monthly Cash Flows'!$B16:$EC16,MATCH('Monthly CF'!DV$6,'Monthly Cash Flows'!$B$13:$EC$13)) -> 92430.7125 | DW10: =+INDEX('Monthly Cash Flows'!$B16:$EC16,MATCH('Monthly CF'!DW$6,'Monthly Cash Flows'!$B$13:$EC$13)) -> 92430.7125 | DX10: =+INDEX('Monthly Cash Flows'!$B16:$EC16,MATCH('Monthly CF'!DX$6,'Monthly Cash Flows'!$B$13:$EC$13)) -> 92430.7125 | DY10: =+INDEX('Monthly Cash Flows'!$B16:$EC16,MATCH('Monthly CF'!DY$6,'Monthly Cash Flows'!$B$13:$EC$13)) -> 92430.7125 | DZ10: =+INDEX('Monthly Cash Flows'!$B16:$EC16,MATCH('Monthly CF'!DZ$6,'Monthly Cash Flows'!$B$13:$EC$13)) -> 92430.7125 | EA10: =+INDEX('Monthly Cash Flows'!$B16:$EC16,MATCH('Monthly CF'!EA$6,'Monthly Cash Flows'!$B$13:$EC$13)) -> 92430.7125 | EB10: =+INDEX('Monthly Cash Flows'!$B16:$EC16,MATCH('Monthly CF'!EB$6,'Monthly Cash Flows'!$B$13:$EC$13)) -> 92430.7125 | EC10: =+INDEX('Monthly Cash Flows'!$B16:$EC16,MATCH('Monthly CF'!EC$6,'Monthly Cash Flows'!$B$13:$EC$13)) -> 92430.7125 | ED10: =+INDEX('Monthly Cash Flows'!$B16:$EC16,MATCH('Monthly CF'!ED$6,'Monthly Cash Flows'!$B$13:$EC$13)) -> 92430.7125 | EE10: =+INDEX('Monthly Cash Flows'!$B16:$EC16,MATCH('Monthly CF'!EE$6,'Monthly Cash Flows'!$B$13:$EC$13)) -> 92430.7125 | EF10: =+INDEX('Monthly Cash Flows'!$B16:$EC16,MATCH('Monthly CF'!EF$6,'Monthly Cash Flows'!$B$13:$EC$13)) -> 92430.7125 | EG10: =+INDEX('Monthly Cash Flows'!$B16:$EC16,MATCH('Monthly CF'!EG$6,'Monthly Cash Flows'!$B$13:$EC$13)) -> 92430.7125
B11: =+'Monthly Cash Flows'!A17 -> Absorption & Turnover Vacancy | F11: =+INDEX('Monthly Cash Flows'!$B17:$EC17,MATCH('Monthly CF'!F$6,'Monthly Cash Flows'!$B$13:$EC$13)) -> 0 | G11: =+INDEX('Monthly Cash Flows'!$B17:$EC17,MATCH('Monthly CF'!G$6,'Monthly Cash Flows'!$B$13:$EC$13)) -> 0 | H11: =+INDEX('Monthly Cash Flows'!$B17:$EC17,MATCH('Monthly CF'!H$6,'Monthly Cash Flows'!$B$13:$EC$13)) -> 0 | I11: =+INDEX('Monthly Cash Flows'!$B17:$EC17,MATCH('Monthly CF'!I$6,'Monthly Cash Flows'!$B$13:$EC$13)) -> 0 | J11: =+INDEX('Monthly Cash Flows'!$B17:$EC17,MATCH('Monthly CF'!J$6,'Monthly Cash Flows'!$B$13:$EC$13)) -> 0 | K11: =+INDEX('Monthly Cash Flows'!$B17:$EC17,MATCH('Monthly CF'!K$6,'Monthly Cash Flows'!$B$13:$EC$13)) -> 0 | L11: =+INDEX('Monthly Cash Flows'!$B17:$EC17,MATCH('Monthly CF'!L$6,'Monthly Cash Flows'!$B$13:$EC$13)) -> 0 | M11: =+INDEX('Monthly Cash Flows'!$B17:$EC17,MATCH('Monthly CF'!M$6,'Monthly Cash Flows'!$B$13:$EC$13)) -> 0 | N11: =+INDEX('Monthly Cash Flows'!$B17:$EC17,MATCH('Monthly CF'!N$6,'Monthly Cash Flows'!$B$13:$EC$13)) -> 0 | O11: =+INDEX('Monthly Cash Flows'!$B17:$EC17,MATCH('Monthly CF'!O$6,'Monthly Cash Flows'!$B$13:$EC$13)) -> 0 | P11: =+INDEX('Monthly Cash Flows'!$B17:$EC17,MATCH('Monthly CF'!P$6,'Monthly Cash Flows'!$B$13:$EC$13)) -> 0 | Q11: =+INDEX('Monthly Cash Flows'!$B17:$EC17,MATCH('Monthly CF'!Q$6,'Monthly Cash Flows'!$B$13:$EC$13)) -> 0 | R11: =+INDEX('Monthly Cash Flows'!$B17:$EC17,MATCH('Monthly CF'!R$6,'Monthly Cash Flows'!$B$13:$EC$13)) -> 0 | S11: =+INDEX('Monthly Cash Flows'!$B17:$EC17,MATCH('Monthly CF'!S$6,'Monthly Cash Flows'!$B$13:$EC$13)) -> 0 | T11: =+INDEX('Monthly Cash Flows'!$B17:$EC17,MATCH('Monthly CF'!T$6,'Monthly Cash Flows'!$B$13:$EC$13)) -> 0 | U11: =+INDEX('Monthly Cash Flows'!$B17:$EC17,MATCH('Monthly CF'!U$6,'Monthly Cash Flows'!$B$13:$EC$13)) -> 0 | V11: =+INDEX('Monthly Cash Flows'!$B17:$EC17,MATCH('Monthly CF'!V$6,'Monthly Cash Flows'!$B$13:$EC$13)) -> 0 | W11: =+INDEX('Monthly Cash Flows'!$B17:$EC17,MATCH('Monthly CF'!W$6,'Monthly Cash Flows'!$B$13:$EC$13)) -> 0 | X11: =+INDEX('Monthly Cash Flows'!$B17:$EC17,MATCH('Monthly CF'!X$6,'Monthly Cash Flows'!$B$13:$EC$13)) -> 0 | Y11: =+INDEX('Monthly Cash Flows'!$B17:$EC17,MATCH('Monthly CF'!Y$6,'Monthly Cash Flows'!$B$13:$EC$13)) -> 0 | Z11: =+INDEX('Monthly Cash Flows'!$B17:$EC17,MATCH('Monthly CF'!Z$6,'Monthly Cash Flows'!$B$13:$EC$13)) -> 0 | AA11: =+INDEX('Monthly Cash Flows'!$B17:$EC17,MATCH('Monthly CF'!AA$6,'Monthly Cash Flows'!$B$13:$EC$13)) -> 0 | AB11: =+INDEX('Monthly Cash Flows'!$B17:$EC17,MATCH('Monthly CF'!AB$6,'Monthly Cash Flows'!$B$13:$EC$13)) -> 0 | AC11: =+INDEX('Monthly Cash Flows'!$B17:$EC17,MATCH('Monthly CF'!AC$6,'Monthly Cash Flows'!$B$13:$EC$13)) -> 0 | AD11: =+INDEX('Monthly Cash Flows'!$B17:$EC17,MATCH('Monthly CF'!AD$6,'Monthly Cash Flows'!$B$13:$EC$13)) -> 0 | AE11: =+INDEX('Monthly Cash Flows'!$B17:$EC17,MATCH('Monthly CF'!AE$6,'Monthly Cash Flows'!$B$13:$EC$13)) -> 0 | AF11: =+INDEX('Monthly Cash Flows'!$B17:$EC17,MATCH('Monthly CF'!AF$6,'Monthly Cash Flows'!$B$13:$EC$13)) -> 0 | AG11: =+INDEX('Monthly Cash Flows'!$B17:$EC17,MATCH('Monthly CF'!AG$6,'Monthly Cash Flows'!$B$13:$EC$13)) -> 0 | AH11: =+INDEX('Monthly Cash Flows'!$B17:$EC17,MATCH('Monthly CF'!AH$6,'Monthly Cash Flows'!$B$13:$EC$13)) -> 0 | AI11: =+INDEX('Monthly Cash Flows'!$B17:$EC17,MATCH('Monthly CF'!AI$6,'Monthly Cash Flows'!$B$13:$EC$13)) -> 0 | AJ11: =+INDEX('Monthly Cash Flows'!$B17:$EC17,MATCH('Monthly CF'!AJ$6,'Monthly Cash Flows'!$B$13:$EC$13)) -> 0 | AK11: =+INDEX('Monthly Cash Flows'!$B17:$EC17,MATCH('Monthly CF'!AK$6,'Monthly Cash Flows'!$B$13:$EC$13)) -> 0 | AL11: =+INDEX('Monthly Cash Flows'!$B17:$EC17,MATCH('Monthly CF'!AL$6,'Monthly Cash Flows'!$B$13:$EC$13)) -> 0 | AM11: =+INDEX('Monthly Cash Flows'!$B17:$EC17,MATCH('Monthly CF'!AM$6,'Monthly Cash Flows'!$B$13:$EC$13)) -> 0 | AN11: =+INDEX('Monthly Cash Flows'!$B17:$EC17,MATCH('Monthly CF'!AN$6,'Monthly Cash Flows'!$B$13:$EC$13)) -> 0 | AO11: =+INDEX('Monthly Cash Flows'!$B17:$EC17,MATCH('Monthly CF'!AO$6,'Monthly Cash Flows'!$B$13:$EC$13)) -> 0 | AP11: =+INDEX('Monthly Cash Flows'!$B17:$EC17,MATCH('Monthly CF'!AP$6,'Monthly Cash Flows'!$B$13:$EC$13)) -> 0 | AQ11: =+INDEX('Monthly Cash Flows'!$B17:$EC17,MATCH('Monthly CF'!AQ$6,'Monthly Cash Flows'!$B$13:$EC$13)) -> 0 | AR11: =+INDEX('Monthly Cash Flows'!$B17:$EC17,MATCH('Monthly CF'!AR$6,'Monthly Cash Flows'!$B$13:$EC$13)) -> 0 | AS11: =+INDEX('Monthly Cash Flows'!$B17:$EC17,MATCH('Monthly CF'!AS$6,'Monthly Cash Flows'!$B$13:$EC$13)) -> 0 | AT11: =+INDEX('Monthly Cash Flows'!$B17:$EC17,MATCH('Monthly CF'!AT$6,'Monthly Cash Flows'!$B$13:$EC$13)) -> 0 | AU11: =+INDEX('Monthly Cash Flows'!$B17:$EC17,MATCH('Monthly CF'!AU$6,'Monthly Cash Flows'!$B$13:$EC$13)) -> 0 | AV11: =+INDEX('Monthly Cash Flows'!$B17:$EC17,MATCH('Monthly CF'!AV$6,'Monthly Cash Flows'!$B$13:$EC$13)) -> 0 | AW11: =+INDEX('Monthly Cash Flows'!$B17:$EC17,MATCH('Monthly CF'!AW$6,'Monthly Cash Flows'!$B$13:$EC$13)) -> 0 | AX11: =+INDEX('Monthly Cash Flows'!$B17:$EC17,MATCH('Monthly CF'!AX$6,'Monthly Cash Flows'!$B$13:$EC$13)) -> 0 | AY11: =+INDEX('Monthly Cash Flows'!$B17:$EC17,MATCH('Monthly CF'!AY$6,'Monthly Cash Flows'!$B$13:$EC$13)) -> 0 | AZ11: =+INDEX('Monthly Cash Flows'!$B17:$EC17,MATCH('Monthly CF'!AZ$6,'Monthly Cash Flows'!$B$13:$EC$13)) -> 0 | BA11: =+INDEX('Monthly Cash Flows'!$B17:$EC17,MATCH('Monthly CF'!BA$6,'Monthly Cash Flows'!$B$13:$EC$13)) -> 0 | BB11: =+INDEX('Monthly Cash Flows'!$B17:$EC17,MATCH('Monthly CF'!BB$6,'Monthly Cash Flows'!$B$13:$EC$13)) -> 0 | BC11: =+INDEX('Monthly Cash Flows'!$B17:$EC17,MATCH('Monthly CF'!BC$6,'Monthly Cash Flows'!$B$13:$EC$13)) -> 0 | BD11: =+INDEX('Monthly Cash Flows'!$B17:$EC17,MATCH('Monthly CF'!BD$6,'Monthly Cash Flows'!$B$13:$EC$13)) -> 0 | BE11: =+INDEX('Monthly Cash Flows'!$B17:$EC17,MATCH('Monthly CF'!BE$6,'Monthly Cash Flows'!$B$13:$EC$13)) -> 0 | BF11: =+INDEX('Monthly Cash Flows'!$B17:$EC17,MATCH('Monthly CF'!BF$6,'Monthly Cash Flows'!$B$13:$EC$13)) -> 0 | BG11: =+INDEX('Monthly Cash Flows'!$B17:$EC17,MATCH('Monthly CF'!BG$6,'Monthly Cash Flows'!$B$13:$EC$13)) -> 0 | BH11: =+INDEX('Monthly Cash Flows'!$B17:$EC17,MATCH('Monthly CF'!BH$6,'Monthly Cash Flows'!$B$13:$EC$13)) -> 0 | BI11: =+INDEX('Monthly Cash Flows'!$B17:$EC17,MATCH('Monthly CF'!BI$6,'Monthly Cash Flows'!$B$13:$EC$13)) -> 0 | BJ11: =+INDEX('Monthly Cash Flows'!$B17:$EC17,MATCH('Monthly CF'!BJ$6,'Monthly Cash Flows'!$B$13:$EC$13)) -> 0 | BK11: =+INDEX('Monthly Cash Flows'!$B17:$EC17,MATCH('Monthly CF'!BK$6,'Monthly Cash Flows'!$B$13:$EC$13)) -> 0 | BL11: =+INDEX('Monthly Cash Flows'!$B17:$EC17,MATCH('Monthly CF'!BL$6,'Monthly Cash Flows'!$B$13:$EC$13)) -> 0 | BM11: =+INDEX('Monthly Cash Flows'!$B17:$EC17,MATCH('Monthly CF'!BM$6,'Monthly Cash Flows'!$B$13:$EC$13)) -> 0 | BN11: =+INDEX('Monthly Cash Flows'!$B17:$EC17,MATCH('Monthly CF'!BN$6,'Monthly Cash Flows'!$B$13:$EC$13)) -> 0 | BO11: =+INDEX('Monthly Cash Flows'!$B17:$EC17,MATCH('Monthly CF'!BO$6,'Monthly Cash Flows'!$B$13:$EC$13)) -> 0 | BP11: =+INDEX('Monthly Cash Flows'!$B17:$EC17,MATCH('Monthly CF'!BP$6,'Monthly Cash Flows'!$B$13:$EC$13)) -> 0 | BQ11: =+INDEX('Monthly Cash Flows'!$B17:$EC17,MATCH('Monthly CF'!BQ$6,'Monthly Cash Flows'!$B$13:$EC$13)) -> 0 | BR11: =+INDEX('Monthly Cash Flows'!$B17:$EC17,MATCH('Monthly CF'!BR$6,'Monthly Cash Flows'!$B$13:$EC$13)) -> 0 | BS11: =+INDEX('Monthly Cash Flows'!$B17:$EC17,MATCH('Monthly CF'!BS$6,'Monthly Cash Flows'!$B$13:$EC$13)) -> 0 | BT11: =+INDEX('Monthly Cash Flows'!$B17:$EC17,MATCH('Monthly CF'!BT$6,'Monthly Cash Flows'!$B$13:$EC$13)) -> 0 | BU11: =+INDEX('Monthly Cash Flows'!$B17:$EC17,MATCH('Monthly CF'!BU$6,'Monthly Cash Flows'!$B$13:$EC$13)) -> 0 | BV11: =+INDEX('Monthly Cash Flows'!$B17:$EC17,MATCH('Monthly CF'!BV$6,'Monthly Cash Flows'!$B$13:$EC$13)) -> 0 | BW11: =+INDEX('Monthly Cash Flows'!$B17:$EC17,MATCH('Monthly CF'!BW$6,'Monthly Cash Flows'!$B$13:$EC$13)) -> 0 | BX11: =+INDEX('Monthly Cash Flows'!$B17:$EC17,MATCH('Monthly CF'!BX$6,'Monthly Cash Flows'!$B$13:$EC$13)) -> 0 | BY11: =+INDEX('Monthly Cash Flows'!$B17:$EC17,MATCH('Monthly CF'!BY$6,'Monthly Cash Flows'!$B$13:$EC$13)) -> 0 | BZ11: =+INDEX('Monthly Cash Flows'!$B17:$EC17,MATCH('Monthly CF'!BZ$6,'Monthly Cash Flows'!$B$13:$EC$13)) -> 0 | CA11: =+INDEX('Monthly Cash Flows'!$B17:$EC17,MATCH('Monthly CF'!CA$6,'Monthly Cash Flows'!$B$13:$EC$13)) -> 0 | CB11: =+INDEX('Monthly Cash Flows'!$B17:$EC17,MATCH('Monthly CF'!CB$6,'Monthly Cash Flows'!$B$13:$EC$13)) -> 0 | CC11: =+INDEX('Monthly Cash Flows'!$B17:$EC17,MATCH('Monthly CF'!CC$6,'Monthly Cash Flows'!$B$13:$EC$13)) -> 0 | CD11: =+INDEX('Monthly Cash Flows'!$B17:$EC17,MATCH('Monthly CF'!CD$6,'Monthly Cash Flows'!$B$13:$EC$13)) -> 0 | CE11: =+INDEX('Monthly Cash Flows'!$B17:$EC17,MATCH('Monthly CF'!CE$6,'Monthly Cash Flows'!$B$13:$EC$13)) -> 0 | CF11: =+INDEX('Monthly Cash Flows'!$B17:$EC17,MATCH('Monthly CF'!CF$6,'Monthly Cash Flows'!$B$13:$EC$13)) -> 0 | CG11: =+INDEX('Monthly Cash Flows'!$B17:$EC17,MATCH('Monthly CF'!CG$6,'Monthly Cash Flows'!$B$13:$EC$13)) -> 0 | CH11: =+INDEX('Monthly Cash Flows'!$B17:$EC17,MATCH('Monthly CF'!CH$6,'Monthly Cash Flows'!$B$13:$EC$13)) -> 0 | CI11: =+INDEX('Monthly Cash Flows'!$B17:$EC17,MATCH('Monthly CF'!CI$6,'Monthly Cash Flows'!$B$13:$EC$13)) -> 0 | CJ11: =+INDEX('Monthly Cash Flows'!$B17:$EC17,MATCH('Monthly CF'!CJ$6,'Monthly Cash Flows'!$B$13:$EC$13)) -> 0 | CK11: =+INDEX('Monthly Cash Flows'!$B17:$EC17,MATCH('Monthly CF'!CK$6,'Monthly Cash Flows'!$B$13:$EC$13)) -> 0 | CL11: =+INDEX('Monthly Cash Flows'!$B17:$EC17,MATCH('Monthly CF'!CL$6,'Monthly Cash Flows'!$B$13:$EC$13)) -> 0 | CM11: =+INDEX('Monthly Cash Flows'!$B17:$EC17,MATCH('Monthly CF'!CM$6,'Monthly Cash Flows'!$B$13:$EC$13)) -> 0 | CN11: =+INDEX('Monthly Cash Flows'!$B17:$EC17,MATCH('Monthly CF'!CN$6,'Monthly Cash Flows'!$B$13:$EC$13)) -> 0 | CO11: =+INDEX('Monthly Cash Flows'!$B17:$EC17,MATCH('Monthly CF'!CO$6,'Monthly Cash Flows'!$B$13:$EC$13)) -> 0 | CP11: =+INDEX('Monthly Cash Flows'!$B17:$EC17,MATCH('Monthly CF'!CP$6,'Monthly Cash Flows'!$B$13:$EC$13)) -> 0 | CQ11: =+INDEX('Monthly Cash Flows'!$B17:$EC17,MATCH('Monthly CF'!CQ$6,'Monthly Cash Flows'!$B$13:$EC$13)) -> 0 | CR11: =+INDEX('Monthly Cash Flows'!$B17:$EC17,MATCH('Monthly CF'!CR$6,'Monthly Cash Flows'!$B$13:$EC$13)) -> 0 | CS11: =+INDEX('Monthly Cash Flows'!$B17:$EC17,MATCH('Monthly CF'!CS$6,'Monthly Cash Flows'!$B$13:$EC$13)) -> 0 | CT11: =+INDEX('Monthly Cash Flows'!$B17:$EC17,MATCH('Monthly CF'!CT$6,'Monthly Cash Flows'!$B$13:$EC$13)) -> 0 | CU11: =+INDEX('Monthly Cash Flows'!$B17:$EC17,MATCH('Monthly CF'!CU$6,'Monthly Cash Flows'!$B$13:$EC$13)) -> 0 | CV11: =+INDEX('Monthly Cash Flows'!$B17:$EC17,MATCH('Monthly CF'!CV$6,'Monthly Cash Flows'!$B$13:$EC$13)) -> 0 | CW11: =+INDEX('Monthly Cash Flows'!$B17:$EC17,MATCH('Monthly CF'!CW$6,'Monthly Cash Flows'!$B$13:$EC$13)) -> 0 | CX11: =+INDEX('Monthly Cash Flows'!$B17:$EC17,MATCH('Monthly CF'!CX$6,'Monthly Cash Flows'!$B$13:$EC$13)) -> 0 | CY11: =+INDEX('Monthly Cash Flows'!$B17:$EC17,MATCH('Monthly CF'!CY$6,'Monthly Cash Flows'!$B$13:$EC$13)) -> 0 | CZ11: =+INDEX('Monthly Cash Flows'!$B17:$EC17,MATCH('Monthly CF'!CZ$6,'Monthly Cash Flows'!$B$13:$EC$13)) -> 0 | DA11: =+INDEX('Monthly Cash Flows'!$B17:$EC17,MATCH('Monthly CF'!DA$6,'Monthly Cash Flows'!$B$13:$EC$13)) -> 0 | DB11: =+INDEX('Monthly Cash Flows'!$B17:$EC17,MATCH('Monthly CF'!DB$6,'Monthly Cash Flows'!$B$13:$EC$13)) -> 0 | DC11: =+INDEX('Monthly Cash Flows'!$B17:$EC17,MATCH('Monthly CF'!DC$6,'Monthly Cash Flows'!$B$13:$EC$13)) -> 0 | DD11: =+INDEX('Monthly Cash Flows'!$B17:$EC17,MATCH('Monthly CF'!DD$6,'Monthly Cash Flows'!$B$13:$EC$13)) -> 0 | DE11: =+INDEX('Monthly Cash Flows'!$B17:$EC17,MATCH('Monthly CF'!DE$6,'Monthly Cash Flows'!$B$13:$EC$13)) -> 0 | DF11: =+INDEX('Monthly Cash Flows'!$B17:$EC17,MATCH('Monthly CF'!DF$6,'Monthly Cash Flows'!$B$13:$EC$13)) -> 0 | DG11: =+INDEX('Monthly Cash Flows'!$B17:$EC17,MATCH('Monthly CF'!DG$6,'Monthly Cash Flows'!$B$13:$EC$13)) -> 0 | DH11: =+INDEX('Monthly Cash Flows'!$B17:$EC17,MATCH('Monthly CF'!DH$6,'Monthly Cash Flows'!$B$13:$EC$13)) -> 0 | DI11: =+INDEX('Monthly Cash Flows'!$B17:$EC17,MATCH('Monthly CF'!DI$6,'Monthly Cash Flows'!$B$13:$EC$13)) -> 0 | DJ11: =+INDEX('Monthly Cash Flows'!$B17:$EC17,MATCH('Monthly CF'!DJ$6,'Monthly Cash Flows'!$B$13:$EC$13)) -> 0 | DK11: =+INDEX('Monthly Cash Flows'!$B17:$EC17,MATCH('Monthly CF'!DK$6,'Monthly Cash Flows'!$B$13:$EC$13)) -> 0 | DL11: =+INDEX('Monthly Cash Flows'!$B17:$EC17,MATCH('Monthly CF'!DL$6,'Monthly Cash Flows'!$B$13:$EC$13)) -> 0 | DM11: =+INDEX('Monthly Cash Flows'!$B17:$EC17,MATCH('Monthly CF'!DM$6,'Monthly Cash Flows'!$B$13:$EC$13)) -> 0 | DN11: =+INDEX('Monthly Cash Flows'!$B17:$EC17,MATCH('Monthly CF'!DN$6,'Monthly Cash Flows'!$B$13:$EC$13)) -> 0 | DO11: =+INDEX('Monthly Cash Flows'!$B17:$EC17,MATCH('Monthly CF'!DO$6,'Monthly Cash Flows'!$B$13:$EC$13)) -> 0 | DP11: =+INDEX('Monthly Cash Flows'!$B17:$EC17,MATCH('Monthly CF'!DP$6,'Monthly Cash Flows'!$B$13:$EC$13)) -> 0 | DQ11: =+INDEX('Monthly Cash Flows'!$B17:$EC17,MATCH('Monthly CF'!DQ$6,'Monthly Cash Flows'!$B$13:$EC$13)) -> 0 | DR11: =+INDEX('Monthly Cash Flows'!$B17:$EC17,MATCH('Monthly CF'!DR$6,'Monthly Cash Flows'!$B$13:$EC$13)) -> 0 | DS11: =+INDEX('Monthly Cash Flows'!$B17:$EC17,MATCH('Monthly CF'!DS$6,'Monthly Cash Flows'!$B$13:$EC$13)) -> 0 | DT11: =+INDEX('Monthly Cash Flows'!$B17:$EC17,MATCH('Monthly CF'!DT$6,'Monthly Cash Flows'!$B$13:$EC$13)) -> 0 | DU11: =+INDEX('Monthly Cash Flows'!$B17:$EC17,MATCH('Monthly CF'!DU$6,'Monthly Cash Flows'!$B$13:$EC$13)) -> 0 | DV11: =+INDEX('Monthly Cash Flows'!$B17:$EC17,MATCH('Monthly CF'!DV$6,'Monthly Cash Flows'!$B$13:$EC$13)) -> 0 | DW11: =+INDEX('Monthly Cash Flows'!$B17:$EC17,MATCH('Monthly CF'!DW$6,'Monthly Cash Flows'!$B$13:$EC$13)) -> 0 | DX11: =+INDEX('Monthly Cash Flows'!$B17:$EC17,MATCH('Monthly CF'!DX$6,'Monthly Cash Flows'!$B$13:$EC$13)) -> 0 | DY11: =+INDEX('Monthly Cash Flows'!$B17:$EC17,MATCH('Monthly CF'!DY$6,'Monthly Cash Flows'!$B$13:$EC$13)) -> 0 | DZ11: =+INDEX('Monthly Cash Flows'!$B17:$EC17,MATCH('Monthly CF'!DZ$6,'Monthly Cash Flows'!$B$13:$EC$13)) -> 0 | EA11: =+INDEX('Monthly Cash Flows'!$B17:$EC17,MATCH('Monthly CF'!EA$6,'Monthly Cash Flows'!$B$13:$EC$13)) -> 0 | EB11: =+INDEX('Monthly Cash Flows'!$B17:$EC17,MATCH('Monthly CF'!EB$6,'Monthly Cash Flows'!$B$13:$EC$13)) -> 0 | EC11: =+INDEX('Monthly Cash Flows'!$B17:$EC17,MATCH('Monthly CF'!EC$6,'Monthly Cash Flows'!$B$13:$EC$13)) -> 0 | ED11: =+INDEX('Monthly Cash Flows'!$B17:$EC17,MATCH('Monthly CF'!ED$6,'Monthly Cash Flows'!$B$13:$EC$13)) -> 0 | EE11: =+INDEX('Monthly Cash Flows'!$B17:$EC17,MATCH('Monthly CF'!EE$6,'Monthly Cash Flows'!$B$13:$EC$13)) -> 0 | EF11: =+INDEX('Monthly Cash Flows'!$B17:$EC17,MATCH('Monthly CF'!EF$6,'Monthly Cash Flows'!$B$13:$EC$13)) -> 0 | EG11: =+INDEX('Monthly Cash Flows'!$B17:$EC17,MATCH('Monthly CF'!EG$6,'Monthly Cash Flows'!$B$13:$EC$13)) -> 0
B13: Scheduled Base Rental Revenue | F13: =+SUM(F10:F12) -> 75501.62917 | G13: =+SUM(G10:G12) -> 75501.62917 | H13: 78699.12917 | I13: 78699.12917 | J13: 78799.12917 | K13: 78799.12917 | L13: 82174.12917 | M13: 82283.2125 | N13: 82283.2125 | O13: 83116.54583 | P13: 83116.54583 | Q13: 83374.04583 | R13: 83374.04583 | S13: 83374.04583 | T13: 90749.04583 | U13: 90749.04583 | V13: 90749.04583 | W13: 90749.04583 | X13: 90749.04583 | Y13: 90749.04583 | Z13: 90749.04583 | AA13: 90749.04583 | AB13: 90749.04583 | AC13: 91006.54583 | AD13: 91006.54583 | AE13: 91006.54583 | AF13: 91006.54583 | AG13: 91006.54583 | AH13: 91006.54583 | AI13: 91006.54583 | AJ13: 91006.54583 | AK13: 91006.54583 | AL13: 91006.54583 | AM13: 91006.54583 | AN13: 91006.54583 | AO13: 91264.04583 | AP13: 91264.04583 | AQ13: 91264.04583 | AR13: 91264.04583 | AS13: 91264.04583 | AT13: 91264.04583 | AU13: 91264.04583 | AV13: 91264.04583 | AW13: 91264.04583 | AX13: 91264.04583 | AY13: 91264.04583 | AZ13: 91264.04583 | BA13: 91264.04583 | BB13: 91264.04583 | BC13: 91264.04583 | BD13: 91264.04583 | BE13: 91264.04583 | BF13: 91264.04583 | BG13: 91264.04583 | BH13: 91264.04583 | BI13: 91264.04583 | BJ13: 91264.04583 | BK13: 91264.04583 | BL13: 91264.04583 | BM13: 91264.04583 | BN13: 91264.04583 | BO13: 91264.04583 | BP13: 91264.04583 | BQ13: 91264.04583 | BR13: 91264.04583 | BS13: =+SUM(BS10:BS12) -> 91264.04583 | BT13: 91264.04583 | BU13: 91264.04583 | BV13: 91264.04583 | BW13: 92430.7125 | BX13: 92430.7125 | BY13: 92430.7125 | BZ13: 92430.7125 | CA13: 92430.7125 | CB13: 92430.7125 | CC13: 92430.7125 | CD13: 92430.7125 | CE13: 92430.7125 | CF13: 92430.7125 | CG13: 92430.7125 | CH13: 92430.7125 | CI13: 92430.7125 | CJ13: 92430.7125 | CK13: 92430.7125 | CL13: 92430.7125 | CM13: 92430.7125 | CN13: 92430.7125 | CO13: 92430.7125 | CP13: 92430.7125 | CQ13: 92430.7125 | CR13: 92430.7125 | CS13: 92430.7125 | CT13: 92430.7125 | CU13: 92430.7125 | CV13: 92430.7125 | CW13: 92430.7125 | CX13: 92430.7125 | CY13: 92430.7125 | CZ13: 92430.7125 | DA13: 92430.7125 | DB13: 92430.7125 | DC13: 92430.7125 | DD13: 92430.7125 | DE13: 92430.7125 | DF13: 92430.7125 | DG13: 92430.7125 | DH13: 92430.7125 | DI13: 92430.7125 | DJ13: 92430.7125 | DK13: 92430.7125 | DL13: 92430.7125 | DM13: 92430.7125 | DN13: 92430.7125 | DO13: 92430.7125 | DP13: 92430.7125 | DQ13: 92430.7125 | DR13: 92430.7125 | DS13: 92430.7125 | DT13: 92430.7125 | DU13: 92430.7125 | DV13: 92430.7125 | DW13: 92430.7125 | DX13: 92430.7125 | DY13: 92430.7125 | DZ13: 92430.7125 | EA13: 92430.7125 | EB13: 92430.7125 | EC13: 92430.7125 | ED13: 92430.7125 | EE13: =+SUM(EE10:EE12) -> 92430.7125 | EF13: 92430.7125 | EG13: 92430.7125
B14: ='Monthly Cash Flows'!A27 -> Total Reimbursement Revenue | F14: =+INDEX('Monthly Cash Flows'!$B27:$EC27,MATCH('Monthly CF'!F$6,'Monthly Cash Flows'!$B$13:$EC$13)) -> 12695.43794 | G14: =+INDEX('Monthly Cash Flows'!$B27:$EC27,MATCH('Monthly CF'!G$6,'Monthly Cash Flows'!$B$13:$EC$13)) -> 13071.15388 | H14: =+INDEX('Monthly Cash Flows'!$B27:$EC27,MATCH('Monthly CF'!H$6,'Monthly Cash Flows'!$B$13:$EC$13)) -> 13071.15388 | I14: =+INDEX('Monthly Cash Flows'!$B27:$EC27,MATCH('Monthly CF'!I$6,'Monthly Cash Flows'!$B$13:$EC$13)) -> 13667.8792 | J14: =+INDEX('Monthly Cash Flows'!$B27:$EC27,MATCH('Monthly CF'!J$6,'Monthly Cash Flows'!$B$13:$EC$13)) -> 13667.8792 | K14: =+INDEX('Monthly Cash Flows'!$B27:$EC27,MATCH('Monthly CF'!K$6,'Monthly Cash Flows'!$B$13:$EC$13)) -> 14077.91557 | L14: =+INDEX('Monthly Cash Flows'!$B27:$EC27,MATCH('Monthly CF'!L$6,'Monthly Cash Flows'!$B$13:$EC$13)) -> 14077.91557 | M14: =+INDEX('Monthly Cash Flows'!$B27:$EC27,MATCH('Monthly CF'!M$6,'Monthly Cash Flows'!$B$13:$EC$13)) -> 15381.87089 | N14: =+INDEX('Monthly Cash Flows'!$B27:$EC27,MATCH('Monthly CF'!N$6,'Monthly Cash Flows'!$B$13:$EC$13)) -> 15381.87089 | O14: =+INDEX('Monthly Cash Flows'!$B27:$EC27,MATCH('Monthly CF'!O$6,'Monthly Cash Flows'!$B$13:$EC$13)) -> 15370.2679 | P14: =+INDEX('Monthly Cash Flows'!$B27:$EC27,MATCH('Monthly CF'!P$6,'Monthly Cash Flows'!$B$13:$EC$13)) -> 15370.2679 | Q14: =+INDEX('Monthly Cash Flows'!$B27:$EC27,MATCH('Monthly CF'!Q$6,'Monthly Cash Flows'!$B$13:$EC$13)) -> 15815.46393 | R14: =+INDEX('Monthly Cash Flows'!$B27:$EC27,MATCH('Monthly CF'!R$6,'Monthly Cash Flows'!$B$13:$EC$13)) -> 15815.46393 | S14: =+INDEX('Monthly Cash Flows'!$B27:$EC27,MATCH('Monthly CF'!S$6,'Monthly Cash Flows'!$B$13:$EC$13)) -> 15815.46393 | T14: =+INDEX('Monthly Cash Flows'!$B27:$EC27,MATCH('Monthly CF'!T$6,'Monthly Cash Flows'!$B$13:$EC$13)) -> 15815.46393 | U14: =+INDEX('Monthly Cash Flows'!$B27:$EC27,MATCH('Monthly CF'!U$6,'Monthly Cash Flows'!$B$13:$EC$13)) -> 15815.46393 | V14: =+INDEX('Monthly Cash Flows'!$B27:$EC27,MATCH('Monthly CF'!V$6,'Monthly Cash Flows'!$B$13:$EC$13)) -> 15815.46393 | W14: =+INDEX('Monthly Cash Flows'!$B27:$EC27,MATCH('Monthly CF'!W$6,'Monthly Cash Flows'!$B$13:$EC$13)) -> 16289.92784 | X14: =+INDEX('Monthly Cash Flows'!$B27:$EC27,MATCH('Monthly CF'!X$6,'Monthly Cash Flows'!$B$13:$EC$13)) -> 16289.92784 | Y14: =+INDEX('Monthly Cash Flows'!$B27:$EC27,MATCH('Monthly CF'!Y$6,'Monthly Cash Flows'!$B$13:$EC$13)) -> 16289.92784 | Z14: =+INDEX('Monthly Cash Flows'!$B27:$EC27,MATCH('Monthly CF'!Z$6,'Monthly Cash Flows'!$B$13:$EC$13)) -> 16289.92784 | AA14: =+INDEX('Monthly Cash Flows'!$B27:$EC27,MATCH('Monthly CF'!AA$6,'Monthly Cash Flows'!$B$13:$EC$13)) -> 16289.92784 | AB14: =+INDEX('Monthly Cash Flows'!$B27:$EC27,MATCH('Monthly CF'!AB$6,'Monthly Cash Flows'!$B$13:$EC$13)) -> 16289.92784 | AC14: =+INDEX('Monthly Cash Flows'!$B27:$EC27,MATCH('Monthly CF'!AC$6,'Monthly Cash Flows'!$B$13:$EC$13)) -> 16778.62568 | AD14: =+INDEX('Monthly Cash Flows'!$B27:$EC27,MATCH('Monthly CF'!AD$6,'Monthly Cash Flows'!$B$13:$EC$13)) -> 16778.62568 | AE14: =+INDEX('Monthly Cash Flows'!$B27:$EC27,MATCH('Monthly CF'!AE$6,'Monthly Cash Flows'!$B$13:$EC$13)) -> 16778.62568 | AF14: =+INDEX('Monthly Cash Flows'!$B27:$EC27,MATCH('Monthly CF'!AF$6,'Monthly Cash Flows'!$B$13:$EC$13)) -> 16778.62568 | AG14: =+INDEX('Monthly Cash Flows'!$B27:$EC27,MATCH('Monthly CF'!AG$6,'Monthly Cash Flows'!$B$13:$EC$13)) -> 16778.62568 | AH14: =+INDEX('Monthly Cash Flows'!$B27:$EC27,MATCH('Monthly CF'!AH$6,'Monthly Cash Flows'!$B$13:$EC$13)) -> 16778.62568 | AI14: =+INDEX('Monthly Cash Flows'!$B27:$EC27,MATCH('Monthly CF'!AI$6,'Monthly Cash Flows'!$B$13:$EC$13)) -> 17281.98445 | AJ14: =+INDEX('Monthly Cash Flows'!$B27:$EC27,MATCH('Monthly CF'!AJ$6,'Monthly Cash Flows'!$B$13:$EC$13)) -> 17281.98445 | AK14: =+INDEX('Monthly Cash Flows'!$B27:$EC27,MATCH('Monthly CF'!AK$6,'Monthly Cash Flows'!$B$13:$EC$13)) -> 17281.98445 | AL14: =+INDEX('Monthly Cash Flows'!$B27:$EC27,MATCH('Monthly CF'!AL$6,'Monthly Cash Flows'!$B$13:$EC$13)) -> 17281.98445 | AM14: =+INDEX('Monthly Cash Flows'!$B27:$EC27,MATCH('Monthly CF'!AM$6,'Monthly Cash Flows'!$B$13:$EC$13)) -> 17281.98445 | AN14: =+INDEX('Monthly Cash Flows'!$B27:$EC27,MATCH('Monthly CF'!AN$6,'Monthly Cash Flows'!$B$13:$EC$13)) -> 17281.98445 | AO14: =+INDEX('Monthly Cash Flows'!$B27:$EC27,MATCH('Monthly CF'!AO$6,'Monthly Cash Flows'!$B$13:$EC$13)) -> 17800.44398 | AP14: =+INDEX('Monthly Cash Flows'!$B27:$EC27,MATCH('Monthly CF'!AP$6,'Monthly Cash Flows'!$B$13:$EC$13)) -> 17800.44398 | AQ14: =+INDEX('Monthly Cash Flows'!$B27:$EC27,MATCH('Monthly CF'!AQ$6,'Monthly Cash Flows'!$B$13:$EC$13)) -> 17800.44398 | AR14: =+INDEX('Monthly Cash Flows'!$B27:$EC27,MATCH('Monthly CF'!AR$6,'Monthly Cash Flows'!$B$13:$EC$13)) -> 17800.44398 | AS14: =+INDEX('Monthly Cash Flows'!$B27:$EC27,MATCH('Monthly CF'!AS$6,'Monthly Cash Flows'!$B$13:$EC$13)) -> 17800.44398 | AT14: =+INDEX('Monthly Cash Flows'!$B27:$EC27,MATCH('Monthly CF'!AT$6,'Monthly Cash Flows'!$B$13:$EC$13)) -> 17800.44398 | AU14: =+INDEX('Monthly Cash Flows'!$B27:$EC27,MATCH('Monthly CF'!AU$6,'Monthly Cash Flows'!$B$13:$EC$13)) -> 18334.4573 | AV14: =+INDEX('Monthly Cash Flows'!$B27:$EC27,MATCH('Monthly CF'!AV$6,'Monthly Cash Flows'!$B$13:$EC$13)) -> 18334.4573 | AW14: =+INDEX('Monthly Cash Flows'!$B27:$EC27,MATCH('Monthly CF'!AW$6,'Monthly Cash Flows'!$B$13:$EC$13)) -> 18334.4573 | AX14: =+INDEX('Monthly Cash Flows'!$B27:$EC27,MATCH('Monthly CF'!AX$6,'Monthly Cash Flows'!$B$13:$EC$13)) -> 18334.4573 | AY14: =+INDEX('Monthly Cash Flows'!$B27:$EC27,MATCH('Monthly CF'!AY$6,'Monthly Cash Flows'!$B$13:$EC$13)) -> 18334.4573 | AZ14: =+INDEX('Monthly Cash Flows'!$B27:$EC27,MATCH('Monthly CF'!AZ$6,'Monthly Cash Flows'!$B$13:$EC$13)) -> 18334.4573 | BA14: =+INDEX('Monthly Cash Flows'!$B27:$EC27,MATCH('Monthly CF'!BA$6,'Monthly Cash Flows'!$B$13:$EC$13)) -> 18884.49102 | BB14: =+INDEX('Monthly Cash Flows'!$B27:$EC27,MATCH('Monthly CF'!BB$6,'Monthly Cash Flows'!$B$13:$EC$13)) -> 18884.49102 | BC14: =+INDEX('Monthly Cash Flows'!$B27:$EC27,MATCH('Monthly CF'!BC$6,'Monthly Cash Flows'!$B$13:$EC$13)) -> 18884.49102 | BD14: =+INDEX('Monthly Cash Flows'!$B27:$EC27,MATCH('Monthly CF'!BD$6,'Monthly Cash Flows'!$B$13:$EC$13)) -> 18884.49102 | BE14: =+INDEX('Monthly Cash Flows'!$B27:$EC27,MATCH('Monthly CF'!BE$6,'Monthly Cash Flows'!$B$13:$EC$13)) -> 18884.49102 | BF14: =+INDEX('Monthly Cash Flows'!$B27:$EC27,MATCH('Monthly CF'!BF$6,'Monthly Cash Flows'!$B$13:$EC$13)) -> 18884.49102 | BG14: =+INDEX('Monthly Cash Flows'!$B27:$EC27,MATCH('Monthly CF'!BG$6,'Monthly Cash Flows'!$B$13:$EC$13)) -> 19451.02575 | BH14: =+INDEX('Monthly Cash Flows'!$B27:$EC27,MATCH('Monthly CF'!BH$6,'Monthly Cash Flows'!$B$13:$EC$13)) -> 19451.02575 | BI14: =+INDEX('Monthly Cash Flows'!$B27:$EC27,MATCH('Monthly CF'!BI$6,'Monthly Cash Flows'!$B$13:$EC$13)) -> 19451.02575 | BJ14: =+INDEX('Monthly Cash Flows'!$B27:$EC27,MATCH('Monthly CF'!BJ$6,'Monthly Cash Flows'!$B$13:$EC$13)) -> 19451.02575 | BK14: =+INDEX('Monthly Cash Flows'!$B27:$EC27,MATCH('Monthly CF'!BK$6,'Monthly Cash Flows'!$B$13:$EC$13)) -> 19451.02575 | BL14: =+INDEX('Monthly Cash Flows'!$B27:$EC27,MATCH('Monthly CF'!BL$6,'Monthly Cash Flows'!$B$13:$EC$13)) -> 19451.02575 | BM14: =+INDEX('Monthly Cash Flows'!$B27:$EC27,MATCH('Monthly CF'!BM$6,'Monthly Cash Flows'!$B$13:$EC$13)) -> 20034.55652 | BN14: =+INDEX('Monthly Cash Flows'!$B27:$EC27,MATCH('Monthly CF'!BN$6,'Monthly Cash Flows'!$B$13:$EC$13)) -> 20034.55652 | BO14: =+INDEX('Monthly Cash Flows'!$B27:$EC27,MATCH('Monthly CF'!BO$6,'Monthly Cash Flows'!$B$13:$EC$13)) -> 20034.55652 | BP14: =+INDEX('Monthly Cash Flows'!$B27:$EC27,MATCH('Monthly CF'!BP$6,'Monthly Cash Flows'!$B$13:$EC$13)) -> 20034.55652 | BQ14: =+INDEX('Monthly Cash Flows'!$B27:$EC27,MATCH('Monthly CF'!BQ$6,'Monthly Cash Flows'!$B$13:$EC$13)) -> 20034.55652 | BR14: =+INDEX('Monthly Cash Flows'!$B27:$EC27,MATCH('Monthly CF'!BR$6,'Monthly Cash Flows'!$B$13:$EC$13)) -> 20034.55652 | BS14: =+INDEX('Monthly Cash Flows'!$B27:$EC27,MATCH('Monthly CF'!BS$6,'Monthly Cash Flows'!$B$13:$EC$13)) -> 0 | BT14: =+INDEX('Monthly Cash Flows'!$B27:$EC27,MATCH('Monthly CF'!BT$6,'Monthly Cash Flows'!$B$13:$EC$13)) -> 0 | BU14: =+INDEX('Monthly Cash Flows'!$B27:$EC27,MATCH('Monthly CF'!BU$6,'Monthly Cash Flows'!$B$13:$EC$13)) -> 0 | BV14: =+INDEX('Monthly Cash Flows'!$B27:$EC27,MATCH('Monthly CF'!BV$6,'Monthly Cash Flows'!$B$13:$EC$13)) -> 0 | BW14: =+INDEX('Monthly Cash Flows'!$B27:$EC27,MATCH('Monthly CF'!BW$6,'Monthly Cash Flows'!$B$13:$EC$13)) -> 0 | BX14: =+INDEX('Monthly Cash Flows'!$B27:$EC27,MATCH('Monthly CF'!BX$6,'Monthly Cash Flows'!$B$13:$EC$13)) -> 0 | BY14: =+INDEX('Monthly Cash Flows'!$B27:$EC27,MATCH('Monthly CF'!BY$6,'Monthly Cash Flows'!$B$13:$EC$13)) -> 0 | BZ14: =+INDEX('Monthly Cash Flows'!$B27:$EC27,MATCH('Monthly CF'!BZ$6,'Monthly Cash Flows'!$B$13:$EC$13)) -> 0 | CA14: =+INDEX('Monthly Cash Flows'!$B27:$EC27,MATCH('Monthly CF'!CA$6,'Monthly Cash Flows'!$B$13:$EC$13)) -> 0 | CB14: =+INDEX('Monthly Cash Flows'!$B27:$EC27,MATCH('Monthly CF'!CB$6,'Monthly Cash Flows'!$B$13:$EC$13)) -> 0 | CC14: =+INDEX('Monthly Cash Flows'!$B27:$EC27,MATCH('Monthly CF'!CC$6,'Monthly Cash Flows'!$B$13:$EC$13)) -> 0 | CD14: =+INDEX('Monthly Cash Flows'!$B27:$EC27,MATCH('Monthly CF'!CD$6,'Monthly Cash Flows'!$B$13:$EC$13)) -> 0 | CE14: =+INDEX('Monthly Cash Flows'!$B27:$EC27,MATCH('Monthly CF'!CE$6,'Monthly Cash Flows'!$B$13:$EC$13)) -> 0 | CF14: =+INDEX('Monthly Cash Flows'!$B27:$EC27,MATCH('Monthly CF'!CF$6,'Monthly Cash Flows'!$B$13:$EC$13)) -> 0 | CG14: =+INDEX('Monthly Cash Flows'!$B27:$EC27,MATCH('Monthly CF'!CG$6,'Monthly Cash Flows'!$B$13:$EC$13)) -> 0 | CH14: =+INDEX('Monthly Cash Flows'!$B27:$EC27,MATCH('Monthly CF'!CH$6,'Monthly Cash Flows'!$B$13:$EC$13)) -> 0 | CI14: =+INDEX('Monthly Cash Flows'!$B27:$EC27,MATCH('Monthly CF'!CI$6,'Monthly Cash Flows'!$B$13:$EC$13)) -> 0 | CJ14: =+INDEX('Monthly Cash Flows'!$B27:$EC27,MATCH('Monthly CF'!CJ$6,'Monthly Cash Flows'!$B$13:$EC$13)) -> 0 | CK14: =+INDEX('Monthly Cash Flows'!$B27:$EC27,MATCH('Monthly CF'!CK$6,'Monthly Cash Flows'!$B$13:$EC$13)) -> 0 | CL14: =+INDEX('Monthly Cash Flows'!$B27:$EC27,MATCH('Monthly CF'!CL$6,'Monthly Cash Flows'!$B$13:$EC$13)) -> 0 | CM14: =+INDEX('Monthly Cash Flows'!$B27:$EC27,MATCH('Monthly CF'!CM$6,'Monthly Cash Flows'!$B$13:$EC$13)) -> 0 | CN14: =+INDEX('Monthly Cash Flows'!$B27:$EC27,MATCH('Monthly CF'!CN$6,'Monthly Cash Flows'!$B$13:$EC$13)) -> 0 | CO14: =+INDEX('Monthly Cash Flows'!$B27:$EC27,MATCH('Monthly CF'!CO$6,'Monthly Cash Flows'!$B$13:$EC$13)) -> 0 | CP14: =+INDEX('Monthly Cash Flows'!$B27:$EC27,MATCH('Monthly CF'!CP$6,'Monthly Cash Flows'!$B$13:$EC$13)) -> 0 | CQ14: =+INDEX('Monthly Cash Flows'!$B27:$EC27,MATCH('Monthly CF'!CQ$6,'Monthly Cash Flows'!$B$13:$EC$13)) -> 0 | CR14: =+INDEX('Monthly Cash Flows'!$B27:$EC27,MATCH('Monthly CF'!CR$6,'Monthly Cash Flows'!$B$13:$EC$13)) -> 0 | CS14: =+INDEX('Monthly Cash Flows'!$B27:$EC27,MATCH('Monthly CF'!CS$6,'Monthly Cash Flows'!$B$13:$EC$13)) -> 0 | CT14: =+INDEX('Monthly Cash Flows'!$B27:$EC27,MATCH('Monthly CF'!CT$6,'Monthly Cash Flows'!$B$13:$EC$13)) -> 0 | CU14: =+INDEX('Monthly Cash Flows'!$B27:$EC27,MATCH('Monthly CF'!CU$6,'Monthly Cash Flows'!$B$13:$EC$13)) -> 0 | CV14: =+INDEX('Monthly Cash Flows'!$B27:$EC27,MATCH('Monthly CF'!CV$6,'Monthly Cash Flows'!$B$13:$EC$13)) -> 0 | CW14: =+INDEX('Monthly Cash Flows'!$B27:$EC27,MATCH('Monthly CF'!CW$6,'Monthly Cash Flows'!$B$13:$EC$13)) -> 0 | CX14: =+INDEX('Monthly Cash Flows'!$B27:$EC27,MATCH('Monthly CF'!CX$6,'Monthly Cash Flows'!$B$13:$EC$13)) -> 0 | CY14: =+INDEX('Monthly Cash Flows'!$B27:$EC27,MATCH('Monthly CF'!CY$6,'Monthly Cash Flows'!$B$13:$EC$13)) -> 0 | CZ14: =+INDEX('Monthly Cash Flows'!$B27:$EC27,MATCH('Monthly CF'!CZ$6,'Monthly Cash Flows'!$B$13:$EC$13)) -> 0 | DA14: =+INDEX('Monthly Cash Flows'!$B27:$EC27,MATCH('Monthly CF'!DA$6,'Monthly Cash Flows'!$B$13:$EC$13)) -> 0 | DB14: =+INDEX('Monthly Cash Flows'!$B27:$EC27,MATCH('Monthly CF'!DB$6,'Monthly Cash Flows'!$B$13:$EC$13)) -> 0 | DC14: =+INDEX('Monthly Cash Flows'!$B27:$EC27,MATCH('Monthly CF'!DC$6,'Monthly Cash Flows'!$B$13:$EC$13)) -> 0 | DD14: =+INDEX('Monthly Cash Flows'!$B27:$EC27,MATCH('Monthly CF'!DD$6,'Monthly Cash Flows'!$B$13:$EC$13)) -> 0 | DE14: =+INDEX('Monthly Cash Flows'!$B27:$EC27,MATCH('Monthly CF'!DE$6,'Monthly Cash Flows'!$B$13:$EC$13)) -> 0 | DF14: =+INDEX('Monthly Cash Flows'!$B27:$EC27,MATCH('Monthly CF'!DF$6,'Monthly Cash Flows'!$B$13:$EC$13)) -> 0 | DG14: =+INDEX('Monthly Cash Flows'!$B27:$EC27,MATCH('Monthly CF'!DG$6,'Monthly Cash Flows'!$B$13:$EC$13)) -> 0 | DH14: =+INDEX('Monthly Cash Flows'!$B27:$EC27,MATCH('Monthly CF'!DH$6,'Monthly Cash Flows'!$B$13:$EC$13)) -> 0 | DI14: =+INDEX('Monthly Cash Flows'!$B27:$EC27,MATCH('Monthly CF'!DI$6,'Monthly Cash Flows'!$B$13:$EC$13)) -> 0 | DJ14: =+INDEX('Monthly Cash Flows'!$B27:$EC27,MATCH('Monthly CF'!DJ$6,'Monthly Cash Flows'!$B$13:$EC$13)) -> 0 | DK14: =+INDEX('Monthly Cash Flows'!$B27:$EC27,MATCH('Monthly CF'!DK$6,'Monthly Cash Flows'!$B$13:$EC$13)) -> 0 | DL14: =+INDEX('Monthly Cash Flows'!$B27:$EC27,MATCH('Monthly CF'!DL$6,'Monthly Cash Flows'!$B$13:$EC$13)) -> 0 | DM14: =+INDEX('Monthly Cash Flows'!$B27:$EC27,MATCH('Monthly CF'!DM$6,'Monthly Cash Flows'!$B$13:$EC$13)) -> 0 | DN14: =+INDEX('Monthly Cash Flows'!$B27:$EC27,MATCH('Monthly CF'!DN$6,'Monthly Cash Flows'!$B$13:$EC$13)) -> 0 | DO14: =+INDEX('Monthly Cash Flows'!$B27:$EC27,MATCH('Monthly CF'!DO$6,'Monthly Cash Flows'!$B$13:$EC$13)) -> 0 | DP14: =+INDEX('Monthly Cash Flows'!$B27:$EC27,MATCH('Monthly CF'!DP$6,'Monthly Cash Flows'!$B$13:$EC$13)) -> 0 | DQ14: =+INDEX('Monthly Cash Flows'!$B27:$EC27,MATCH('Monthly CF'!DQ$6,'Monthly Cash Flows'!$B$13:$EC$13)) -> 0 | DR14: =+INDEX('Monthly Cash Flows'!$B27:$EC27,MATCH('Monthly CF'!DR$6,'Monthly Cash Flows'!$B$13:$EC$13)) -> 0 | DS14: =+INDEX('Monthly Cash Flows'!$B27:$EC27,MATCH('Monthly CF'!DS$6,'Monthly Cash Flows'!$B$13:$EC$13)) -> 0 | DT14: =+INDEX('Monthly Cash Flows'!$B27:$EC27,MATCH('Monthly CF'!DT$6,'Monthly Cash Flows'!$B$13:$EC$13)) -> 0 | DU14: =+INDEX('Monthly Cash Flows'!$B27:$EC27,MATCH('Monthly CF'!DU$6,'Monthly Cash Flows'!$B$13:$EC$13)) -> 0 | DV14: =+INDEX('Monthly Cash Flows'!$B27:$EC27,MATCH('Monthly CF'!DV$6,'Monthly Cash Flows'!$B$13:$EC$13)) -> 0 | DW14: =+INDEX('Monthly Cash Flows'!$B27:$EC27,MATCH('Monthly CF'!DW$6,'Monthly Cash Flows'!$B$13:$EC$13)) -> 0 | DX14: =+INDEX('Monthly Cash Flows'!$B27:$EC27,MATCH('Monthly CF'!DX$6,'Monthly Cash Flows'!$B$13:$EC$13)) -> 0 | DY14: =+INDEX('Monthly Cash Flows'!$B27:$EC27,MATCH('Monthly CF'!DY$6,'Monthly Cash Flows'!$B$13:$EC$13)) -> 0 | DZ14: =+INDEX('Monthly Cash Flows'!$B27:$EC27,MATCH('Monthly CF'!DZ$6,'Monthly Cash Flows'!$B$13:$EC$13)) -> 0 | EA14: =+INDEX('Monthly Cash Flows'!$B27:$EC27,MATCH('Monthly CF'!EA$6,'Monthly Cash Flows'!$B$13:$EC$13)) -> 0 | EB14: =+INDEX('Monthly Cash Flows'!$B27:$EC27,MATCH('Monthly CF'!EB$6,'Monthly Cash Flows'!$B$13:$EC$13)) -> 0 | EC14: =+INDEX('Monthly Cash Flows'!$B27:$EC27,MATCH('Monthly CF'!EC$6,'Monthly Cash Flows'!$B$13:$EC$13)) -> 0 | ED14: =+INDEX('Monthly Cash Flows'!$B27:$EC27,MATCH('Monthly CF'!ED$6,'Monthly Cash Flows'!$B$13:$EC$13)) -> 0 | EE14: =+INDEX('Monthly Cash Flows'!$B27:$EC27,MATCH('Monthly CF'!EE$6,'Monthly Cash Flows'!$B$13:$EC$13)) -> 0 | EF14: =+INDEX('Monthly Cash Flows'!$B27:$EC27,MATCH('Monthly CF'!EF$6,'Monthly Cash Flows'!$B$13:$EC$13)) -> 0 | EG14: =+INDEX('Monthly Cash Flows'!$B27:$EC27,MATCH('Monthly CF'!EG$6,'Monthly Cash Flows'!$B$13:$EC$13)) -> 0
B18: Potential Gross Revenue | F18: =+SUM(F13:F16) -> 88197.06711 | G18: =+SUM(G13:G16) -> 88572.78305 | H18: 91770.28305 | I18: 92367.00837 | J18: 92467.00837 | K18: 92877.04474 | L18: 96252.04474 | M18: 97665.08339 | N18: 97665.08339 | O18: 98486.81373 | P18: 98486.81373 | Q18: 99189.50976 | R18: 99189.50976 | S18: 99189.50976 | T18: 106564.5098 | U18: 106564.5098 | V18: 106564.5098 | W18: 107038.9737 | X18: 107038.9737 | Y18: 107038.9737 | Z18: 107038.9737 | AA18: 107038.9737 | AB18: 107038.9737 | AC18: 107785.1715 | AD18: 107785.1715 | AE18: 107785.1715 | AF18: 107785.1715 | AG18: 107785.1715 | AH18: 107785.1715 | AI18: 108288.5303 | AJ18: 108288.5303 | AK18: 108288.5303 | AL18: 108288.5303 | AM18: 108288.5303 | AN18: 108288.5303 | AO18: 109064.4898 | AP18: 109064.4898 | AQ18: 109064.4898 | AR18: 109064.4898 | AS18: 109064.4898 | AT18: 109064.4898 | AU18: 109598.5031 | AV18: 109598.5031 | AW18: 109598.5031 | AX18: 109598.5031 | AY18: 109598.5031 | AZ18: 109598.5031 | BA18: 110148.5369 | BB18: 110148.5369 | BC18: 110148.5369 | BD18: 110148.5369 | BE18: 110148.5369 | BF18: 110148.5369 | BG18: 110715.0716 | BH18: 110715.0716 | BI18: 110715.0716 | BJ18: 110715.0716 | BK18: 110715.0716 | BL18: 110715.0716 | BM18: 111298.6024 | BN18: 111298.6024 | BO18: 111298.6024 | BP18: 111298.6024 | BQ18: 111298.6024 | BR18: 111298.6024 | BS18: =+SUM(BS13:BS16) -> 91264.04583 | BT18: 91264.04583 | BU18: 91264.04583 | BV18: 91264.04583 | BW18: 92430.7125 | BX18: 92430.7125 | BY18: 92430.7125 | BZ18: 92430.7125 | CA18: 92430.7125 | CB18: 92430.7125 | CC18: 92430.7125 | CD18: 92430.7125 | CE18: 92430.7125 | CF18: 92430.7125 | CG18: 92430.7125 | CH18: 92430.7125 | CI18: 92430.7125 | CJ18: 92430.7125 | CK18: 92430.7125 | CL18: 92430.7125 | CM18: 92430.7125 | CN18: 92430.7125 | CO18: 92430.7125 | CP18: 92430.7125 | CQ18: 92430.7125 | CR18: 92430.7125 | CS18: 92430.7125 | CT18: 92430.7125 | CU18: 92430.7125 | CV18: 92430.7125 | CW18: 92430.7125 | CX18: 92430.7125 | CY18: 92430.7125 | CZ18: 92430.7125 | DA18: 92430.7125 | DB18: 92430.7125 | DC18: 92430.7125 | DD18: 92430.7125 | DE18: 92430.7125 | DF18: 92430.7125 | DG18: 92430.7125 | DH18: 92430.7125 | DI18: 92430.7125 | DJ18: 92430.7125 | DK18: 92430.7125 | DL18: 92430.7125 | DM18: 92430.7125 | DN18: 92430.7125 | DO18: 92430.7125 | DP18: 92430.7125 | DQ18: 92430.7125 | DR18: 92430.7125 | DS18: 92430.7125 | DT18: 92430.7125 | DU18: 92430.7125 | DV18: 92430.7125 | DW18: 92430.7125 | DX18: 92430.7125 | DY18: 92430.7125 | DZ18: 92430.7125 | EA18: 92430.7125 | EB18: 92430.7125 | EC18: 92430.7125 | ED18: 92430.7125 | EE18: =+SUM(EE13:EE16) -> 92430.7125 | EF18: 92430.7125 | EG18: 92430.7125
B19: =+'Monthly Cash Flows'!A31 -> General Vacancy | F19: =+INDEX('Monthly Cash Flows'!$B31:$EC31,MATCH('Monthly CF'!F$6,'Monthly Cash Flows'!$B$13:$EC$13)) -> 0 | G19: =+INDEX('Monthly Cash Flows'!$B31:$EC31,MATCH('Monthly CF'!G$6,'Monthly Cash Flows'!$B$13:$EC$13)) -> 0 | H19: =+INDEX('Monthly Cash Flows'!$B31:$EC31,MATCH('Monthly CF'!H$6,'Monthly Cash Flows'!$B$13:$EC$13)) -> 0 | I19: =+INDEX('Monthly Cash Flows'!$B31:$EC31,MATCH('Monthly CF'!I$6,'Monthly Cash Flows'!$B$13:$EC$13)) -> 0 | J19: =+INDEX('Monthly Cash Flows'!$B31:$EC31,MATCH('Monthly CF'!J$6,'Monthly Cash Flows'!$B$13:$EC$13)) -> 0 | K19: =+INDEX('Monthly Cash Flows'!$B31:$EC31,MATCH('Monthly CF'!K$6,'Monthly Cash Flows'!$B$13:$EC$13)) -> 0 | L19: =+INDEX('Monthly Cash Flows'!$B31:$EC31,MATCH('Monthly CF'!L$6,'Monthly Cash Flows'!$B$13:$EC$13)) -> 0 | M19: =+INDEX('Monthly Cash Flows'!$B31:$EC31,MATCH('Monthly CF'!M$6,'Monthly Cash Flows'!$B$13:$EC$13)) -> 0 | N19: =+INDEX('Monthly Cash Flows'!$B31:$EC31,MATCH('Monthly CF'!N$6,'Monthly Cash Flows'!$B$13:$EC$13)) -> 0 | O19: =+INDEX('Monthly Cash Flows'!$B31:$EC31,MATCH('Monthly CF'!O$6,'Monthly Cash Flows'!$B$13:$EC$13)) -> 0 | P19: =+INDEX('Monthly Cash Flows'!$B31:$EC31,MATCH('Monthly CF'!P$6,'Monthly Cash Flows'!$B$13:$EC$13)) -> 0 | Q19: =+INDEX('Monthly Cash Flows'!$B31:$EC31,MATCH('Monthly CF'!Q$6,'Monthly Cash Flows'!$B$13:$EC$13)) -> 0 | R19: =+INDEX('Monthly Cash Flows'!$B31:$EC31,MATCH('Monthly CF'!R$6,'Monthly Cash Flows'!$B$13:$EC$13)) -> 0 | S19: =+INDEX('Monthly Cash Flows'!$B31:$EC31,MATCH('Monthly CF'!S$6,'Monthly Cash Flows'!$B$13:$EC$13)) -> 0 | T19: =+INDEX('Monthly Cash Flows'!$B31:$EC31,MATCH('Monthly CF'!T$6,'Monthly Cash Flows'!$B$13:$EC$13)) -> 0 | U19: =+INDEX('Monthly Cash Flows'!$B31:$EC31,MATCH('Monthly CF'!U$6,'Monthly Cash Flows'!$B$13:$EC$13)) -> 0 | V19: =+INDEX('Monthly Cash Flows'!$B31:$EC31,MATCH('Monthly CF'!V$6,'Monthly Cash Flows'!$B$13:$EC$13)) -> 0 | W19: =+INDEX('Monthly Cash Flows'!$B31:$EC31,MATCH('Monthly CF'!W$6,'Monthly Cash Flows'!$B$13:$EC$13)) -> 0 | X19: =+INDEX('Monthly Cash Flows'!$B31:$EC31,MATCH('Monthly CF'!X$6,'Monthly Cash Flows'!$B$13:$EC$13)) -> 0 | Y19: =+INDEX('Monthly Cash Flows'!$B31:$EC31,MATCH('Monthly CF'!Y$6,'Monthly Cash Flows'!$B$13:$EC$13)) -> 0 | Z19: =+INDEX('Monthly Cash Flows'!$B31:$EC31,MATCH('Monthly CF'!Z$6,'Monthly Cash Flows'!$B$13:$EC$13)) -> 0 | AA19: =+INDEX('Monthly Cash Flows'!$B31:$EC31,MATCH('Monthly CF'!AA$6,'Monthly Cash Flows'!$B$13:$EC$13)) -> 0 | AB19: =+INDEX('Monthly Cash Flows'!$B31:$EC31,MATCH('Monthly CF'!AB$6,'Monthly Cash Flows'!$B$13:$EC$13)) -> 0 | AC19: =+INDEX('Monthly Cash Flows'!$B31:$EC31,MATCH('Monthly CF'!AC$6,'Monthly Cash Flows'!$B$13:$EC$13)) -> 0 | AD19: =+INDEX('Monthly Cash Flows'!$B31:$EC31,MATCH('Monthly CF'!AD$6,'Monthly Cash Flows'!$B$13:$EC$13)) -> 0 | AE19: =+INDEX('Monthly Cash Flows'!$B31:$EC31,MATCH('Monthly CF'!AE$6,'Monthly Cash Flows'!$B$13:$EC$13)) -> 0 | AF19: =+INDEX('Monthly Cash Flows'!$B31:$EC31,MATCH('Monthly CF'!AF$6,'Monthly Cash Flows'!$B$13:$EC$13)) -> 0 | AG19: =+INDEX('Monthly Cash Flows'!$B31:$EC31,MATCH('Monthly CF'!AG$6,'Monthly Cash Flows'!$B$13:$EC$13)) -> 0 | AH19: =+INDEX('Monthly Cash Flows'!$B31:$EC31,MATCH('Monthly CF'!AH$6,'Monthly Cash Flows'!$B$13:$EC$13)) -> 0 | AI19: =+INDEX('Monthly Cash Flows'!$B31:$EC31,MATCH('Monthly CF'!AI$6,'Monthly Cash Flows'!$B$13:$EC$13)) -> 0 | AJ19: =+INDEX('Monthly Cash Flows'!$B31:$EC31,MATCH('Monthly CF'!AJ$6,'Monthly Cash Flows'!$B$13:$EC$13)) -> 0 | AK19: =+INDEX('Monthly Cash Flows'!$B31:$EC31,MATCH('Monthly CF'!AK$6,'Monthly Cash Flows'!$B$13:$EC$13)) -> 0 | AL19: =+INDEX('Monthly Cash Flows'!$B31:$EC31,MATCH('Monthly CF'!AL$6,'Monthly Cash Flows'!$B$13:$EC$13)) -> 0 | AM19: =+INDEX('Monthly Cash Flows'!$B31:$EC31,MATCH('Monthly CF'!AM$6,'Monthly Cash Flows'!$B$13:$EC$13)) -> 0 | AN19: =+INDEX('Monthly Cash Flows'!$B31:$EC31,MATCH('Monthly CF'!AN$6,'Monthly Cash Flows'!$B$13:$EC$13)) -> 0 | AO19: =+INDEX('Monthly Cash Flows'!$B31:$EC31,MATCH('Monthly CF'!AO$6,'Monthly Cash Flows'!$B$13:$EC$13)) -> 0 | AP19: =+INDEX('Monthly Cash Flows'!$B31:$EC31,MATCH('Monthly CF'!AP$6,'Monthly Cash Flows'!$B$13:$EC$13)) -> 0 | AQ19: =+INDEX('Monthly Cash Flows'!$B31:$EC31,MATCH('Monthly CF'!AQ$6,'Monthly Cash Flows'!$B$13:$EC$13)) -> 0 | AR19: =+INDEX('Monthly Cash Flows'!$B31:$EC31,MATCH('Monthly CF'!AR$6,'Monthly Cash Flows'!$B$13:$EC$13)) -> 0 | AS19: =+INDEX('Monthly Cash Flows'!$B31:$EC31,MATCH('Monthly CF'!AS$6,'Monthly Cash Flows'!$B$13:$EC$13)) -> 0 | AT19: =+INDEX('Monthly Cash Flows'!$B31:$EC31,MATCH('Monthly CF'!AT$6,'Monthly Cash Flows'!$B$13:$EC$13)) -> 0 | AU19: =+INDEX('Monthly Cash Flows'!$B31:$EC31,MATCH('Monthly CF'!AU$6,'Monthly Cash Flows'!$B$13:$EC$13)) -> 0 | AV19: =+INDEX('Monthly Cash Flows'!$B31:$EC31,MATCH('Monthly CF'!AV$6,'Monthly Cash Flows'!$B$13:$EC$13)) -> 0 | AW19: =+INDEX('Monthly Cash Flows'!$B31:$EC31,MATCH('Monthly CF'!AW$6,'Monthly Cash Flows'!$B$13:$EC$13)) -> 0 | AX19: =+INDEX('Monthly Cash Flows'!$B31:$EC31,MATCH('Monthly CF'!AX$6,'Monthly Cash Flows'!$B$13:$EC$13)) -> 0 | AY19: =+INDEX('Monthly Cash Flows'!$B31:$EC31,MATCH('Monthly CF'!AY$6,'Monthly Cash Flows'!$B$13:$EC$13)) -> 0 | AZ19: =+INDEX('Monthly Cash Flows'!$B31:$EC31,MATCH('Monthly CF'!AZ$6,'Monthly Cash Flows'!$B$13:$EC$13)) -> 0 | BA19: =+INDEX('Monthly Cash Flows'!$B31:$EC31,MATCH('Monthly CF'!BA$6,'Monthly Cash Flows'!$B$13:$EC$13)) -> 0 | BB19: =+INDEX('Monthly Cash Flows'!$B31:$EC31,MATCH('Monthly CF'!BB$6,'Monthly Cash Flows'!$B$13:$EC$13)) -> 0 | BC19: =+INDEX('Monthly Cash Flows'!$B31:$EC31,MATCH('Monthly CF'!BC$6,'Monthly Cash Flows'!$B$13:$EC$13)) -> 0 | BD19: =+INDEX('Monthly Cash Flows'!$B31:$EC31,MATCH('Monthly CF'!BD$6,'Monthly Cash Flows'!$B$13:$EC$13)) -> 0 | BE19: =+INDEX('Monthly Cash Flows'!$B31:$EC31,MATCH('Monthly CF'!BE$6,'Monthly Cash Flows'!$B$13:$EC$13)) -> 0 | BF19: =+INDEX('Monthly Cash Flows'!$B31:$EC31,MATCH('Monthly CF'!BF$6,'Monthly Cash Flows'!$B$13:$EC$13)) -> 0 | BG19: =+INDEX('Monthly Cash Flows'!$B31:$EC31,MATCH('Monthly CF'!BG$6,'Monthly Cash Flows'!$B$13:$EC$13)) -> 0 | BH19: =+INDEX('Monthly Cash Flows'!$B31:$EC31,MATCH('Monthly CF'!BH$6,'Monthly Cash Flows'!$B$13:$EC$13)) -> 0 | BI19: =+INDEX('Monthly Cash Flows'!$B31:$EC31,MATCH('Monthly CF'!BI$6,'Monthly Cash Flows'!$B$13:$EC$13)) -> 0 | BJ19: =+INDEX('Monthly Cash Flows'!$B31:$EC31,MATCH('Monthly CF'!BJ$6,'Monthly Cash Flows'!$B$13:$EC$13)) -> 0 | BK19: =+INDEX('Monthly Cash Flows'!$B31:$EC31,MATCH('Monthly CF'!BK$6,'Monthly Cash Flows'!$B$13:$EC$13)) -> 0 | BL19: =+INDEX('Monthly Cash Flows'!$B31:$EC31,MATCH('Monthly CF'!BL$6,'Monthly Cash Flows'!$B$13:$EC$13)) -> 0 | BM19: =+INDEX('Monthly Cash Flows'!$B31:$EC31,MATCH('Monthly CF'!BM$6,'Monthly Cash Flows'!$B$13:$EC$13)) -> 0 | BN19: =+INDEX('Monthly Cash Flows'!$B31:$EC31,MATCH('Monthly CF'!BN$6,'Monthly Cash Flows'!$B$13:$EC$13)) -> 0 | BO19: =+INDEX('Monthly Cash Flows'!$B31:$EC31,MATCH('Monthly CF'!BO$6,'Monthly Cash Flows'!$B$13:$EC$13)) -> 0 | BP19: =+INDEX('Monthly Cash Flows'!$B31:$EC31,MATCH('Monthly CF'!BP$6,'Monthly Cash Flows'!$B$13:$EC$13)) -> 0 | BQ19: =+INDEX('Monthly Cash Flows'!$B31:$EC31,MATCH('Monthly CF'!BQ$6,'Monthly Cash Flows'!$B$13:$EC$13)) -> 0 | BR19: =+INDEX('Monthly Cash Flows'!$B31:$EC31,MATCH('Monthly CF'!BR$6,'Monthly Cash Flows'!$B$13:$EC$13)) -> 0 | BS19: =+INDEX('Monthly Cash Flows'!$B31:$EC31,MATCH('Monthly CF'!BS$6,'Monthly Cash Flows'!$B$13:$EC$13)) -> 0 | BT19: =+INDEX('Monthly Cash Flows'!$B31:$EC31,MATCH('Monthly CF'!BT$6,'Monthly Cash Flows'!$B$13:$EC$13)) -> 0 | BU19: =+INDEX('Monthly Cash Flows'!$B31:$EC31,MATCH('Monthly CF'!BU$6,'Monthly Cash Flows'!$B$13:$EC$13)) -> 0 | BV19: =+INDEX('Monthly Cash Flows'!$B31:$EC31,MATCH('Monthly CF'!BV$6,'Monthly Cash Flows'!$B$13:$EC$13)) -> 0 | BW19: =+INDEX('Monthly Cash Flows'!$B31:$EC31,MATCH('Monthly CF'!BW$6,'Monthly Cash Flows'!$B$13:$EC$13)) -> 0 | BX19: =+INDEX('Monthly Cash Flows'!$B31:$EC31,MATCH('Monthly CF'!BX$6,'Monthly Cash Flows'!$B$13:$EC$13)) -> 0 | BY19: =+INDEX('Monthly Cash Flows'!$B31:$EC31,MATCH('Monthly CF'!BY$6,'Monthly Cash Flows'!$B$13:$EC$13)) -> 0 | BZ19: =+INDEX('Monthly Cash Flows'!$B31:$EC31,MATCH('Monthly CF'!BZ$6,'Monthly Cash Flows'!$B$13:$EC$13)) -> 0 | CA19: =+INDEX('Monthly Cash Flows'!$B31:$EC31,MATCH('Monthly CF'!CA$6,'Monthly Cash Flows'!$B$13:$EC$13)) -> 0 | CB19: =+INDEX('Monthly Cash Flows'!$B31:$EC31,MATCH('Monthly CF'!CB$6,'Monthly Cash Flows'!$B$13:$EC$13)) -> 0 | CC19: =+INDEX('Monthly Cash Flows'!$B31:$EC31,MATCH('Monthly CF'!CC$6,'Monthly Cash Flows'!$B$13:$EC$13)) -> 0 | CD19: =+INDEX('Monthly Cash Flows'!$B31:$EC31,MATCH('Monthly CF'!CD$6,'Monthly Cash Flows'!$B$13:$EC$13)) -> 0 | CE19: =+INDEX('Monthly Cash Flows'!$B31:$EC31,MATCH('Monthly CF'!CE$6,'Monthly Cash Flows'!$B$13:$EC$13)) -> 0 | CF19: =+INDEX('Monthly Cash Flows'!$B31:$EC31,MATCH('Monthly CF'!CF$6,'Monthly Cash Flows'!$B$13:$EC$13)) -> 0 | CG19: =+INDEX('Monthly Cash Flows'!$B31:$EC31,MATCH('Monthly CF'!CG$6,'Monthly Cash Flows'!$B$13:$EC$13)) -> 0 | CH19: =+INDEX('Monthly Cash Flows'!$B31:$EC31,MATCH('Monthly CF'!CH$6,'Monthly Cash Flows'!$B$13:$EC$13)) -> 0 | CI19: =+INDEX('Monthly Cash Flows'!$B31:$EC31,MATCH('Monthly CF'!CI$6,'Monthly Cash Flows'!$B$13:$EC$13)) -> 0 | CJ19: =+INDEX('Monthly Cash Flows'!$B31:$EC31,MATCH('Monthly CF'!CJ$6,'Monthly Cash Flows'!$B$13:$EC$13)) -> 0 | CK19: =+INDEX('Monthly Cash Flows'!$B31:$EC31,MATCH('Monthly CF'!CK$6,'Monthly Cash Flows'!$B$13:$EC$13)) -> 0 | CL19: =+INDEX('Monthly Cash Flows'!$B31:$EC31,MATCH('Monthly CF'!CL$6,'Monthly Cash Flows'!$B$13:$EC$13)) -> 0 | CM19: =+INDEX('Monthly Cash Flows'!$B31:$EC31,MATCH('Monthly CF'!CM$6,'Monthly Cash Flows'!$B$13:$EC$13)) -> 0 | CN19: =+INDEX('Monthly Cash Flows'!$B31:$EC31,MATCH('Monthly CF'!CN$6,'Monthly Cash Flows'!$B$13:$EC$13)) -> 0 | CO19: =+INDEX('Monthly Cash Flows'!$B31:$EC31,MATCH('Monthly CF'!CO$6,'Monthly Cash Flows'!$B$13:$EC$13)) -> 0 | CP19: =+INDEX('Monthly Cash Flows'!$B31:$EC31,MATCH('Monthly CF'!CP$6,'Monthly Cash Flows'!$B$13:$EC$13)) -> 0 | CQ19: =+INDEX('Monthly Cash Flows'!$B31:$EC31,MATCH('Monthly CF'!CQ$6,'Monthly Cash Flows'!$B$13:$EC$13)) -> 0 | CR19: =+INDEX('Monthly Cash Flows'!$B31:$EC31,MATCH('Monthly CF'!CR$6,'Monthly Cash Flows'!$B$13:$EC$13)) -> 0 | CS19: =+INDEX('Monthly Cash Flows'!$B31:$EC31,MATCH('Monthly CF'!CS$6,'Monthly Cash Flows'!$B$13:$EC$13)) -> 0 | CT19: =+INDEX('Monthly Cash Flows'!$B31:$EC31,MATCH('Monthly CF'!CT$6,'Monthly Cash Flows'!$B$13:$EC$13)) -> 0 | CU19: =+INDEX('Monthly Cash Flows'!$B31:$EC31,MATCH('Monthly CF'!CU$6,'Monthly Cash Flows'!$B$13:$EC$13)) -> 0 | CV19: =+INDEX('Monthly Cash Flows'!$B31:$EC31,MATCH('Monthly CF'!CV$6,'Monthly Cash Flows'!$B$13:$EC$13)) -> 0 | CW19: =+INDEX('Monthly Cash Flows'!$B31:$EC31,MATCH('Monthly CF'!CW$6,'Monthly Cash Flows'!$B$13:$EC$13)) -> 0 | CX19: =+INDEX('Monthly Cash Flows'!$B31:$EC31,MATCH('Monthly CF'!CX$6,'Monthly Cash Flows'!$B$13:$EC$13)) -> 0 | CY19: =+INDEX('Monthly Cash Flows'!$B31:$EC31,MATCH('Monthly CF'!CY$6,'Monthly Cash Flows'!$B$13:$EC$13)) -> 0 | CZ19: =+INDEX('Monthly Cash Flows'!$B31:$EC31,MATCH('Monthly CF'!CZ$6,'Monthly Cash Flows'!$B$13:$EC$13)) -> 0 | DA19: =+INDEX('Monthly Cash Flows'!$B31:$EC31,MATCH('Monthly CF'!DA$6,'Monthly Cash Flows'!$B$13:$EC$13)) -> 0 | DB19: =+INDEX('Monthly Cash Flows'!$B31:$EC31,MATCH('Monthly CF'!DB$6,'Monthly Cash Flows'!$B$13:$EC$13)) -> 0 | DC19: =+INDEX('Monthly Cash Flows'!$B31:$EC31,MATCH('Monthly CF'!DC$6,'Monthly Cash Flows'!$B$13:$EC$13)) -> 0 | DD19: =+INDEX('Monthly Cash Flows'!$B31:$EC31,MATCH('Monthly CF'!DD$6,'Monthly Cash Flows'!$B$13:$EC$13)) -> 0 | DE19: =+INDEX('Monthly Cash Flows'!$B31:$EC31,MATCH('Monthly CF'!DE$6,'Monthly Cash Flows'!$B$13:$EC$13)) -> 0 | DF19: =+INDEX('Monthly Cash Flows'!$B31:$EC31,MATCH('Monthly CF'!DF$6,'Monthly Cash Flows'!$B$13:$EC$13)) -> 0 | DG19: =+INDEX('Monthly Cash Flows'!$B31:$EC31,MATCH('Monthly CF'!DG$6,'Monthly Cash Flows'!$B$13:$EC$13)) -> 0 | DH19: =+INDEX('Monthly Cash Flows'!$B31:$EC31,MATCH('Monthly CF'!DH$6,'Monthly Cash Flows'!$B$13:$EC$13)) -> 0 | DI19: =+INDEX('Monthly Cash Flows'!$B31:$EC31,MATCH('Monthly CF'!DI$6,'Monthly Cash Flows'!$B$13:$EC$13)) -> 0 | DJ19: =+INDEX('Monthly Cash Flows'!$B31:$EC31,MATCH('Monthly CF'!DJ$6,'Monthly Cash Flows'!$B$13:$EC$13)) -> 0 | DK19: =+INDEX('Monthly Cash Flows'!$B31:$EC31,MATCH('Monthly CF'!DK$6,'Monthly Cash Flows'!$B$13:$EC$13)) -> 0 | DL19: =+INDEX('Monthly Cash Flows'!$B31:$EC31,MATCH('Monthly CF'!DL$6,'Monthly Cash Flows'!$B$13:$EC$13)) -> 0 | DM19: =+INDEX('Monthly Cash Flows'!$B31:$EC31,MATCH('Monthly CF'!DM$6,'Monthly Cash Flows'!$B$13:$EC$13)) -> 0 | DN19: =+INDEX('Monthly Cash Flows'!$B31:$EC31,MATCH('Monthly CF'!DN$6,'Monthly Cash Flows'!$B$13:$EC$13)) -> 0 | DO19: =+INDEX('Monthly Cash Flows'!$B31:$EC31,MATCH('Monthly CF'!DO$6,'Monthly Cash Flows'!$B$13:$EC$13)) -> 0 | DP19: =+INDEX('Monthly Cash Flows'!$B31:$EC31,MATCH('Monthly CF'!DP$6,'Monthly Cash Flows'!$B$13:$EC$13)) -> 0 | DQ19: =+INDEX('Monthly Cash Flows'!$B31:$EC31,MATCH('Monthly CF'!DQ$6,'Monthly Cash Flows'!$B$13:$EC$13)) -> 0 | DR19: =+INDEX('Monthly Cash Flows'!$B31:$EC31,MATCH('Monthly CF'!DR$6,'Monthly Cash Flows'!$B$13:$EC$13)) -> 0 | DS19: =+INDEX('Monthly Cash Flows'!$B31:$EC31,MATCH('Monthly CF'!DS$6,'Monthly Cash Flows'!$B$13:$EC$13)) -> 0 | DT19: =+INDEX('Monthly Cash Flows'!$B31:$EC31,MATCH('Monthly CF'!DT$6,'Monthly Cash Flows'!$B$13:$EC$13)) -> 0 | DU19: =+INDEX('Monthly Cash Flows'!$B31:$EC31,MATCH('Monthly CF'!DU$6,'Monthly Cash Flows'!$B$13:$EC$13)) -> 0 | DV19: =+INDEX('Monthly Cash Flows'!$B31:$EC31,MATCH('Monthly CF'!DV$6,'Monthly Cash Flows'!$B$13:$EC$13)) -> 0 | DW19: =+INDEX('Monthly Cash Flows'!$B31:$EC31,MATCH('Monthly CF'!DW$6,'Monthly Cash Flows'!$B$13:$EC$13)) -> 0 | DX19: =+INDEX('Monthly Cash Flows'!$B31:$EC31,MATCH('Monthly CF'!DX$6,'Monthly Cash Flows'!$B$13:$EC$13)) -> 0 | DY19: =+INDEX('Monthly Cash Flows'!$B31:$EC31,MATCH('Monthly CF'!DY$6,'Monthly Cash Flows'!$B$13:$EC$13)) -> 0 | DZ19: =+INDEX('Monthly Cash Flows'!$B31:$EC31,MATCH('Monthly CF'!DZ$6,'Monthly Cash Flows'!$B$13:$EC$13)) -> 0 | EA19: =+INDEX('Monthly Cash Flows'!$B31:$EC31,MATCH('Monthly CF'!EA$6,'Monthly Cash Flows'!$B$13:$EC$13)) -> 0 | EB19: =+INDEX('Monthly Cash Flows'!$B31:$EC31,MATCH('Monthly CF'!EB$6,'Monthly Cash Flows'!$B$13:$EC$13)) -> 0 | EC19: =+INDEX('Monthly Cash Flows'!$B31:$EC31,MATCH('Monthly CF'!EC$6,'Monthly Cash Flows'!$B$13:$EC$13)) -> 0 | ED19: =+INDEX('Monthly Cash Flows'!$B31:$EC31,MATCH('Monthly CF'!ED$6,'Monthly Cash Flows'!$B$13:$EC$13)) -> 0 | EE19: =+INDEX('Monthly Cash Flows'!$B31:$EC31,MATCH('Monthly CF'!EE$6,'Monthly Cash Flows'!$B$13:$EC$13)) -> 0 | EF19: =+INDEX('Monthly Cash Flows'!$B31:$EC31,MATCH('Monthly CF'!EF$6,'Monthly Cash Flows'!$B$13:$EC$13)) -> 0 | EG19: =+INDEX('Monthly Cash Flows'!$B31:$EC31,MATCH('Monthly CF'!EG$6,'Monthly Cash Flows'!$B$13:$EC$13)) -> 0
B20: Effective Gross Revenue | F20: =+F18+F19 -> 88197.06711 | G20: =+G18+G19 -> 88572.78305 | H20: 91770.28305 | I20: 92367.00837 | J20: 92467.00837 | K20: 92877.04474 | L20: 96252.04474 | M20: 97665.08339 | N20: 97665.08339 | O20: 98486.81373 | P20: 98486.81373 | Q20: 99189.50976 | R20: 99189.50976 | S20: 99189.50976 | T20: 106564.5098 | U20: 106564.5098 | V20: 106564.5098 | W20: 107038.9737 | X20: 107038.9737 | Y20: 107038.9737 | Z20: 107038.9737 | AA20: 107038.9737 | AB20: 107038.9737 | AC20: 107785.1715 | AD20: 107785.1715 | AE20: 107785.1715 | AF20: 107785.1715 | AG20: 107785.1715 | AH20: 107785.1715 | AI20: 108288.5303 | AJ20: 108288.5303 | AK20: 108288.5303 | AL20: 108288.5303 | AM20: 108288.5303 | AN20: 108288.5303 | AO20: 109064.4898 | AP20: 109064.4898 | AQ20: 109064.4898 | AR20: 109064.4898 | AS20: 109064.4898 | AT20: 109064.4898 | AU20: 109598.5031 | AV20: 109598.5031 | AW20: 109598.5031 | AX20: 109598.5031 | AY20: 109598.5031 | AZ20: 109598.5031 | BA20: 110148.5369 | BB20: 110148.5369 | BC20: 110148.5369 | BD20: 110148.5369 | BE20: 110148.5369 | BF20: 110148.5369 | BG20: 110715.0716 | BH20: 110715.0716 | BI20: 110715.0716 | BJ20: 110715.0716 | BK20: 110715.0716 | BL20: 110715.0716 | BM20: 111298.6024 | BN20: 111298.6024 | BO20: 111298.6024 | BP20: 111298.6024 | BQ20: 111298.6024 | BR20: 111298.6024 | BS20: =+BS18+BS19 -> 91264.04583 | BT20: 91264.04583 | BU20: 91264.04583 | BV20: 91264.04583 | BW20: 92430.7125 | BX20: 92430.7125 | BY20: 92430.7125 | BZ20: 92430.7125 | CA20: 92430.7125 | CB20: 92430.7125 | CC20: 92430.7125 | CD20: 92430.7125 | CE20: 92430.7125 | CF20: 92430.7125 | CG20: 92430.7125 | CH20: 92430.7125 | CI20: 92430.7125 | CJ20: 92430.7125 | CK20: 92430.7125 | CL20: 92430.7125 | CM20: 92430.7125 | CN20: 92430.7125 | CO20: 92430.7125 | CP20: 92430.7125 | CQ20: 92430.7125 | CR20: 92430.7125 | CS20: 92430.7125 | CT20: 92430.7125 | CU20: 92430.7125 | CV20: 92430.7125 | CW20: 92430.7125 | CX20: 92430.7125 | CY20: 92430.7125 | CZ20: 92430.7125 | DA20: 92430.7125 | DB20: 92430.7125 | DC20: 92430.7125 | DD20: 92430.7125 | DE20: 92430.7125 | DF20: 92430.7125 | DG20: 92430.7125 | DH20: 92430.7125 | DI20: 92430.7125 | DJ20: 92430.7125 | DK20: 92430.7125 | DL20: 92430.7125 | DM20: 92430.7125 | DN20: 92430.7125 | DO20: 92430.7125 | DP20: 92430.7125 | DQ20: 92430.7125 | DR20: 92430.7125 | DS20: 92430.7125 | DT20: 92430.7125 | DU20: 92430.7125 | DV20: 92430.7125 | DW20: 92430.7125 | DX20: 92430.7125 | DY20: 92430.7125 | DZ20: 92430.7125 | EA20: 92430.7125 | EB20: 92430.7125 | EC20: 92430.7125 | ED20: 92430.7125 | EE20: =+EE18+EE19 -> 92430.7125 | EF20: 92430.7125 | EG20: 92430.7125
B22: OPERATING EXPENSES
B23: =+'Monthly Cash Flows'!A36 -> Taxes (assuming $5MM assessment) | F23: =-INDEX('Monthly Cash Flows'!$B36:$EC36,MATCH('Monthly CF'!F$6,'Monthly Cash Flows'!$B$13:$EC$13)) -> -10058.6775 | G23: =-INDEX('Monthly Cash Flows'!$B36:$EC36,MATCH('Monthly CF'!G$6,'Monthly Cash Flows'!$B$13:$EC$13)) -> -10058.6775 | H23: =-INDEX('Monthly Cash Flows'!$B36:$EC36,MATCH('Monthly CF'!H$6,'Monthly Cash Flows'!$B$13:$EC$13)) -> -10058.6775 | I23: =-INDEX('Monthly Cash Flows'!$B36:$EC36,MATCH('Monthly CF'!I$6,'Monthly Cash Flows'!$B$13:$EC$13)) -> -10058.6775 | J23: =-INDEX('Monthly Cash Flows'!$B36:$EC36,MATCH('Monthly CF'!J$6,'Monthly Cash Flows'!$B$13:$EC$13)) -> -10058.6775 | K23: =-INDEX('Monthly Cash Flows'!$B36:$EC36,MATCH('Monthly CF'!K$6,'Monthly Cash Flows'!$B$13:$EC$13)) -> -10058.6775 | L23: =-INDEX('Monthly Cash Flows'!$B36:$EC36,MATCH('Monthly CF'!L$6,'Monthly Cash Flows'!$B$13:$EC$13)) -> -10058.6775 | M23: =-INDEX('Monthly Cash Flows'!$B36:$EC36,MATCH('Monthly CF'!M$6,'Monthly Cash Flows'!$B$13:$EC$13)) -> -10058.6775 | N23: =-INDEX('Monthly Cash Flows'!$B36:$EC36,MATCH('Monthly CF'!N$6,'Monthly Cash Flows'!$B$13:$EC$13)) -> -10058.6775 | O23: =-INDEX('Monthly Cash Flows'!$B36:$EC36,MATCH('Monthly CF'!O$6,'Monthly Cash Flows'!$B$13:$EC$13)) -> -10058.6775 | P23: =-INDEX('Monthly Cash Flows'!$B36:$EC36,MATCH('Monthly CF'!P$6,'Monthly Cash Flows'!$B$13:$EC$13)) -> -10058.6775 | Q23: =-INDEX('Monthly Cash Flows'!$B36:$EC36,MATCH('Monthly CF'!Q$6,'Monthly Cash Flows'!$B$13:$EC$13)) -> -10360.43783 | R23: =-INDEX('Monthly Cash Flows'!$B36:$EC36,MATCH('Monthly CF'!R$6,'Monthly Cash Flows'!$B$13:$EC$13)) -> -10360.43783 | S23: =-INDEX('Monthly Cash Flows'!$B36:$EC36,MATCH('Monthly CF'!S$6,'Monthly Cash Flows'!$B$13:$EC$13)) -> -10360.43783 | T23: =-INDEX('Monthly Cash Flows'!$B36:$EC36,MATCH('Monthly CF'!T$6,'Monthly Cash Flows'!$B$13:$EC$13)) -> -10360.43783 | U23: =-INDEX('Monthly Cash Flows'!$B36:$EC36,MATCH('Monthly CF'!U$6,'Monthly Cash Flows'!$B$13:$EC$13)) -> -10360.43783 | V23: =-INDEX('Monthly Cash Flows'!$B36:$EC36,MATCH('Monthly CF'!V$6,'Monthly Cash Flows'!$B$13:$EC$13)) -> -10360.43783 | W23: =-INDEX('Monthly Cash Flows'!$B36:$EC36,MATCH('Monthly CF'!W$6,'Monthly Cash Flows'!$B$13:$EC$13)) -> -10360.43783 | X23: =-INDEX('Monthly Cash Flows'!$B36:$EC36,MATCH('Monthly CF'!X$6,'Monthly Cash Flows'!$B$13:$EC$13)) -> -10360.43783 | Y23: =-INDEX('Monthly Cash Flows'!$B36:$EC36,MATCH('Monthly CF'!Y$6,'Monthly Cash Flows'!$B$13:$EC$13)) -> -10360.43783 | Z23: =-INDEX('Monthly Cash Flows'!$B36:$EC36,MATCH('Monthly CF'!Z$6,'Monthly Cash Flows'!$B$13:$EC$13)) -> -10360.43783 | AA23: =-INDEX('Monthly Cash Flows'!$B36:$EC36,MATCH('Monthly CF'!AA$6,'Monthly Cash Flows'!$B$13:$EC$13)) -> -10360.43783 | AB23: =-INDEX('Monthly Cash Flows'!$B36:$EC36,MATCH('Monthly CF'!AB$6,'Monthly Cash Flows'!$B$13:$EC$13)) -> -10360.43783 | AC23: =-INDEX('Monthly Cash Flows'!$B36:$EC36,MATCH('Monthly CF'!AC$6,'Monthly Cash Flows'!$B$13:$EC$13)) -> -10671.25096 | AD23: =-INDEX('Monthly Cash Flows'!$B36:$EC36,MATCH('Monthly CF'!AD$6,'Monthly Cash Flows'!$B$13:$EC$13)) -> -10671.25096 | AE23: =-INDEX('Monthly Cash Flows'!$B36:$EC36,MATCH('Monthly CF'!AE$6,'Monthly Cash Flows'!$B$13:$EC$13)) -> -10671.25096 | AF23: =-INDEX('Monthly Cash Flows'!$B36:$EC36,MATCH('Monthly CF'!AF$6,'Monthly Cash Flows'!$B$13:$EC$13)) -> -10671.25096 | AG23: =-INDEX('Monthly Cash Flows'!$B36:$EC36,MATCH('Monthly CF'!AG$6,'Monthly Cash Flows'!$B$13:$EC$13)) -> -10671.25096 | AH23: =-INDEX('Monthly Cash Flows'!$B36:$EC36,MATCH('Monthly CF'!AH$6,'Monthly Cash Flows'!$B$13:$EC$13)) -> -10671.25096 | AI23: =-INDEX('Monthly Cash Flows'!$B36:$EC36,MATCH('Monthly CF'!AI$6,'Monthly Cash Flows'!$B$13:$EC$13)) -> -10671.25096 | AJ23: =-INDEX('Monthly Cash Flows'!$B36:$EC36,MATCH('Monthly CF'!AJ$6,'Monthly Cash Flows'!$B$13:$EC$13)) -> -10671.25096 | AK23: =-INDEX('Monthly Cash Flows'!$B36:$EC36,MATCH('Monthly CF'!AK$6,'Monthly Cash Flows'!$B$13:$EC$13)) -> -10671.25096 | AL23: =-INDEX('Monthly Cash Flows'!$B36:$EC36,MATCH('Monthly CF'!AL$6,'Monthly Cash Flows'!$B$13:$EC$13)) -> -10671.25096 | AM23: =-INDEX('Monthly Cash Flows'!$B36:$EC36,MATCH('Monthly CF'!AM$6,'Monthly Cash Flows'!$B$13:$EC$13)) -> -10671.25096 | AN23: =-INDEX('Monthly Cash Flows'!$B36:$EC36,MATCH('Monthly CF'!AN$6,'Monthly Cash Flows'!$B$13:$EC$13)) -> -10671.25096 | AO23: =-INDEX('Monthly Cash Flows'!$B36:$EC36,MATCH('Monthly CF'!AO$6,'Monthly Cash Flows'!$B$13:$EC$13)) -> -10991.38849 | AP23: =-INDEX('Monthly Cash Flows'!$B36:$EC36,MATCH('Monthly CF'!AP$6,'Monthly Cash Flows'!$B$13:$EC$13)) -> -10991.38849 | AQ23: =-INDEX('Monthly Cash Flows'!$B36:$EC36,MATCH('Monthly CF'!AQ$6,'Monthly Cash Flows'!$B$13:$EC$13)) -> -10991.38849 | AR23: =-INDEX('Monthly Cash Flows'!$B36:$EC36,MATCH('Monthly CF'!AR$6,'Monthly Cash Flows'!$B$13:$EC$13)) -> -10991.38849 | AS23: =-INDEX('Monthly Cash Flows'!$B36:$EC36,MATCH('Monthly CF'!AS$6,'Monthly Cash Flows'!$B$13:$EC$13)) -> -10991.38849 | AT23: =-INDEX('Monthly Cash Flows'!$B36:$EC36,MATCH('Monthly CF'!AT$6,'Monthly Cash Flows'!$B$13:$EC$13)) -> -10991.38849 | AU23: =-INDEX('Monthly Cash Flows'!$B36:$EC36,MATCH('Monthly CF'!AU$6,'Monthly Cash Flows'!$B$13:$EC$13)) -> -10991.38849 | AV23: =-INDEX('Monthly Cash Flows'!$B36:$EC36,MATCH('Monthly CF'!AV$6,'Monthly Cash Flows'!$B$13:$EC$13)) -> -10991.38849 | AW23: =-INDEX('Monthly Cash Flows'!$B36:$EC36,MATCH('Monthly CF'!AW$6,'Monthly Cash Flows'!$B$13:$EC$13)) -> -10991.38849 | AX23: =-INDEX('Monthly Cash Flows'!$B36:$EC36,MATCH('Monthly CF'!AX$6,'Monthly Cash Flows'!$B$13:$EC$13)) -> -10991.38849 | AY23: =-INDEX('Monthly Cash Flows'!$B36:$EC36,MATCH('Monthly CF'!AY$6,'Monthly Cash Flows'!$B$13:$EC$13)) -> -10991.38849 | AZ23: =-INDEX('Monthly Cash Flows'!$B36:$EC36,MATCH('Monthly CF'!AZ$6,'Monthly Cash Flows'!$B$13:$EC$13)) -> -10991.38849 | BA23: =-INDEX('Monthly Cash Flows'!$B36:$EC36,MATCH('Monthly CF'!BA$6,'Monthly Cash Flows'!$B$13:$EC$13)) -> -11321.13014 | BB23: =-INDEX('Monthly Cash Flows'!$B36:$EC36,MATCH('Monthly CF'!BB$6,'Monthly Cash Flows'!$B$13:$EC$13)) -> -11321.13014 | BC23: =-INDEX('Monthly Cash Flows'!$B36:$EC36,MATCH('Monthly CF'!BC$6,'Monthly Cash Flows'!$B$13:$EC$13)) -> -11321.13014 | BD23: =-INDEX('Monthly Cash Flows'!$B36:$EC36,MATCH('Monthly CF'!BD$6,'Monthly Cash Flows'!$B$13:$EC$13)) -> -11321.13014 | BE23: =-INDEX('Monthly Cash Flows'!$B36:$EC36,MATCH('Monthly CF'!BE$6,'Monthly Cash Flows'!$B$13:$EC$13)) -> -11321.13014 | BF23: =-INDEX('Monthly Cash Flows'!$B36:$EC36,MATCH('Monthly CF'!BF$6,'Monthly Cash Flows'!$B$13:$EC$13)) -> -11321.13014 | BG23: =-INDEX('Monthly Cash Flows'!$B36:$EC36,MATCH('Monthly CF'!BG$6,'Monthly Cash Flows'!$B$13:$EC$13)) -> -11321.13014 | BH23: =-INDEX('Monthly Cash Flows'!$B36:$EC36,MATCH('Monthly CF'!BH$6,'Monthly Cash Flows'!$B$13:$EC$13)) -> -11321.13014 | BI23: =-INDEX('Monthly Cash Flows'!$B36:$EC36,MATCH('Monthly CF'!BI$6,'Monthly Cash Flows'!$B$13:$EC$13)) -> -11321.13014 | BJ23: =-INDEX('Monthly Cash Flows'!$B36:$EC36,MATCH('Monthly CF'!BJ$6,'Monthly Cash Flows'!$B$13:$EC$13)) -> -11321.13014 | BK23: =-INDEX('Monthly Cash Flows'!$B36:$EC36,MATCH('Monthly CF'!BK$6,'Monthly Cash Flows'!$B$13:$EC$13)) -> -11321.13014 | BL23: =-INDEX('Monthly Cash Flows'!$B36:$EC36,MATCH('Monthly CF'!BL$6,'Monthly Cash Flows'!$B$13:$EC$13)) -> -11321.13014 | BM23: =-INDEX('Monthly Cash Flows'!$B36:$EC36,MATCH('Monthly CF'!BM$6,'Monthly Cash Flows'!$B$13:$EC$13)) -> -11660.76405 | BN23: =-INDEX('Monthly Cash Flows'!$B36:$EC36,MATCH('Monthly CF'!BN$6,'Monthly Cash Flows'!$B$13:$EC$13)) -> -11660.76405 | BO23: =-INDEX('Monthly Cash Flows'!$B36:$EC36,MATCH('Monthly CF'!BO$6,'Monthly Cash Flows'!$B$13:$EC$13)) -> -11660.76405 | BP23: =-INDEX('Monthly Cash Flows'!$B36:$EC36,MATCH('Monthly CF'!BP$6,'Monthly Cash Flows'!$B$13:$EC$13)) -> -11660.76405 | BQ23: =-INDEX('Monthly Cash Flows'!$B36:$EC36,MATCH('Monthly CF'!BQ$6,'Monthly Cash Flows'!$B$13:$EC$13)) -> -11660.76405 | BR23: =-INDEX('Monthly Cash Flows'!$B36:$EC36,MATCH('Monthly CF'!BR$6,'Monthly Cash Flows'!$B$13:$EC$13)) -> -11660.76405 | BS23: =-INDEX('Monthly Cash Flows'!$B36:$EC36,MATCH('Monthly CF'!BS$6,'Monthly Cash Flows'!$B$13:$EC$13)) -> -11660.76405 | BT23: =-INDEX('Monthly Cash Flows'!$B36:$EC36,MATCH('Monthly CF'!BT$6,'Monthly Cash Flows'!$B$13:$EC$13)) -> -11660.76405 | BU23: =-INDEX('Monthly Cash Flows'!$B36:$EC36,MATCH('Monthly CF'!BU$6,'Monthly Cash Flows'!$B$13:$EC$13)) -> -11660.76405 | BV23: =-INDEX('Monthly Cash Flows'!$B36:$EC36,MATCH('Monthly CF'!BV$6,'Monthly Cash Flows'!$B$13:$EC$13)) -> -11660.76405 | BW23: =-INDEX('Monthly Cash Flows'!$B36:$EC36,MATCH('Monthly CF'!BW$6,'Monthly Cash Flows'!$B$13:$EC$13)) -> -11660.76405 | BX23: =-INDEX('Monthly Cash Flows'!$B36:$EC36,MATCH('Monthly CF'!BX$6,'Monthly Cash Flows'!$B$13:$EC$13)) -> -11660.76405 | BY23: =-INDEX('Monthly Cash Flows'!$B36:$EC36,MATCH('Monthly CF'!BY$6,'Monthly Cash Flows'!$B$13:$EC$13)) -> -12010.58697 | BZ23: =-INDEX('Monthly Cash Flows'!$B36:$EC36,MATCH('Monthly CF'!BZ$6,'Monthly Cash Flows'!$B$13:$EC$13)) -> -12010.58697 | CA23: =-INDEX('Monthly Cash Flows'!$B36:$EC36,MATCH('Monthly CF'!CA$6,'Monthly Cash Flows'!$B$13:$EC$13)) -> -12010.58697 | CB23: =-INDEX('Monthly Cash Flows'!$B36:$EC36,MATCH('Monthly CF'!CB$6,'Monthly Cash Flows'!$B$13:$EC$13)) -> -12010.58697 | CC23: =-INDEX('Monthly Cash Flows'!$B36:$EC36,MATCH('Monthly CF'!CC$6,'Monthly Cash Flows'!$B$13:$EC$13)) -> -12010.58697 | CD23: =-INDEX('Monthly Cash Flows'!$B36:$EC36,MATCH('Monthly CF'!CD$6,'Monthly Cash Flows'!$B$13:$EC$13)) -> -12010.58697 | CE23: =-INDEX('Monthly Cash Flows'!$B36:$EC36,MATCH('Monthly CF'!CE$6,'Monthly Cash Flows'!$B$13:$EC$13)) -> -12010.58697 | CF23: =-INDEX('Monthly Cash Flows'!$B36:$EC36,MATCH('Monthly CF'!CF$6,'Monthly Cash Flows'!$B$13:$EC$13)) -> -12010.58697 | CG23: =-INDEX('Monthly Cash Flows'!$B36:$EC36,MATCH('Monthly CF'!CG$6,'Monthly Cash Flows'!$B$13:$EC$13)) -> -12010.58697 | CH23: =-INDEX('Monthly Cash Flows'!$B36:$EC36,MATCH('Monthly CF'!CH$6,'Monthly Cash Flows'!$B$13:$EC$13)) -> -12010.58697 | CI23: =-INDEX('Monthly Cash Flows'!$B36:$EC36,MATCH('Monthly CF'!CI$6,'Monthly Cash Flows'!$B$13:$EC$13)) -> -12010.58697 | CJ23: =-INDEX('Monthly Cash Flows'!$B36:$EC36,MATCH('Monthly CF'!CJ$6,'Monthly Cash Flows'!$B$13:$EC$13)) -> -12010.58697 | CK23: =-INDEX('Monthly Cash Flows'!$B36:$EC36,MATCH('Monthly CF'!CK$6,'Monthly Cash Flows'!$B$13:$EC$13)) -> -12370.90458 | CL23: =-INDEX('Monthly Cash Flows'!$B36:$EC36,MATCH('Monthly CF'!CL$6,'Monthly Cash Flows'!$B$13:$EC$13)) -> -12370.90458 | CM23: =-INDEX('Monthly Cash Flows'!$B36:$EC36,MATCH('Monthly CF'!CM$6,'Monthly Cash Flows'!$B$13:$EC$13)) -> -12370.90458 | CN23: =-INDEX('Monthly Cash Flows'!$B36:$EC36,MATCH('Monthly CF'!CN$6,'Monthly Cash Flows'!$B$13:$EC$13)) -> -12370.90458 | CO23: =-INDEX('Monthly Cash Flows'!$B36:$EC36,MATCH('Monthly CF'!CO$6,'Monthly Cash Flows'!$B$13:$EC$13)) -> -12370.90458 | CP23: =-INDEX('Monthly Cash Flows'!$B36:$EC36,MATCH('Monthly CF'!CP$6,'Monthly Cash Flows'!$B$13:$EC$13)) -> -12370.90458 | CQ23: =-INDEX('Monthly Cash Flows'!$B36:$EC36,MATCH('Monthly CF'!CQ$6,'Monthly Cash Flows'!$B$13:$EC$13)) -> -12370.90458 | CR23: =-INDEX('Monthly Cash Flows'!$B36:$EC36,MATCH('Monthly CF'!CR$6,'Monthly Cash Flows'!$B$13:$EC$13)) -> -12370.90458 | CS23: =-INDEX('Monthly Cash Flows'!$B36:$EC36,MATCH('Monthly CF'!CS$6,'Monthly Cash Flows'!$B$13:$EC$13)) -> -12370.90458 | CT23: =-INDEX('Monthly Cash Flows'!$B36:$EC36,MATCH('Monthly CF'!CT$6,'Monthly Cash Flows'!$B$13:$EC$13)) -> -12370.90458 | CU23: =-INDEX('Monthly Cash Flows'!$B36:$EC36,MATCH('Monthly CF'!CU$6,'Monthly Cash Flows'!$B$13:$EC$13)) -> -12370.90458 | CV23: =-INDEX('Monthly Cash Flows'!$B36:$EC36,MATCH('Monthly CF'!CV$6,'Monthly Cash Flows'!$B$13:$EC$13)) -> -12370.90458 | CW23: =-INDEX('Monthly Cash Flows'!$B36:$EC36,MATCH('Monthly CF'!CW$6,'Monthly Cash Flows'!$B$13:$EC$13)) -> -12742.03172 | CX23: =-INDEX('Monthly Cash Flows'!$B36:$EC36,MATCH('Monthly CF'!CX$6,'Monthly Cash Flows'!$B$13:$EC$13)) -> -12742.03172 | CY23: =-INDEX('Monthly Cash Flows'!$B36:$EC36,MATCH('Monthly CF'!CY$6,'Monthly Cash Flows'!$B$13:$EC$13)) -> -12742.03172 | CZ23: =-INDEX('Monthly Cash Flows'!$B36:$EC36,MATCH('Monthly CF'!CZ$6,'Monthly Cash Flows'!$B$13:$EC$13)) -> -12742.03172 | DA23: =-INDEX('Monthly Cash Flows'!$B36:$EC36,MATCH('Monthly CF'!DA$6,'Monthly Cash Flows'!$B$13:$EC$13)) -> -12742.03172 | DB23: =-INDEX('Monthly Cash Flows'!$B36:$EC36,MATCH('Monthly CF'!DB$6,'Monthly Cash Flows'!$B$13:$EC$13)) -> -12742.03172 | DC23: =-INDEX('Monthly Cash Flows'!$B36:$EC36,MATCH('Monthly CF'!DC$6,'Monthly Cash Flows'!$B$13:$EC$13)) -> -12742.03172 | DD23: =-INDEX('Monthly Cash Flows'!$B36:$EC36,MATCH('Monthly CF'!DD$6,'Monthly Cash Flows'!$B$13:$EC$13)) -> -12742.03172 | DE23: =-INDEX('Monthly Cash Flows'!$B36:$EC36,MATCH('Monthly CF'!DE$6,'Monthly Cash Flows'!$B$13:$EC$13)) -> -12742.03172 | DF23: =-INDEX('Monthly Cash Flows'!$B36:$EC36,MATCH('Monthly CF'!DF$6,'Monthly Cash Flows'!$B$13:$EC$13)) -> -12742.03172 | DG23: =-INDEX('Monthly Cash Flows'!$B36:$EC36,MATCH('Monthly CF'!DG$6,'Monthly Cash Flows'!$B$13:$EC$13)) -> -12742.03172 | DH23: =-INDEX('Monthly Cash Flows'!$B36:$EC36,MATCH('Monthly CF'!DH$6,'Monthly Cash Flows'!$B$13:$EC$13)) -> -12742.03172 | DI23: =-INDEX('Monthly Cash Flows'!$B36:$EC36,MATCH('Monthly CF'!DI$6,'Monthly Cash Flows'!$B$13:$EC$13)) -> -13124.29267 | DJ23: =-INDEX('Monthly Cash Flows'!$B36:$EC36,MATCH('Monthly CF'!DJ$6,'Monthly Cash Flows'!$B$13:$EC$13)) -> -13124.29267 | DK23: =-INDEX('Monthly Cash Flows'!$B36:$EC36,MATCH('Monthly CF'!DK$6,'Monthly Cash Flows'!$B$13:$EC$13)) -> -13124.29267 | DL23: =-INDEX('Monthly Cash Flows'!$B36:$EC36,MATCH('Monthly CF'!DL$6,'Monthly Cash Flows'!$B$13:$EC$13)) -> -13124.29267 | DM23: =-INDEX('Monthly Cash Flows'!$B36:$EC36,MATCH('Monthly CF'!DM$6,'Monthly Cash Flows'!$B$13:$EC$13)) -> -13124.29267 | DN23: =-INDEX('Monthly Cash Flows'!$B36:$EC36,MATCH('Monthly CF'!DN$6,'Monthly Cash Flows'!$B$13:$EC$13)) -> -13124.29267 | DO23: =-INDEX('Monthly Cash Flows'!$B36:$EC36,MATCH('Monthly CF'!DO$6,'Monthly Cash Flows'!$B$13:$EC$13)) -> -13124.29267 | DP23: =-INDEX('Monthly Cash Flows'!$B36:$EC36,MATCH('Monthly CF'!DP$6,'Monthly Cash Flows'!$B$13:$EC$13)) -> -13124.29267 | DQ23: =-INDEX('Monthly Cash Flows'!$B36:$EC36,MATCH('Monthly CF'!DQ$6,'Monthly Cash Flows'!$B$13:$EC$13)) -> -13124.29267 | DR23: =-INDEX('Monthly Cash Flows'!$B36:$EC36,MATCH('Monthly CF'!DR$6,'Monthly Cash Flows'!$B$13:$EC$13)) -> -13124.29267 | DS23: =-INDEX('Monthly Cash Flows'!$B36:$EC36,MATCH('Monthly CF'!DS$6,'Monthly Cash Flows'!$B$13:$EC$13)) -> -13124.29267 | DT23: =-INDEX('Monthly Cash Flows'!$B36:$EC36,MATCH('Monthly CF'!DT$6,'Monthly Cash Flows'!$B$13:$EC$13)) -> -13124.29267 | DU23: =-INDEX('Monthly Cash Flows'!$B36:$EC36,MATCH('Monthly CF'!DU$6,'Monthly Cash Flows'!$B$13:$EC$13)) -> -13518.02145 | DV23: =-INDEX('Monthly Cash Flows'!$B36:$EC36,MATCH('Monthly CF'!DV$6,'Monthly Cash Flows'!$B$13:$EC$13)) -> -13518.02145 | DW23: =-INDEX('Monthly Cash Flows'!$B36:$EC36,MATCH('Monthly CF'!DW$6,'Monthly Cash Flows'!$B$13:$EC$13)) -> -13518.02145 | DX23: =-INDEX('Monthly Cash Flows'!$B36:$EC36,MATCH('Monthly CF'!DX$6,'Monthly Cash Flows'!$B$13:$EC$13)) -> -13518.02145 | DY23: =-INDEX('Monthly Cash Flows'!$B36:$EC36,MATCH('Monthly CF'!DY$6,'Monthly Cash Flows'!$B$13:$EC$13)) -> -13518.02145 | DZ23: =-INDEX('Monthly Cash Flows'!$B36:$EC36,MATCH('Monthly CF'!DZ$6,'Monthly Cash Flows'!$B$13:$EC$13)) -> -13518.02145 | EA23: =-INDEX('Monthly Cash Flows'!$B36:$EC36,MATCH('Monthly CF'!EA$6,'Monthly Cash Flows'!$B$13:$EC$13)) -> -13518.02145 | EB23: =-INDEX('Monthly Cash Flows'!$B36:$EC36,MATCH('Monthly CF'!EB$6,'Monthly Cash Flows'!$B$13:$EC$13)) -> -13518.02145 | EC23: =-INDEX('Monthly Cash Flows'!$B36:$EC36,MATCH('Monthly CF'!EC$6,'Monthly Cash Flows'!$B$13:$EC$13)) -> -13518.02145 | ED23: =-INDEX('Monthly Cash Flows'!$B36:$EC36,MATCH('Monthly CF'!ED$6,'Monthly Cash Flows'!$B$13:$EC$13)) -> -13518.02145 | EE23: =-INDEX('Monthly Cash Flows'!$B36:$EC36,MATCH('Monthly CF'!EE$6,'Monthly Cash Flows'!$B$13:$EC$13)) -> -13518.02145 | EF23: =-INDEX('Monthly Cash Flows'!$B36:$EC36,MATCH('Monthly CF'!EF$6,'Monthly Cash Flows'!$B$13:$EC$13)) -> -13518.02145 | EG23: =-INDEX('Monthly Cash Flows'!$B36:$EC36,MATCH('Monthly CF'!EG$6,'Monthly Cash Flows'!$B$13:$EC$13)) -> -13518.02145
B24: =+'Monthly Cash Flows'!A37 -> CAM | F24: =-INDEX('Monthly Cash Flows'!$B37:$EC37,MATCH('Monthly CF'!F$6,'Monthly Cash Flows'!$B$13:$EC$13)) -> -10794.45417 | G24: =-INDEX('Monthly Cash Flows'!$B37:$EC37,MATCH('Monthly CF'!G$6,'Monthly Cash Flows'!$B$13:$EC$13)) -> -10794.45417 | H24: =-INDEX('Monthly Cash Flows'!$B37:$EC37,MATCH('Monthly CF'!H$6,'Monthly Cash Flows'!$B$13:$EC$13)) -> -10794.45417 | I24: =-INDEX('Monthly Cash Flows'!$B37:$EC37,MATCH('Monthly CF'!I$6,'Monthly Cash Flows'!$B$13:$EC$13)) -> -10794.45417 | J24: =-INDEX('Monthly Cash Flows'!$B37:$EC37,MATCH('Monthly CF'!J$6,'Monthly Cash Flows'!$B$13:$EC$13)) -> -10794.45417 | K24: =-INDEX('Monthly Cash Flows'!$B37:$EC37,MATCH('Monthly CF'!K$6,'Monthly Cash Flows'!$B$13:$EC$13)) -> -10794.45417 | L24: =-INDEX('Monthly Cash Flows'!$B37:$EC37,MATCH('Monthly CF'!L$6,'Monthly Cash Flows'!$B$13:$EC$13)) -> -10794.45417 | M24: =-INDEX('Monthly Cash Flows'!$B37:$EC37,MATCH('Monthly CF'!M$6,'Monthly Cash Flows'!$B$13:$EC$13)) -> -10794.45417 | N24: =-INDEX('Monthly Cash Flows'!$B37:$EC37,MATCH('Monthly CF'!N$6,'Monthly Cash Flows'!$B$13:$EC$13)) -> -10794.45417 | O24: =-INDEX('Monthly Cash Flows'!$B37:$EC37,MATCH('Monthly CF'!O$6,'Monthly Cash Flows'!$B$13:$EC$13)) -> -10794.45417 | P24: =-INDEX('Monthly Cash Flows'!$B37:$EC37,MATCH('Monthly CF'!P$6,'Monthly Cash Flows'!$B$13:$EC$13)) -> -10794.45417 | Q24: =-INDEX('Monthly Cash Flows'!$B37:$EC37,MATCH('Monthly CF'!Q$6,'Monthly Cash Flows'!$B$13:$EC$13)) -> -11118.28779 | R24: =-INDEX('Monthly Cash Flows'!$B37:$EC37,MATCH('Monthly CF'!R$6,'Monthly Cash Flows'!$B$13:$EC$13)) -> -11118.28779 | S24: =-INDEX('Monthly Cash Flows'!$B37:$EC37,MATCH('Monthly CF'!S$6,'Monthly Cash Flows'!$B$13:$EC$13)) -> -11118.28779 | T24: =-INDEX('Monthly Cash Flows'!$B37:$EC37,MATCH('Monthly CF'!T$6,'Monthly Cash Flows'!$B$13:$EC$13)) -> -11118.28779 | U24: =-INDEX('Monthly Cash Flows'!$B37:$EC37,MATCH('Monthly CF'!U$6,'Monthly Cash Flows'!$B$13:$EC$13)) -> -11118.28779 | V24: =-INDEX('Monthly Cash Flows'!$B37:$EC37,MATCH('Monthly CF'!V$6,'Monthly Cash Flows'!$B$13:$EC$13)) -> -11118.28779 | W24: =-INDEX('Monthly Cash Flows'!$B37:$EC37,MATCH('Monthly CF'!W$6,'Monthly Cash Flows'!$B$13:$EC$13)) -> -11118.28779 | X24: =-INDEX('Monthly Cash Flows'!$B37:$EC37,MATCH('Monthly CF'!X$6,'Monthly Cash Flows'!$B$13:$EC$13)) -> -11118.28779 | Y24: =-INDEX('Monthly Cash Flows'!$B37:$EC37,MATCH('Monthly CF'!Y$6,'Monthly Cash Flows'!$B$13:$EC$13)) -> -11118.28779 | Z24: =-INDEX('Monthly Cash Flows'!$B37:$EC37,MATCH('Monthly CF'!Z$6,'Monthly Cash Flows'!$B$13:$EC$13)) -> -11118.28779 | AA24: =-INDEX('Monthly Cash Flows'!$B37:$EC37,MATCH('Monthly CF'!AA$6,'Monthly Cash Flows'!$B$13:$EC$13)) -> -11118.28779 | AB24: =-INDEX('Monthly Cash Flows'!$B37:$EC37,MATCH('Monthly CF'!AB$6,'Monthly Cash Flows'!$B$13:$EC$13)) -> -11118.28779 | AC24: =-INDEX('Monthly Cash Flows'!$B37:$EC37,MATCH('Monthly CF'!AC$6,'Monthly Cash Flows'!$B$13:$EC$13)) -> -11451.83643 | AD24: =-INDEX('Monthly Cash Flows'!$B37:$EC37,MATCH('Monthly CF'!AD$6,'Monthly Cash Flows'!$B$13:$EC$13)) -> -11451.83643 | AE24: =-INDEX('Monthly Cash Flows'!$B37:$EC37,MATCH('Monthly CF'!AE$6,'Monthly Cash Flows'!$B$13:$EC$13)) -> -11451.83643 | AF24: =-INDEX('Monthly Cash Flows'!$B37:$EC37,MATCH('Monthly CF'!AF$6,'Monthly Cash Flows'!$B$13:$EC$13)) -> -11451.83643 | AG24: =-INDEX('Monthly Cash Flows'!$B37:$EC37,MATCH('Monthly CF'!AG$6,'Monthly Cash Flows'!$B$13:$EC$13)) -> -11451.83643 | AH24: =-INDEX('Monthly Cash Flows'!$B37:$EC37,MATCH('Monthly CF'!AH$6,'Monthly Cash Flows'!$B$13:$EC$13)) -> -11451.83643 | AI24: =-INDEX('Monthly Cash Flows'!$B37:$EC37,MATCH('Monthly CF'!AI$6,'Monthly Cash Flows'!$B$13:$EC$13)) -> -11451.83643 | AJ24: =-INDEX('Monthly Cash Flows'!$B37:$EC37,MATCH('Monthly CF'!AJ$6,'Monthly Cash Flows'!$B$13:$EC$13)) -> -11451.83643 | AK24: =-INDEX('Monthly Cash Flows'!$B37:$EC37,MATCH('Monthly CF'!AK$6,'Monthly Cash Flows'!$B$13:$EC$13)) -> -11451.83643 | AL24: =-INDEX('Monthly Cash Flows'!$B37:$EC37,MATCH('Monthly CF'!AL$6,'Monthly Cash Flows'!$B$13:$EC$13)) -> -11451.83643 | AM24: =-INDEX('Monthly Cash Flows'!$B37:$EC37,MATCH('Monthly CF'!AM$6,'Monthly Cash Flows'!$B$13:$EC$13)) -> -11451.83643 | AN24: =-INDEX('Monthly Cash Flows'!$B37:$EC37,MATCH('Monthly CF'!AN$6,'Monthly Cash Flows'!$B$13:$EC$13)) -> -11451.83643 | AO24: =-INDEX('Monthly Cash Flows'!$B37:$EC37,MATCH('Monthly CF'!AO$6,'Monthly Cash Flows'!$B$13:$EC$13)) -> -11795.39152 | AP24: =-INDEX('Monthly Cash Flows'!$B37:$EC37,MATCH('Monthly CF'!AP$6,'Monthly Cash Flows'!$B$13:$EC$13)) -> -11795.39152 | AQ24: =-INDEX('Monthly Cash Flows'!$B37:$EC37,MATCH('Monthly CF'!AQ$6,'Monthly Cash Flows'!$B$13:$EC$13)) -> -11795.39152 | AR24: =-INDEX('Monthly Cash Flows'!$B37:$EC37,MATCH('Monthly CF'!AR$6,'Monthly Cash Flows'!$B$13:$EC$13)) -> -11795.39152 | AS24: =-INDEX('Monthly Cash Flows'!$B37:$EC37,MATCH('Monthly CF'!AS$6,'Monthly Cash Flows'!$B$13:$EC$13)) -> -11795.39152 | AT24: =-INDEX('Monthly Cash Flows'!$B37:$EC37,MATCH('Monthly CF'!AT$6,'Monthly Cash Flows'!$B$13:$EC$13)) -> -11795.39152 | AU24: =-INDEX('Monthly Cash Flows'!$B37:$EC37,MATCH('Monthly CF'!AU$6,'Monthly Cash Flows'!$B$13:$EC$13)) -> -11795.39152 | AV24: =-INDEX('Monthly Cash Flows'!$B37:$EC37,MATCH('Monthly CF'!AV$6,'Monthly Cash Flows'!$B$13:$EC$13)) -> -11795.39152 | AW24: =-INDEX('Monthly Cash Flows'!$B37:$EC37,MATCH('Monthly CF'!AW$6,'Monthly Cash Flows'!$B$13:$EC$13)) -> -11795.39152 | AX24: =-INDEX('Monthly Cash Flows'!$B37:$EC37,MATCH('Monthly CF'!AX$6,'Monthly Cash Flows'!$B$13:$EC$13)) -> -11795.39152 | AY24: =-INDEX('Monthly Cash Flows'!$B37:$EC37,MATCH('Monthly CF'!AY$6,'Monthly Cash Flows'!$B$13:$EC$13)) -> -11795.39152 | AZ24: =-INDEX('Monthly Cash Flows'!$B37:$EC37,MATCH('Monthly CF'!AZ$6,'Monthly Cash Flows'!$B$13:$EC$13)) -> -11795.39152 | BA24: =-INDEX('Monthly Cash Flows'!$B37:$EC37,MATCH('Monthly CF'!BA$6,'Monthly Cash Flows'!$B$13:$EC$13)) -> -12149.25326 | BB24: =-INDEX('Monthly Cash Flows'!$B37:$EC37,MATCH('Monthly CF'!BB$6,'Monthly Cash Flows'!$B$13:$EC$13)) -> -12149.25326 | BC24: =-INDEX('Monthly Cash Flows'!$B37:$EC37,MATCH('Monthly CF'!BC$6,'Monthly Cash Flows'!$B$13:$EC$13)) -> -12149.25326 | BD24: =-INDEX('Monthly Cash Flows'!$B37:$EC37,MATCH('Monthly CF'!BD$6,'Monthly Cash Flows'!$B$13:$EC$13)) -> -12149.25326 | BE24: =-INDEX('Monthly Cash Flows'!$B37:$EC37,MATCH('Monthly CF'!BE$6,'Monthly Cash Flows'!$B$13:$EC$13)) -> -12149.25326 | BF24: =-INDEX('Monthly Cash Flows'!$B37:$EC37,MATCH('Monthly CF'!BF$6,'Monthly Cash Flows'!$B$13:$EC$13)) -> -12149.25326 | BG24: =-INDEX('Monthly Cash Flows'!$B37:$EC37,MATCH('Monthly CF'!BG$6,'Monthly Cash Flows'!$B$13:$EC$13)) -> -12149.25326 | BH24: =-INDEX('Monthly Cash Flows'!$B37:$EC37,MATCH('Monthly CF'!BH$6,'Monthly Cash Flows'!$B$13:$EC$13)) -> -12149.25326 | BI24: =-INDEX('Monthly Cash Flows'!$B37:$EC37,MATCH('Monthly CF'!BI$6,'Monthly Cash Flows'!$B$13:$EC$13)) -> -12149.25326 | BJ24: =-INDEX('Monthly Cash Flows'!$B37:$EC37,MATCH('Monthly CF'!BJ$6,'Monthly Cash Flows'!$B$13:$EC$13)) -> -12149.25326 | BK24: =-INDEX('Monthly Cash Flows'!$B37:$EC37,MATCH('Monthly CF'!BK$6,'Monthly Cash Flows'!$B$13:$EC$13)) -> -12149.25326 | BL24: =-INDEX('Monthly Cash Flows'!$B37:$EC37,MATCH('Monthly CF'!BL$6,'Monthly Cash Flows'!$B$13:$EC$13)) -> -12149.25326 | BM24: =-INDEX('Monthly Cash Flows'!$B37:$EC37,MATCH('Monthly CF'!BM$6,'Monthly Cash Flows'!$B$13:$EC$13)) -> -12513.73086 | BN24: =-INDEX('Monthly Cash Flows'!$B37:$EC37,MATCH('Monthly CF'!BN$6,'Monthly Cash Flows'!$B$13:$EC$13)) -> -12513.73086 | BO24: =-INDEX('Monthly Cash Flows'!$B37:$EC37,MATCH('Monthly CF'!BO$6,'Monthly Cash Flows'!$B$13:$EC$13)) -> -12513.73086 | BP24: =-INDEX('Monthly Cash Flows'!$B37:$EC37,MATCH('Monthly CF'!BP$6,'Monthly Cash Flows'!$B$13:$EC$13)) -> -12513.73086 | BQ24: =-INDEX('Monthly Cash Flows'!$B37:$EC37,MATCH('Monthly CF'!BQ$6,'Monthly Cash Flows'!$B$13:$EC$13)) -> -12513.73086 | BR24: =-INDEX('Monthly Cash Flows'!$B37:$EC37,MATCH('Monthly CF'!BR$6,'Monthly Cash Flows'!$B$13:$EC$13)) -> -12513.73086 | BS24: =-INDEX('Monthly Cash Flows'!$B37:$EC37,MATCH('Monthly CF'!BS$6,'Monthly Cash Flows'!$B$13:$EC$13)) -> -12513.73086 | BT24: =-INDEX('Monthly Cash Flows'!$B37:$EC37,MATCH('Monthly CF'!BT$6,'Monthly Cash Flows'!$B$13:$EC$13)) -> -12513.73086 | BU24: =-INDEX('Monthly Cash Flows'!$B37:$EC37,MATCH('Monthly CF'!BU$6,'Monthly Cash Flows'!$B$13:$EC$13)) -> -12513.73086 | BV24: =-INDEX('Monthly Cash Flows'!$B37:$EC37,MATCH('Monthly CF'!BV$6,'Monthly Cash Flows'!$B$13:$EC$13)) -> -12513.73086 | BW24: =-INDEX('Monthly Cash Flows'!$B37:$EC37,MATCH('Monthly CF'!BW$6,'Monthly Cash Flows'!$B$13:$EC$13)) -> -12513.73086 | BX24: =-INDEX('Monthly Cash Flows'!$B37:$EC37,MATCH('Monthly CF'!BX$6,'Monthly Cash Flows'!$B$13:$EC$13)) -> -12513.73086 | BY24: =-INDEX('Monthly Cash Flows'!$B37:$EC37,MATCH('Monthly CF'!BY$6,'Monthly Cash Flows'!$B$13:$EC$13)) -> -12889.14279 | BZ24: =-INDEX('Monthly Cash Flows'!$B37:$EC37,MATCH('Monthly CF'!BZ$6,'Monthly Cash Flows'!$B$13:$EC$13)) -> -12889.14279 | CA24: =-INDEX('Monthly Cash Flows'!$B37:$EC37,MATCH('Monthly CF'!CA$6,'Monthly Cash Flows'!$B$13:$EC$13)) -> -12889.14279 | CB24: =-INDEX('Monthly Cash Flows'!$B37:$EC37,MATCH('Monthly CF'!CB$6,'Monthly Cash Flows'!$B$13:$EC$13)) -> -12889.14279 | CC24: =-INDEX('Monthly Cash Flows'!$B37:$EC37,MATCH('Monthly CF'!CC$6,'Monthly Cash Flows'!$B$13:$EC$13)) -> -12889.14279 | CD24: =-INDEX('Monthly Cash Flows'!$B37:$EC37,MATCH('Monthly CF'!CD$6,'Monthly Cash Flows'!$B$13:$EC$13)) -> -12889.14279 | CE24: =-INDEX('Monthly Cash Flows'!$B37:$EC37,MATCH('Monthly CF'!CE$6,'Monthly Cash Flows'!$B$13:$EC$13)) -> -12889.14279 | CF24: =-INDEX('Monthly Cash Flows'!$B37:$EC37,MATCH('Monthly CF'!CF$6,'Monthly Cash Flows'!$B$13:$EC$13)) -> -12889.14279 | CG24: =-INDEX('Monthly Cash Flows'!$B37:$EC37,MATCH('Monthly CF'!CG$6,'Monthly Cash Flows'!$B$13:$EC$13)) -> -12889.14279 | CH24: =-INDEX('Monthly Cash Flows'!$B37:$EC37,MATCH('Monthly CF'!CH$6,'Monthly Cash Flows'!$B$13:$EC$13)) -> -12889.14279 | CI24: =-INDEX('Monthly Cash Flows'!$B37:$EC37,MATCH('Monthly CF'!CI$6,'Monthly Cash Flows'!$B$13:$EC$13)) -> -12889.14279 | CJ24: =-INDEX('Monthly Cash Flows'!$B37:$EC37,MATCH('Monthly CF'!CJ$6,'Monthly Cash Flows'!$B$13:$EC$13)) -> -12889.14279 | CK24: =-INDEX('Monthly Cash Flows'!$B37:$EC37,MATCH('Monthly CF'!CK$6,'Monthly Cash Flows'!$B$13:$EC$13)) -> -13275.81707 | CL24: =-INDEX('Monthly Cash Flows'!$B37:$EC37,MATCH('Monthly CF'!CL$6,'Monthly Cash Flows'!$B$13:$EC$13)) -> -13275.81707 | CM24: =-INDEX('Monthly Cash Flows'!$B37:$EC37,MATCH('Monthly CF'!CM$6,'Monthly Cash Flows'!$B$13:$EC$13)) -> -13275.81707 | CN24: =-INDEX('Monthly Cash Flows'!$B37:$EC37,MATCH('Monthly CF'!CN$6,'Monthly Cash Flows'!$B$13:$EC$13)) -> -13275.81707 | CO24: =-INDEX('Monthly Cash Flows'!$B37:$EC37,MATCH('Monthly CF'!CO$6,'Monthly Cash Flows'!$B$13:$EC$13)) -> -13275.81707 | CP24: =-INDEX('Monthly Cash Flows'!$B37:$EC37,MATCH('Monthly CF'!CP$6,'Monthly Cash Flows'!$B$13:$EC$13)) -> -13275.81707 | CQ24: =-INDEX('Monthly Cash Flows'!$B37:$EC37,MATCH('Monthly CF'!CQ$6,'Monthly Cash Flows'!$B$13:$EC$13)) -> -13275.81707 | CR24: =-INDEX('Monthly Cash Flows'!$B37:$EC37,MATCH('Monthly CF'!CR$6,'Monthly Cash Flows'!$B$13:$EC$13)) -> -13275.81707 | CS24: =-INDEX('Monthly Cash Flows'!$B37:$EC37,MATCH('Monthly CF'!CS$6,'Monthly Cash Flows'!$B$13:$EC$13)) -> -13275.81707 | CT24: =-INDEX('Monthly Cash Flows'!$B37:$EC37,MATCH('Monthly CF'!CT$6,'Monthly Cash Flows'!$B$13:$EC$13)) -> -13275.81707 | CU24: =-INDEX('Monthly Cash Flows'!$B37:$EC37,MATCH('Monthly CF'!CU$6,'Monthly Cash Flows'!$B$13:$EC$13)) -> -13275.81707 | CV24: =-INDEX('Monthly Cash Flows'!$B37:$EC37,MATCH('Monthly CF'!CV$6,'Monthly Cash Flows'!$B$13:$EC$13)) -> -13275.81707 | CW24: =-INDEX('Monthly Cash Flows'!$B37:$EC37,MATCH('Monthly CF'!CW$6,'Monthly Cash Flows'!$B$13:$EC$13)) -> -13674.09158 | CX24: =-INDEX('Monthly Cash Flows'!$B37:$EC37,MATCH('Monthly CF'!CX$6,'Monthly Cash Flows'!$B$13:$EC$13)) -> -13674.09158 | CY24: =-INDEX('Monthly Cash Flows'!$B37:$EC37,MATCH('Monthly CF'!CY$6,'Monthly Cash Flows'!$B$13:$EC$13)) -> -13674.09158 | CZ24: =-INDEX('Monthly Cash Flows'!$B37:$EC37,MATCH('Monthly CF'!CZ$6,'Monthly Cash Flows'!$B$13:$EC$13)) -> -13674.09158 | DA24: =-INDEX('Monthly Cash Flows'!$B37:$EC37,MATCH('Monthly CF'!DA$6,'Monthly Cash Flows'!$B$13:$EC$13)) -> -13674.09158 | DB24: =-INDEX('Monthly Cash Flows'!$B37:$EC37,MATCH('Monthly CF'!DB$6,'Monthly Cash Flows'!$B$13:$EC$13)) -> -13674.09158 | DC24: =-INDEX('Monthly Cash Flows'!$B37:$EC37,MATCH('Monthly CF'!DC$6,'Monthly Cash Flows'!$B$13:$EC$13)) -> -13674.09158 | DD24: =-INDEX('Monthly Cash Flows'!$B37:$EC37,MATCH('Monthly CF'!DD$6,'Monthly Cash Flows'!$B$13:$EC$13)) -> -13674.09158 | DE24: =-INDEX('Monthly Cash Flows'!$B37:$EC37,MATCH('Monthly CF'!DE$6,'Monthly Cash Flows'!$B$13:$EC$13)) -> -13674.09158 | DF24: =-INDEX('Monthly Cash Flows'!$B37:$EC37,MATCH('Monthly CF'!DF$6,'Monthly Cash Flows'!$B$13:$EC$13)) -> -13674.09158 | DG24: =-INDEX('Monthly Cash Flows'!$B37:$EC37,MATCH('Monthly CF'!DG$6,'Monthly Cash Flows'!$B$13:$EC$13)) -> -13674.09158 | DH24: =-INDEX('Monthly Cash Flows'!$B37:$EC37,MATCH('Monthly CF'!DH$6,'Monthly Cash Flows'!$B$13:$EC$13)) -> -13674.09158 | DI24: =-INDEX('Monthly Cash Flows'!$B37:$EC37,MATCH('Monthly CF'!DI$6,'Monthly Cash Flows'!$B$13:$EC$13)) -> -14084.31433 | DJ24: =-INDEX('Monthly Cash Flows'!$B37:$EC37,MATCH('Monthly CF'!DJ$6,'Monthly Cash Flows'!$B$13:$EC$13)) -> -14084.31433 | DK24: =-INDEX('Monthly Cash Flows'!$B37:$EC37,MATCH('Monthly CF'!DK$6,'Monthly Cash Flows'!$B$13:$EC$13)) -> -14084.31433 | DL24: =-INDEX('Monthly Cash Flows'!$B37:$EC37,MATCH('Monthly CF'!DL$6,'Monthly Cash Flows'!$B$13:$EC$13)) -> -14084.31433 | DM24: =-INDEX('Monthly Cash Flows'!$B37:$EC37,MATCH('Monthly CF'!DM$6,'Monthly Cash Flows'!$B$13:$EC$13)) -> -14084.31433 | DN24: =-INDEX('Monthly Cash Flows'!$B37:$EC37,MATCH('Monthly CF'!DN$6,'Monthly Cash Flows'!$B$13:$EC$13)) -> -14084.31433 | DO24: =-INDEX('Monthly Cash Flows'!$B37:$EC37,MATCH('Monthly CF'!DO$6,'Monthly Cash Flows'!$B$13:$EC$13)) -> -14084.31433 | DP24: =-INDEX('Monthly Cash Flows'!$B37:$EC37,MATCH('Monthly CF'!DP$6,'Monthly Cash Flows'!$B$13:$EC$13)) -> -14084.31433 | DQ24: =-INDEX('Monthly Cash Flows'!$B37:$EC37,MATCH('Monthly CF'!DQ$6,'Monthly Cash Flows'!$B$13:$EC$13)) -> -14084.31433 | DR24: =-INDEX('Monthly Cash Flows'!$B37:$EC37,MATCH('Monthly CF'!DR$6,'Monthly Cash Flows'!$B$13:$EC$13)) -> -14084.31433 | DS24: =-INDEX('Monthly Cash Flows'!$B37:$EC37,MATCH('Monthly CF'!DS$6,'Monthly Cash Flows'!$B$13:$EC$13)) -> -14084.31433 | DT24: =-INDEX('Monthly Cash Flows'!$B37:$EC37,MATCH('Monthly CF'!DT$6,'Monthly Cash Flows'!$B$13:$EC$13)) -> -14084.31433 | DU24: =-INDEX('Monthly Cash Flows'!$B37:$EC37,MATCH('Monthly CF'!DU$6,'Monthly Cash Flows'!$B$13:$EC$13)) -> -14506.84376 | DV24: =-INDEX('Monthly Cash Flows'!$B37:$EC37,MATCH('Monthly CF'!DV$6,'Monthly Cash Flows'!$B$13:$EC$13)) -> -14506.84376 | DW24: =-INDEX('Monthly Cash Flows'!$B37:$EC37,MATCH('Monthly CF'!DW$6,'Monthly Cash Flows'!$B$13:$EC$13)) -> -14506.84376 | DX24: =-INDEX('Monthly Cash Flows'!$B37:$EC37,MATCH('Monthly CF'!DX$6,'Monthly Cash Flows'!$B$13:$EC$13)) -> -14506.84376 | DY24: =-INDEX('Monthly Cash Flows'!$B37:$EC37,MATCH('Monthly CF'!DY$6,'Monthly Cash Flows'!$B$13:$EC$13)) -> -14506.84376 | DZ24: =-INDEX('Monthly Cash Flows'!$B37:$EC37,MATCH('Monthly CF'!DZ$6,'Monthly Cash Flows'!$B$13:$EC$13)) -> -14506.84376 | EA24: =-INDEX('Monthly Cash Flows'!$B37:$EC37,MATCH('Monthly CF'!EA$6,'Monthly Cash Flows'!$B$13:$EC$13)) -> -14506.84376 | EB24: =-INDEX('Monthly Cash Flows'!$B37:$EC37,MATCH('Monthly CF'!EB$6,'Monthly Cash Flows'!$B$13:$EC$13)) -> -14506.84376 | EC24: =-INDEX('Monthly Cash Flows'!$B37:$EC37,MATCH('Monthly CF'!EC$6,'Monthly Cash Flows'!$B$13:$EC$13)) -> -14506.84376 | ED24: =-INDEX('Monthly Cash Flows'!$B37:$EC37,MATCH('Monthly CF'!ED$6,'Monthly Cash Flows'!$B$13:$EC$13)) -> -14506.84376 | EE24: =-INDEX('Monthly Cash Flows'!$B37:$EC37,MATCH('Monthly CF'!EE$6,'Monthly Cash Flows'!$B$13:$EC$13)) -> -14506.84376 | EF24: =-INDEX('Monthly Cash Flows'!$B37:$EC37,MATCH('Monthly CF'!EF$6,'Monthly Cash Flows'!$B$13:$EC$13)) -> -14506.84376 | EG24: =-INDEX('Monthly Cash Flows'!$B37:$EC37,MATCH('Monthly CF'!EG$6,'Monthly Cash Flows'!$B$13:$EC$13)) -> -14506.84376
B25: =+'Monthly Cash Flows'!A38 -> Insurance | F25: =-INDEX('Monthly Cash Flows'!$B38:$EC38,MATCH('Monthly CF'!F$6,'Monthly Cash Flows'!$B$13:$EC$13)) -> -1882.553333 | G25: =-INDEX('Monthly Cash Flows'!$B38:$EC38,MATCH('Monthly CF'!G$6,'Monthly Cash Flows'!$B$13:$EC$13)) -> -1882.553333 | H25: =-INDEX('Monthly Cash Flows'!$B38:$EC38,MATCH('Monthly CF'!H$6,'Monthly Cash Flows'!$B$13:$EC$13)) -> -1882.553333 | I25: =-INDEX('Monthly Cash Flows'!$B38:$EC38,MATCH('Monthly CF'!I$6,'Monthly Cash Flows'!$B$13:$EC$13)) -> -1882.553333 | J25: =-INDEX('Monthly Cash Flows'!$B38:$EC38,MATCH('Monthly CF'!J$6,'Monthly Cash Flows'!$B$13:$EC$13)) -> -1882.553333 | K25: =-INDEX('Monthly Cash Flows'!$B38:$EC38,MATCH('Monthly CF'!K$6,'Monthly Cash Flows'!$B$13:$EC$13)) -> -1882.553333 | L25: =-INDEX('Monthly Cash Flows'!$B38:$EC38,MATCH('Monthly CF'!L$6,'Monthly Cash Flows'!$B$13:$EC$13)) -> -1882.553333 | M25: =-INDEX('Monthly Cash Flows'!$B38:$EC38,MATCH('Monthly CF'!M$6,'Monthly Cash Flows'!$B$13:$EC$13)) -> -1882.553333 | N25: =-INDEX('Monthly Cash Flows'!$B38:$EC38,MATCH('Monthly CF'!N$6,'Monthly Cash Flows'!$B$13:$EC$13)) -> -1882.553333 | O25: =-INDEX('Monthly Cash Flows'!$B38:$EC38,MATCH('Monthly CF'!O$6,'Monthly Cash Flows'!$B$13:$EC$13)) -> -1882.553333 | P25: =-INDEX('Monthly Cash Flows'!$B38:$EC38,MATCH('Monthly CF'!P$6,'Monthly Cash Flows'!$B$13:$EC$13)) -> -1882.553333 | Q25: =-INDEX('Monthly Cash Flows'!$B38:$EC38,MATCH('Monthly CF'!Q$6,'Monthly Cash Flows'!$B$13:$EC$13)) -> -1939.029933 | R25: =-INDEX('Monthly Cash Flows'!$B38:$EC38,MATCH('Monthly CF'!R$6,'Monthly Cash Flows'!$B$13:$EC$13)) -> -1939.029933 | S25: =-INDEX('Monthly Cash Flows'!$B38:$EC38,MATCH('Monthly CF'!S$6,'Monthly Cash Flows'!$B$13:$EC$13)) -> -1939.029933 | T25: =-INDEX('Monthly Cash Flows'!$B38:$EC38,MATCH('Monthly CF'!T$6,'Monthly Cash Flows'!$B$13:$EC$13)) -> -1939.029933 | U25: =-INDEX('Monthly Cash Flows'!$B38:$EC38,MATCH('Monthly CF'!U$6,'Monthly Cash Flows'!$B$13:$EC$13)) -> -1939.029933 | V25: =-INDEX('Monthly Cash Flows'!$B38:$EC38,MATCH('Monthly CF'!V$6,'Monthly Cash Flows'!$B$13:$EC$13)) -> -1939.029933 | W25: =-INDEX('Monthly Cash Flows'!$B38:$EC38,MATCH('Monthly CF'!W$6,'Monthly Cash Flows'!$B$13:$EC$13)) -> -1939.029933 | X25: =-INDEX('Monthly Cash Flows'!$B38:$EC38,MATCH('Monthly CF'!X$6,'Monthly Cash Flows'!$B$13:$EC$13)) -> -1939.029933 | Y25: =-INDEX('Monthly Cash Flows'!$B38:$EC38,MATCH('Monthly CF'!Y$6,'Monthly Cash Flows'!$B$13:$EC$13)) -> -1939.029933 | Z25: =-INDEX('Monthly Cash Flows'!$B38:$EC38,MATCH('Monthly CF'!Z$6,'Monthly Cash Flows'!$B$13:$EC$13)) -> -1939.029933 | AA25: =-INDEX('Monthly Cash Flows'!$B38:$EC38,MATCH('Monthly CF'!AA$6,'Monthly Cash Flows'!$B$13:$EC$13)) -> -1939.029933 | AB25: =-INDEX('Monthly Cash Flows'!$B38:$EC38,MATCH('Monthly CF'!AB$6,'Monthly Cash Flows'!$B$13:$EC$13)) -> -1939.029933 | AC25: =-INDEX('Monthly Cash Flows'!$B38:$EC38,MATCH('Monthly CF'!AC$6,'Monthly Cash Flows'!$B$13:$EC$13)) -> -1997.200831 | AD25: =-INDEX('Monthly Cash Flows'!$B38:$EC38,MATCH('Monthly CF'!AD$6,'Monthly Cash Flows'!$B$13:$EC$13)) -> -1997.200831 | AE25: =-INDEX('Monthly Cash Flows'!$B38:$EC38,MATCH('Monthly CF'!AE$6,'Monthly Cash Flows'!$B$13:$EC$13)) -> -1997.200831 | AF25: =-INDEX('Monthly Cash Flows'!$B38:$EC38,MATCH('Monthly CF'!AF$6,'Monthly Cash Flows'!$B$13:$EC$13)) -> -1997.200831 | AG25: =-INDEX('Monthly Cash Flows'!$B38:$EC38,MATCH('Monthly CF'!AG$6,'Monthly Cash Flows'!$B$13:$EC$13)) -> -1997.200831 | AH25: =-INDEX('Monthly Cash Flows'!$B38:$EC38,MATCH('Monthly CF'!AH$6,'Monthly Cash Flows'!$B$13:$EC$13)) -> -1997.200831 | AI25: =-INDEX('Monthly Cash Flows'!$B38:$EC38,MATCH('Monthly CF'!AI$6,'Monthly Cash Flows'!$B$13:$EC$13)) -> -1997.200831 | AJ25: =-INDEX('Monthly Cash Flows'!$B38:$EC38,MATCH('Monthly CF'!AJ$6,'Monthly Cash Flows'!$B$13:$EC$13)) -> -1997.200831 | AK25: =-INDEX('Monthly Cash Flows'!$B38:$EC38,MATCH('Monthly CF'!AK$6,'Monthly Cash Flows'!$B$13:$EC$13)) -> -1997.200831 | AL25: =-INDEX('Monthly Cash Flows'!$B38:$EC38,MATCH('Monthly CF'!AL$6,'Monthly Cash Flows'!$B$13:$EC$13)) -> -1997.200831 | AM25: =-INDEX('Monthly Cash Flows'!$B38:$EC38,MATCH('Monthly CF'!AM$6,'Monthly Cash Flows'!$B$13:$EC$13)) -> -1997.200831 | AN25: =-INDEX('Monthly Cash Flows'!$B38:$EC38,MATCH('Monthly CF'!AN$6,'Monthly Cash Flows'!$B$13:$EC$13)) -> -1997.200831 | AO25: =-INDEX('Monthly Cash Flows'!$B38:$EC38,MATCH('Monthly CF'!AO$6,'Monthly Cash Flows'!$B$13:$EC$13)) -> -2057.116856 | AP25: =-INDEX('Monthly Cash Flows'!$B38:$EC38,MATCH('Monthly CF'!AP$6,'Monthly Cash Flows'!$B$13:$EC$13)) -> -2057.116856 | AQ25: =-INDEX('Monthly Cash Flows'!$B38:$EC38,MATCH('Monthly CF'!AQ$6,'Monthly Cash Flows'!$B$13:$EC$13)) -> -2057.116856 | AR25: =-INDEX('Monthly Cash Flows'!$B38:$EC38,MATCH('Monthly CF'!AR$6,'Monthly Cash Flows'!$B$13:$EC$13)) -> -2057.116856 | AS25: =-INDEX('Monthly Cash Flows'!$B38:$EC38,MATCH('Monthly CF'!AS$6,'Monthly Cash Flows'!$B$13:$EC$13)) -> -2057.116856 | AT25: =-INDEX('Monthly Cash Flows'!$B38:$EC38,MATCH('Monthly CF'!AT$6,'Monthly Cash Flows'!$B$13:$EC$13)) -> -2057.116856 | AU25: =-INDEX('Monthly Cash Flows'!$B38:$EC38,MATCH('Monthly CF'!AU$6,'Monthly Cash Flows'!$B$13:$EC$13)) -> -2057.116856 | AV25: =-INDEX('Monthly Cash Flows'!$B38:$EC38,MATCH('Monthly CF'!AV$6,'Monthly Cash Flows'!$B$13:$EC$13)) -> -2057.116856 | AW25: =-INDEX('Monthly Cash Flows'!$B38:$EC38,MATCH('Monthly CF'!AW$6,'Monthly Cash Flows'!$B$13:$EC$13)) -> -2057.116856 | AX25: =-INDEX('Monthly Cash Flows'!$B38:$EC38,MATCH('Monthly CF'!AX$6,'Monthly Cash Flows'!$B$13:$EC$13)) -> -2057.116856 | AY25: =-INDEX('Monthly Cash Flows'!$B38:$EC38,MATCH('Monthly CF'!AY$6,'Monthly Cash Flows'!$B$13:$EC$13)) -> -2057.116856 | AZ25: =-INDEX('Monthly Cash Flows'!$B38:$EC38,MATCH('Monthly CF'!AZ$6,'Monthly Cash Flows'!$B$13:$EC$13)) -> -2057.116856 | BA25: =-INDEX('Monthly Cash Flows'!$B38:$EC38,MATCH('Monthly CF'!BA$6,'Monthly Cash Flows'!$B$13:$EC$13)) -> -2118.830362 | BB25: =-INDEX('Monthly Cash Flows'!$B38:$EC38,MATCH('Monthly CF'!BB$6,'Monthly Cash Flows'!$B$13:$EC$13)) -> -2118.830362 | BC25: =-INDEX('Monthly Cash Flows'!$B38:$EC38,MATCH('Monthly CF'!BC$6,'Monthly Cash Flows'!$B$13:$EC$13)) -> -2118.830362 | BD25: =-INDEX('Monthly Cash Flows'!$B38:$EC38,MATCH('Monthly CF'!BD$6,'Monthly Cash Flows'!$B$13:$EC$13)) -> -2118.830362 | BE25: =-INDEX('Monthly Cash Flows'!$B38:$EC38,MATCH('Monthly CF'!BE$6,'Monthly Cash Flows'!$B$13:$EC$13)) -> -2118.830362 | BF25: =-INDEX('Monthly Cash Flows'!$B38:$EC38,MATCH('Monthly CF'!BF$6,'Monthly Cash Flows'!$B$13:$EC$13)) -> -2118.830362 | BG25: =-INDEX('Monthly Cash Flows'!$B38:$EC38,MATCH('Monthly CF'!BG$6,'Monthly Cash Flows'!$B$13:$EC$13)) -> -2118.830362 | BH25: =-INDEX('Monthly Cash Flows'!$B38:$EC38,MATCH('Monthly CF'!BH$6,'Monthly Cash Flows'!$B$13:$EC$13)) -> -2118.830362 | BI25: =-INDEX('Monthly Cash Flows'!$B38:$EC38,MATCH('Monthly CF'!BI$6,'Monthly Cash Flows'!$B$13:$EC$13)) -> -2118.830362 | BJ25: =-INDEX('Monthly Cash Flows'!$B38:$EC38,MATCH('Monthly CF'!BJ$6,'Monthly Cash Flows'!$B$13:$EC$13)) -> -2118.830362 | BK25: =-INDEX('Monthly Cash Flows'!$B38:$EC38,MATCH('Monthly CF'!BK$6,'Monthly Cash Flows'!$B$13:$EC$13)) -> -2118.830362 | BL25: =-INDEX('Monthly Cash Flows'!$B38:$EC38,MATCH('Monthly CF'!BL$6,'Monthly Cash Flows'!$B$13:$EC$13)) -> -2118.830362 | BM25: =-INDEX('Monthly Cash Flows'!$B38:$EC38,MATCH('Monthly CF'!BM$6,'Monthly Cash Flows'!$B$13:$EC$13)) -> -2182.395273 | BN25: =-INDEX('Monthly Cash Flows'!$B38:$EC38,MATCH('Monthly CF'!BN$6,'Monthly Cash Flows'!$B$13:$EC$13)) -> -2182.395273 | BO25: =-INDEX('Monthly Cash Flows'!$B38:$EC38,MATCH('Monthly CF'!BO$6,'Monthly Cash Flows'!$B$13:$EC$13)) -> -2182.395273 | BP25: =-INDEX('Monthly Cash Flows'!$B38:$EC38,MATCH('Monthly CF'!BP$6,'Monthly Cash Flows'!$B$13:$EC$13)) -> -2182.395273 | BQ25: =-INDEX('Monthly Cash Flows'!$B38:$EC38,MATCH('Monthly CF'!BQ$6,'Monthly Cash Flows'!$B$13:$EC$13)) -> -2182.395273 | BR25: =-INDEX('Monthly Cash Flows'!$B38:$EC38,MATCH('Monthly CF'!BR$6,'Monthly Cash Flows'!$B$13:$EC$13)) -> -2182.395273 | BS25: =-INDEX('Monthly Cash Flows'!$B38:$EC38,MATCH('Monthly CF'!BS$6,'Monthly Cash Flows'!$B$13:$EC$13)) -> -2182.395273 | BT25: =-INDEX('Monthly Cash Flows'!$B38:$EC38,MATCH('Monthly CF'!BT$6,'Monthly Cash Flows'!$B$13:$EC$13)) -> -2182.395273 | BU25: =-INDEX('Monthly Cash Flows'!$B38:$EC38,MATCH('Monthly CF'!BU$6,'Monthly Cash Flows'!$B$13:$EC$13)) -> -2182.395273 | BV25: =-INDEX('Monthly Cash Flows'!$B38:$EC38,MATCH('Monthly CF'!BV$6,'Monthly Cash Flows'!$B$13:$EC$13)) -> -2182.395273 | BW25: =-INDEX('Monthly Cash Flows'!$B38:$EC38,MATCH('Monthly CF'!BW$6,'Monthly Cash Flows'!$B$13:$EC$13)) -> -2182.395273 | BX25: =-INDEX('Monthly Cash Flows'!$B38:$EC38,MATCH('Monthly CF'!BX$6,'Monthly Cash Flows'!$B$13:$EC$13)) -> -2182.395273 | BY25: =-INDEX('Monthly Cash Flows'!$B38:$EC38,MATCH('Monthly CF'!BY$6,'Monthly Cash Flows'!$B$13:$EC$13)) -> -2247.867131 | BZ25: =-INDEX('Monthly Cash Flows'!$B38:$EC38,MATCH('Monthly CF'!BZ$6,'Monthly Cash Flows'!$B$13:$EC$13)) -> -2247.867131 | CA25: =-INDEX('Monthly Cash Flows'!$B38:$EC38,MATCH('Monthly CF'!CA$6,'Monthly Cash Flows'!$B$13:$EC$13)) -> -2247.867131 | CB25: =-INDEX('Monthly Cash Flows'!$B38:$EC38,MATCH('Monthly CF'!CB$6,'Monthly Cash Flows'!$B$13:$EC$13)) -> -2247.867131 | CC25: =-INDEX('Monthly Cash Flows'!$B38:$EC38,MATCH('Monthly CF'!CC$6,'Monthly Cash Flows'!$B$13:$EC$13)) -> -2247.867131 | CD25: =-INDEX('Monthly Cash Flows'!$B38:$EC38,MATCH('Monthly CF'!CD$6,'Monthly Cash Flows'!$B$13:$EC$13)) -> -2247.867131 | CE25: =-INDEX('Monthly Cash Flows'!$B38:$EC38,MATCH('Monthly CF'!CE$6,'Monthly Cash Flows'!$B$13:$EC$13)) -> -2247.867131 | CF25: =-INDEX('Monthly Cash Flows'!$B38:$EC38,MATCH('Monthly CF'!CF$6,'Monthly Cash Flows'!$B$13:$EC$13)) -> -2247.867131 | CG25: =-INDEX('Monthly Cash Flows'!$B38:$EC38,MATCH('Monthly CF'!CG$6,'Monthly Cash Flows'!$B$13:$EC$13)) -> -2247.867131 | CH25: =-INDEX('Monthly Cash Flows'!$B38:$EC38,MATCH('Monthly CF'!CH$6,'Monthly Cash Flows'!$B$13:$EC$13)) -> -2247.867131 | CI25: =-INDEX('Monthly Cash Flows'!$B38:$EC38,MATCH('Monthly CF'!CI$6,'Monthly Cash Flows'!$B$13:$EC$13)) -> -2247.867131 | CJ25: =-INDEX('Monthly Cash Flows'!$B38:$EC38,MATCH('Monthly CF'!CJ$6,'Monthly Cash Flows'!$B$13:$EC$13)) -> -2247.867131 | CK25: =-INDEX('Monthly Cash Flows'!$B38:$EC38,MATCH('Monthly CF'!CK$6,'Monthly Cash Flows'!$B$13:$EC$13)) -> -2315.303145 | CL25: =-INDEX('Monthly Cash Flows'!$B38:$EC38,MATCH('Monthly CF'!CL$6,'Monthly Cash Flows'!$B$13:$EC$13)) -> -2315.303145 | CM25: =-INDEX('Monthly Cash Flows'!$B38:$EC38,MATCH('Monthly CF'!CM$6,'Monthly Cash Flows'!$B$13:$EC$13)) -> -2315.303145 | CN25: =-INDEX('Monthly Cash Flows'!$B38:$EC38,MATCH('Monthly CF'!CN$6,'Monthly Cash Flows'!$B$13:$EC$13)) -> -2315.303145 | CO25: =-INDEX('Monthly Cash Flows'!$B38:$EC38,MATCH('Monthly CF'!CO$6,'Monthly Cash Flows'!$B$13:$EC$13)) -> -2315.303145 | CP25: =-INDEX('Monthly Cash Flows'!$B38:$EC38,MATCH('Monthly CF'!CP$6,'Monthly Cash Flows'!$B$13:$EC$13)) -> -2315.303145 | CQ25: =-INDEX('Monthly Cash Flows'!$B38:$EC38,MATCH('Monthly CF'!CQ$6,'Monthly Cash Flows'!$B$13:$EC$13)) -> -2315.303145 | CR25: =-INDEX('Monthly Cash Flows'!$B38:$EC38,MATCH('Monthly CF'!CR$6,'Monthly Cash Flows'!$B$13:$EC$13)) -> -2315.303145 | CS25: =-INDEX('Monthly Cash Flows'!$B38:$EC38,MATCH('Monthly CF'!CS$6,'Monthly Cash Flows'!$B$13:$EC$13)) -> -2315.303145 | CT25: =-INDEX('Monthly Cash Flows'!$B38:$EC38,MATCH('Monthly CF'!CT$6,'Monthly Cash Flows'!$B$13:$EC$13)) -> -2315.303145 | CU25: =-INDEX('Monthly Cash Flows'!$B38:$EC38,MATCH('Monthly CF'!CU$6,'Monthly Cash Flows'!$B$13:$EC$13)) -> -2315.303145 | CV25: =-INDEX('Monthly Cash Flows'!$B38:$EC38,MATCH('Monthly CF'!CV$6,'Monthly Cash Flows'!$B$13:$EC$13)) -> -2315.303145 | CW25: =-INDEX('Monthly Cash Flows'!$B38:$EC38,MATCH('Monthly CF'!CW$6,'Monthly Cash Flows'!$B$13:$EC$13)) -> -2384.762239 | CX25: =-INDEX('Monthly Cash Flows'!$B38:$EC38,MATCH('Monthly CF'!CX$6,'Monthly Cash Flows'!$B$13:$EC$13)) -> -2384.762239 | CY25: =-INDEX('Monthly Cash Flows'!$B38:$EC38,MATCH('Monthly CF'!CY$6,'Monthly Cash Flows'!$B$13:$EC$13)) -> -2384.762239 | CZ25: =-INDEX('Monthly Cash Flows'!$B38:$EC38,MATCH('Monthly CF'!CZ$6,'Monthly Cash Flows'!$B$13:$EC$13)) -> -2384.762239 | DA25: =-INDEX('Monthly Cash Flows'!$B38:$EC38,MATCH('Monthly CF'!DA$6,'Monthly Cash Flows'!$B$13:$EC$13)) -> -2384.762239 | DB25: =-INDEX('Monthly Cash Flows'!$B38:$EC38,MATCH('Monthly CF'!DB$6,'Monthly Cash Flows'!$B$13:$EC$13)) -> -2384.762239 | DC25: =-INDEX('Monthly Cash Flows'!$B38:$EC38,MATCH('Monthly CF'!DC$6,'Monthly Cash Flows'!$B$13:$EC$13)) -> -2384.762239 | DD25: =-INDEX('Monthly Cash Flows'!$B38:$EC38,MATCH('Monthly CF'!DD$6,'Monthly Cash Flows'!$B$13:$EC$13)) -> -2384.762239 | DE25: =-INDEX('Monthly Cash Flows'!$B38:$EC38,MATCH('Monthly CF'!DE$6,'Monthly Cash Flows'!$B$13:$EC$13)) -> -2384.762239 | DF25: =-INDEX('Monthly Cash Flows'!$B38:$EC38,MATCH('Monthly CF'!DF$6,'Monthly Cash Flows'!$B$13:$EC$13)) -> -2384.762239 | DG25: =-INDEX('Monthly Cash Flows'!$B38:$EC38,MATCH('Monthly CF'!DG$6,'Monthly Cash Flows'!$B$13:$EC$13)) -> -2384.762239 | DH25: =-INDEX('Monthly Cash Flows'!$B38:$EC38,MATCH('Monthly CF'!DH$6,'Monthly Cash Flows'!$B$13:$EC$13)) -> -2384.762239 | DI25: =-INDEX('Monthly Cash Flows'!$B38:$EC38,MATCH('Monthly CF'!DI$6,'Monthly Cash Flows'!$B$13:$EC$13)) -> -2456.305106 | DJ25: =-INDEX('Monthly Cash Flows'!$B38:$EC38,MATCH('Monthly CF'!DJ$6,'Monthly Cash Flows'!$B$13:$EC$13)) -> -2456.305106 | DK25: =-INDEX('Monthly Cash Flows'!$B38:$EC38,MATCH('Monthly CF'!DK$6,'Monthly Cash Flows'!$B$13:$EC$13)) -> -2456.305106 | DL25: =-INDEX('Monthly Cash Flows'!$B38:$EC38,MATCH('Monthly CF'!DL$6,'Monthly Cash Flows'!$B$13:$EC$13)) -> -2456.305106 | DM25: =-INDEX('Monthly Cash Flows'!$B38:$EC38,MATCH('Monthly CF'!DM$6,'Monthly Cash Flows'!$B$13:$EC$13)) -> -2456.305106 | DN25: =-INDEX('Monthly Cash Flows'!$B38:$EC38,MATCH('Monthly CF'!DN$6,'Monthly Cash Flows'!$B$13:$EC$13)) -> -2456.305106 | DO25: =-INDEX('Monthly Cash Flows'!$B38:$EC38,MATCH('Monthly CF'!DO$6,'Monthly Cash Flows'!$B$13:$EC$13)) -> -2456.305106 | DP25: =-INDEX('Monthly Cash Flows'!$B38:$EC38,MATCH('Monthly CF'!DP$6,'Monthly Cash Flows'!$B$13:$EC$13)) -> -2456.305106 | DQ25: =-INDEX('Monthly Cash Flows'!$B38:$EC38,MATCH('Monthly CF'!DQ$6,'Monthly Cash Flows'!$B$13:$EC$13)) -> -2456.305106 | DR25: =-INDEX('Monthly Cash Flows'!$B38:$EC38,MATCH('Monthly CF'!DR$6,'Monthly Cash Flows'!$B$13:$EC$13)) -> -2456.305106 | DS25: =-INDEX('Monthly Cash Flows'!$B38:$EC38,MATCH('Monthly CF'!DS$6,'Monthly Cash Flows'!$B$13:$EC$13)) -> -2456.305106 | DT25: =-INDEX('Monthly Cash Flows'!$B38:$EC38,MATCH('Monthly CF'!DT$6,'Monthly Cash Flows'!$B$13:$EC$13)) -> -2456.305106 | DU25: =-INDEX('Monthly Cash Flows'!$B38:$EC38,MATCH('Monthly CF'!DU$6,'Monthly Cash Flows'!$B$13:$EC$13)) -> -2529.99426 | DV25: =-INDEX('Monthly Cash Flows'!$B38:$EC38,MATCH('Monthly CF'!DV$6,'Monthly Cash Flows'!$B$13:$EC$13)) -> -2529.99426 | DW25: =-INDEX('Monthly Cash Flows'!$B38:$EC38,MATCH('Monthly CF'!DW$6,'Monthly Cash Flows'!$B$13:$EC$13)) -> -2529.99426 | DX25: =-INDEX('Monthly Cash Flows'!$B38:$EC38,MATCH('Monthly CF'!DX$6,'Monthly Cash Flows'!$B$13:$EC$13)) -> -2529.99426 | DY25: =-INDEX('Monthly Cash Flows'!$B38:$EC38,MATCH('Monthly CF'!DY$6,'Monthly Cash Flows'!$B$13:$EC$13)) -> -2529.99426 | DZ25: =-INDEX('Monthly Cash Flows'!$B38:$EC38,MATCH('Monthly CF'!DZ$6,'Monthly Cash Flows'!$B$13:$EC$13)) -> -2529.99426 | EA25: =-INDEX('Monthly Cash Flows'!$B38:$EC38,MATCH('Monthly CF'!EA$6,'Monthly Cash Flows'!$B$13:$EC$13)) -> -2529.99426 | EB25: =-INDEX('Monthly Cash Flows'!$B38:$EC38,MATCH('Monthly CF'!EB$6,'Monthly Cash Flows'!$B$13:$EC$13)) -> -2529.99426 | EC25: =-INDEX('Monthly Cash Flows'!$B38:$EC38,MATCH('Monthly CF'!EC$6,'Monthly Cash Flows'!$B$13:$EC$13)) -> -2529.99426 | ED25: =-INDEX('Monthly Cash Flows'!$B38:$EC38,MATCH('Monthly CF'!ED$6,'Monthly Cash Flows'!$B$13:$EC$13)) -> -2529.99426 | EE25: =-INDEX('Monthly Cash Flows'!$B38:$EC38,MATCH('Monthly CF'!EE$6,'Monthly Cash Flows'!$B$13:$EC$13)) -> -2529.99426 | EF25: =-INDEX('Monthly Cash Flows'!$B38:$EC38,MATCH('Monthly CF'!EF$6,'Monthly Cash Flows'!$B$13:$EC$13)) -> -2529.99426 | EG25: =-INDEX('Monthly Cash Flows'!$B38:$EC38,MATCH('Monthly CF'!EG$6,'Monthly Cash Flows'!$B$13:$EC$13)) -> -2529.99426
B26: =+'Monthly Cash Flows'!A39 -> Management Fee | F26: =-INDEX('Monthly Cash Flows'!$B39:$EC39,MATCH('Monthly CF'!F$6,'Monthly Cash Flows'!$B$13:$EC$13)) -> -3126.961667 | G26: =-INDEX('Monthly Cash Flows'!$B39:$EC39,MATCH('Monthly CF'!G$6,'Monthly Cash Flows'!$B$13:$EC$13)) -> -3126.961667 | H26: =-INDEX('Monthly Cash Flows'!$B39:$EC39,MATCH('Monthly CF'!H$6,'Monthly Cash Flows'!$B$13:$EC$13)) -> -3126.961667 | I26: =-INDEX('Monthly Cash Flows'!$B39:$EC39,MATCH('Monthly CF'!I$6,'Monthly Cash Flows'!$B$13:$EC$13)) -> -3126.961667 | J26: =-INDEX('Monthly Cash Flows'!$B39:$EC39,MATCH('Monthly CF'!J$6,'Monthly Cash Flows'!$B$13:$EC$13)) -> -3126.961667 | K26: =-INDEX('Monthly Cash Flows'!$B39:$EC39,MATCH('Monthly CF'!K$6,'Monthly Cash Flows'!$B$13:$EC$13)) -> -3126.961667 | L26: =-INDEX('Monthly Cash Flows'!$B39:$EC39,MATCH('Monthly CF'!L$6,'Monthly Cash Flows'!$B$13:$EC$13)) -> -3126.961667 | M26: =-INDEX('Monthly Cash Flows'!$B39:$EC39,MATCH('Monthly CF'!M$6,'Monthly Cash Flows'!$B$13:$EC$13)) -> -3126.961667 | N26: =-INDEX('Monthly Cash Flows'!$B39:$EC39,MATCH('Monthly CF'!N$6,'Monthly Cash Flows'!$B$13:$EC$13)) -> -3126.961667 | O26: =-INDEX('Monthly Cash Flows'!$B39:$EC39,MATCH('Monthly CF'!O$6,'Monthly Cash Flows'!$B$13:$EC$13)) -> -3126.961667 | P26: =-INDEX('Monthly Cash Flows'!$B39:$EC39,MATCH('Monthly CF'!P$6,'Monthly Cash Flows'!$B$13:$EC$13)) -> -3126.961667 | Q26: =-INDEX('Monthly Cash Flows'!$B39:$EC39,MATCH('Monthly CF'!Q$6,'Monthly Cash Flows'!$B$13:$EC$13)) -> -3220.770517 | R26: =-INDEX('Monthly Cash Flows'!$B39:$EC39,MATCH('Monthly CF'!R$6,'Monthly Cash Flows'!$B$13:$EC$13)) -> -3220.770517 | S26: =-INDEX('Monthly Cash Flows'!$B39:$EC39,MATCH('Monthly CF'!S$6,'Monthly Cash Flows'!$B$13:$EC$13)) -> -3220.770517 | T26: =-INDEX('Monthly Cash Flows'!$B39:$EC39,MATCH('Monthly CF'!T$6,'Monthly Cash Flows'!$B$13:$EC$13)) -> -3220.770517 | U26: =-INDEX('Monthly Cash Flows'!$B39:$EC39,MATCH('Monthly CF'!U$6,'Monthly Cash Flows'!$B$13:$EC$13)) -> -3220.770517 | V26: =-INDEX('Monthly Cash Flows'!$B39:$EC39,MATCH('Monthly CF'!V$6,'Monthly Cash Flows'!$B$13:$EC$13)) -> -3220.770517 | W26: =-INDEX('Monthly Cash Flows'!$B39:$EC39,MATCH('Monthly CF'!W$6,'Monthly Cash Flows'!$B$13:$EC$13)) -> -3220.770517 | X26: =-INDEX('Monthly Cash Flows'!$B39:$EC39,MATCH('Monthly CF'!X$6,'Monthly Cash Flows'!$B$13:$EC$13)) -> -3220.770517 | Y26: =-INDEX('Monthly Cash Flows'!$B39:$EC39,MATCH('Monthly CF'!Y$6,'Monthly Cash Flows'!$B$13:$EC$13)) -> -3220.770517 | Z26: =-INDEX('Monthly Cash Flows'!$B39:$EC39,MATCH('Monthly CF'!Z$6,'Monthly Cash Flows'!$B$13:$EC$13)) -> -3220.770517 | AA26: =-INDEX('Monthly Cash Flows'!$B39:$EC39,MATCH('Monthly CF'!AA$6,'Monthly Cash Flows'!$B$13:$EC$13)) -> -3220.770517 | AB26: =-INDEX('Monthly Cash Flows'!$B39:$EC39,MATCH('Monthly CF'!AB$6,'Monthly Cash Flows'!$B$13:$EC$13)) -> -3220.770517 | AC26: =-INDEX('Monthly Cash Flows'!$B39:$EC39,MATCH('Monthly CF'!AC$6,'Monthly Cash Flows'!$B$13:$EC$13)) -> -3317.393632 | AD26: =-INDEX('Monthly Cash Flows'!$B39:$EC39,MATCH('Monthly CF'!AD$6,'Monthly Cash Flows'!$B$13:$EC$13)) -> -3317.393632 | AE26: =-INDEX('Monthly Cash Flows'!$B39:$EC39,MATCH('Monthly CF'!AE$6,'Monthly Cash Flows'!$B$13:$EC$13)) -> -3317.393632 | AF26: =-INDEX('Monthly Cash Flows'!$B39:$EC39,MATCH('Monthly CF'!AF$6,'Monthly Cash Flows'!$B$13:$EC$13)) -> -3317.393632 | AG26: =-INDEX('Monthly Cash Flows'!$B39:$EC39,MATCH('Monthly CF'!AG$6,'Monthly Cash Flows'!$B$13:$EC$13)) -> -3317.393632 | AH26: =-INDEX('Monthly Cash Flows'!$B39:$EC39,MATCH('Monthly CF'!AH$6,'Monthly Cash Flows'!$B$13:$EC$13)) -> -3317.393632 | AI26: =-INDEX('Monthly Cash Flows'!$B39:$EC39,MATCH('Monthly CF'!AI$6,'Monthly Cash Flows'!$B$13:$EC$13)) -> -3317.393632 | AJ26: =-INDEX('Monthly Cash Flows'!$B39:$EC39,MATCH('Monthly CF'!AJ$6,'Monthly Cash Flows'!$B$13:$EC$13)) -> -3317.393632 | AK26: =-INDEX('Monthly Cash Flows'!$B39:$EC39,MATCH('Monthly CF'!AK$6,'Monthly Cash Flows'!$B$13:$EC$13)) -> -3317.393632 | AL26: =-INDEX('Monthly Cash Flows'!$B39:$EC39,MATCH('Monthly CF'!AL$6,'Monthly Cash Flows'!$B$13:$EC$13)) -> -3317.393632 | AM26: =-INDEX('Monthly Cash Flows'!$B39:$EC39,MATCH('Monthly CF'!AM$6,'Monthly Cash Flows'!$B$13:$EC$13)) -> -3317.393632 | AN26: =-INDEX('Monthly Cash Flows'!$B39:$EC39,MATCH('Monthly CF'!AN$6,'Monthly Cash Flows'!$B$13:$EC$13)) -> -3317.393632 | AO26: =-INDEX('Monthly Cash Flows'!$B39:$EC39,MATCH('Monthly CF'!AO$6,'Monthly Cash Flows'!$B$13:$EC$13)) -> -3416.915441 | AP26: =-INDEX('Monthly Cash Flows'!$B39:$EC39,MATCH('Monthly CF'!AP$6,'Monthly Cash Flows'!$B$13:$EC$13)) -> -3416.915441 | AQ26: =-INDEX('Monthly Cash Flows'!$B39:$EC39,MATCH('Monthly CF'!AQ$6,'Monthly Cash Flows'!$B$13:$EC$13)) -> -3416.915441 | AR26: =-INDEX('Monthly Cash Flows'!$B39:$EC39,MATCH('Monthly CF'!AR$6,'Monthly Cash Flows'!$B$13:$EC$13)) -> -3416.915441 | AS26: =-INDEX('Monthly Cash Flows'!$B39:$EC39,MATCH('Monthly CF'!AS$6,'Monthly Cash Flows'!$B$13:$EC$13)) -> -3416.915441 | AT26: =-INDEX('Monthly Cash Flows'!$B39:$EC39,MATCH('Monthly CF'!AT$6,'Monthly Cash Flows'!$B$13:$EC$13)) -> -3416.915441 | AU26: =-INDEX('Monthly Cash Flows'!$B39:$EC39,MATCH('Monthly CF'!AU$6,'Monthly Cash Flows'!$B$13:$EC$13)) -> -3416.915441 | AV26: =-INDEX('Monthly Cash Flows'!$B39:$EC39,MATCH('Monthly CF'!AV$6,'Monthly Cash Flows'!$B$13:$EC$13)) -> -3416.915441 | AW26: =-INDEX('Monthly Cash Flows'!$B39:$EC39,MATCH('Monthly CF'!AW$6,'Monthly Cash Flows'!$B$13:$EC$13)) -> -3416.915441 | AX26: =-INDEX('Monthly Cash Flows'!$B39:$EC39,MATCH('Monthly CF'!AX$6,'Monthly Cash Flows'!$B$13:$EC$13)) -> -3416.915441 | AY26: =-INDEX('Monthly Cash Flows'!$B39:$EC39,MATCH('Monthly CF'!AY$6,'Monthly Cash Flows'!$B$13:$EC$13)) -> -3416.915441 | AZ26: =-INDEX('Monthly Cash Flows'!$B39:$EC39,MATCH('Monthly CF'!AZ$6,'Monthly Cash Flows'!$B$13:$EC$13)) -> -3416.915441 | BA26: =-INDEX('Monthly Cash Flows'!$B39:$EC39,MATCH('Monthly CF'!BA$6,'Monthly Cash Flows'!$B$13:$EC$13)) -> -3519.422904 | BB26: =-INDEX('Monthly Cash Flows'!$B39:$EC39,MATCH('Monthly CF'!BB$6,'Monthly Cash Flows'!$B$13:$EC$13)) -> -3519.422904 | BC26: =-INDEX('Monthly Cash Flows'!$B39:$EC39,MATCH('Monthly CF'!BC$6,'Monthly Cash Flows'!$B$13:$EC$13)) -> -3519.422904 | BD26: =-INDEX('Monthly Cash Flows'!$B39:$EC39,MATCH('Monthly CF'!BD$6,'Monthly Cash Flows'!$B$13:$EC$13)) -> -3519.422904 | BE26: =-INDEX('Monthly Cash Flows'!$B39:$EC39,MATCH('Monthly CF'!BE$6,'Monthly Cash Flows'!$B$13:$EC$13)) -> -3519.422904 | BF26: =-INDEX('Monthly Cash Flows'!$B39:$EC39,MATCH('Monthly CF'!BF$6,'Monthly Cash Flows'!$B$13:$EC$13)) -> -3519.422904 | BG26: =-INDEX('Monthly Cash Flows'!$B39:$EC39,MATCH('Monthly CF'!BG$6,'Monthly Cash Flows'!$B$13:$EC$13)) -> -3519.422904 | BH26: =-INDEX('Monthly Cash Flows'!$B39:$EC39,MATCH('Monthly CF'!BH$6,'Monthly Cash Flows'!$B$13:$EC$13)) -> -3519.422904 | BI26: =-INDEX('Monthly Cash Flows'!$B39:$EC39,MATCH('Monthly CF'!BI$6,'Monthly Cash Flows'!$B$13:$EC$13)) -> -3519.422904 | BJ26: =-INDEX('Monthly Cash Flows'!$B39:$EC39,MATCH('Monthly CF'!BJ$6,'Monthly Cash Flows'!$B$13:$EC$13)) -> -3519.422904 | BK26: =-INDEX('Monthly Cash Flows'!$B39:$EC39,MATCH('Monthly CF'!BK$6,'Monthly Cash Flows'!$B$13:$EC$13)) -> -3519.422904 | BL26: =-INDEX('Monthly Cash Flows'!$B39:$EC39,MATCH('Monthly CF'!BL$6,'Monthly Cash Flows'!$B$13:$EC$13)) -> -3519.422904 | BM26: =-INDEX('Monthly Cash Flows'!$B39:$EC39,MATCH('Monthly CF'!BM$6,'Monthly Cash Flows'!$B$13:$EC$13)) -> -3625.005591 | BN26: =-INDEX('Monthly Cash Flows'!$B39:$EC39,MATCH('Monthly CF'!BN$6,'Monthly Cash Flows'!$B$13:$EC$13)) -> -3625.005591 | BO26: =-INDEX('Monthly Cash Flows'!$B39:$EC39,MATCH('Monthly CF'!BO$6,'Monthly Cash Flows'!$B$13:$EC$13)) -> -3625.005591 | BP26: =-INDEX('Monthly Cash Flows'!$B39:$EC39,MATCH('Monthly CF'!BP$6,'Monthly Cash Flows'!$B$13:$EC$13)) -> -3625.005591 | BQ26: =-INDEX('Monthly Cash Flows'!$B39:$EC39,MATCH('Monthly CF'!BQ$6,'Monthly Cash Flows'!$B$13:$EC$13)) -> -3625.005591 | BR26: =-INDEX('Monthly Cash Flows'!$B39:$EC39,MATCH('Monthly CF'!BR$6,'Monthly Cash Flows'!$B$13:$EC$13)) -> -3625.005591 | BS26: =-INDEX('Monthly Cash Flows'!$B39:$EC39,MATCH('Monthly CF'!BS$6,'Monthly Cash Flows'!$B$13:$EC$13)) -> -3625.005591 | BT26: =-INDEX('Monthly Cash Flows'!$B39:$EC39,MATCH('Monthly CF'!BT$6,'Monthly Cash Flows'!$B$13:$EC$13)) -> -3625.005591 | BU26: =-INDEX('Monthly Cash Flows'!$B39:$EC39,MATCH('Monthly CF'!BU$6,'Monthly Cash Flows'!$B$13:$EC$13)) -> -3625.005591 | BV26: =-INDEX('Monthly Cash Flows'!$B39:$EC39,MATCH('Monthly CF'!BV$6,'Monthly Cash Flows'!$B$13:$EC$13)) -> -3625.005591 | BW26: =-INDEX('Monthly Cash Flows'!$B39:$EC39,MATCH('Monthly CF'!BW$6,'Monthly Cash Flows'!$B$13:$EC$13)) -> -3625.005591 | BX26: =-INDEX('Monthly Cash Flows'!$B39:$EC39,MATCH('Monthly CF'!BX$6,'Monthly Cash Flows'!$B$13:$EC$13)) -> -3625.005591 | BY26: =-INDEX('Monthly Cash Flows'!$B39:$EC39,MATCH('Monthly CF'!BY$6,'Monthly Cash Flows'!$B$13:$EC$13)) -> -3733.755759 | BZ26: =-INDEX('Monthly Cash Flows'!$B39:$EC39,MATCH('Monthly CF'!BZ$6,'Monthly Cash Flows'!$B$13:$EC$13)) -> -3733.755759 | CA26: =-INDEX('Monthly Cash Flows'!$B39:$EC39,MATCH('Monthly CF'!CA$6,'Monthly Cash Flows'!$B$13:$EC$13)) -> -3733.755759 | CB26: =-INDEX('Monthly Cash Flows'!$B39:$EC39,MATCH('Monthly CF'!CB$6,'Monthly Cash Flows'!$B$13:$EC$13)) -> -3733.755759 | CC26: =-INDEX('Monthly Cash Flows'!$B39:$EC39,MATCH('Monthly CF'!CC$6,'Monthly Cash Flows'!$B$13:$EC$13)) -> -3733.755759 | CD26: =-INDEX('Monthly Cash Flows'!$B39:$EC39,MATCH('Monthly CF'!CD$6,'Monthly Cash Flows'!$B$13:$EC$13)) -> -3733.755759 | CE26: =-INDEX('Monthly Cash Flows'!$B39:$EC39,MATCH('Monthly CF'!CE$6,'Monthly Cash Flows'!$B$13:$EC$13)) -> -3733.755759 | CF26: =-INDEX('Monthly Cash Flows'!$B39:$EC39,MATCH('Monthly CF'!CF$6,'Monthly Cash Flows'!$B$13:$EC$13)) -> -3733.755759 | CG26: =-INDEX('Monthly Cash Flows'!$B39:$EC39,MATCH('Monthly CF'!CG$6,'Monthly Cash Flows'!$B$13:$EC$13)) -> -3733.755759 | CH26: =-INDEX('Monthly Cash Flows'!$B39:$EC39,MATCH('Monthly CF'!CH$6,'Monthly Cash Flows'!$B$13:$EC$13)) -> -3733.755759 | CI26: =-INDEX('Monthly Cash Flows'!$B39:$EC39,MATCH('Monthly CF'!CI$6,'Monthly Cash Flows'!$B$13:$EC$13)) -> -3733.755759 | CJ26: =-INDEX('Monthly Cash Flows'!$B39:$EC39,MATCH('Monthly CF'!CJ$6,'Monthly Cash Flows'!$B$13:$EC$13)) -> -3733.755759 | CK26: =-INDEX('Monthly Cash Flows'!$B39:$EC39,MATCH('Monthly CF'!CK$6,'Monthly Cash Flows'!$B$13:$EC$13)) -> -3845.768432 | CL26: =-INDEX('Monthly Cash Flows'!$B39:$EC39,MATCH('Monthly CF'!CL$6,'Monthly Cash Flows'!$B$13:$EC$13)) -> -3845.768432 | CM26: =-INDEX('Monthly Cash Flows'!$B39:$EC39,MATCH('Monthly CF'!CM$6,'Monthly Cash Flows'!$B$13:$EC$13)) -> -3845.768432 | CN26: =-INDEX('Monthly Cash Flows'!$B39:$EC39,MATCH('Monthly CF'!CN$6,'Monthly Cash Flows'!$B$13:$EC$13)) -> -3845.768432 | CO26: =-INDEX('Monthly Cash Flows'!$B39:$EC39,MATCH('Monthly CF'!CO$6,'Monthly Cash Flows'!$B$13:$EC$13)) -> -3845.768432 | CP26: =-INDEX('Monthly Cash Flows'!$B39:$EC39,MATCH('Monthly CF'!CP$6,'Monthly Cash Flows'!$B$13:$EC$13)) -> -3845.768432 | CQ26: =-INDEX('Monthly Cash Flows'!$B39:$EC39,MATCH('Monthly CF'!CQ$6,'Monthly Cash Flows'!$B$13:$EC$13)) -> -3845.768432 | CR26: =-INDEX('Monthly Cash Flows'!$B39:$EC39,MATCH('Monthly CF'!CR$6,'Monthly Cash Flows'!$B$13:$EC$13)) -> -3845.768432 | CS26: =-INDEX('Monthly Cash Flows'!$B39:$EC39,MATCH('Monthly CF'!CS$6,'Monthly Cash Flows'!$B$13:$EC$13)) -> -3845.768432 | CT26: =-INDEX('Monthly Cash Flows'!$B39:$EC39,MATCH('Monthly CF'!CT$6,'Monthly Cash Flows'!$B$13:$EC$13)) -> -3845.768432 | CU26: =-INDEX('Monthly Cash Flows'!$B39:$EC39,MATCH('Monthly CF'!CU$6,'Monthly Cash Flows'!$B$13:$EC$13)) -> -3845.768432 | CV26: =-INDEX('Monthly Cash Flows'!$B39:$EC39,MATCH('Monthly CF'!CV$6,'Monthly Cash Flows'!$B$13:$EC$13)) -> -3845.768432 | CW26: =-INDEX('Monthly Cash Flows'!$B39:$EC39,MATCH('Monthly CF'!CW$6,'Monthly Cash Flows'!$B$13:$EC$13)) -> -3961.141485 | CX26: =-INDEX('Monthly Cash Flows'!$B39:$EC39,MATCH('Monthly CF'!CX$6,'Monthly Cash Flows'!$B$13:$EC$13)) -> -3961.141485 | CY26: =-INDEX('Monthly Cash Flows'!$B39:$EC39,MATCH('Monthly CF'!CY$6,'Monthly Cash Flows'!$B$13:$EC$13)) -> -3961.141485 | CZ26: =-INDEX('Monthly Cash Flows'!$B39:$EC39,MATCH('Monthly CF'!CZ$6,'Monthly Cash Flows'!$B$13:$EC$13)) -> -3961.141485 | DA26: =-INDEX('Monthly Cash Flows'!$B39:$EC39,MATCH('Monthly CF'!DA$6,'Monthly Cash Flows'!$B$13:$EC$13)) -> -3961.141485 | DB26: =-INDEX('Monthly Cash Flows'!$B39:$EC39,MATCH('Monthly CF'!DB$6,'Monthly Cash Flows'!$B$13:$EC$13)) -> -3961.141485 | DC26: =-INDEX('Monthly Cash Flows'!$B39:$EC39,MATCH('Monthly CF'!DC$6,'Monthly Cash Flows'!$B$13:$EC$13)) -> -3961.141485 | DD26: =-INDEX('Monthly Cash Flows'!$B39:$EC39,MATCH('Monthly CF'!DD$6,'Monthly Cash Flows'!$B$13:$EC$13)) -> -3961.141485 | DE26: =-INDEX('Monthly Cash Flows'!$B39:$EC39,MATCH('Monthly CF'!DE$6,'Monthly Cash Flows'!$B$13:$EC$13)) -> -3961.141485 | DF26: =-INDEX('Monthly Cash Flows'!$B39:$EC39,MATCH('Monthly CF'!DF$6,'Monthly Cash Flows'!$B$13:$EC$13)) -> -3961.141485 | DG26: =-INDEX('Monthly Cash Flows'!$B39:$EC39,MATCH('Monthly CF'!DG$6,'Monthly Cash Flows'!$B$13:$EC$13)) -> -3961.141485 | DH26: =-INDEX('Monthly Cash Flows'!$B39:$EC39,MATCH('Monthly CF'!DH$6,'Monthly Cash Flows'!$B$13:$EC$13)) -> -3961.141485 | DI26: =-INDEX('Monthly Cash Flows'!$B39:$EC39,MATCH('Monthly CF'!DI$6,'Monthly Cash Flows'!$B$13:$EC$13)) -> -4079.97573 | DJ26: =-INDEX('Monthly Cash Flows'!$B39:$EC39,MATCH('Monthly CF'!DJ$6,'Monthly Cash Flows'!$B$13:$EC$13)) -> -4079.97573 | DK26: =-INDEX('Monthly Cash Flows'!$B39:$EC39,MATCH('Monthly CF'!DK$6,'Monthly Cash Flows'!$B$13:$EC$13)) -> -4079.97573 | DL26: =-INDEX('Monthly Cash Flows'!$B39:$EC39,MATCH('Monthly CF'!DL$6,'Monthly Cash Flows'!$B$13:$EC$13)) -> -4079.97573 | DM26: =-INDEX('Monthly Cash Flows'!$B39:$EC39,MATCH('Monthly CF'!DM$6,'Monthly Cash Flows'!$B$13:$EC$13)) -> -4079.97573 | DN26: =-INDEX('Monthly Cash Flows'!$B39:$EC39,MATCH('Monthly CF'!DN$6,'Monthly Cash Flows'!$B$13:$EC$13)) -> -4079.97573 | DO26: =-INDEX('Monthly Cash Flows'!$B39:$EC39,MATCH('Monthly CF'!DO$6,'Monthly Cash Flows'!$B$13:$EC$13)) -> -4079.97573 | DP26: =-INDEX('Monthly Cash Flows'!$B39:$EC39,MATCH('Monthly CF'!DP$6,'Monthly Cash Flows'!$B$13:$EC$13)) -> -4079.97573 | DQ26: =-INDEX('Monthly Cash Flows'!$B39:$EC39,MATCH('Monthly CF'!DQ$6,'Monthly Cash Flows'!$B$13:$EC$13)) -> -4079.97573 | DR26: =-INDEX('Monthly Cash Flows'!$B39:$EC39,MATCH('Monthly CF'!DR$6,'Monthly Cash Flows'!$B$13:$EC$13)) -> -4079.97573 | DS26: =-INDEX('Monthly Cash Flows'!$B39:$EC39,MATCH('Monthly CF'!DS$6,'Monthly Cash Flows'!$B$13:$EC$13)) -> -4079.97573 | DT26: =-INDEX('Monthly Cash Flows'!$B39:$EC39,MATCH('Monthly CF'!DT$6,'Monthly Cash Flows'!$B$13:$EC$13)) -> -4079.97573 | DU26: =-INDEX('Monthly Cash Flows'!$B39:$EC39,MATCH('Monthly CF'!DU$6,'Monthly Cash Flows'!$B$13:$EC$13)) -> -4202.375001 | DV26: =-INDEX('Monthly Cash Flows'!$B39:$EC39,MATCH('Monthly CF'!DV$6,'Monthly Cash Flows'!$B$13:$EC$13)) -> -4202.375001 | DW26: =-INDEX('Monthly Cash Flows'!$B39:$EC39,MATCH('Monthly CF'!DW$6,'Monthly Cash Flows'!$B$13:$EC$13)) -> -4202.375001 | DX26: =-INDEX('Monthly Cash Flows'!$B39:$EC39,MATCH('Monthly CF'!DX$6,'Monthly Cash Flows'!$B$13:$EC$13)) -> -4202.375001 | DY26: =-INDEX('Monthly Cash Flows'!$B39:$EC39,MATCH('Monthly CF'!DY$6,'Monthly Cash Flows'!$B$13:$EC$13)) -> -4202.375001 | DZ26: =-INDEX('Monthly Cash Flows'!$B39:$EC39,MATCH('Monthly CF'!DZ$6,'Monthly Cash Flows'!$B$13:$EC$13)) -> -4202.375001 | EA26: =-INDEX('Monthly Cash Flows'!$B39:$EC39,MATCH('Monthly CF'!EA$6,'Monthly Cash Flows'!$B$13:$EC$13)) -> -4202.375001 | EB26: =-INDEX('Monthly Cash Flows'!$B39:$EC39,MATCH('Monthly CF'!EB$6,'Monthly Cash Flows'!$B$13:$EC$13)) -> -4202.375001 | EC26: =-INDEX('Monthly Cash Flows'!$B39:$EC39,MATCH('Monthly CF'!EC$6,'Monthly Cash Flows'!$B$13:$EC$13)) -> -4202.375001 | ED26: =-INDEX('Monthly Cash Flows'!$B39:$EC39,MATCH('Monthly CF'!ED$6,'Monthly Cash Flows'!$B$13:$EC$13)) -> -4202.375001 | EE26: =-INDEX('Monthly Cash Flows'!$B39:$EC39,MATCH('Monthly CF'!EE$6,'Monthly Cash Flows'!$B$13:$EC$13)) -> -4202.375001 | EF26: =-INDEX('Monthly Cash Flows'!$B39:$EC39,MATCH('Monthly CF'!EF$6,'Monthly Cash Flows'!$B$13:$EC$13)) -> -4202.375001 | EG26: =-INDEX('Monthly Cash Flows'!$B39:$EC39,MATCH('Monthly CF'!EG$6,'Monthly Cash Flows'!$B$13:$EC$13)) -> -4202.375001
B35: Total Operating Expenses | F35: =SUM(F23:F34) -> -25862.64667 | G35: -25862.64667 | H35: -25862.64667 | I35: -25862.64667 | J35: -25862.64667 | K35: -25862.64667 | L35: -25862.64667 | M35: -25862.64667 | N35: -25862.64667 | O35: -25862.64667 | P35: -25862.64667 | Q35: -26638.52607 | R35: -26638.52607 | S35: -26638.52607 | T35: -26638.52607 | U35: -26638.52607 | V35: -26638.52607 | W35: -26638.52607 | X35: -26638.52607 | Y35: -26638.52607 | Z35: -26638.52607 | AA35: -26638.52607 | AB35: -26638.52607 | AC35: -27437.68185 | AD35: -27437.68185 | AE35: -27437.68185 | AF35: -27437.68185 | AG35: -27437.68185 | AH35: -27437.68185 | AI35: -27437.68185 | AJ35: -27437.68185 | AK35: -27437.68185 | AL35: =SUM(AL23:AL34) -> -27437.68185 | AM35: -27437.68185 | AN35: -27437.68185 | AO35: -28260.8123 | AP35: -28260.8123 | AQ35: -28260.8123 | AR35: -28260.8123 | AS35: -28260.8123 | AT35: -28260.8123 | AU35: -28260.8123 | AV35: -28260.8123 | AW35: -28260.8123 | AX35: -28260.8123 | AY35: -28260.8123 | AZ35: -28260.8123 | BA35: -29108.63667 | BB35: -29108.63667 | BC35: -29108.63667 | BD35: -29108.63667 | BE35: -29108.63667 | BF35: -29108.63667 | BG35: -29108.63667 | BH35: -29108.63667 | BI35: -29108.63667 | BJ35: -29108.63667 | BK35: -29108.63667 | BL35: -29108.63667 | BM35: -29981.89577 | BN35: -29981.89577 | BO35: -29981.89577 | BP35: -29981.89577 | BQ35: -29981.89577 | BR35: =SUM(BR23:BR34) -> -29981.89577 | BS35: -29981.89577 | BT35: -29981.89577 | BU35: -29981.89577 | BV35: -29981.89577 | BW35: -29981.89577 | BX35: -29981.89577 | BY35: -30881.35265 | BZ35: -30881.35265 | CA35: -30881.35265 | CB35: -30881.35265 | CC35: -30881.35265 | CD35: -30881.35265 | CE35: -30881.35265 | CF35: -30881.35265 | CG35: -30881.35265 | CH35: -30881.35265 | CI35: -30881.35265 | CJ35: -30881.35265 | CK35: -31807.79323 | CL35: -31807.79323 | CM35: -31807.79323 | CN35: -31807.79323 | CO35: -31807.79323 | CP35: -31807.79323 | CQ35: -31807.79323 | CR35: -31807.79323 | CS35: -31807.79323 | CT35: -31807.79323 | CU35: -31807.79323 | CV35: -31807.79323 | CW35: -32762.02702 | CX35: =SUM(CX23:CX34) -> -32762.02702 | CY35: -32762.02702 | CZ35: -32762.02702 | DA35: -32762.02702 | DB35: -32762.02702 | DC35: -32762.02702 | DD35: -32762.02702 | DE35: -32762.02702 | DF35: -32762.02702 | DG35: -32762.02702 | DH35: -32762.02702 | DI35: -33744.88783 | DJ35: -33744.88783 | DK35: -33744.88783 | DL35: -33744.88783 | DM35: -33744.88783 | DN35: -33744.88783 | DO35: -33744.88783 | DP35: -33744.88783 | DQ35: -33744.88783 | DR35: -33744.88783 | DS35: -33744.88783 | DT35: -33744.88783 | DU35: -34757.23447 | DV35: -34757.23447 | DW35: -34757.23447 | DX35: -34757.23447 | DY35: -34757.23447 | DZ35: -34757.23447 | EA35: -34757.23447 | EB35: -34757.23447 | EC35: -34757.23447 | ED35: =SUM(ED23:ED34) -> -34757.23447 | EE35: -34757.23447 | EF35: -34757.23447 | EG35: -34757.23447
DW36: 0
B37: Net Operating Income | F37: =+F20+F35 -> 62334.42044 | G37: 62710.13638 | H37: 65907.63638 | I37: 66504.3617 | J37: 66604.3617 | K37: 67014.39807 | L37: 70389.39807 | M37: 71802.43673 | N37: 71802.43673 | O37: 72624.16707 | P37: 72624.16707 | Q37: 72550.98369 | R37: 72550.98369 | S37: 72550.98369 | T37: 79925.98369 | U37: 79925.98369 | V37: 79925.98369 | W37: 80400.44761 | X37: 80400.44761 | Y37: 80400.44761 | Z37: 80400.44761 | AA37: 80400.44761 | AB37: 80400.44761 | AC37: 80347.48966 | AD37: 80347.48966 | AE37: 80347.48966 | AF37: 80347.48966 | AG37: 80347.48966 | AH37: 80347.48966 | AI37: 80850.84843 | AJ37: 80850.84843 | AK37: 80850.84843 | AL37: =+AL20+AL35 -> 80850.84843 | AM37: 80850.84843 | AN37: 80850.84843 | AO37: 80803.67751 | AP37: 80803.67751 | AQ37: 80803.67751 | AR37: 80803.67751 | AS37: 80803.67751 | AT37: 80803.67751 | AU37: 81337.69083 | AV37: 81337.69083 | AW37: 81337.69083 | AX37: 81337.69083 | AY37: 81337.69083 | AZ37: 81337.69083 | BA37: 81039.90018 | BB37: 81039.90018 | BC37: 81039.90018 | BD37: 81039.90018 | BE37: 81039.90018 | BF37: 81039.90018 | BG37: 81606.43491 | BH37: 81606.43491 | BI37: 81606.43491 | BJ37: 81606.43491 | BK37: 81606.43491 | BL37: 81606.43491 | BM37: 81316.70658 | BN37: 81316.70658 | BO37: 81316.70658 | BP37: 81316.70658 | BQ37: 81316.70658 | BR37: =+BR20+BR35 -> 81316.70658 | BS37: 61282.15006 | BT37: 61282.15006 | BU37: 61282.15006 | BV37: 61282.15006 | BW37: 62448.81673 | BX37: 62448.81673 | BY37: 61549.35985 | BZ37: 61549.35985 | CA37: 61549.35985 | CB37: 61549.35985 | CC37: 61549.35985 | CD37: 61549.35985 | CE37: 61549.35985 | CF37: 61549.35985 | CG37: 61549.35985 | CH37: 61549.35985 | CI37: 61549.35985 | CJ37: 61549.35985 | CK37: 60622.91927 | CL37: 60622.91927 | CM37: 60622.91927 | CN37: 60622.91927 | CO37: 60622.91927 | CP37: 60622.91927 | CQ37: 60622.91927 | CR37: 60622.91927 | CS37: 60622.91927 | CT37: 60622.91927 | CU37: 60622.91927 | CV37: 60622.91927 | CW37: 59668.68548 | CX37: =+CX20+CX35 -> 59668.68548 | CY37: 59668.68548 | CZ37: 59668.68548 | DA37: 59668.68548 | DB37: 59668.68548 | DC37: 59668.68548 | DD37: 59668.68548 | DE37: 59668.68548 | DF37: 59668.68548 | DG37: 59668.68548 | DH37: 59668.68548 | DI37: 58685.82467 | DJ37: 58685.82467 | DK37: 58685.82467 | DL37: 58685.82467 | DM37: 58685.82467 | DN37: 58685.82467 | DO37: 58685.82467 | DP37: 58685.82467 | DQ37: 58685.82467 | DR37: 58685.82467 | DS37: 58685.82467 | DT37: 58685.82467 | DU37: 57673.47803 | DV37: 57673.47803 | DW37: 57673.47803 | DX37: 57673.47803 | DY37: 57673.47803 | DZ37: 57673.47803 | EA37: 57673.47803 | EB37: 57673.47803 | EC37: 57673.47803 | ED37: 57673.47803 | EE37: 57673.47803 | EF37: 57673.47803 | EG37: 57673.47803
B39: LEASING & CAPITAL COSTS
B40: =+'Monthly Cash Flows'!A46 -> Tenant Improvements | F40: =INDEX('Monthly Cash Flows'!$B46:$EC46,MATCH('Monthly CF'!F$6,'Monthly Cash Flows'!$B$13:$EC$13)) -> 0 | G40: =INDEX('Monthly Cash Flows'!$B46:$EC46,MATCH('Monthly CF'!G$6,'Monthly Cash Flows'!$B$13:$EC$13)) -> 0 | H40: =INDEX('Monthly Cash Flows'!$B46:$EC46,MATCH('Monthly CF'!H$6,'Monthly Cash Flows'!$B$13:$EC$13)) -> 17000 | I40: =INDEX('Monthly Cash Flows'!$B46:$EC46,MATCH('Monthly CF'!I$6,'Monthly Cash Flows'!$B$13:$EC$13)) -> 0 | J40: =INDEX('Monthly Cash Flows'!$B46:$EC46,MATCH('Monthly CF'!J$6,'Monthly Cash Flows'!$B$13:$EC$13)) -> 0 | K40: =INDEX('Monthly Cash Flows'!$B46:$EC46,MATCH('Monthly CF'!K$6,'Monthly Cash Flows'!$B$13:$EC$13)) -> 0 | L40: =INDEX('Monthly Cash Flows'!$B46:$EC46,MATCH('Monthly CF'!L$6,'Monthly Cash Flows'!$B$13:$EC$13)) -> 27000 | M40: =INDEX('Monthly Cash Flows'!$B46:$EC46,MATCH('Monthly CF'!M$6,'Monthly Cash Flows'!$B$13:$EC$13)) -> 0 | N40: =INDEX('Monthly Cash Flows'!$B46:$EC46,MATCH('Monthly CF'!N$6,'Monthly Cash Flows'!$B$13:$EC$13)) -> 0 | O40: =INDEX('Monthly Cash Flows'!$B46:$EC46,MATCH('Monthly CF'!O$6,'Monthly Cash Flows'!$B$13:$EC$13)) -> 0 | P40: =INDEX('Monthly Cash Flows'!$B46:$EC46,MATCH('Monthly CF'!P$6,'Monthly Cash Flows'!$B$13:$EC$13)) -> 59000 | Q40: =INDEX('Monthly Cash Flows'!$B46:$EC46,MATCH('Monthly CF'!Q$6,'Monthly Cash Flows'!$B$13:$EC$13)) -> 0 | R40: =INDEX('Monthly Cash Flows'!$B46:$EC46,MATCH('Monthly CF'!R$6,'Monthly Cash Flows'!$B$13:$EC$13)) -> 0 | S40: =INDEX('Monthly Cash Flows'!$B46:$EC46,MATCH('Monthly CF'!S$6,'Monthly Cash Flows'!$B$13:$EC$13)) -> 0 | T40: =INDEX('Monthly Cash Flows'!$B46:$EC46,MATCH('Monthly CF'!T$6,'Monthly Cash Flows'!$B$13:$EC$13)) -> 0 | U40: =INDEX('Monthly Cash Flows'!$B46:$EC46,MATCH('Monthly CF'!U$6,'Monthly Cash Flows'!$B$13:$EC$13)) -> 0 | V40: =INDEX('Monthly Cash Flows'!$B46:$EC46,MATCH('Monthly CF'!V$6,'Monthly Cash Flows'!$B$13:$EC$13)) -> 0 | W40: =INDEX('Monthly Cash Flows'!$B46:$EC46,MATCH('Monthly CF'!W$6,'Monthly Cash Flows'!$B$13:$EC$13)) -> 0 | X40: =INDEX('Monthly Cash Flows'!$B46:$EC46,MATCH('Monthly CF'!X$6,'Monthly Cash Flows'!$B$13:$EC$13)) -> 0 | Y40: =INDEX('Monthly Cash Flows'!$B46:$EC46,MATCH('Monthly CF'!Y$6,'Monthly Cash Flows'!$B$13:$EC$13)) -> 0 | Z40: =INDEX('Monthly Cash Flows'!$B46:$EC46,MATCH('Monthly CF'!Z$6,'Monthly Cash Flows'!$B$13:$EC$13)) -> 0 | AA40: =INDEX('Monthly Cash Flows'!$B46:$EC46,MATCH('Monthly CF'!AA$6,'Monthly Cash Flows'!$B$13:$EC$13)) -> 0 | AB40: =INDEX('Monthly Cash Flows'!$B46:$EC46,MATCH('Monthly CF'!AB$6,'Monthly Cash Flows'!$B$13:$EC$13)) -> 0 | AC40: =INDEX('Monthly Cash Flows'!$B46:$EC46,MATCH('Monthly CF'!AC$6,'Monthly Cash Flows'!$B$13:$EC$13)) -> 0 | AD40: =INDEX('Monthly Cash Flows'!$B46:$EC46,MATCH('Monthly CF'!AD$6,'Monthly Cash Flows'!$B$13:$EC$13)) -> 0 | AE40: =INDEX('Monthly Cash Flows'!$B46:$EC46,MATCH('Monthly CF'!AE$6,'Monthly Cash Flows'!$B$13:$EC$13)) -> 0 | AF40: =INDEX('Monthly Cash Flows'!$B46:$EC46,MATCH('Monthly CF'!AF$6,'Monthly Cash Flows'!$B$13:$EC$13)) -> 0 | AG40: =INDEX('Monthly Cash Flows'!$B46:$EC46,MATCH('Monthly CF'!AG$6,'Monthly Cash Flows'!$B$13:$EC$13)) -> 0 | AH40: =INDEX('Monthly Cash Flows'!$B46:$EC46,MATCH('Monthly CF'!AH$6,'Monthly Cash Flows'!$B$13:$EC$13)) -> 0 | AI40: =INDEX('Monthly Cash Flows'!$B46:$EC46,MATCH('Monthly CF'!AI$6,'Monthly Cash Flows'!$B$13:$EC$13)) -> 0 | AJ40: =INDEX('Monthly Cash Flows'!$B46:$EC46,MATCH('Monthly CF'!AJ$6,'Monthly Cash Flows'!$B$13:$EC$13)) -> 0 | AK40: =INDEX('Monthly Cash Flows'!$B46:$EC46,MATCH('Monthly CF'!AK$6,'Monthly Cash Flows'!$B$13:$EC$13)) -> 0 | AL40: =INDEX('Monthly Cash Flows'!$B46:$EC46,MATCH('Monthly CF'!AL$6,'Monthly Cash Flows'!$B$13:$EC$13)) -> 0 | AM40: =INDEX('Monthly Cash Flows'!$B46:$EC46,MATCH('Monthly CF'!AM$6,'Monthly Cash Flows'!$B$13:$EC$13)) -> 0 | AN40: =INDEX('Monthly Cash Flows'!$B46:$EC46,MATCH('Monthly CF'!AN$6,'Monthly Cash Flows'!$B$13:$EC$13)) -> 0 | AO40: =INDEX('Monthly Cash Flows'!$B46:$EC46,MATCH('Monthly CF'!AO$6,'Monthly Cash Flows'!$B$13:$EC$13)) -> 0 | AP40: =INDEX('Monthly Cash Flows'!$B46:$EC46,MATCH('Monthly CF'!AP$6,'Monthly Cash Flows'!$B$13:$EC$13)) -> 0 | AQ40: =INDEX('Monthly Cash Flows'!$B46:$EC46,MATCH('Monthly CF'!AQ$6,'Monthly Cash Flows'!$B$13:$EC$13)) -> 0 | AR40: =INDEX('Monthly Cash Flows'!$B46:$EC46,MATCH('Monthly CF'!AR$6,'Monthly Cash Flows'!$B$13:$EC$13)) -> 0 | AS40: =INDEX('Monthly Cash Flows'!$B46:$EC46,MATCH('Monthly CF'!AS$6,'Monthly Cash Flows'!$B$13:$EC$13)) -> 0 | AT40: =INDEX('Monthly Cash Flows'!$B46:$EC46,MATCH('Monthly CF'!AT$6,'Monthly Cash Flows'!$B$13:$EC$13)) -> 0 | AU40: =INDEX('Monthly Cash Flows'!$B46:$EC46,MATCH('Monthly CF'!AU$6,'Monthly Cash Flows'!$B$13:$EC$13)) -> 0 | AV40: =INDEX('Monthly Cash Flows'!$B46:$EC46,MATCH('Monthly CF'!AV$6,'Monthly Cash Flows'!$B$13:$EC$13)) -> 0 | AW40: =INDEX('Monthly Cash Flows'!$B46:$EC46,MATCH('Monthly CF'!AW$6,'Monthly Cash Flows'!$B$13:$EC$13)) -> 0 | AX40: =INDEX('Monthly Cash Flows'!$B46:$EC46,MATCH('Monthly CF'!AX$6,'Monthly Cash Flows'!$B$13:$EC$13)) -> 0 | AY40: =INDEX('Monthly Cash Flows'!$B46:$EC46,MATCH('Monthly CF'!AY$6,'Monthly Cash Flows'!$B$13:$EC$13)) -> 0 | AZ40: =INDEX('Monthly Cash Flows'!$B46:$EC46,MATCH('Monthly CF'!AZ$6,'Monthly Cash Flows'!$B$13:$EC$13)) -> 0 | BA40: =INDEX('Monthly Cash Flows'!$B46:$EC46,MATCH('Monthly CF'!BA$6,'Monthly Cash Flows'!$B$13:$EC$13)) -> 0 | BB40: =INDEX('Monthly Cash Flows'!$B46:$EC46,MATCH('Monthly CF'!BB$6,'Monthly Cash Flows'!$B$13:$EC$13)) -> 0 | BC40: =INDEX('Monthly Cash Flows'!$B46:$EC46,MATCH('Monthly CF'!BC$6,'Monthly Cash Flows'!$B$13:$EC$13)) -> 0 | BD40: =INDEX('Monthly Cash Flows'!$B46:$EC46,MATCH('Monthly CF'!BD$6,'Monthly Cash Flows'!$B$13:$EC$13)) -> 0 | BE40: =INDEX('Monthly Cash Flows'!$B46:$EC46,MATCH('Monthly CF'!BE$6,'Monthly Cash Flows'!$B$13:$EC$13)) -> 0 | BF40: =INDEX('Monthly Cash Flows'!$B46:$EC46,MATCH('Monthly CF'!BF$6,'Monthly Cash Flows'!$B$13:$EC$13)) -> 0 | BG40: =INDEX('Monthly Cash Flows'!$B46:$EC46,MATCH('Monthly CF'!BG$6,'Monthly Cash Flows'!$B$13:$EC$13)) -> 0 | BH40: =INDEX('Monthly Cash Flows'!$B46:$EC46,MATCH('Monthly CF'!BH$6,'Monthly Cash Flows'!$B$13:$EC$13)) -> 0 | BI40: =INDEX('Monthly Cash Flows'!$B46:$EC46,MATCH('Monthly CF'!BI$6,'Monthly Cash Flows'!$B$13:$EC$13)) -> 0 | BJ40: =INDEX('Monthly Cash Flows'!$B46:$EC46,MATCH('Monthly CF'!BJ$6,'Monthly Cash Flows'!$B$13:$EC$13)) -> 0 | BK40: =INDEX('Monthly Cash Flows'!$B46:$EC46,MATCH('Monthly CF'!BK$6,'Monthly Cash Flows'!$B$13:$EC$13)) -> 0 | BL40: =INDEX('Monthly Cash Flows'!$B46:$EC46,MATCH('Monthly CF'!BL$6,'Monthly Cash Flows'!$B$13:$EC$13)) -> 0 | BM40: =INDEX('Monthly Cash Flows'!$B46:$EC46,MATCH('Monthly CF'!BM$6,'Monthly Cash Flows'!$B$13:$EC$13)) -> 0 | BN40: =INDEX('Monthly Cash Flows'!$B46:$EC46,MATCH('Monthly CF'!BN$6,'Monthly Cash Flows'!$B$13:$EC$13)) -> 0 | BO40: =INDEX('Monthly Cash Flows'!$B46:$EC46,MATCH('Monthly CF'!BO$6,'Monthly Cash Flows'!$B$13:$EC$13)) -> 0 | BP40: =INDEX('Monthly Cash Flows'!$B46:$EC46,MATCH('Monthly CF'!BP$6,'Monthly Cash Flows'!$B$13:$EC$13)) -> 0 | BQ40: =INDEX('Monthly Cash Flows'!$B46:$EC46,MATCH('Monthly CF'!BQ$6,'Monthly Cash Flows'!$B$13:$EC$13)) -> 0 | BR40: =INDEX('Monthly Cash Flows'!$B46:$EC46,MATCH('Monthly CF'!BR$6,'Monthly Cash Flows'!$B$13:$EC$13)) -> 0 | BS40: =INDEX('Monthly Cash Flows'!$B46:$EC46,MATCH('Monthly CF'!BS$6,'Monthly Cash Flows'!$B$13:$EC$13)) -> 0 | BT40: =INDEX('Monthly Cash Flows'!$B46:$EC46,MATCH('Monthly CF'!BT$6,'Monthly Cash Flows'!$B$13:$EC$13)) -> 0 | BU40: =INDEX('Monthly Cash Flows'!$B46:$EC46,MATCH('Monthly CF'!BU$6,'Monthly Cash Flows'!$B$13:$EC$13)) -> 0 | BV40: =INDEX('Monthly Cash Flows'!$B46:$EC46,MATCH('Monthly CF'!BV$6,'Monthly Cash Flows'!$B$13:$EC$13)) -> 0 | BW40: =INDEX('Monthly Cash Flows'!$B46:$EC46,MATCH('Monthly CF'!BW$6,'Monthly Cash Flows'!$B$13:$EC$13)) -> 0 | BX40: =INDEX('Monthly Cash Flows'!$B46:$EC46,MATCH('Monthly CF'!BX$6,'Monthly Cash Flows'!$B$13:$EC$13)) -> 0 | BY40: =INDEX('Monthly Cash Flows'!$B46:$EC46,MATCH('Monthly CF'!BY$6,'Monthly Cash Flows'!$B$13:$EC$13)) -> 0 | BZ40: =INDEX('Monthly Cash Flows'!$B46:$EC46,MATCH('Monthly CF'!BZ$6,'Monthly Cash Flows'!$B$13:$EC$13)) -> 0 | CA40: =INDEX('Monthly Cash Flows'!$B46:$EC46,MATCH('Monthly CF'!CA$6,'Monthly Cash Flows'!$B$13:$EC$13)) -> 0 | CB40: =INDEX('Monthly Cash Flows'!$B46:$EC46,MATCH('Monthly CF'!CB$6,'Monthly Cash Flows'!$B$13:$EC$13)) -> 0 | CC40: =INDEX('Monthly Cash Flows'!$B46:$EC46,MATCH('Monthly CF'!CC$6,'Monthly Cash Flows'!$B$13:$EC$13)) -> 0 | CD40: =INDEX('Monthly Cash Flows'!$B46:$EC46,MATCH('Monthly CF'!CD$6,'Monthly Cash Flows'!$B$13:$EC$13)) -> 0 | CE40: =INDEX('Monthly Cash Flows'!$B46:$EC46,MATCH('Monthly CF'!CE$6,'Monthly Cash Flows'!$B$13:$EC$13)) -> 0 | CF40: =INDEX('Monthly Cash Flows'!$B46:$EC46,MATCH('Monthly CF'!CF$6,'Monthly Cash Flows'!$B$13:$EC$13)) -> 0 | CG40: =INDEX('Monthly Cash Flows'!$B46:$EC46,MATCH('Monthly CF'!CG$6,'Monthly Cash Flows'!$B$13:$EC$13)) -> 0 | CH40: =INDEX('Monthly Cash Flows'!$B46:$EC46,MATCH('Monthly CF'!CH$6,'Monthly Cash Flows'!$B$13:$EC$13)) -> 0 | CI40: =INDEX('Monthly Cash Flows'!$B46:$EC46,MATCH('Monthly CF'!CI$6,'Monthly Cash Flows'!$B$13:$EC$13)) -> 0 | CJ40: =INDEX('Monthly Cash Flows'!$B46:$EC46,MATCH('Monthly CF'!CJ$6,'Monthly Cash Flows'!$B$13:$EC$13)) -> 0 | CK40: =INDEX('Monthly Cash Flows'!$B46:$EC46,MATCH('Monthly CF'!CK$6,'Monthly Cash Flows'!$B$13:$EC$13)) -> 0 | CL40: =INDEX('Monthly Cash Flows'!$B46:$EC46,MATCH('Monthly CF'!CL$6,'Monthly Cash Flows'!$B$13:$EC$13)) -> 0 | CM40: =INDEX('Monthly Cash Flows'!$B46:$EC46,MATCH('Monthly CF'!CM$6,'Monthly Cash Flows'!$B$13:$EC$13)) -> 0 | CN40: =INDEX('Monthly Cash Flows'!$B46:$EC46,MATCH('Monthly CF'!CN$6,'Monthly Cash Flows'!$B$13:$EC$13)) -> 0 | CO40: =INDEX('Monthly Cash Flows'!$B46:$EC46,MATCH('Monthly CF'!CO$6,'Monthly Cash Flows'!$B$13:$EC$13)) -> 0 | CP40: =INDEX('Monthly Cash Flows'!$B46:$EC46,MATCH('Monthly CF'!CP$6,'Monthly Cash Flows'!$B$13:$EC$13)) -> 0 | CQ40: =INDEX('Monthly Cash Flows'!$B46:$EC46,MATCH('Monthly CF'!CQ$6,'Monthly Cash Flows'!$B$13:$EC$13)) -> 0 | CR40: =INDEX('Monthly Cash Flows'!$B46:$EC46,MATCH('Monthly CF'!CR$6,'Monthly Cash Flows'!$B$13:$EC$13)) -> 0 | CS40: =INDEX('Monthly Cash Flows'!$B46:$EC46,MATCH('Monthly CF'!CS$6,'Monthly Cash Flows'!$B$13:$EC$13)) -> 0 | CT40: =INDEX('Monthly Cash Flows'!$B46:$EC46,MATCH('Monthly CF'!CT$6,'Monthly Cash Flows'!$B$13:$EC$13)) -> 0 | CU40: =INDEX('Monthly Cash Flows'!$B46:$EC46,MATCH('Monthly CF'!CU$6,'Monthly Cash Flows'!$B$13:$EC$13)) -> 0 | CV40: =INDEX('Monthly Cash Flows'!$B46:$EC46,MATCH('Monthly CF'!CV$6,'Monthly Cash Flows'!$B$13:$EC$13)) -> 0 | CW40: =INDEX('Monthly Cash Flows'!$B46:$EC46,MATCH('Monthly CF'!CW$6,'Monthly Cash Flows'!$B$13:$EC$13)) -> 0 | CX40: =INDEX('Monthly Cash Flows'!$B46:$EC46,MATCH('Monthly CF'!CX$6,'Monthly Cash Flows'!$B$13:$EC$13)) -> 0 | CY40: =INDEX('Monthly Cash Flows'!$B46:$EC46,MATCH('Monthly CF'!CY$6,'Monthly Cash Flows'!$B$13:$EC$13)) -> 0 | CZ40: =INDEX('Monthly Cash Flows'!$B46:$EC46,MATCH('Monthly CF'!CZ$6,'Monthly Cash Flows'!$B$13:$EC$13)) -> 0 | DA40: =INDEX('Monthly Cash Flows'!$B46:$EC46,MATCH('Monthly CF'!DA$6,'Monthly Cash Flows'!$B$13:$EC$13)) -> 0 | DB40: =INDEX('Monthly Cash Flows'!$B46:$EC46,MATCH('Monthly CF'!DB$6,'Monthly Cash Flows'!$B$13:$EC$13)) -> 0 | DC40: =INDEX('Monthly Cash Flows'!$B46:$EC46,MATCH('Monthly CF'!DC$6,'Monthly Cash Flows'!$B$13:$EC$13)) -> 0 | DD40: =INDEX('Monthly Cash Flows'!$B46:$EC46,MATCH('Monthly CF'!DD$6,'Monthly Cash Flows'!$B$13:$EC$13)) -> 0 | DE40: =INDEX('Monthly Cash Flows'!$B46:$EC46,MATCH('Monthly CF'!DE$6,'Monthly Cash Flows'!$B$13:$EC$13)) -> 0 | DF40: =INDEX('Monthly Cash Flows'!$B46:$EC46,MATCH('Monthly CF'!DF$6,'Monthly Cash Flows'!$B$13:$EC$13)) -> 0 | DG40: =INDEX('Monthly Cash Flows'!$B46:$EC46,MATCH('Monthly CF'!DG$6,'Monthly Cash Flows'!$B$13:$EC$13)) -> 0 | DH40: =INDEX('Monthly Cash Flows'!$B46:$EC46,MATCH('Monthly CF'!DH$6,'Monthly Cash Flows'!$B$13:$EC$13)) -> 0 | DI40: =INDEX('Monthly Cash Flows'!$B46:$EC46,MATCH('Monthly CF'!DI$6,'Monthly Cash Flows'!$B$13:$EC$13)) -> 0 | DJ40: =INDEX('Monthly Cash Flows'!$B46:$EC46,MATCH('Monthly CF'!DJ$6,'Monthly Cash Flows'!$B$13:$EC$13)) -> 0 | DK40: =INDEX('Monthly Cash Flows'!$B46:$EC46,MATCH('Monthly CF'!DK$6,'Monthly Cash Flows'!$B$13:$EC$13)) -> 0 | DL40: =INDEX('Monthly Cash Flows'!$B46:$EC46,MATCH('Monthly CF'!DL$6,'Monthly Cash Flows'!$B$13:$EC$13)) -> 0 | DM40: =INDEX('Monthly Cash Flows'!$B46:$EC46,MATCH('Monthly CF'!DM$6,'Monthly Cash Flows'!$B$13:$EC$13)) -> 0 | DN40: =INDEX('Monthly Cash Flows'!$B46:$EC46,MATCH('Monthly CF'!DN$6,'Monthly Cash Flows'!$B$13:$EC$13)) -> 0 | DO40: =INDEX('Monthly Cash Flows'!$B46:$EC46,MATCH('Monthly CF'!DO$6,'Monthly Cash Flows'!$B$13:$EC$13)) -> 0 | DP40: =INDEX('Monthly Cash Flows'!$B46:$EC46,MATCH('Monthly CF'!DP$6,'Monthly Cash Flows'!$B$13:$EC$13)) -> 0 | DQ40: =INDEX('Monthly Cash Flows'!$B46:$EC46,MATCH('Monthly CF'!DQ$6,'Monthly Cash Flows'!$B$13:$EC$13)) -> 0 | DR40: =INDEX('Monthly Cash Flows'!$B46:$EC46,MATCH('Monthly CF'!DR$6,'Monthly Cash Flows'!$B$13:$EC$13)) -> 0 | DS40: =INDEX('Monthly Cash Flows'!$B46:$EC46,MATCH('Monthly CF'!DS$6,'Monthly Cash Flows'!$B$13:$EC$13)) -> 0 | DT40: =INDEX('Monthly Cash Flows'!$B46:$EC46,MATCH('Monthly CF'!DT$6,'Monthly Cash Flows'!$B$13:$EC$13)) -> 0 | DU40: =INDEX('Monthly Cash Flows'!$B46:$EC46,MATCH('Monthly CF'!DU$6,'Monthly Cash Flows'!$B$13:$EC$13)) -> 0 | DV40: =INDEX('Monthly Cash Flows'!$B46:$EC46,MATCH('Monthly CF'!DV$6,'Monthly Cash Flows'!$B$13:$EC$13)) -> 0 | DW40: =INDEX('Monthly Cash Flows'!$B46:$EC46,MATCH('Monthly CF'!DW$6,'Monthly Cash Flows'!$B$13:$EC$13)) -> 0 | DX40: =INDEX('Monthly Cash Flows'!$B46:$EC46,MATCH('Monthly CF'!DX$6,'Monthly Cash Flows'!$B$13:$EC$13)) -> 0 | DY40: =INDEX('Monthly Cash Flows'!$B46:$EC46,MATCH('Monthly CF'!DY$6,'Monthly Cash Flows'!$B$13:$EC$13)) -> 0 | DZ40: =INDEX('Monthly Cash Flows'!$B46:$EC46,MATCH('Monthly CF'!DZ$6,'Monthly Cash Flows'!$B$13:$EC$13)) -> 0 | EA40: =INDEX('Monthly Cash Flows'!$B46:$EC46,MATCH('Monthly CF'!EA$6,'Monthly Cash Flows'!$B$13:$EC$13)) -> 0 | EB40: =INDEX('Monthly Cash Flows'!$B46:$EC46,MATCH('Monthly CF'!EB$6,'Monthly Cash Flows'!$B$13:$EC$13)) -> 0 | EC40: =INDEX('Monthly Cash Flows'!$B46:$EC46,MATCH('Monthly CF'!EC$6,'Monthly Cash Flows'!$B$13:$EC$13)) -> 0 | ED40: =INDEX('Monthly Cash Flows'!$B46:$EC46,MATCH('Monthly CF'!ED$6,'Monthly Cash Flows'!$B$13:$EC$13)) -> 0 | EE40: =INDEX('Monthly Cash Flows'!$B46:$EC46,MATCH('Monthly CF'!EE$6,'Monthly Cash Flows'!$B$13:$EC$13)) -> 0 | EF40: =INDEX('Monthly Cash Flows'!$B46:$EC46,MATCH('Monthly CF'!EF$6,'Monthly Cash Flows'!$B$13:$EC$13)) -> 0 | EG40: =INDEX('Monthly Cash Flows'!$B46:$EC46,MATCH('Monthly CF'!EG$6,'Monthly Cash Flows'!$B$13:$EC$13)) -> 0
B41: =+'Monthly Cash Flows'!A47 -> Leasing Commissions | F41: =INDEX('Monthly Cash Flows'!$B47:$EC47,MATCH('Monthly CF'!F$6,'Monthly Cash Flows'!$B$13:$EC$13)) -> 0 | G41: =INDEX('Monthly Cash Flows'!$B47:$EC47,MATCH('Monthly CF'!G$6,'Monthly Cash Flows'!$B$13:$EC$13)) -> 0 | H41: =INDEX('Monthly Cash Flows'!$B47:$EC47,MATCH('Monthly CF'!H$6,'Monthly Cash Flows'!$B$13:$EC$13)) -> 7650 | I41: =INDEX('Monthly Cash Flows'!$B47:$EC47,MATCH('Monthly CF'!I$6,'Monthly Cash Flows'!$B$13:$EC$13)) -> 0 | J41: =INDEX('Monthly Cash Flows'!$B47:$EC47,MATCH('Monthly CF'!J$6,'Monthly Cash Flows'!$B$13:$EC$13)) -> 0 | K41: =INDEX('Monthly Cash Flows'!$B47:$EC47,MATCH('Monthly CF'!K$6,'Monthly Cash Flows'!$B$13:$EC$13)) -> 0 | L41: =INDEX('Monthly Cash Flows'!$B47:$EC47,MATCH('Monthly CF'!L$6,'Monthly Cash Flows'!$B$13:$EC$13)) -> 12150 | M41: =INDEX('Monthly Cash Flows'!$B47:$EC47,MATCH('Monthly CF'!M$6,'Monthly Cash Flows'!$B$13:$EC$13)) -> 0 | N41: =INDEX('Monthly Cash Flows'!$B47:$EC47,MATCH('Monthly CF'!N$6,'Monthly Cash Flows'!$B$13:$EC$13)) -> 0 | O41: =INDEX('Monthly Cash Flows'!$B47:$EC47,MATCH('Monthly CF'!O$6,'Monthly Cash Flows'!$B$13:$EC$13)) -> 0 | P41: =INDEX('Monthly Cash Flows'!$B47:$EC47,MATCH('Monthly CF'!P$6,'Monthly Cash Flows'!$B$13:$EC$13)) -> 26550 | Q41: =INDEX('Monthly Cash Flows'!$B47:$EC47,MATCH('Monthly CF'!Q$6,'Monthly Cash Flows'!$B$13:$EC$13)) -> 0 | R41: =INDEX('Monthly Cash Flows'!$B47:$EC47,MATCH('Monthly CF'!R$6,'Monthly Cash Flows'!$B$13:$EC$13)) -> 0 | S41: =INDEX('Monthly Cash Flows'!$B47:$EC47,MATCH('Monthly CF'!S$6,'Monthly Cash Flows'!$B$13:$EC$13)) -> 0 | T41: =INDEX('Monthly Cash Flows'!$B47:$EC47,MATCH('Monthly CF'!T$6,'Monthly Cash Flows'!$B$13:$EC$13)) -> 0 | U41: =INDEX('Monthly Cash Flows'!$B47:$EC47,MATCH('Monthly CF'!U$6,'Monthly Cash Flows'!$B$13:$EC$13)) -> 0 | V41: =INDEX('Monthly Cash Flows'!$B47:$EC47,MATCH('Monthly CF'!V$6,'Monthly Cash Flows'!$B$13:$EC$13)) -> 0 | W41: =INDEX('Monthly Cash Flows'!$B47:$EC47,MATCH('Monthly CF'!W$6,'Monthly Cash Flows'!$B$13:$EC$13)) -> 0 | X41: =INDEX('Monthly Cash Flows'!$B47:$EC47,MATCH('Monthly CF'!X$6,'Monthly Cash Flows'!$B$13:$EC$13)) -> 0 | Y41: =INDEX('Monthly Cash Flows'!$B47:$EC47,MATCH('Monthly CF'!Y$6,'Monthly Cash Flows'!$B$13:$EC$13)) -> 0 | Z41: =INDEX('Monthly Cash Flows'!$B47:$EC47,MATCH('Monthly CF'!Z$6,'Monthly Cash Flows'!$B$13:$EC$13)) -> 0 | AA41: =INDEX('Monthly Cash Flows'!$B47:$EC47,MATCH('Monthly CF'!AA$6,'Monthly Cash Flows'!$B$13:$EC$13)) -> 0 | AB41: =INDEX('Monthly Cash Flows'!$B47:$EC47,MATCH('Monthly CF'!AB$6,'Monthly Cash Flows'!$B$13:$EC$13)) -> 0 | AC41: =INDEX('Monthly Cash Flows'!$B47:$EC47,MATCH('Monthly CF'!AC$6,'Monthly Cash Flows'!$B$13:$EC$13)) -> 0 | AD41: =INDEX('Monthly Cash Flows'!$B47:$EC47,MATCH('Monthly CF'!AD$6,'Monthly Cash Flows'!$B$13:$EC$13)) -> 0 | AE41: =INDEX('Monthly Cash Flows'!$B47:$EC47,MATCH('Monthly CF'!AE$6,'Monthly Cash Flows'!$B$13:$EC$13)) -> 0 | AF41: =INDEX('Monthly Cash Flows'!$B47:$EC47,MATCH('Monthly CF'!AF$6,'Monthly Cash Flows'!$B$13:$EC$13)) -> 0 | AG41: =INDEX('Monthly Cash Flows'!$B47:$EC47,MATCH('Monthly CF'!AG$6,'Monthly Cash Flows'!$B$13:$EC$13)) -> 0 | AH41: =INDEX('Monthly Cash Flows'!$B47:$EC47,MATCH('Monthly CF'!AH$6,'Monthly Cash Flows'!$B$13:$EC$13)) -> 0 | AI41: =INDEX('Monthly Cash Flows'!$B47:$EC47,MATCH('Monthly CF'!AI$6,'Monthly Cash Flows'!$B$13:$EC$13)) -> 0 | AJ41: =INDEX('Monthly Cash Flows'!$B47:$EC47,MATCH('Monthly CF'!AJ$6,'Monthly Cash Flows'!$B$13:$EC$13)) -> 0 | AK41: =INDEX('Monthly Cash Flows'!$B47:$EC47,MATCH('Monthly CF'!AK$6,'Monthly Cash Flows'!$B$13:$EC$13)) -> 0 | AL41: =INDEX('Monthly Cash Flows'!$B47:$EC47,MATCH('Monthly CF'!AL$6,'Monthly Cash Flows'!$B$13:$EC$13)) -> 0 | AM41: =INDEX('Monthly Cash Flows'!$B47:$EC47,MATCH('Monthly CF'!AM$6,'Monthly Cash Flows'!$B$13:$EC$13)) -> 0 | AN41: =INDEX('Monthly Cash Flows'!$B47:$EC47,MATCH('Monthly CF'!AN$6,'Monthly Cash Flows'!$B$13:$EC$13)) -> 0 | AO41: =INDEX('Monthly Cash Flows'!$B47:$EC47,MATCH('Monthly CF'!AO$6,'Monthly Cash Flows'!$B$13:$EC$13)) -> 0 | AP41: =INDEX('Monthly Cash Flows'!$B47:$EC47,MATCH('Monthly CF'!AP$6,'Monthly Cash Flows'!$B$13:$EC$13)) -> 0 | AQ41: =INDEX('Monthly Cash Flows'!$B47:$EC47,MATCH('Monthly CF'!AQ$6,'Monthly Cash Flows'!$B$13:$EC$13)) -> 0 | AR41: =INDEX('Monthly Cash Flows'!$B47:$EC47,MATCH('Monthly CF'!AR$6,'Monthly Cash Flows'!$B$13:$EC$13)) -> 0 | AS41: =INDEX('Monthly Cash Flows'!$B47:$EC47,MATCH('Monthly CF'!AS$6,'Monthly Cash Flows'!$B$13:$EC$13)) -> 0 | AT41: =INDEX('Monthly Cash Flows'!$B47:$EC47,MATCH('Monthly CF'!AT$6,'Monthly Cash Flows'!$B$13:$EC$13)) -> 0 | AU41: =INDEX('Monthly Cash Flows'!$B47:$EC47,MATCH('Monthly CF'!AU$6,'Monthly Cash Flows'!$B$13:$EC$13)) -> 0 | AV41: =INDEX('Monthly Cash Flows'!$B47:$EC47,MATCH('Monthly CF'!AV$6,'Monthly Cash Flows'!$B$13:$EC$13)) -> 0 | AW41: =INDEX('Monthly Cash Flows'!$B47:$EC47,MATCH('Monthly CF'!AW$6,'Monthly Cash Flows'!$B$13:$EC$13)) -> 0 | AX41: =INDEX('Monthly Cash Flows'!$B47:$EC47,MATCH('Monthly CF'!AX$6,'Monthly Cash Flows'!$B$13:$EC$13)) -> 0 | AY41: =INDEX('Monthly Cash Flows'!$B47:$EC47,MATCH('Monthly CF'!AY$6,'Monthly Cash Flows'!$B$13:$EC$13)) -> 0 | AZ41: =INDEX('Monthly Cash Flows'!$B47:$EC47,MATCH('Monthly CF'!AZ$6,'Monthly Cash Flows'!$B$13:$EC$13)) -> 0 | BA41: =INDEX('Monthly Cash Flows'!$B47:$EC47,MATCH('Monthly CF'!BA$6,'Monthly Cash Flows'!$B$13:$EC$13)) -> 0 | BB41: =INDEX('Monthly Cash Flows'!$B47:$EC47,MATCH('Monthly CF'!BB$6,'Monthly Cash Flows'!$B$13:$EC$13)) -> 0 | BC41: =INDEX('Monthly Cash Flows'!$B47:$EC47,MATCH('Monthly CF'!BC$6,'Monthly Cash Flows'!$B$13:$EC$13)) -> 0 | BD41: =INDEX('Monthly Cash Flows'!$B47:$EC47,MATCH('Monthly CF'!BD$6,'Monthly Cash Flows'!$B$13:$EC$13)) -> 0 | BE41: =INDEX('Monthly Cash Flows'!$B47:$EC47,MATCH('Monthly CF'!BE$6,'Monthly Cash Flows'!$B$13:$EC$13)) -> 0 | BF41: =INDEX('Monthly Cash Flows'!$B47:$EC47,MATCH('Monthly CF'!BF$6,'Monthly Cash Flows'!$B$13:$EC$13)) -> 0 | BG41: =INDEX('Monthly Cash Flows'!$B47:$EC47,MATCH('Monthly CF'!BG$6,'Monthly Cash Flows'!$B$13:$EC$13)) -> 0 | BH41: =INDEX('Monthly Cash Flows'!$B47:$EC47,MATCH('Monthly CF'!BH$6,'Monthly Cash Flows'!$B$13:$EC$13)) -> 0 | BI41: =INDEX('Monthly Cash Flows'!$B47:$EC47,MATCH('Monthly CF'!BI$6,'Monthly Cash Flows'!$B$13:$EC$13)) -> 0 | BJ41: =INDEX('Monthly Cash Flows'!$B47:$EC47,MATCH('Monthly CF'!BJ$6,'Monthly Cash Flows'!$B$13:$EC$13)) -> 0 | BK41: =INDEX('Monthly Cash Flows'!$B47:$EC47,MATCH('Monthly CF'!BK$6,'Monthly Cash Flows'!$B$13:$EC$13)) -> 0 | BL41: =INDEX('Monthly Cash Flows'!$B47:$EC47,MATCH('Monthly CF'!BL$6,'Monthly Cash Flows'!$B$13:$EC$13)) -> 0 | BM41: =INDEX('Monthly Cash Flows'!$B47:$EC47,MATCH('Monthly CF'!BM$6,'Monthly Cash Flows'!$B$13:$EC$13)) -> 0 | BN41: =INDEX('Monthly Cash Flows'!$B47:$EC47,MATCH('Monthly CF'!BN$6,'Monthly Cash Flows'!$B$13:$EC$13)) -> 0 | BO41: =INDEX('Monthly Cash Flows'!$B47:$EC47,MATCH('Monthly CF'!BO$6,'Monthly Cash Flows'!$B$13:$EC$13)) -> 0 | BP41: =INDEX('Monthly Cash Flows'!$B47:$EC47,MATCH('Monthly CF'!BP$6,'Monthly Cash Flows'!$B$13:$EC$13)) -> 0 | BQ41: =INDEX('Monthly Cash Flows'!$B47:$EC47,MATCH('Monthly CF'!BQ$6,'Monthly Cash Flows'!$B$13:$EC$13)) -> 0 | BR41: =INDEX('Monthly Cash Flows'!$B47:$EC47,MATCH('Monthly CF'!BR$6,'Monthly Cash Flows'!$B$13:$EC$13)) -> 0 | BS41: =INDEX('Monthly Cash Flows'!$B47:$EC47,MATCH('Monthly CF'!BS$6,'Monthly Cash Flows'!$B$13:$EC$13)) -> 0 | BT41: =INDEX('Monthly Cash Flows'!$B47:$EC47,MATCH('Monthly CF'!BT$6,'Monthly Cash Flows'!$B$13:$EC$13)) -> 0 | BU41: =INDEX('Monthly Cash Flows'!$B47:$EC47,MATCH('Monthly CF'!BU$6,'Monthly Cash Flows'!$B$13:$EC$13)) -> 0 | BV41: =INDEX('Monthly Cash Flows'!$B47:$EC47,MATCH('Monthly CF'!BV$6,'Monthly Cash Flows'!$B$13:$EC$13)) -> 0 | BW41: =INDEX('Monthly Cash Flows'!$B47:$EC47,MATCH('Monthly CF'!BW$6,'Monthly Cash Flows'!$B$13:$EC$13)) -> 0 | BX41: =INDEX('Monthly Cash Flows'!$B47:$EC47,MATCH('Monthly CF'!BX$6,'Monthly Cash Flows'!$B$13:$EC$13)) -> 0 | BY41: =INDEX('Monthly Cash Flows'!$B47:$EC47,MATCH('Monthly CF'!BY$6,'Monthly Cash Flows'!$B$13:$EC$13)) -> 0 | BZ41: =INDEX('Monthly Cash Flows'!$B47:$EC47,MATCH('Monthly CF'!BZ$6,'Monthly Cash Flows'!$B$13:$EC$13)) -> 0 | CA41: =INDEX('Monthly Cash Flows'!$B47:$EC47,MATCH('Monthly CF'!CA$6,'Monthly Cash Flows'!$B$13:$EC$13)) -> 0 | CB41: =INDEX('Monthly Cash Flows'!$B47:$EC47,MATCH('Monthly CF'!CB$6,'Monthly Cash Flows'!$B$13:$EC$13)) -> 0 | CC41: =INDEX('Monthly Cash Flows'!$B47:$EC47,MATCH('Monthly CF'!CC$6,'Monthly Cash Flows'!$B$13:$EC$13)) -> 0 | CD41: =INDEX('Monthly Cash Flows'!$B47:$EC47,MATCH('Monthly CF'!CD$6,'Monthly Cash Flows'!$B$13:$EC$13)) -> 0 | CE41: =INDEX('Monthly Cash Flows'!$B47:$EC47,MATCH('Monthly CF'!CE$6,'Monthly Cash Flows'!$B$13:$EC$13)) -> 0 | CF41: =INDEX('Monthly Cash Flows'!$B47:$EC47,MATCH('Monthly CF'!CF$6,'Monthly Cash Flows'!$B$13:$EC$13)) -> 0 | CG41: =INDEX('Monthly Cash Flows'!$B47:$EC47,MATCH('Monthly CF'!CG$6,'Monthly Cash Flows'!$B$13:$EC$13)) -> 0 | CH41: =INDEX('Monthly Cash Flows'!$B47:$EC47,MATCH('Monthly CF'!CH$6,'Monthly Cash Flows'!$B$13:$EC$13)) -> 0 | CI41: =INDEX('Monthly Cash Flows'!$B47:$EC47,MATCH('Monthly CF'!CI$6,'Monthly Cash Flows'!$B$13:$EC$13)) -> 0 | CJ41: =INDEX('Monthly Cash Flows'!$B47:$EC47,MATCH('Monthly CF'!CJ$6,'Monthly Cash Flows'!$B$13:$EC$13)) -> 0 | CK41: =INDEX('Monthly Cash Flows'!$B47:$EC47,MATCH('Monthly CF'!CK$6,'Monthly Cash Flows'!$B$13:$EC$13)) -> 0 | CL41: =INDEX('Monthly Cash Flows'!$B47:$EC47,MATCH('Monthly CF'!CL$6,'Monthly Cash Flows'!$B$13:$EC$13)) -> 0 | CM41: =INDEX('Monthly Cash Flows'!$B47:$EC47,MATCH('Monthly CF'!CM$6,'Monthly Cash Flows'!$B$13:$EC$13)) -> 0 | CN41: =INDEX('Monthly Cash Flows'!$B47:$EC47,MATCH('Monthly CF'!CN$6,'Monthly Cash Flows'!$B$13:$EC$13)) -> 0 | CO41: =INDEX('Monthly Cash Flows'!$B47:$EC47,MATCH('Monthly CF'!CO$6,'Monthly Cash Flows'!$B$13:$EC$13)) -> 0 | CP41: =INDEX('Monthly Cash Flows'!$B47:$EC47,MATCH('Monthly CF'!CP$6,'Monthly Cash Flows'!$B$13:$EC$13)) -> 0 | CQ41: =INDEX('Monthly Cash Flows'!$B47:$EC47,MATCH('Monthly CF'!CQ$6,'Monthly Cash Flows'!$B$13:$EC$13)) -> 0 | CR41: =INDEX('Monthly Cash Flows'!$B47:$EC47,MATCH('Monthly CF'!CR$6,'Monthly Cash Flows'!$B$13:$EC$13)) -> 0 | CS41: =INDEX('Monthly Cash Flows'!$B47:$EC47,MATCH('Monthly CF'!CS$6,'Monthly Cash Flows'!$B$13:$EC$13)) -> 0 | CT41: =INDEX('Monthly Cash Flows'!$B47:$EC47,MATCH('Monthly CF'!CT$6,'Monthly Cash Flows'!$B$13:$EC$13)) -> 0 | CU41: =INDEX('Monthly Cash Flows'!$B47:$EC47,MATCH('Monthly CF'!CU$6,'Monthly Cash Flows'!$B$13:$EC$13)) -> 0 | CV41: =INDEX('Monthly Cash Flows'!$B47:$EC47,MATCH('Monthly CF'!CV$6,'Monthly Cash Flows'!$B$13:$EC$13)) -> 0 | CW41: =INDEX('Monthly Cash Flows'!$B47:$EC47,MATCH('Monthly CF'!CW$6,'Monthly Cash Flows'!$B$13:$EC$13)) -> 0 | CX41: =INDEX('Monthly Cash Flows'!$B47:$EC47,MATCH('Monthly CF'!CX$6,'Monthly Cash Flows'!$B$13:$EC$13)) -> 0 | CY41: =INDEX('Monthly Cash Flows'!$B47:$EC47,MATCH('Monthly CF'!CY$6,'Monthly Cash Flows'!$B$13:$EC$13)) -> 0 | CZ41: =INDEX('Monthly Cash Flows'!$B47:$EC47,MATCH('Monthly CF'!CZ$6,'Monthly Cash Flows'!$B$13:$EC$13)) -> 0 | DA41: =INDEX('Monthly Cash Flows'!$B47:$EC47,MATCH('Monthly CF'!DA$6,'Monthly Cash Flows'!$B$13:$EC$13)) -> 0 | DB41: =INDEX('Monthly Cash Flows'!$B47:$EC47,MATCH('Monthly CF'!DB$6,'Monthly Cash Flows'!$B$13:$EC$13)) -> 0 | DC41: =INDEX('Monthly Cash Flows'!$B47:$EC47,MATCH('Monthly CF'!DC$6,'Monthly Cash Flows'!$B$13:$EC$13)) -> 0 | DD41: =INDEX('Monthly Cash Flows'!$B47:$EC47,MATCH('Monthly CF'!DD$6,'Monthly Cash Flows'!$B$13:$EC$13)) -> 0 | DE41: =INDEX('Monthly Cash Flows'!$B47:$EC47,MATCH('Monthly CF'!DE$6,'Monthly Cash Flows'!$B$13:$EC$13)) -> 0 | DF41: =INDEX('Monthly Cash Flows'!$B47:$EC47,MATCH('Monthly CF'!DF$6,'Monthly Cash Flows'!$B$13:$EC$13)) -> 0 | DG41: =INDEX('Monthly Cash Flows'!$B47:$EC47,MATCH('Monthly CF'!DG$6,'Monthly Cash Flows'!$B$13:$EC$13)) -> 0 | DH41: =INDEX('Monthly Cash Flows'!$B47:$EC47,MATCH('Monthly CF'!DH$6,'Monthly Cash Flows'!$B$13:$EC$13)) -> 0 | DI41: =INDEX('Monthly Cash Flows'!$B47:$EC47,MATCH('Monthly CF'!DI$6,'Monthly Cash Flows'!$B$13:$EC$13)) -> 0 | DJ41: =INDEX('Monthly Cash Flows'!$B47:$EC47,MATCH('Monthly CF'!DJ$6,'Monthly Cash Flows'!$B$13:$EC$13)) -> 0 | DK41: =INDEX('Monthly Cash Flows'!$B47:$EC47,MATCH('Monthly CF'!DK$6,'Monthly Cash Flows'!$B$13:$EC$13)) -> 0 | DL41: =INDEX('Monthly Cash Flows'!$B47:$EC47,MATCH('Monthly CF'!DL$6,'Monthly Cash Flows'!$B$13:$EC$13)) -> 0 | DM41: =INDEX('Monthly Cash Flows'!$B47:$EC47,MATCH('Monthly CF'!DM$6,'Monthly Cash Flows'!$B$13:$EC$13)) -> 0 | DN41: =INDEX('Monthly Cash Flows'!$B47:$EC47,MATCH('Monthly CF'!DN$6,'Monthly Cash Flows'!$B$13:$EC$13)) -> 0 | DO41: =INDEX('Monthly Cash Flows'!$B47:$EC47,MATCH('Monthly CF'!DO$6,'Monthly Cash Flows'!$B$13:$EC$13)) -> 0 | DP41: =INDEX('Monthly Cash Flows'!$B47:$EC47,MATCH('Monthly CF'!DP$6,'Monthly Cash Flows'!$B$13:$EC$13)) -> 0 | DQ41: =INDEX('Monthly Cash Flows'!$B47:$EC47,MATCH('Monthly CF'!DQ$6,'Monthly Cash Flows'!$B$13:$EC$13)) -> 0 | DR41: =INDEX('Monthly Cash Flows'!$B47:$EC47,MATCH('Monthly CF'!DR$6,'Monthly Cash Flows'!$B$13:$EC$13)) -> 0 | DS41: =INDEX('Monthly Cash Flows'!$B47:$EC47,MATCH('Monthly CF'!DS$6,'Monthly Cash Flows'!$B$13:$EC$13)) -> 0 | DT41: =INDEX('Monthly Cash Flows'!$B47:$EC47,MATCH('Monthly CF'!DT$6,'Monthly Cash Flows'!$B$13:$EC$13)) -> 0 | DU41: =INDEX('Monthly Cash Flows'!$B47:$EC47,MATCH('Monthly CF'!DU$6,'Monthly Cash Flows'!$B$13:$EC$13)) -> 0 | DV41: =INDEX('Monthly Cash Flows'!$B47:$EC47,MATCH('Monthly CF'!DV$6,'Monthly Cash Flows'!$B$13:$EC$13)) -> 0 | DW41: =INDEX('Monthly Cash Flows'!$B47:$EC47,MATCH('Monthly CF'!DW$6,'Monthly Cash Flows'!$B$13:$EC$13)) -> 0 | DX41: =INDEX('Monthly Cash Flows'!$B47:$EC47,MATCH('Monthly CF'!DX$6,'Monthly Cash Flows'!$B$13:$EC$13)) -> 0 | DY41: =INDEX('Monthly Cash Flows'!$B47:$EC47,MATCH('Monthly CF'!DY$6,'Monthly Cash Flows'!$B$13:$EC$13)) -> 0 | DZ41: =INDEX('Monthly Cash Flows'!$B47:$EC47,MATCH('Monthly CF'!DZ$6,'Monthly Cash Flows'!$B$13:$EC$13)) -> 0 | EA41: =INDEX('Monthly Cash Flows'!$B47:$EC47,MATCH('Monthly CF'!EA$6,'Monthly Cash Flows'!$B$13:$EC$13)) -> 0 | EB41: =INDEX('Monthly Cash Flows'!$B47:$EC47,MATCH('Monthly CF'!EB$6,'Monthly Cash Flows'!$B$13:$EC$13)) -> 0 | EC41: =INDEX('Monthly Cash Flows'!$B47:$EC47,MATCH('Monthly CF'!EC$6,'Monthly Cash Flows'!$B$13:$EC$13)) -> 0 | ED41: =INDEX('Monthly Cash Flows'!$B47:$EC47,MATCH('Monthly CF'!ED$6,'Monthly Cash Flows'!$B$13:$EC$13)) -> 0 | EE41: =INDEX('Monthly Cash Flows'!$B47:$EC47,MATCH('Monthly CF'!EE$6,'Monthly Cash Flows'!$B$13:$EC$13)) -> 0 | EF41: =INDEX('Monthly Cash Flows'!$B47:$EC47,MATCH('Monthly CF'!EF$6,'Monthly Cash Flows'!$B$13:$EC$13)) -> 0 | EG41: =INDEX('Monthly Cash Flows'!$B47:$EC47,MATCH('Monthly CF'!EG$6,'Monthly Cash Flows'!$B$13:$EC$13)) -> 0
B42: =+'Monthly Cash Flows'!A48 -> Replacement Reserves | F42: =INDEX('Monthly Cash Flows'!$B48:$EC48,MATCH('Monthly CF'!F$6,'Monthly Cash Flows'!$B$13:$EC$13)) -> 849.5416667 | G42: =INDEX('Monthly Cash Flows'!$B48:$EC48,MATCH('Monthly CF'!G$6,'Monthly Cash Flows'!$B$13:$EC$13)) -> 849.5416667 | H42: =INDEX('Monthly Cash Flows'!$B48:$EC48,MATCH('Monthly CF'!H$6,'Monthly Cash Flows'!$B$13:$EC$13)) -> 849.5416667 | I42: =INDEX('Monthly Cash Flows'!$B48:$EC48,MATCH('Monthly CF'!I$6,'Monthly Cash Flows'!$B$13:$EC$13)) -> 849.5416667 | J42: =INDEX('Monthly Cash Flows'!$B48:$EC48,MATCH('Monthly CF'!J$6,'Monthly Cash Flows'!$B$13:$EC$13)) -> 849.5416667 | K42: =INDEX('Monthly Cash Flows'!$B48:$EC48,MATCH('Monthly CF'!K$6,'Monthly Cash Flows'!$B$13:$EC$13)) -> 849.5416667 | L42: =INDEX('Monthly Cash Flows'!$B48:$EC48,MATCH('Monthly CF'!L$6,'Monthly Cash Flows'!$B$13:$EC$13)) -> 849.5416667 | M42: =INDEX('Monthly Cash Flows'!$B48:$EC48,MATCH('Monthly CF'!M$6,'Monthly Cash Flows'!$B$13:$EC$13)) -> 849.5416667 | N42: =INDEX('Monthly Cash Flows'!$B48:$EC48,MATCH('Monthly CF'!N$6,'Monthly Cash Flows'!$B$13:$EC$13)) -> 849.5416667 | O42: =INDEX('Monthly Cash Flows'!$B48:$EC48,MATCH('Monthly CF'!O$6,'Monthly Cash Flows'!$B$13:$EC$13)) -> 849.5416667 | P42: =INDEX('Monthly Cash Flows'!$B48:$EC48,MATCH('Monthly CF'!P$6,'Monthly Cash Flows'!$B$13:$EC$13)) -> 849.5416667 | Q42: =INDEX('Monthly Cash Flows'!$B48:$EC48,MATCH('Monthly CF'!Q$6,'Monthly Cash Flows'!$B$13:$EC$13)) -> 849.5416667 | R42: =INDEX('Monthly Cash Flows'!$B48:$EC48,MATCH('Monthly CF'!R$6,'Monthly Cash Flows'!$B$13:$EC$13)) -> 849.5416667 | S42: =INDEX('Monthly Cash Flows'!$B48:$EC48,MATCH('Monthly CF'!S$6,'Monthly Cash Flows'!$B$13:$EC$13)) -> 849.5416667 | T42: =INDEX('Monthly Cash Flows'!$B48:$EC48,MATCH('Monthly CF'!T$6,'Monthly Cash Flows'!$B$13:$EC$13)) -> 849.5416667 | U42: =INDEX('Monthly Cash Flows'!$B48:$EC48,MATCH('Monthly CF'!U$6,'Monthly Cash Flows'!$B$13:$EC$13)) -> 849.5416667 | V42: =INDEX('Monthly Cash Flows'!$B48:$EC48,MATCH('Monthly CF'!V$6,'Monthly Cash Flows'!$B$13:$EC$13)) -> 849.5416667 | W42: =INDEX('Monthly Cash Flows'!$B48:$EC48,MATCH('Monthly CF'!W$6,'Monthly Cash Flows'!$B$13:$EC$13)) -> 849.5416667 | X42: =INDEX('Monthly Cash Flows'!$B48:$EC48,MATCH('Monthly CF'!X$6,'Monthly Cash Flows'!$B$13:$EC$13)) -> 849.5416667 | Y42: =INDEX('Monthly Cash Flows'!$B48:$EC48,MATCH('Monthly CF'!Y$6,'Monthly Cash Flows'!$B$13:$EC$13)) -> 849.5416667 | Z42: =INDEX('Monthly Cash Flows'!$B48:$EC48,MATCH('Monthly CF'!Z$6,'Monthly Cash Flows'!$B$13:$EC$13)) -> 849.5416667 | AA42: =INDEX('Monthly Cash Flows'!$B48:$EC48,MATCH('Monthly CF'!AA$6,'Monthly Cash Flows'!$B$13:$EC$13)) -> 849.5416667 | AB42: =INDEX('Monthly Cash Flows'!$B48:$EC48,MATCH('Monthly CF'!AB$6,'Monthly Cash Flows'!$B$13:$EC$13)) -> 849.5416667 | AC42: =INDEX('Monthly Cash Flows'!$B48:$EC48,MATCH('Monthly CF'!AC$6,'Monthly Cash Flows'!$B$13:$EC$13)) -> 849.5416667 | AD42: =INDEX('Monthly Cash Flows'!$B48:$EC48,MATCH('Monthly CF'!AD$6,'Monthly Cash Flows'!$B$13:$EC$13)) -> 849.5416667 | AE42: =INDEX('Monthly Cash Flows'!$B48:$EC48,MATCH('Monthly CF'!AE$6,'Monthly Cash Flows'!$B$13:$EC$13)) -> 849.5416667 | AF42: =INDEX('Monthly Cash Flows'!$B48:$EC48,MATCH('Monthly CF'!AF$6,'Monthly Cash Flows'!$B$13:$EC$13)) -> 849.5416667 | AG42: =INDEX('Monthly Cash Flows'!$B48:$EC48,MATCH('Monthly CF'!AG$6,'Monthly Cash Flows'!$B$13:$EC$13)) -> 849.5416667 | AH42: =INDEX('Monthly Cash Flows'!$B48:$EC48,MATCH('Monthly CF'!AH$6,'Monthly Cash Flows'!$B$13:$EC$13)) -> 849.5416667 | AI42: =INDEX('Monthly Cash Flows'!$B48:$EC48,MATCH('Monthly CF'!AI$6,'Monthly Cash Flows'!$B$13:$EC$13)) -> 849.5416667 | AJ42: =INDEX('Monthly Cash Flows'!$B48:$EC48,MATCH('Monthly CF'!AJ$6,'Monthly Cash Flows'!$B$13:$EC$13)) -> 849.5416667 | AK42: =INDEX('Monthly Cash Flows'!$B48:$EC48,MATCH('Monthly CF'!AK$6,'Monthly Cash Flows'!$B$13:$EC$13)) -> 849.5416667 | AL42: =INDEX('Monthly Cash Flows'!$B48:$EC48,MATCH('Monthly CF'!AL$6,'Monthly Cash Flows'!$B$13:$EC$13)) -> 849.5416667 | AM42: =INDEX('Monthly Cash Flows'!$B48:$EC48,MATCH('Monthly CF'!AM$6,'Monthly Cash Flows'!$B$13:$EC$13)) -> 849.5416667 | AN42: =INDEX('Monthly Cash Flows'!$B48:$EC48,MATCH('Monthly CF'!AN$6,'Monthly Cash Flows'!$B$13:$EC$13)) -> 849.5416667 | AO42: =INDEX('Monthly Cash Flows'!$B48:$EC48,MATCH('Monthly CF'!AO$6,'Monthly Cash Flows'!$B$13:$EC$13)) -> 849.5416667 | AP42: =INDEX('Monthly Cash Flows'!$B48:$EC48,MATCH('Monthly CF'!AP$6,'Monthly Cash Flows'!$B$13:$EC$13)) -> 849.5416667 | AQ42: =INDEX('Monthly Cash Flows'!$B48:$EC48,MATCH('Monthly CF'!AQ$6,'Monthly Cash Flows'!$B$13:$EC$13)) -> 849.5416667 | AR42: =INDEX('Monthly Cash Flows'!$B48:$EC48,MATCH('Monthly CF'!AR$6,'Monthly Cash Flows'!$B$13:$EC$13)) -> 849.5416667 | AS42: =INDEX('Monthly Cash Flows'!$B48:$EC48,MATCH('Monthly CF'!AS$6,'Monthly Cash Flows'!$B$13:$EC$13)) -> 849.5416667 | AT42: =INDEX('Monthly Cash Flows'!$B48:$EC48,MATCH('Monthly CF'!AT$6,'Monthly Cash Flows'!$B$13:$EC$13)) -> 849.5416667 | AU42: =INDEX('Monthly Cash Flows'!$B48:$EC48,MATCH('Monthly CF'!AU$6,'Monthly Cash Flows'!$B$13:$EC$13)) -> 849.5416667 | AV42: =INDEX('Monthly Cash Flows'!$B48:$EC48,MATCH('Monthly CF'!AV$6,'Monthly Cash Flows'!$B$13:$EC$13)) -> 849.5416667 | AW42: =INDEX('Monthly Cash Flows'!$B48:$EC48,MATCH('Monthly CF'!AW$6,'Monthly Cash Flows'!$B$13:$EC$13)) -> 849.5416667 | AX42: =INDEX('Monthly Cash Flows'!$B48:$EC48,MATCH('Monthly CF'!AX$6,'Monthly Cash Flows'!$B$13:$EC$13)) -> 849.5416667 | AY42: =INDEX('Monthly Cash Flows'!$B48:$EC48,MATCH('Monthly CF'!AY$6,'Monthly Cash Flows'!$B$13:$EC$13)) -> 849.5416667 | AZ42: =INDEX('Monthly Cash Flows'!$B48:$EC48,MATCH('Monthly CF'!AZ$6,'Monthly Cash Flows'!$B$13:$EC$13)) -> 849.5416667 | BA42: =INDEX('Monthly Cash Flows'!$B48:$EC48,MATCH('Monthly CF'!BA$6,'Monthly Cash Flows'!$B$13:$EC$13)) -> 849.5416667 | BB42: =INDEX('Monthly Cash Flows'!$B48:$EC48,MATCH('Monthly CF'!BB$6,'Monthly Cash Flows'!$B$13:$EC$13)) -> 849.5416667 | BC42: =INDEX('Monthly Cash Flows'!$B48:$EC48,MATCH('Monthly CF'!BC$6,'Monthly Cash Flows'!$B$13:$EC$13)) -> 849.5416667 | BD42: =INDEX('Monthly Cash Flows'!$B48:$EC48,MATCH('Monthly CF'!BD$6,'Monthly Cash Flows'!$B$13:$EC$13)) -> 849.5416667 | BE42: =INDEX('Monthly Cash Flows'!$B48:$EC48,MATCH('Monthly CF'!BE$6,'Monthly Cash Flows'!$B$13:$EC$13)) -> 849.5416667 | BF42: =INDEX('Monthly Cash Flows'!$B48:$EC48,MATCH('Monthly CF'!BF$6,'Monthly Cash Flows'!$B$13:$EC$13)) -> 849.5416667 | BG42: =INDEX('Monthly Cash Flows'!$B48:$EC48,MATCH('Monthly CF'!BG$6,'Monthly Cash Flows'!$B$13:$EC$13)) -> 849.5416667 | BH42: =INDEX('Monthly Cash Flows'!$B48:$EC48,MATCH('Monthly CF'!BH$6,'Monthly Cash Flows'!$B$13:$EC$13)) -> 849.5416667 | BI42: =INDEX('Monthly Cash Flows'!$B48:$EC48,MATCH('Monthly CF'!BI$6,'Monthly Cash Flows'!$B$13:$EC$13)) -> 849.5416667 | BJ42: =INDEX('Monthly Cash Flows'!$B48:$EC48,MATCH('Monthly CF'!BJ$6,'Monthly Cash Flows'!$B$13:$EC$13)) -> 849.5416667 | BK42: =INDEX('Monthly Cash Flows'!$B48:$EC48,MATCH('Monthly CF'!BK$6,'Monthly Cash Flows'!$B$13:$EC$13)) -> 849.5416667 | BL42: =INDEX('Monthly Cash Flows'!$B48:$EC48,MATCH('Monthly CF'!BL$6,'Monthly Cash Flows'!$B$13:$EC$13)) -> 849.5416667 | BM42: =INDEX('Monthly Cash Flows'!$B48:$EC48,MATCH('Monthly CF'!BM$6,'Monthly Cash Flows'!$B$13:$EC$13)) -> 849.5416667 | BN42: =INDEX('Monthly Cash Flows'!$B48:$EC48,MATCH('Monthly CF'!BN$6,'Monthly Cash Flows'!$B$13:$EC$13)) -> 849.5416667 | BO42: =INDEX('Monthly Cash Flows'!$B48:$EC48,MATCH('Monthly CF'!BO$6,'Monthly Cash Flows'!$B$13:$EC$13)) -> 849.5416667 | BP42: =INDEX('Monthly Cash Flows'!$B48:$EC48,MATCH('Monthly CF'!BP$6,'Monthly Cash Flows'!$B$13:$EC$13)) -> 849.5416667 | BQ42: =INDEX('Monthly Cash Flows'!$B48:$EC48,MATCH('Monthly CF'!BQ$6,'Monthly Cash Flows'!$B$13:$EC$13)) -> 849.5416667 | BR42: =INDEX('Monthly Cash Flows'!$B48:$EC48,MATCH('Monthly CF'!BR$6,'Monthly Cash Flows'!$B$13:$EC$13)) -> 849.5416667 | BS42: =INDEX('Monthly Cash Flows'!$B48:$EC48,MATCH('Monthly CF'!BS$6,'Monthly Cash Flows'!$B$13:$EC$13)) -> 849.5416667 | BT42: =INDEX('Monthly Cash Flows'!$B48:$EC48,MATCH('Monthly CF'!BT$6,'Monthly Cash Flows'!$B$13:$EC$13)) -> 849.5416667 | BU42: =INDEX('Monthly Cash Flows'!$B48:$EC48,MATCH('Monthly CF'!BU$6,'Monthly Cash Flows'!$B$13:$EC$13)) -> 849.5416667 | BV42: =INDEX('Monthly Cash Flows'!$B48:$EC48,MATCH('Monthly CF'!BV$6,'Monthly Cash Flows'!$B$13:$EC$13)) -> 849.5416667 | BW42: =INDEX('Monthly Cash Flows'!$B48:$EC48,MATCH('Monthly CF'!BW$6,'Monthly Cash Flows'!$B$13:$EC$13)) -> 849.5416667 | BX42: =INDEX('Monthly Cash Flows'!$B48:$EC48,MATCH('Monthly CF'!BX$6,'Monthly Cash Flows'!$B$13:$EC$13)) -> 849.5416667 | BY42: =INDEX('Monthly Cash Flows'!$B48:$EC48,MATCH('Monthly CF'!BY$6,'Monthly Cash Flows'!$B$13:$EC$13)) -> 849.5416667 | BZ42: =INDEX('Monthly Cash Flows'!$B48:$EC48,MATCH('Monthly CF'!BZ$6,'Monthly Cash Flows'!$B$13:$EC$13)) -> 849.5416667 | CA42: =INDEX('Monthly Cash Flows'!$B48:$EC48,MATCH('Monthly CF'!CA$6,'Monthly Cash Flows'!$B$13:$EC$13)) -> 849.5416667 | CB42: =INDEX('Monthly Cash Flows'!$B48:$EC48,MATCH('Monthly CF'!CB$6,'Monthly Cash Flows'!$B$13:$EC$13)) -> 849.5416667 | CC42: =INDEX('Monthly Cash Flows'!$B48:$EC48,MATCH('Monthly CF'!CC$6,'Monthly Cash Flows'!$B$13:$EC$13)) -> 849.5416667 | CD42: =INDEX('Monthly Cash Flows'!$B48:$EC48,MATCH('Monthly CF'!CD$6,'Monthly Cash Flows'!$B$13:$EC$13)) -> 849.5416667 | CE42: =INDEX('Monthly Cash Flows'!$B48:$EC48,MATCH('Monthly CF'!CE$6,'Monthly Cash Flows'!$B$13:$EC$13)) -> 849.5416667 | CF42: =INDEX('Monthly Cash Flows'!$B48:$EC48,MATCH('Monthly CF'!CF$6,'Monthly Cash Flows'!$B$13:$EC$13)) -> 849.5416667 | CG42: =INDEX('Monthly Cash Flows'!$B48:$EC48,MATCH('Monthly CF'!CG$6,'Monthly Cash Flows'!$B$13:$EC$13)) -> 849.5416667 | CH42: =INDEX('Monthly Cash Flows'!$B48:$EC48,MATCH('Monthly CF'!CH$6,'Monthly Cash Flows'!$B$13:$EC$13)) -> 849.5416667 | CI42: =INDEX('Monthly Cash Flows'!$B48:$EC48,MATCH('Monthly CF'!CI$6,'Monthly Cash Flows'!$B$13:$EC$13)) -> 849.5416667 | CJ42: =INDEX('Monthly Cash Flows'!$B48:$EC48,MATCH('Monthly CF'!CJ$6,'Monthly Cash Flows'!$B$13:$EC$13)) -> 849.5416667 | CK42: =INDEX('Monthly Cash Flows'!$B48:$EC48,MATCH('Monthly CF'!CK$6,'Monthly Cash Flows'!$B$13:$EC$13)) -> 849.5416667 | CL42: =INDEX('Monthly Cash Flows'!$B48:$EC48,MATCH('Monthly CF'!CL$6,'Monthly Cash Flows'!$B$13:$EC$13)) -> 849.5416667 | CM42: =INDEX('Monthly Cash Flows'!$B48:$EC48,MATCH('Monthly CF'!CM$6,'Monthly Cash Flows'!$B$13:$EC$13)) -> 849.5416667 | CN42: =INDEX('Monthly Cash Flows'!$B48:$EC48,MATCH('Monthly CF'!CN$6,'Monthly Cash Flows'!$B$13:$EC$13)) -> 849.5416667 | CO42: =INDEX('Monthly Cash Flows'!$B48:$EC48,MATCH('Monthly CF'!CO$6,'Monthly Cash Flows'!$B$13:$EC$13)) -> 849.5416667 | CP42: =INDEX('Monthly Cash Flows'!$B48:$EC48,MATCH('Monthly CF'!CP$6,'Monthly Cash Flows'!$B$13:$EC$13)) -> 849.5416667 | CQ42: =INDEX('Monthly Cash Flows'!$B48:$EC48,MATCH('Monthly CF'!CQ$6,'Monthly Cash Flows'!$B$13:$EC$13)) -> 849.5416667 | CR42: =INDEX('Monthly Cash Flows'!$B48:$EC48,MATCH('Monthly CF'!CR$6,'Monthly Cash Flows'!$B$13:$EC$13)) -> 849.5416667 | CS42: =INDEX('Monthly Cash Flows'!$B48:$EC48,MATCH('Monthly CF'!CS$6,'Monthly Cash Flows'!$B$13:$EC$13)) -> 849.5416667 | CT42: =INDEX('Monthly Cash Flows'!$B48:$EC48,MATCH('Monthly CF'!CT$6,'Monthly Cash Flows'!$B$13:$EC$13)) -> 849.5416667 | CU42: =INDEX('Monthly Cash Flows'!$B48:$EC48,MATCH('Monthly CF'!CU$6,'Monthly Cash Flows'!$B$13:$EC$13)) -> 849.5416667 | CV42: =INDEX('Monthly Cash Flows'!$B48:$EC48,MATCH('Monthly CF'!CV$6,'Monthly Cash Flows'!$B$13:$EC$13)) -> 849.5416667 | CW42: =INDEX('Monthly Cash Flows'!$B48:$EC48,MATCH('Monthly CF'!CW$6,'Monthly Cash Flows'!$B$13:$EC$13)) -> 849.5416667 | CX42: =INDEX('Monthly Cash Flows'!$B48:$EC48,MATCH('Monthly CF'!CX$6,'Monthly Cash Flows'!$B$13:$EC$13)) -> 849.5416667 | CY42: =INDEX('Monthly Cash Flows'!$B48:$EC48,MATCH('Monthly CF'!CY$6,'Monthly Cash Flows'!$B$13:$EC$13)) -> 849.5416667 | CZ42: =INDEX('Monthly Cash Flows'!$B48:$EC48,MATCH('Monthly CF'!CZ$6,'Monthly Cash Flows'!$B$13:$EC$13)) -> 849.5416667 | DA42: =INDEX('Monthly Cash Flows'!$B48:$EC48,MATCH('Monthly CF'!DA$6,'Monthly Cash Flows'!$B$13:$EC$13)) -> 849.5416667 | DB42: =INDEX('Monthly Cash Flows'!$B48:$EC48,MATCH('Monthly CF'!DB$6,'Monthly Cash Flows'!$B$13:$EC$13)) -> 849.5416667 | DC42: =INDEX('Monthly Cash Flows'!$B48:$EC48,MATCH('Monthly CF'!DC$6,'Monthly Cash Flows'!$B$13:$EC$13)) -> 849.5416667 | DD42: =INDEX('Monthly Cash Flows'!$B48:$EC48,MATCH('Monthly CF'!DD$6,'Monthly Cash Flows'!$B$13:$EC$13)) -> 849.5416667 | DE42: =INDEX('Monthly Cash Flows'!$B48:$EC48,MATCH('Monthly CF'!DE$6,'Monthly Cash Flows'!$B$13:$EC$13)) -> 849.5416667 | DF42: =INDEX('Monthly Cash Flows'!$B48:$EC48,MATCH('Monthly CF'!DF$6,'Monthly Cash Flows'!$B$13:$EC$13)) -> 849.5416667 | DG42: =INDEX('Monthly Cash Flows'!$B48:$EC48,MATCH('Monthly CF'!DG$6,'Monthly Cash Flows'!$B$13:$EC$13)) -> 849.5416667 | DH42: =INDEX('Monthly Cash Flows'!$B48:$EC48,MATCH('Monthly CF'!DH$6,'Monthly Cash Flows'!$B$13:$EC$13)) -> 849.5416667 | DI42: =INDEX('Monthly Cash Flows'!$B48:$EC48,MATCH('Monthly CF'!DI$6,'Monthly Cash Flows'!$B$13:$EC$13)) -> 849.5416667 | DJ42: =INDEX('Monthly Cash Flows'!$B48:$EC48,MATCH('Monthly CF'!DJ$6,'Monthly Cash Flows'!$B$13:$EC$13)) -> 849.5416667 | DK42: =INDEX('Monthly Cash Flows'!$B48:$EC48,MATCH('Monthly CF'!DK$6,'Monthly Cash Flows'!$B$13:$EC$13)) -> 849.5416667 | DL42: =INDEX('Monthly Cash Flows'!$B48:$EC48,MATCH('Monthly CF'!DL$6,'Monthly Cash Flows'!$B$13:$EC$13)) -> 849.5416667 | DM42: =INDEX('Monthly Cash Flows'!$B48:$EC48,MATCH('Monthly CF'!DM$6,'Monthly Cash Flows'!$B$13:$EC$13)) -> 849.5416667 | DN42: =INDEX('Monthly Cash Flows'!$B48:$EC48,MATCH('Monthly CF'!DN$6,'Monthly Cash Flows'!$B$13:$EC$13)) -> 849.5416667 | DO42: =INDEX('Monthly Cash Flows'!$B48:$EC48,MATCH('Monthly CF'!DO$6,'Monthly Cash Flows'!$B$13:$EC$13)) -> 849.5416667 | DP42: =INDEX('Monthly Cash Flows'!$B48:$EC48,MATCH('Monthly CF'!DP$6,'Monthly Cash Flows'!$B$13:$EC$13)) -> 849.5416667 | DQ42: =INDEX('Monthly Cash Flows'!$B48:$EC48,MATCH('Monthly CF'!DQ$6,'Monthly Cash Flows'!$B$13:$EC$13)) -> 849.5416667 | DR42: =INDEX('Monthly Cash Flows'!$B48:$EC48,MATCH('Monthly CF'!DR$6,'Monthly Cash Flows'!$B$13:$EC$13)) -> 849.5416667 | DS42: =INDEX('Monthly Cash Flows'!$B48:$EC48,MATCH('Monthly CF'!DS$6,'Monthly Cash Flows'!$B$13:$EC$13)) -> 849.5416667 | DT42: =INDEX('Monthly Cash Flows'!$B48:$EC48,MATCH('Monthly CF'!DT$6,'Monthly Cash Flows'!$B$13:$EC$13)) -> 849.5416667 | DU42: =INDEX('Monthly Cash Flows'!$B48:$EC48,MATCH('Monthly CF'!DU$6,'Monthly Cash Flows'!$B$13:$EC$13)) -> 849.5416667 | DV42: =INDEX('Monthly Cash Flows'!$B48:$EC48,MATCH('Monthly CF'!DV$6,'Monthly Cash Flows'!$B$13:$EC$13)) -> 849.5416667 | DW42: =INDEX('Monthly Cash Flows'!$B48:$EC48,MATCH('Monthly CF'!DW$6,'Monthly Cash Flows'!$B$13:$EC$13)) -> 849.5416667 | DX42: =INDEX('Monthly Cash Flows'!$B48:$EC48,MATCH('Monthly CF'!DX$6,'Monthly Cash Flows'!$B$13:$EC$13)) -> 849.5416667 | DY42: =INDEX('Monthly Cash Flows'!$B48:$EC48,MATCH('Monthly CF'!DY$6,'Monthly Cash Flows'!$B$13:$EC$13)) -> 849.5416667 | DZ42: =INDEX('Monthly Cash Flows'!$B48:$EC48,MATCH('Monthly CF'!DZ$6,'Monthly Cash Flows'!$B$13:$EC$13)) -> 849.5416667 | EA42: =INDEX('Monthly Cash Flows'!$B48:$EC48,MATCH('Monthly CF'!EA$6,'Monthly Cash Flows'!$B$13:$EC$13)) -> 849.5416667 | EB42: =INDEX('Monthly Cash Flows'!$B48:$EC48,MATCH('Monthly CF'!EB$6,'Monthly Cash Flows'!$B$13:$EC$13)) -> 849.5416667 | EC42: =INDEX('Monthly Cash Flows'!$B48:$EC48,MATCH('Monthly CF'!EC$6,'Monthly Cash Flows'!$B$13:$EC$13)) -> 849.5416667 | ED42: =INDEX('Monthly Cash Flows'!$B48:$EC48,MATCH('Monthly CF'!ED$6,'Monthly Cash Flows'!$B$13:$EC$13)) -> 849.5416667 | EE42: =INDEX('Monthly Cash Flows'!$B48:$EC48,MATCH('Monthly CF'!EE$6,'Monthly Cash Flows'!$B$13:$EC$13)) -> 849.5416667 | EF42: =INDEX('Monthly Cash Flows'!$B48:$EC48,MATCH('Monthly CF'!EF$6,'Monthly Cash Flows'!$B$13:$EC$13)) -> 849.5416667 | EG42: =INDEX('Monthly Cash Flows'!$B48:$EC48,MATCH('Monthly CF'!EG$6,'Monthly Cash Flows'!$B$13:$EC$13)) -> 849.5416667
B44: Total Leasing & Capital Costs | F44: =SUM(F40:F43) -> 849.5416667 | G44: 849.5416667 | H44: 25499.54167 | I44: 849.5416667 | J44: 849.5416667 | K44: 849.5416667 | L44: 39999.54167 | M44: 849.5416667 | N44: 849.5416667 | O44: 849.5416667 | P44: 86399.54167 | Q44: 849.5416667 | R44: 849.5416667 | S44: 849.5416667 | T44: 849.5416667 | U44: 849.5416667 | V44: 849.5416667 | W44: 849.5416667 | X44: 849.5416667 | Y44: 849.5416667 | Z44: 849.5416667 | AA44: 849.5416667 | AB44: 849.5416667 | AC44: 849.5416667 | AD44: 849.5416667 | AE44: 849.5416667 | AF44: 849.5416667 | AG44: 849.5416667 | AH44: 849.5416667 | AI44: 849.5416667 | AJ44: 849.5416667 | AK44: 849.5416667 | AL44: =SUM(AL40:AL43) -> 849.5416667 | AM44: 849.5416667 | AN44: 849.5416667 | AO44: 849.5416667 | AP44: 849.5416667 | AQ44: 849.5416667 | AR44: 849.5416667 | AS44: 849.5416667 | AT44: 849.5416667 | AU44: 849.5416667 | AV44: 849.5416667 | AW44: 849.5416667 | AX44: 849.5416667 | AY44: 849.5416667 | AZ44: 849.5416667 | BA44: 849.5416667 | BB44: 849.5416667 | BC44: 849.5416667 | BD44: 849.5416667 | BE44: 849.5416667 | BF44: 849.5416667 | BG44: 849.5416667 | BH44: 849.5416667 | BI44: 849.5416667 | BJ44: 849.5416667 | BK44: 849.5416667 | BL44: 849.5416667 | BM44: 849.5416667 | BN44: 849.5416667 | BO44: 849.5416667 | BP44: 849.5416667 | BQ44: 849.5416667 | BR44: =SUM(BR40:BR43) -> 849.5416667 | BS44: 849.5416667 | BT44: 849.5416667 | BU44: 849.5416667 | BV44: 849.5416667 | BW44: 849.5416667 | BX44: 849.5416667 | BY44: 849.5416667 | BZ44: 849.5416667 | CA44: 849.5416667 | CB44: 849.5416667 | CC44: 849.5416667 | CD44: 849.5416667 | CE44: 849.5416667 | CF44: 849.5416667 | CG44: 849.5416667 | CH44: 849.5416667 | CI44: 849.5416667 | CJ44: 849.5416667 | CK44: 849.5416667 | CL44: 849.5416667 | CM44: 849.5416667 | CN44: 849.5416667 | CO44: 849.5416667 | CP44: 849.5416667 | CQ44: 849.5416667 | CR44: 849.5416667 | CS44: 849.5416667 | CT44: 849.5416667 | CU44: 849.5416667 | CV44: 849.5416667 | CW44: 849.5416667 | CX44: =SUM(CX40:CX43) -> 849.5416667 | CY44: 849.5416667 | CZ44: 849.5416667 | DA44: 849.5416667 | DB44: 849.5416667 | DC44: 849.5416667 | DD44: 849.5416667 | DE44: 849.5416667 | DF44: 849.5416667 | DG44: 849.5416667 | DH44: 849.5416667 | DI44: 849.5416667 | DJ44: 849.5416667 | DK44: 849.5416667 | DL44: 849.5416667 | DM44: 849.5416667 | DN44: 849.5416667 | DO44: 849.5416667 | DP44: 849.5416667 | DQ44: 849.5416667 | DR44: 849.5416667 | DS44: 849.5416667 | DT44: 849.5416667 | DU44: 849.5416667 | DV44: 849.5416667 | DW44: 849.5416667 | DX44: 849.5416667 | DY44: 849.5416667 | DZ44: 849.5416667 | EA44: 849.5416667 | EB44: 849.5416667 | EC44: 849.5416667 | ED44: =SUM(ED40:ED43) -> 849.5416667 | EE44: 849.5416667 | EF44: 849.5416667 | EG44: 849.5416667
B46: Cash Flow Before Debt Service | E46: =+E7 -> -8307881.25 | F46: =+(F37-F44)*(F6<='Project Summary'!$Q$8) -> 61484.87878 | G46: =+(G37-G44)*(G6<='Project Summary'!$Q$8) -> 61860.59472 | H46: =+(H37-H44)*(H6<='Project Summary'!$Q$8) -> 40408.09472 | I46: =+(I37-I44)*(I6<='Project Summary'!$Q$8) -> 65654.82003 | J46: =+(J37-J44)*(J6<='Project Summary'!$Q$8) -> 65754.82003 | K46: =+(K37-K44)*(K6<='Project Summary'!$Q$8) -> 66164.85641 | L46: =+(L37-L44)*(L6<='Project Summary'!$Q$8) -> 30389.85641 | M46: =+(M37-M44)*(M6<='Project Summary'!$Q$8) -> 70952.89506 | N46: =+(N37-N44)*(N6<='Project Summary'!$Q$8) -> 70952.89506 | O46: =+(O37-O44)*(O6<='Project Summary'!$Q$8) -> 71774.6254 | P46: =+(P37-P44)*(P6<='Project Summary'!$Q$8) -> -13775.3746 | Q46: =+(Q37-Q44)*(Q6<='Project Summary'!$Q$8) -> 71701.44203 | R46: =+(R37-R44)*(R6<='Project Summary'!$Q$8) -> 71701.44203 | S46: =+(S37-S44)*(S6<='Project Summary'!$Q$8) -> 71701.44203 | T46: =+(T37-T44)*(T6<='Project Summary'!$Q$8) -> 79076.44203 | U46: =+(U37-U44)*(U6<='Project Summary'!$Q$8) -> 79076.44203 | V46: =+(V37-V44)*(V6<='Project Summary'!$Q$8) -> 79076.44203 | W46: =+(W37-W44)*(W6<='Project Summary'!$Q$8) -> 79550.90594 | X46: =+(X37-X44)*(X6<='Project Summary'!$Q$8) -> 79550.90594 | Y46: =+(Y37-Y44)*(Y6<='Project Summary'!$Q$8) -> 79550.90594 | Z46: =+(Z37-Z44)*(Z6<='Project Summary'!$Q$8) -> 79550.90594 | AA46: =+(AA37-AA44)*(AA6<='Project Summary'!$Q$8) -> 79550.90594 | AB46: =+(AB37-AB44)*(AB6<='Project Summary'!$Q$8) -> 79550.90594 | AC46: =+(AC37-AC44)*(AC6<='Project Summary'!$Q$8) -> 79497.948 | AD46: =+(AD37-AD44)*(AD6<='Project Summary'!$Q$8) -> 79497.948 | AE46: =+(AE37-AE44)*(AE6<='Project Summary'!$Q$8) -> 79497.948 | AF46: =+(AF37-AF44)*(AF6<='Project Summary'!$Q$8) -> 79497.948 | AG46: =+(AG37-AG44)*(AG6<='Project Summary'!$Q$8) -> 79497.948 | AH46: =+(AH37-AH44)*(AH6<='Project Summary'!$Q$8) -> 79497.948 | AI46: =+(AI37-AI44)*(AI6<='Project Summary'!$Q$8) -> 80001.30677 | AJ46: =+(AJ37-AJ44)*(AJ6<='Project Summary'!$Q$8) -> 80001.30677 | AK46: =+(AK37-AK44)*(AK6<='Project Summary'!$Q$8) -> 80001.30677 | AL46: =+(AL37-AL44)*(AL6<='Project Summary'!$Q$8) -> 80001.30677 | AM46: =+(AM37-AM44)*(AM6<='Project Summary'!$Q$8) -> 80001.30677 | AN46: =+(AN37-AN44)*(AN6<='Project Summary'!$Q$8) -> 80001.30677 | AO46: =+(AO37-AO44)*(AO6<='Project Summary'!$Q$8) -> 79954.13585 | AP46: =+(AP37-AP44)*(AP6<='Project Summary'!$Q$8) -> 0 | AQ46: =+(AQ37-AQ44)*(AQ6<='Project Summary'!$Q$8) -> 0 | AR46: =+(AR37-AR44)*(AR6<='Project Summary'!$Q$8) -> 0 | AS46: =+(AS37-AS44)*(AS6<='Project Summary'!$Q$8) -> 0 | AT46: =+(AT37-AT44)*(AT6<='Project Summary'!$Q$8) -> 0 | AU46: =+(AU37-AU44)*(AU6<='Project Summary'!$Q$8) -> 0 | AV46: =+(AV37-AV44)*(AV6<='Project Summary'!$Q$8) -> 0 | AW46: =+(AW37-AW44)*(AW6<='Project Summary'!$Q$8) -> 0 | AX46: =+(AX37-AX44)*(AX6<='Project Summary'!$Q$8) -> 0 | AY46: =+(AY37-AY44)*(AY6<='Project Summary'!$Q$8) -> 0 | AZ46: =+(AZ37-AZ44)*(AZ6<='Project Summary'!$Q$8) -> 0 | BA46: =+(BA37-BA44)*(BA6<='Project Summary'!$Q$8) -> 0 | BB46: =+(BB37-BB44)*(BB6<='Project Summary'!$Q$8) -> 0 | BC46: =+(BC37-BC44)*(BC6<='Project Summary'!$Q$8) -> 0 | BD46: =+(BD37-BD44)*(BD6<='Project Summary'!$Q$8) -> 0 | BE46: =+(BE37-BE44)*(BE6<='Project Summary'!$Q$8) -> 0 | BF46: =+(BF37-BF44)*(BF6<='Project Summary'!$Q$8) -> 0 | BG46: =+(BG37-BG44)*(BG6<='Project Summary'!$Q$8) -> 0 | BH46: =+(BH37-BH44)*(BH6<='Project Summary'!$Q$8) -> 0 | BI46: =+(BI37-BI44)*(BI6<='Project Summary'!$Q$8) -> 0 | BJ46: =+(BJ37-BJ44)*(BJ6<='Project Summary'!$Q$8) -> 0 | BK46: =+(BK37-BK44)*(BK6<='Project Summary'!$Q$8) -> 0 | BL46: =+(BL37-BL44)*(BL6<='Project Summary'!$Q$8) -> 0 | BM46: =+(BM37-BM44)*(BM6<='Project Summary'!$Q$8) -> 0 | BN46: =+(BN37-BN44)*(BN6<='Project Summary'!$Q$8) -> 0 | BO46: =+(BO37-BO44)*(BO6<='Project Summary'!$Q$8) -> 0 | BP46: =+(BP37-BP44)*(BP6<='Project Summary'!$Q$8) -> 0 | BQ46: =+(BQ37-BQ44)*(BQ6<='Project Summary'!$Q$8) -> 0 | BR46: =+(BR37-BR44)*(BR6<='Project Summary'!$Q$8) -> 0 | BS46: =+(BS37-BS44)*(BS6<='Project Summary'!$Q$8) -> 0 | BT46: =+(BT37-BT44)*(BT6<='Project Summary'!$Q$8) -> 0 | BU46: =+(BU37-BU44)*(BU6<='Project Summary'!$Q$8) -> 0 | BV46: =+(BV37-BV44)*(BV6<='Project Summary'!$Q$8) -> 0 | BW46: =+(BW37-BW44)*(BW6<='Project Summary'!$Q$8) -> 0 | BX46: =+(BX37-BX44)*(BX6<='Project Summary'!$Q$8) -> 0 | BY46: =+(BY37-BY44)*(BY6<='Project Summary'!$Q$8) -> 0 | BZ46: =+(BZ37-BZ44)*(BZ6<='Project Summary'!$Q$8) -> 0 | CA46: =+(CA37-CA44)*(CA6<='Project Summary'!$Q$8) -> 0 | CB46: =+(CB37-CB44)*(CB6<='Project Summary'!$Q$8) -> 0 | CC46: =+(CC37-CC44)*(CC6<='Project Summary'!$Q$8) -> 0 | CD46: =+(CD37-CD44)*(CD6<='Project Summary'!$Q$8) -> 0 | CE46: =+(CE37-CE44)*(CE6<='Project Summary'!$Q$8) -> 0 | CF46: =+(CF37-CF44)*(CF6<='Project Summary'!$Q$8) -> 0 | CG46: =+(CG37-CG44)*(CG6<='Project Summary'!$Q$8) -> 0 | CH46: =+(CH37-CH44)*(CH6<='Project Summary'!$Q$8) -> 0 | CI46: =+(CI37-CI44)*(CI6<='Project Summary'!$Q$8) -> 0 | CJ46: =+(CJ37-CJ44)*(CJ6<='Project Summary'!$Q$8) -> 0 | CK46: =+(CK37-CK44)*(CK6<='Project Summary'!$Q$8) -> 0 | CL46: =+(CL37-CL44)*(CL6<='Project Summary'!$Q$8) -> 0 | CM46: =+(CM37-CM44)*(CM6<='Project Summary'!$Q$8) -> 0 | CN46: =+(CN37-CN44)*(CN6<='Project Summary'!$Q$8) -> 0 | CO46: =+(CO37-CO44)*(CO6<='Project Summary'!$Q$8) -> 0 | CP46: =+(CP37-CP44)*(CP6<='Project Summary'!$Q$8) -> 0 | CQ46: =+(CQ37-CQ44)*(CQ6<='Project Summary'!$Q$8) -> 0 | CR46: =+(CR37-CR44)*(CR6<='Project Summary'!$Q$8) -> 0 | CS46: =+(CS37-CS44)*(CS6<='Project Summary'!$Q$8) -> 0 | CT46: =+(CT37-CT44)*(CT6<='Project Summary'!$Q$8) -> 0 | CU46: =+(CU37-CU44)*(CU6<='Project Summary'!$Q$8) -> 0 | CV46: =+(CV37-CV44)*(CV6<='Project Summary'!$Q$8) -> 0 | CW46: =+(CW37-CW44)*(CW6<='Project Summary'!$Q$8) -> 0 | CX46: =+(CX37-CX44)*(CX6<='Project Summary'!$Q$8) -> 0 | CY46: =+(CY37-CY44)*(CY6<='Project Summary'!$Q$8) -> 0 | CZ46: =+(CZ37-CZ44)*(CZ6<='Project Summary'!$Q$8) -> 0 | DA46: =+(DA37-DA44)*(DA6<='Project Summary'!$Q$8) -> 0 | DB46: =+(DB37-DB44)*(DB6<='Project Summary'!$Q$8) -> 0 | DC46: =+(DC37-DC44)*(DC6<='Project Summary'!$Q$8) -> 0 | DD46: =+(DD37-DD44)*(DD6<='Project Summary'!$Q$8) -> 0 | DE46: =+(DE37-DE44)*(DE6<='Project Summary'!$Q$8) -> 0 | DF46: =+(DF37-DF44)*(DF6<='Project Summary'!$Q$8) -> 0 | DG46: =+(DG37-DG44)*(DG6<='Project Summary'!$Q$8) -> 0 | DH46: =+(DH37-DH44)*(DH6<='Project Summary'!$Q$8) -> 0 | DI46: =+(DI37-DI44)*(DI6<='Project Summary'!$Q$8) -> 0 | DJ46: =+(DJ37-DJ44)*(DJ6<='Project Summary'!$Q$8) -> 0 | DK46: =+(DK37-DK44)*(DK6<='Project Summary'!$Q$8) -> 0 | DL46: =+(DL37-DL44)*(DL6<='Project Summary'!$Q$8) -> 0 | DM46: =+(DM37-DM44)*(DM6<='Project Summary'!$Q$8) -> 0 | DN46: =+(DN37-DN44)*(DN6<='Project Summary'!$Q$8) -> 0 | DO46: =+(DO37-DO44)*(DO6<='Project Summary'!$Q$8) -> 0 | DP46: =+(DP37-DP44)*(DP6<='Project Summary'!$Q$8) -> 0 | DQ46: =+(DQ37-DQ44)*(DQ6<='Project Summary'!$Q$8) -> 0 | DR46: =+(DR37-DR44)*(DR6<='Project Summary'!$Q$8) -> 0 | DS46: =+(DS37-DS44)*(DS6<='Project Summary'!$Q$8) -> 0 | DT46: =+(DT37-DT44)*(DT6<='Project Summary'!$Q$8) -> 0 | DU46: =+(DU37-DU44)*(DU6<='Project Summary'!$Q$8) -> 0 | DV46: =+(DV37-DV44)*(DV6<='Project Summary'!$Q$8) -> 0 | DW46: =+(DW37-DW44)*(DW6<='Project Summary'!$Q$8) -> 0 | DX46: =+(DX37-DX44)*(DX6<='Project Summary'!$Q$8) -> 0 | DY46: =+(DY37-DY44)*(DY6<='Project Summary'!$Q$8) -> 0 | DZ46: =+(DZ37-DZ44)*(DZ6<='Project Summary'!$Q$8) -> 0 | EA46: =+(EA37-EA44)*(EA6<='Project Summary'!$Q$8) -> 0 | EB46: =+(EB37-EB44)*(EB6<='Project Summary'!$Q$8) -> 0 | EC46: =+(EC37-EC44)*(EC6<='Project Summary'!$Q$8) -> 0 | ED46: =+(ED37-ED44)*(ED6<='Project Summary'!$Q$8) -> 0 | EE46: =+(EE37-EE44)*(EE6<='Project Summary'!$Q$8) -> 0 | EF46: =+(EF37-EF44)*(EF6<='Project Summary'!$Q$8) -> 0 | EG46: =+(EG37-EG44)*(EG6<='Project Summary'!$Q$8) -> 0
B47: Sale of Building | F47: =+(F6='Project Summary'!$Q$8)*'Project Summary'!$P$14 -> 0 | G47: =+(G6='Project Summary'!$Q$8)*'Project Summary'!$P$14 -> 0 | H47: =+(H6='Project Summary'!$Q$8)*'Project Summary'!$P$14 -> 0 | I47: =+(I6='Project Summary'!$Q$8)*'Project Summary'!$P$14 -> 0 | J47: =+(J6='Project Summary'!$Q$8)*'Project Summary'!$P$14 -> 0 | K47: =+(K6='Project Summary'!$Q$8)*'Project Summary'!$P$14 -> 0 | L47: =+(L6='Project Summary'!$Q$8)*'Project Summary'!$P$14 -> 0 | M47: =+(M6='Project Summary'!$Q$8)*'Project Summary'!$P$14 -> 0 | N47: =+(N6='Project Summary'!$Q$8)*'Project Summary'!$P$14 -> 0 | O47: =+(O6='Project Summary'!$Q$8)*'Project Summary'!$P$14 -> 0 | P47: =+(P6='Project Summary'!$Q$8)*'Project Summary'!$P$14 -> 0 | Q47: =+(Q6='Project Summary'!$Q$8)*'Project Summary'!$P$14 -> 0 | R47: =+(R6='Project Summary'!$Q$8)*'Project Summary'!$P$14 -> 0 | S47: =+(S6='Project Summary'!$Q$8)*'Project Summary'!$P$14 -> 0 | T47: =+(T6='Project Summary'!$Q$8)*'Project Summary'!$P$14 -> 0 | U47: =+(U6='Project Summary'!$Q$8)*'Project Summary'!$P$14 -> 0 | V47: =+(V6='Project Summary'!$Q$8)*'Project Summary'!$P$14 -> 0 | W47: =+(W6='Project Summary'!$Q$8)*'Project Summary'!$P$14 -> 0 | X47: =+(X6='Project Summary'!$Q$8)*'Project Summary'!$P$14 -> 0 | Y47: =+(Y6='Project Summary'!$Q$8)*'Project Summary'!$P$14 -> 0 | Z47: =+(Z6='Project Summary'!$Q$8)*'Project Summary'!$P$14 -> 0 | AA47: =+(AA6='Project Summary'!$Q$8)*'Project Summary'!$P$14 -> 0 | AB47: =+(AB6='Project Summary'!$Q$8)*'Project Summary'!$P$14 -> 0 | AC47: =+(AC6='Project Summary'!$Q$8)*'Project Summary'!$P$14 -> 0 | AD47: =+(AD6='Project Summary'!$Q$8)*'Project Summary'!$P$14 -> 0 | AE47: =+(AE6='Project Summary'!$Q$8)*'Project Summary'!$P$14 -> 0 | AF47: =+(AF6='Project Summary'!$Q$8)*'Project Summary'!$P$14 -> 0 | AG47: =+(AG6='Project Summary'!$Q$8)*'Project Summary'!$P$14 -> 0 | AH47: =+(AH6='Project Summary'!$Q$8)*'Project Summary'!$P$14 -> 0 | AI47: =+(AI6='Project Summary'!$Q$8)*'Project Summary'!$P$14 -> 0 | AJ47: =+(AJ6='Project Summary'!$Q$8)*'Project Summary'!$P$14 -> 0 | AK47: =+(AK6='Project Summary'!$Q$8)*'Project Summary'!$P$14 -> 0 | AL47: =+(AL6='Project Summary'!$Q$8)*'Project Summary'!$P$14 -> 0 | AM47: =+(AM6='Project Summary'!$Q$8)*'Project Summary'!$P$14 -> 0 | AN47: =+(AN6='Project Summary'!$Q$8)*'Project Summary'!$P$14 -> 0 | AO47: =+(AO6='Project Summary'!$Q$8)*'Project Summary'!$P$14 -> 12041919.86 | AP47: =+(AP6='Project Summary'!$Q$8)*'Project Summary'!$P$14 -> 0 | AQ47: =+(AQ6='Project Summary'!$Q$8)*'Project Summary'!$P$14 -> 0 | AR47: =+(AR6='Project Summary'!$Q$8)*'Project Summary'!$P$14 -> 0 | AS47: =+(AS6='Project Summary'!$Q$8)*'Project Summary'!$P$14 -> 0 | AT47: =+(AT6='Project Summary'!$Q$8)*'Project Summary'!$P$14 -> 0 | AU47: =+(AU6='Project Summary'!$Q$8)*'Project Summary'!$P$14 -> 0 | AV47: =+(AV6='Project Summary'!$Q$8)*'Project Summary'!$P$14 -> 0 | AW47: =+(AW6='Project Summary'!$Q$8)*'Project Summary'!$P$14 -> 0 | AX47: =+(AX6='Project Summary'!$Q$8)*'Project Summary'!$P$14 -> 0 | AY47: =+(AY6='Project Summary'!$Q$8)*'Project Summary'!$P$14 -> 0 | AZ47: =+(AZ6='Project Summary'!$Q$8)*'Project Summary'!$P$14 -> 0 | BA47: =+(BA6='Project Summary'!$Q$8)*'Project Summary'!$P$14 -> 0 | BB47: =+(BB6='Project Summary'!$Q$8)*'Project Summary'!$P$14 -> 0 | BC47: =+(BC6='Project Summary'!$Q$8)*'Project Summary'!$P$14 -> 0 | BD47: =+(BD6='Project Summary'!$Q$8)*'Project Summary'!$P$14 -> 0 | BE47: =+(BE6='Project Summary'!$Q$8)*'Project Summary'!$P$14 -> 0 | BF47: =+(BF6='Project Summary'!$Q$8)*'Project Summary'!$P$14 -> 0 | BG47: =+(BG6='Project Summary'!$Q$8)*'Project Summary'!$P$14 -> 0 | BH47: =+(BH6='Project Summary'!$Q$8)*'Project Summary'!$P$14 -> 0 | BI47: =+(BI6='Project Summary'!$Q$8)*'Project Summary'!$P$14 -> 0 | BJ47: =+(BJ6='Project Summary'!$Q$8)*'Project Summary'!$P$14 -> 0 | BK47: =+(BK6='Project Summary'!$Q$8)*'Project Summary'!$P$14 -> 0 | BL47: =+(BL6='Project Summary'!$Q$8)*'Project Summary'!$P$14 -> 0 | BM47: =+(BM6='Project Summary'!$Q$8)*'Project Summary'!$P$14 -> 0 | BN47: =+(BN6='Project Summary'!$Q$8)*'Project Summary'!$P$14 -> 0 | BO47: =+(BO6='Project Summary'!$Q$8)*'Project Summary'!$P$14 -> 0 | BP47: =+(BP6='Project Summary'!$Q$8)*'Project Summary'!$P$14 -> 0 | BQ47: =+(BQ6='Project Summary'!$Q$8)*'Project Summary'!$P$14 -> 0 | BR47: =+(BR6='Project Summary'!$Q$8)*'Project Summary'!$P$14 -> 0 | BS47: =+(BS6='Project Summary'!$Q$8)*'Project Summary'!$P$14 -> 0 | BT47: =+(BT6='Project Summary'!$Q$8)*'Project Summary'!$P$14 -> 0 | BU47: =+(BU6='Project Summary'!$Q$8)*'Project Summary'!$P$14 -> 0 | BV47: =+(BV6='Project Summary'!$Q$8)*'Project Summary'!$P$14 -> 0 | BW47: =+(BW6='Project Summary'!$Q$8)*'Project Summary'!$P$14 -> 0 | BX47: =+(BX6='Project Summary'!$Q$8)*'Project Summary'!$P$14 -> 0 | BY47: =+(BY6='Project Summary'!$Q$8)*'Project Summary'!$P$14 -> 0 | BZ47: =+(BZ6='Project Summary'!$Q$8)*'Project Summary'!$P$14 -> 0 | CA47: =+(CA6='Project Summary'!$Q$8)*'Project Summary'!$P$14 -> 0 | CB47: =+(CB6='Project Summary'!$Q$8)*'Project Summary'!$P$14 -> 0 | CC47: =+(CC6='Project Summary'!$Q$8)*'Project Summary'!$P$14 -> 0 | CD47: =+(CD6='Project Summary'!$Q$8)*'Project Summary'!$P$14 -> 0 | CE47: =+(CE6='Project Summary'!$Q$8)*'Project Summary'!$P$14 -> 0 | CF47: =+(CF6='Project Summary'!$Q$8)*'Project Summary'!$P$14 -> 0 | CG47: =+(CG6='Project Summary'!$Q$8)*'Project Summary'!$P$14 -> 0 | CH47: =+(CH6='Project Summary'!$Q$8)*'Project Summary'!$P$14 -> 0 | CI47: =+(CI6='Project Summary'!$Q$8)*'Project Summary'!$P$14 -> 0 | CJ47: =+(CJ6='Project Summary'!$Q$8)*'Project Summary'!$P$14 -> 0 | CK47: =+(CK6='Project Summary'!$Q$8)*'Project Summary'!$P$14 -> 0 | CL47: =+(CL6='Project Summary'!$Q$8)*'Project Summary'!$P$14 -> 0 | CM47: =+(CM6='Project Summary'!$Q$8)*'Project Summary'!$P$14 -> 0 | CN47: =+(CN6='Project Summary'!$Q$8)*'Project Summary'!$P$14 -> 0 | CO47: =+(CO6='Project Summary'!$Q$8)*'Project Summary'!$P$14 -> 0 | CP47: =+(CP6='Project Summary'!$Q$8)*'Project Summary'!$P$14 -> 0 | CQ47: =+(CQ6='Project Summary'!$Q$8)*'Project Summary'!$P$14 -> 0 | CR47: =+(CR6='Project Summary'!$Q$8)*'Project Summary'!$P$14 -> 0 | CS47: =+(CS6='Project Summary'!$Q$8)*'Project Summary'!$P$14 -> 0 | CT47: =+(CT6='Project Summary'!$Q$8)*'Project Summary'!$P$14 -> 0 | CU47: =+(CU6='Project Summary'!$Q$8)*'Project Summary'!$P$14 -> 0 | CV47: =+(CV6='Project Summary'!$Q$8)*'Project Summary'!$P$14 -> 0 | CW47: =+(CW6='Project Summary'!$Q$8)*'Project Summary'!$P$14 -> 0 | CX47: =+(CX6='Project Summary'!$Q$8)*'Project Summary'!$P$14 -> 0 | CY47: =+(CY6='Project Summary'!$Q$8)*'Project Summary'!$P$14 -> 0 | CZ47: =+(CZ6='Project Summary'!$Q$8)*'Project Summary'!$P$14 -> 0 | DA47: =+(DA6='Project Summary'!$Q$8)*'Project Summary'!$P$14 -> 0 | DB47: =+(DB6='Project Summary'!$Q$8)*'Project Summary'!$P$14 -> 0 | DC47: =+(DC6='Project Summary'!$Q$8)*'Project Summary'!$P$14 -> 0 | DD47: =+(DD6='Project Summary'!$Q$8)*'Project Summary'!$P$14 -> 0 | DE47: =+(DE6='Project Summary'!$Q$8)*'Project Summary'!$P$14 -> 0 | DF47: =+(DF6='Project Summary'!$Q$8)*'Project Summary'!$P$14 -> 0 | DG47: =+(DG6='Project Summary'!$Q$8)*'Project Summary'!$P$14 -> 0 | DH47: =+(DH6='Project Summary'!$Q$8)*'Project Summary'!$P$14 -> 0 | DI47: =+(DI6='Project Summary'!$Q$8)*'Project Summary'!$P$14 -> 0 | DJ47: =+(DJ6='Project Summary'!$Q$8)*'Project Summary'!$P$14 -> 0 | DK47: =+(DK6='Project Summary'!$Q$8)*'Project Summary'!$P$14 -> 0 | DL47: =+(DL6='Project Summary'!$Q$8)*'Project Summary'!$P$14 -> 0 | DM47: =+(DM6='Project Summary'!$Q$8)*'Project Summary'!$P$14 -> 0 | DN47: =+(DN6='Project Summary'!$Q$8)*'Project Summary'!$P$14 -> 0 | DO47: =+(DO6='Project Summary'!$Q$8)*'Project Summary'!$P$14 -> 0 | DP47: =+(DP6='Project Summary'!$Q$8)*'Project Summary'!$P$14 -> 0 | DQ47: =+(DQ6='Project Summary'!$Q$8)*'Project Summary'!$P$14 -> 0 | DR47: =+(DR6='Project Summary'!$Q$8)*'Project Summary'!$P$14 -> 0 | DS47: =+(DS6='Project Summary'!$Q$8)*'Project Summary'!$P$14 -> 0 | DT47: =+(DT6='Project Summary'!$Q$8)*'Project Summary'!$P$14 -> 0 | DU47: =+(DU6='Project Summary'!$Q$8)*'Project Summary'!$P$14 -> 0 | DV47: =+(DV6='Project Summary'!$Q$8)*'Project Summary'!$P$14 -> 0 | DW47: =+(DW6='Project Summary'!$Q$8)*'Project Summary'!$P$14 -> 0 | DX47: =+(DX6='Project Summary'!$Q$8)*'Project Summary'!$P$14 -> 0 | DY47: =+(DY6='Project Summary'!$Q$8)*'Project Summary'!$P$14 -> 0 | DZ47: =+(DZ6='Project Summary'!$Q$8)*'Project Summary'!$P$14 -> 0 | EA47: =+(EA6='Project Summary'!$Q$8)*'Project Summary'!$P$14 -> 0 | EB47: =+(EB6='Project Summary'!$Q$8)*'Project Summary'!$P$14 -> 0 | EC47: =+(EC6='Project Summary'!$Q$8)*'Project Summary'!$P$14 -> 0 | ED47: =+(ED6='Project Summary'!$Q$8)*'Project Summary'!$P$14 -> 0 | EE47: =+(EE6='Project Summary'!$Q$8)*'Project Summary'!$P$14 -> 0 | EF47: =+(EF6='Project Summary'!$Q$8)*'Project Summary'!$P$14 -> 0 | EG47: =+(EG6='Project Summary'!$Q$8)*'Project Summary'!$P$14 -> 0
B48: Unleverred Cash Flow | E48: =SUM(E46:E47) -> -8307881.25 | F48: =SUM(F46:F47) -> 61484.87878 | G48: 61860.59472 | H48: 40408.09472 | I48: 65654.82003 | J48: 65754.82003 | K48: 66164.85641 | L48: 30389.85641 | M48: 70952.89506 | N48: 70952.89506 | O48: 71774.6254 | P48: -13775.3746 | Q48: 71701.44203 | R48: 71701.44203 | S48: 71701.44203 | T48: 79076.44203 | U48: 79076.44203 | V48: 79076.44203 | W48: 79550.90594 | X48: 79550.90594 | Y48: 79550.90594 | Z48: 79550.90594 | AA48: 79550.90594 | AB48: 79550.90594 | AC48: 79497.948 | AD48: 79497.948 | AE48: 79497.948 | AF48: 79497.948 | AG48: 79497.948 | AH48: 79497.948 | AI48: 80001.30677 | AJ48: 80001.30677 | AK48: 80001.30677 | AL48: 80001.30677 | AM48: 80001.30677 | AN48: 80001.30677 | AO48: 12121873.99 | AP48: 0 | AQ48: 0 | AR48: 0 | AS48: 0 | AT48: 0 | AU48: 0 | AV48: 0 | AW48: 0 | AX48: 0 | AY48: 0 | AZ48: 0 | BA48: 0 | BB48: 0 | BC48: 0 | BD48: 0 | BE48: 0 | BF48: 0 | BG48: 0 | BH48: 0 | BI48: 0 | BJ48: 0 | BK48: 0 | BL48: 0 | BM48: 0 | BN48: 0 | BO48: 0 | BP48: 0 | BQ48: 0 | BR48: =SUM(BR46:BR47) -> 0 | BS48: 0 | BT48: 0 | BU48: 0 | BV48: 0 | BW48: 0 | BX48: 0 | BY48: 0 | BZ48: 0 | CA48: 0 | CB48: 0 | CC48: 0 | CD48: 0 | CE48: 0 | CF48: 0 | CG48: 0 | CH48: 0 | CI48: 0 | CJ48: 0 | CK48: 0 | CL48: 0 | CM48: 0 | CN48: 0 | CO48: 0 | CP48: 0 | CQ48: 0 | CR48: 0 | CS48: 0 | CT48: 0 | CU48: 0 | CV48: 0 | CW48: 0 | CX48: 0 | CY48: 0 | CZ48: 0 | DA48: 0 | DB48: 0 | DC48: 0 | DD48: 0 | DE48: 0 | DF48: 0 | DG48: 0 | DH48: 0 | DI48: 0 | DJ48: 0 | DK48: 0 | DL48: 0 | DM48: 0 | DN48: 0 | DO48: 0 | DP48: 0 | DQ48: 0 | DR48: 0 | DS48: 0 | DT48: 0 | DU48: 0 | DV48: 0 | DW48: 0 | DX48: 0 | DY48: 0 | DZ48: 0 | EA48: 0 | EB48: 0 | EC48: 0 | ED48: =SUM(ED46:ED47) -> 0 | EE48: 0 | EF48: 0 | EG48: 0
B50: Unleverred IRR | D50: =((IRR(E48:GG48,0.1/12)+1)^12)-1 -> 0.230442062 | AN50: at 7.8% | AO50: =+AO37*12/0.078*0.99 -> 12307021.65 | CJ50: at 7.8% | CK50: =+CK37*12/0.078*0.99 -> 9233336.936
B51: Unleverred Multiple | D51: =+(SUM($E$48:$EG$48)+MAX($E$55:$EG$55))/MAX($E$55:$EG$55) -> 1.756129531 | AN51: at 7.5% | AO51: =+AO37*12/0.075*0.99 -> 12799302.52 | CJ51: at 7.5% | CK51: =+CK37*12/0.075*0.99 -> 9602670.413
B54: Funding Requirement | E54: =+-E46*(E46<0)*(E6<='Project Summary'!$Q$8) -> 8307881.25 | F54: =+-F46*(F46<0)*(F6<='Project Summary'!$Q$8) -> 0 | G54: =+-G46*(G46<0)*(G6<='Project Summary'!$Q$8) -> 0 | H54: =+-H46*(H46<0)*(H6<='Project Summary'!$Q$8) -> 0 | I54: =+-I46*(I46<0)*(I6<='Project Summary'!$Q$8) -> 0 | J54: =+-J46*(J46<0)*(J6<='Project Summary'!$Q$8) -> 0 | K54: =+-K46*(K46<0)*(K6<='Project Summary'!$Q$8) -> 0 | L54: =+-L46*(L46<0)*(L6<='Project Summary'!$Q$8) -> 0 | M54: =+-M46*(M46<0)*(M6<='Project Summary'!$Q$8) -> 0 | N54: =+-N46*(N46<0)*(N6<='Project Summary'!$Q$8) -> 0 | O54: =+-O46*(O46<0)*(O6<='Project Summary'!$Q$8) -> 0 | P54: =+-P46*(P46<0)*(P6<='Project Summary'!$Q$8) -> 13775.3746 | Q54: =+-Q46*(Q46<0)*(Q6<='Project Summary'!$Q$8) -> 0 | R54: =+-R46*(R46<0)*(R6<='Project Summary'!$Q$8) -> 0 | S54: =+-S46*(S46<0)*(S6<='Project Summary'!$Q$8) -> 0 | T54: =+-T46*(T46<0)*(T6<='Project Summary'!$Q$8) -> 0 | U54: =+-U46*(U46<0)*(U6<='Project Summary'!$Q$8) -> 0 | V54: =+-V46*(V46<0)*(V6<='Project Summary'!$Q$8) -> 0 | W54: =+-W46*(W46<0)*(W6<='Project Summary'!$Q$8) -> 0 | X54: =+-X46*(X46<0)*(X6<='Project Summary'!$Q$8) -> 0 | Y54: =+-Y46*(Y46<0)*(Y6<='Project Summary'!$Q$8) -> 0 | Z54: =+-Z46*(Z46<0)*(Z6<='Project Summary'!$Q$8) -> 0 | AA54: =+-AA46*(AA46<0)*(AA6<='Project Summary'!$Q$8) -> 0 | AB54: =+-AB46*(AB46<0)*(AB6<='Project Summary'!$Q$8) -> 0 | AC54: =+-AC46*(AC46<0)*(AC6<='Project Summary'!$Q$8) -> 0 | AD54: =+-AD46*(AD46<0)*(AD6<='Project Summary'!$Q$8) -> 0 | AE54: =+-AE46*(AE46<0)*(AE6<='Project Summary'!$Q$8) -> 0 | AF54: =+-AF46*(AF46<0)*(AF6<='Project Summary'!$Q$8) -> 0 | AG54: =+-AG46*(AG46<0)*(AG6<='Project Summary'!$Q$8) -> 0 | AH54: =+-AH46*(AH46<0)*(AH6<='Project Summary'!$Q$8) -> 0 | AI54: =+-AI46*(AI46<0)*(AI6<='Project Summary'!$Q$8) -> 0 | AJ54: =+-AJ46*(AJ46<0)*(AJ6<='Project Summary'!$Q$8) -> 0 | AK54: =+-AK46*(AK46<0)*(AK6<='Project Summary'!$Q$8) -> 0 | AL54: =+-AL46*(AL46<0)*(AL6<='Project Summary'!$Q$8) -> 0 | AM54: =+-AM46*(AM46<0)*(AM6<='Project Summary'!$Q$8) -> 0 | AN54: =+-AN46*(AN46<0)*(AN6<='Project Summary'!$Q$8) -> 0 | AO54: =+-AO46*(AO46<0)*(AO6<='Project Summary'!$Q$8) -> 0 | AP54: =+-AP46*(AP46<0)*(AP6<='Project Summary'!$Q$8) -> 0 | AQ54: =+-AQ46*(AQ46<0)*(AQ6<='Project Summary'!$Q$8) -> 0 | AR54: =+-AR46*(AR46<0)*(AR6<='Project Summary'!$Q$8) -> 0 | AS54: =+-AS46*(AS46<0)*(AS6<='Project Summary'!$Q$8) -> 0 | AT54: =+-AT46*(AT46<0)*(AT6<='Project Summary'!$Q$8) -> 0 | AU54: =+-AU46*(AU46<0)*(AU6<='Project Summary'!$Q$8) -> 0 | AV54: =+-AV46*(AV46<0)*(AV6<='Project Summary'!$Q$8) -> 0 | AW54: =+-AW46*(AW46<0)*(AW6<='Project Summary'!$Q$8) -> 0 | AX54: =+-AX46*(AX46<0)*(AX6<='Project Summary'!$Q$8) -> 0 | AY54: =+-AY46*(AY46<0)*(AY6<='Project Summary'!$Q$8) -> 0 | AZ54: =+-AZ46*(AZ46<0)*(AZ6<='Project Summary'!$Q$8) -> 0 | BA54: =+-BA46*(BA46<0)*(BA6<='Project Summary'!$Q$8) -> 0 | BB54: =+-BB46*(BB46<0)*(BB6<='Project Summary'!$Q$8) -> 0 | BC54: =+-BC46*(BC46<0)*(BC6<='Project Summary'!$Q$8) -> 0 | BD54: =+-BD46*(BD46<0)*(BD6<='Project Summary'!$Q$8) -> 0 | BE54: =+-BE46*(BE46<0)*(BE6<='Project Summary'!$Q$8) -> 0 | BF54: =+-BF46*(BF46<0)*(BF6<='Project Summary'!$Q$8) -> 0 | BG54: =+-BG46*(BG46<0)*(BG6<='Project Summary'!$Q$8) -> 0 | BH54: =+-BH46*(BH46<0)*(BH6<='Project Summary'!$Q$8) -> 0 | BI54: =+-BI46*(BI46<0)*(BI6<='Project Summary'!$Q$8) -> 0 | BJ54: =+-BJ46*(BJ46<0)*(BJ6<='Project Summary'!$Q$8) -> 0 | BK54: =+-BK46*(BK46<0)*(BK6<='Project Summary'!$Q$8) -> 0 | BL54: =+-BL46*(BL46<0)*(BL6<='Project Summary'!$Q$8) -> 0 | BM54: =+-BM46*(BM46<0)*(BM6<='Project Summary'!$Q$8) -> 0 | BN54: =+-BN46*(BN46<0)*(BN6<='Project Summary'!$Q$8) -> 0 | BO54: =+-BO46*(BO46<0)*(BO6<='Project Summary'!$Q$8) -> 0 | BP54: =+-BP46*(BP46<0)*(BP6<='Project Summary'!$Q$8) -> 0 | BQ54: =+-BQ46*(BQ46<0)*(BQ6<='Project Summary'!$Q$8) -> 0 | BR54: =+-BR46*(BR46<0)*(BR6<='Project Summary'!$Q$8) -> 0 | BS54: =+-BS46*(BS46<0)*(BS6<='Project Summary'!$Q$8) -> 0 | BT54: =+-BT46*(BT46<0)*(BT6<='Project Summary'!$Q$8) -> 0 | BU54: =+-BU46*(BU46<0)*(BU6<='Project Summary'!$Q$8) -> 0 | BV54: =+-BV46*(BV46<0)*(BV6<='Project Summary'!$Q$8) -> 0 | BW54: =+-BW46*(BW46<0)*(BW6<='Project Summary'!$Q$8) -> 0 | BX54: =+-BX46*(BX46<0)*(BX6<='Project Summary'!$Q$8) -> 0 | BY54: =+-BY46*(BY46<0)*(BY6<='Project Summary'!$Q$8) -> 0 | BZ54: =+-BZ46*(BZ46<0)*(BZ6<='Project Summary'!$Q$8) -> 0 | CA54: =+-CA46*(CA46<0)*(CA6<='Project Summary'!$Q$8) -> 0 | CB54: =+-CB46*(CB46<0)*(CB6<='Project Summary'!$Q$8) -> 0 | CC54: =+-CC46*(CC46<0)*(CC6<='Project Summary'!$Q$8) -> 0 | CD54: =+-CD46*(CD46<0)*(CD6<='Project Summary'!$Q$8) -> 0 | CE54: =+-CE46*(CE46<0)*(CE6<='Project Summary'!$Q$8) -> 0 | CF54: =+-CF46*(CF46<0)*(CF6<='Project Summary'!$Q$8) -> 0 | CG54: =+-CG46*(CG46<0)*(CG6<='Project Summary'!$Q$8) -> 0 | CH54: =+-CH46*(CH46<0)*(CH6<='Project Summary'!$Q$8) -> 0 | CI54: =+-CI46*(CI46<0)*(CI6<='Project Summary'!$Q$8) -> 0 | CJ54: =+-CJ46*(CJ46<0)*(CJ6<='Project Summary'!$Q$8) -> 0 | CK54: =+-CK46*(CK46<0)*(CK6<='Project Summary'!$Q$8) -> 0 | CL54: =+-CL46*(CL46<0)*(CL6<='Project Summary'!$Q$8) -> 0 | CM54: =+-CM46*(CM46<0)*(CM6<='Project Summary'!$Q$8) -> 0 | CN54: =+-CN46*(CN46<0)*(CN6<='Project Summary'!$Q$8) -> 0 | CO54: =+-CO46*(CO46<0)*(CO6<='Project Summary'!$Q$8) -> 0 | CP54: =+-CP46*(CP46<0)*(CP6<='Project Summary'!$Q$8) -> 0 | CQ54: =+-CQ46*(CQ46<0)*(CQ6<='Project Summary'!$Q$8) -> 0 | CR54: =+-CR46*(CR46<0)*(CR6<='Project Summary'!$Q$8) -> 0 | CS54: =+-CS46*(CS46<0)*(CS6<='Project Summary'!$Q$8) -> 0 | CT54: =+-CT46*(CT46<0)*(CT6<='Project Summary'!$Q$8) -> 0 | CU54: =+-CU46*(CU46<0)*(CU6<='Project Summary'!$Q$8) -> 0 | CV54: =+-CV46*(CV46<0)*(CV6<='Project Summary'!$Q$8) -> 0 | CW54: =+-CW46*(CW46<0)*(CW6<='Project Summary'!$Q$8) -> 0 | CX54: =+-CX46*(CX46<0)*(CX6<='Project Summary'!$Q$8) -> 0 | CY54: =+-CY46*(CY46<0)*(CY6<='Project Summary'!$Q$8) -> 0 | CZ54: =+-CZ46*(CZ46<0)*(CZ6<='Project Summary'!$Q$8) -> 0 | DA54: =+-DA46*(DA46<0)*(DA6<='Project Summary'!$Q$8) -> 0 | DB54: =+-DB46*(DB46<0)*(DB6<='Project Summary'!$Q$8) -> 0 | DC54: =+-DC46*(DC46<0)*(DC6<='Project Summary'!$Q$8) -> 0 | DD54: =+-DD46*(DD46<0)*(DD6<='Project Summary'!$Q$8) -> 0 | DE54: =+-DE46*(DE46<0)*(DE6<='Project Summary'!$Q$8) -> 0 | DF54: =+-DF46*(DF46<0)*(DF6<='Project Summary'!$Q$8) -> 0 | DG54: =+-DG46*(DG46<0)*(DG6<='Project Summary'!$Q$8) -> 0 | DH54: =+-DH46*(DH46<0)*(DH6<='Project Summary'!$Q$8) -> 0 | DI54: =+-DI46*(DI46<0)*(DI6<='Project Summary'!$Q$8) -> 0 | DJ54: =+-DJ46*(DJ46<0)*(DJ6<='Project Summary'!$Q$8) -> 0 | DK54: =+-DK46*(DK46<0)*(DK6<='Project Summary'!$Q$8) -> 0 | DL54: =+-DL46*(DL46<0)*(DL6<='Project Summary'!$Q$8) -> 0 | DM54: =+-DM46*(DM46<0)*(DM6<='Project Summary'!$Q$8) -> 0 | DN54: =+-DN46*(DN46<0)*(DN6<='Project Summary'!$Q$8) -> 0 | DO54: =+-DO46*(DO46<0)*(DO6<='Project Summary'!$Q$8) -> 0 | DP54: =+-DP46*(DP46<0)*(DP6<='Project Summary'!$Q$8) -> 0 | DQ54: =+-DQ46*(DQ46<0)*(DQ6<='Project Summary'!$Q$8) -> 0 | DR54: =+-DR46*(DR46<0)*(DR6<='Project Summary'!$Q$8) -> 0 | DS54: =+-DS46*(DS46<0)*(DS6<='Project Summary'!$Q$8) -> 0 | DT54: =+-DT46*(DT46<0)*(DT6<='Project Summary'!$Q$8) -> 0 | DU54: =+-DU46*(DU46<0)*(DU6<='Project Summary'!$Q$8) -> 0 | DV54: =+-DV46*(DV46<0)*(DV6<='Project Summary'!$Q$8) -> 0 | DW54: =+-DW46*(DW46<0)*(DW6<='Project Summary'!$Q$8) -> 0 | DX54: =+-DX46*(DX46<0)*(DX6<='Project Summary'!$Q$8) -> 0 | DY54: =+-DY46*(DY46<0)*(DY6<='Project Summary'!$Q$8) -> 0 | DZ54: =+-DZ46*(DZ46<0)*(DZ6<='Project Summary'!$Q$8) -> 0 | EA54: =+-EA46*(EA46<0)*(EA6<='Project Summary'!$Q$8) -> 0 | EB54: =+-EB46*(EB46<0)*(EB6<='Project Summary'!$Q$8) -> 0 | EC54: =+-EC46*(EC46<0)*(EC6<='Project Summary'!$Q$8) -> 0 | ED54: =+-ED46*(ED46<0)*(ED6<='Project Summary'!$Q$8) -> 0 | EE54: =+-EE46*(EE46<0)*(EE6<='Project Summary'!$Q$8) -> 0 | EF54: =+-EF46*(EF46<0)*(EF6<='Project Summary'!$Q$8) -> 0 | EG54: =+-EG46*(EG46<0)*(EG6<='Project Summary'!$Q$8) -> 0
B55: Cumulative Funding | E55: =+SUM($E$54:E54)*(E6<'Project Summary'!$Q$8) -> 8307881.25 | F55: =+SUM($E$54:F54)*(F6<'Project Summary'!$Q$8) -> 8307881.25 | G55: =+SUM($E$54:G54)*(G6<'Project Summary'!$Q$8) -> 8307881.25 | H55: =+SUM($E$54:H54)*(H6<'Project Summary'!$Q$8) -> 8307881.25 | I55: =+SUM($E$54:I54)*(I6<'Project Summary'!$Q$8) -> 8307881.25 | J55: =+SUM($E$54:J54)*(J6<'Project Summary'!$Q$8) -> 8307881.25 | K55: =+SUM($E$54:K54)*(K6<'Project Summary'!$Q$8) -> 8307881.25 | L55: =+SUM($E$54:L54)*(L6<'Project Summary'!$Q$8) -> 8307881.25 | M55: =+SUM($E$54:M54)*(M6<'Project Summary'!$Q$8) -> 8307881.25 | N55: =+SUM($E$54:N54)*(N6<'Project Summary'!$Q$8) -> 8307881.25 | O55: =+SUM($E$54:O54)*(O6<'Project Summary'!$Q$8) -> 8307881.25 | P55: =+SUM($E$54:P54)*(P6<'Project Summary'!$Q$8) -> 8321656.625 | Q55: =+SUM($E$54:Q54)*(Q6<'Project Summary'!$Q$8) -> 8321656.625 | R55: =+SUM($E$54:R54)*(R6<'Project Summary'!$Q$8) -> 8321656.625 | S55: =+SUM($E$54:S54)*(S6<'Project Summary'!$Q$8) -> 8321656.625 | T55: =+SUM($E$54:T54)*(T6<'Project Summary'!$Q$8) -> 8321656.625 | U55: =+SUM($E$54:U54)*(U6<'Project Summary'!$Q$8) -> 8321656.625 | V55: =+SUM($E$54:V54)*(V6<'Project Summary'!$Q$8) -> 8321656.625 | W55: =+SUM($E$54:W54)*(W6<'Project Summary'!$Q$8) -> 8321656.625 | X55: =+SUM($E$54:X54)*(X6<'Project Summary'!$Q$8) -> 8321656.625 | Y55: =+SUM($E$54:Y54)*(Y6<'Project Summary'!$Q$8) -> 8321656.625 | Z55: =+SUM($E$54:Z54)*(Z6<'Project Summary'!$Q$8) -> 8321656.625 | AA55: =+SUM($E$54:AA54)*(AA6<'Project Summary'!$Q$8) -> 8321656.625 | AB55: =+SUM($E$54:AB54)*(AB6<'Project Summary'!$Q$8) -> 8321656.625 | AC55: =+SUM($E$54:AC54)*(AC6<'Project Summary'!$Q$8) -> 8321656.625 | AD55: =+SUM($E$54:AD54)*(AD6<'Project Summary'!$Q$8) -> 8321656.625 | AE55: =+SUM($E$54:AE54)*(AE6<'Project Summary'!$Q$8) -> 8321656.625 | AF55: =+SUM($E$54:AF54)*(AF6<'Project Summary'!$Q$8) -> 8321656.625 | AG55: =+SUM($E$54:AG54)*(AG6<'Project Summary'!$Q$8) -> 8321656.625 | AH55: =+SUM($E$54:AH54)*(AH6<'Project Summary'!$Q$8) -> 8321656.625 | AI55: =+SUM($E$54:AI54)*(AI6<'Project Summary'!$Q$8) -> 8321656.625 | AJ55: =+SUM($E$54:AJ54)*(AJ6<'Project Summary'!$Q$8) -> 8321656.625 | AK55: =+SUM($E$54:AK54)*(AK6<'Project Summary'!$Q$8) -> 8321656.625 | AL55: =+SUM($E$54:AL54)*(AL6<'Project Summary'!$Q$8) -> 8321656.625 | AM55: =+SUM($E$54:AM54)*(AM6<'Project Summary'!$Q$8) -> 8321656.625 | AN55: =+SUM($E$54:AN54)*(AN6<'Project Summary'!$Q$8) -> 8321656.625 | AO55: =+SUM($E$54:AO54)*(AO6<'Project Summary'!$Q$8) -> 0 | AP55: =+SUM($E$54:AP54)*(AP6<'Project Summary'!$Q$8) -> 0 | AQ55: =+SUM($E$54:AQ54)*(AQ6<'Project Summary'!$Q$8) -> 0 | AR55: =+SUM($E$54:AR54)*(AR6<'Project Summary'!$Q$8) -> 0 | AS55: =+SUM($E$54:AS54)*(AS6<'Project Summary'!$Q$8) -> 0 | AT55: =+SUM($E$54:AT54)*(AT6<'Project Summary'!$Q$8) -> 0 | AU55: =+SUM($E$54:AU54)*(AU6<'Project Summary'!$Q$8) -> 0 | AV55: =+SUM($E$54:AV54)*(AV6<'Project Summary'!$Q$8) -> 0 | AW55: =+SUM($E$54:AW54)*(AW6<'Project Summary'!$Q$8) -> 0 | AX55: =+SUM($E$54:AX54)*(AX6<'Project Summary'!$Q$8) -> 0 | AY55: =+SUM($E$54:AY54)*(AY6<'Project Summary'!$Q$8) -> 0 | AZ55: =+SUM($E$54:AZ54)*(AZ6<'Project Summary'!$Q$8) -> 0 | BA55: =+SUM($E$54:BA54)*(BA6<'Project Summary'!$Q$8) -> 0 | BB55: =+SUM($E$54:BB54)*(BB6<'Project Summary'!$Q$8) -> 0 | BC55: =+SUM($E$54:BC54)*(BC6<'Project Summary'!$Q$8) -> 0 | BD55: =+SUM($E$54:BD54)*(BD6<'Project Summary'!$Q$8) -> 0 | BE55: =+SUM($E$54:BE54)*(BE6<'Project Summary'!$Q$8) -> 0 | BF55: =+SUM($E$54:BF54)*(BF6<'Project Summary'!$Q$8) -> 0 | BG55: =+SUM($E$54:BG54)*(BG6<'Project Summary'!$Q$8) -> 0 | BH55: =+SUM($E$54:BH54)*(BH6<'Project Summary'!$Q$8) -> 0 | BI55: =+SUM($E$54:BI54)*(BI6<'Project Summary'!$Q$8) -> 0 | BJ55: =+SUM($E$54:BJ54)*(BJ6<'Project Summary'!$Q$8) -> 0 | BK55: =+SUM($E$54:BK54)*(BK6<'Project Summary'!$Q$8) -> 0 | BL55: =+SUM($E$54:BL54)*(BL6<'Project Summary'!$Q$8) -> 0 | BM55: =+SUM($E$54:BM54)*(BM6<'Project Summary'!$Q$8) -> 0 | BN55: =+SUM($E$54:BN54)*(BN6<'Project Summary'!$Q$8) -> 0 | BO55: =+SUM($E$54:BO54)*(BO6<'Project Summary'!$Q$8) -> 0 | BP55: =+SUM($E$54:BP54)*(BP6<'Project Summary'!$Q$8) -> 0 | BQ55: =+SUM($E$54:BQ54)*(BQ6<'Project Summary'!$Q$8) -> 0 | BR55: =+SUM($E$54:BR54)*(BR6<'Project Summary'!$Q$8) -> 0 | BS55: =+SUM($E$54:BS54)*(BS6<'Project Summary'!$Q$8) -> 0 | BT55: =+SUM($E$54:BT54)*(BT6<'Project Summary'!$Q$8) -> 0 | BU55: =+SUM($E$54:BU54)*(BU6<'Project Summary'!$Q$8) -> 0 | BV55: =+SUM($E$54:BV54)*(BV6<'Project Summary'!$Q$8) -> 0 | BW55: =+SUM($E$54:BW54)*(BW6<'Project Summary'!$Q$8) -> 0 | BX55: =+SUM($E$54:BX54)*(BX6<'Project Summary'!$Q$8) -> 0 | BY55: =+SUM($E$54:BY54)*(BY6<'Project Summary'!$Q$8) -> 0 | BZ55: =+SUM($E$54:BZ54)*(BZ6<'Project Summary'!$Q$8) -> 0 | CA55: =+SUM($E$54:CA54)*(CA6<'Project Summary'!$Q$8) -> 0 | CB55: =+SUM($E$54:CB54)*(CB6<'Project Summary'!$Q$8) -> 0 | CC55: =+SUM($E$54:CC54)*(CC6<'Project Summary'!$Q$8) -> 0 | CD55: =+SUM($E$54:CD54)*(CD6<'Project Summary'!$Q$8) -> 0 | CE55: =+SUM($E$54:CE54)*(CE6<'Project Summary'!$Q$8) -> 0 | CF55: =+SUM($E$54:CF54)*(CF6<'Project Summary'!$Q$8) -> 0 | CG55: =+SUM($E$54:CG54)*(CG6<'Project Summary'!$Q$8) -> 0 | CH55: =+SUM($E$54:CH54)*(CH6<'Project Summary'!$Q$8) -> 0 | CI55: =+SUM($E$54:CI54)*(CI6<'Project Summary'!$Q$8) -> 0 | CJ55: =+SUM($E$54:CJ54)*(CJ6<'Project Summary'!$Q$8) -> 0 | CK55: =+SUM($E$54:CK54)*(CK6<'Project Summary'!$Q$8) -> 0 | CL55: =+SUM($E$54:CL54)*(CL6<'Project Summary'!$Q$8) -> 0 | CM55: =+SUM($E$54:CM54)*(CM6<'Project Summary'!$Q$8) -> 0 | CN55: =+SUM($E$54:CN54)*(CN6<'Project Summary'!$Q$8) -> 0 | CO55: =+SUM($E$54:CO54)*(CO6<'Project Summary'!$Q$8) -> 0 | CP55: =+SUM($E$54:CP54)*(CP6<'Project Summary'!$Q$8) -> 0 | CQ55: =+SUM($E$54:CQ54)*(CQ6<'Project Summary'!$Q$8) -> 0 | CR55: =+SUM($E$54:CR54)*(CR6<'Project Summary'!$Q$8) -> 0 | CS55: =+SUM($E$54:CS54)*(CS6<'Project Summary'!$Q$8) -> 0 | CT55: =+SUM($E$54:CT54)*(CT6<'Project Summary'!$Q$8) -> 0 | CU55: =+SUM($E$54:CU54)*(CU6<'Project Summary'!$Q$8) -> 0 | CV55: =+SUM($E$54:CV54)*(CV6<'Project Summary'!$Q$8) -> 0 | CW55: =+SUM($E$54:CW54)*(CW6<'Project Summary'!$Q$8) -> 0 | CX55: =+SUM($E$54:CX54)*(CX6<'Project Summary'!$Q$8) -> 0 | CY55: =+SUM($E$54:CY54)*(CY6<'Project Summary'!$Q$8) -> 0 | CZ55: =+SUM($E$54:CZ54)*(CZ6<'Project Summary'!$Q$8) -> 0 | DA55: =+SUM($E$54:DA54)*(DA6<'Project Summary'!$Q$8) -> 0 | DB55: =+SUM($E$54:DB54)*(DB6<'Project Summary'!$Q$8) -> 0 | DC55: =+SUM($E$54:DC54)*(DC6<'Project Summary'!$Q$8) -> 0 | DD55: =+SUM($E$54:DD54)*(DD6<'Project Summary'!$Q$8) -> 0 | DE55: =+SUM($E$54:DE54)*(DE6<'Project Summary'!$Q$8) -> 0 | DF55: =+SUM($E$54:DF54)*(DF6<'Project Summary'!$Q$8) -> 0 | DG55: =+SUM($E$54:DG54)*(DG6<'Project Summary'!$Q$8) -> 0 | DH55: =+SUM($E$54:DH54)*(DH6<'Project Summary'!$Q$8) -> 0 | DI55: =+SUM($E$54:DI54)*(DI6<'Project Summary'!$Q$8) -> 0 | DJ55: =+SUM($E$54:DJ54)*(DJ6<'Project Summary'!$Q$8) -> 0 | DK55: =+SUM($E$54:DK54)*(DK6<'Project Summary'!$Q$8) -> 0 | DL55: =+SUM($E$54:DL54)*(DL6<'Project Summary'!$Q$8) -> 0 | DM55: =+SUM($E$54:DM54)*(DM6<'Project Summary'!$Q$8) -> 0 | DN55: =+SUM($E$54:DN54)*(DN6<'Project Summary'!$Q$8) -> 0 | DO55: =+SUM($E$54:DO54)*(DO6<'Project Summary'!$Q$8) -> 0 | DP55: =+SUM($E$54:DP54)*(DP6<'Project Summary'!$Q$8) -> 0 | DQ55: =+SUM($E$54:DQ54)*(DQ6<'Project Summary'!$Q$8) -> 0 | DR55: =+SUM($E$54:DR54)*(DR6<'Project Summary'!$Q$8) -> 0 | DS55: =+SUM($E$54:DS54)*(DS6<'Project Summary'!$Q$8) -> 0 | DT55: =+SUM($E$54:DT54)*(DT6<'Project Summary'!$Q$8) -> 0 | DU55: =+SUM($E$54:DU54)*(DU6<'Project Summary'!$Q$8) -> 0 | DV55: =+SUM($E$54:DV54)*(DV6<'Project Summary'!$Q$8) -> 0 | DW55: =+SUM($E$54:DW54)*(DW6<'Project Summary'!$Q$8) -> 0 | DX55: =+SUM($E$54:DX54)*(DX6<'Project Summary'!$Q$8) -> 0 | DY55: =+SUM($E$54:DY54)*(DY6<'Project Summary'!$Q$8) -> 0 | DZ55: =+SUM($E$54:DZ54)*(DZ6<'Project Summary'!$Q$8) -> 0 | EA55: =+SUM($E$54:EA54)*(EA6<'Project Summary'!$Q$8) -> 0 | EB55: =+SUM($E$54:EB54)*(EB6<'Project Summary'!$Q$8) -> 0 | EC55: =+SUM($E$54:EC54)*(EC6<'Project Summary'!$Q$8) -> 0 | ED55: =+SUM($E$54:ED54)*(ED6<'Project Summary'!$Q$8) -> 0 | EE55: =+SUM($E$54:EE54)*(EE6<'Project Summary'!$Q$8) -> 0 | EF55: =+SUM($E$54:EF54)*(EF6<'Project Summary'!$Q$8) -> 0 | EG55: =+SUM($E$54:EG54)*(EG6<'Project Summary'!$Q$8) -> 0
B57: Levered Returns
B58: Unleverred Cash Flow | E58: =+E48 -> -8307881.25 | F58: =+F48 -> 61484.87878 | G58: 61860.59472 | H58: 40408.09472 | I58: 65654.82003 | J58: 65754.82003 | K58: 66164.85641 | L58: 30389.85641 | M58: 70952.89506 | N58: 70952.89506 | O58: 71774.6254 | P58: -13775.3746 | Q58: 71701.44203 | R58: 71701.44203 | S58: 71701.44203 | T58: 79076.44203 | U58: 79076.44203 | V58: 79076.44203 | W58: 79550.90594 | X58: 79550.90594 | Y58: 79550.90594 | Z58: 79550.90594 | AA58: 79550.90594 | AB58: 79550.90594 | AC58: 79497.948 | AD58: 79497.948 | AE58: 79497.948 | AF58: 79497.948 | AG58: 79497.948 | AH58: 79497.948 | AI58: 80001.30677 | AJ58: 80001.30677 | AK58: 80001.30677 | AL58: 80001.30677 | AM58: 80001.30677 | AN58: 80001.30677 | AO58: 12121873.99 | AP58: 0 | AQ58: 0 | AR58: 0 | AS58: 0 | AT58: 0 | AU58: 0 | AV58: 0 | AW58: 0 | AX58: 0 | AY58: 0 | AZ58: 0 | BA58: 0 | BB58: 0 | BC58: 0 | BD58: 0 | BE58: 0 | BF58: 0 | BG58: 0 | BH58: 0 | BI58: 0 | BJ58: 0 | BK58: 0 | BL58: 0 | BM58: 0 | BN58: 0 | BO58: 0 | BP58: 0 | BQ58: 0 | BR58: =+BR48 -> 0 | BS58: 0 | BT58: 0 | BU58: 0 | BV58: 0 | BW58: 0 | BX58: 0 | BY58: 0 | BZ58: 0 | CA58: 0 | CB58: 0 | CC58: 0 | CD58: 0 | CE58: 0 | CF58: 0 | CG58: 0 | CH58: 0 | CI58: 0 | CJ58: 0 | CK58: 0 | CL58: 0 | CM58: 0 | CN58: 0 | CO58: 0 | CP58: 0 | CQ58: 0 | CR58: 0 | CS58: 0 | CT58: 0 | CU58: 0 | CV58: 0 | CW58: 0 | CX58: 0 | CY58: 0 | CZ58: 0 | DA58: 0 | DB58: 0 | DC58: 0 | DD58: 0 | DE58: 0 | DF58: 0 | DG58: 0 | DH58: 0 | DI58: 0 | DJ58: 0 | DK58: 0 | DL58: 0 | DM58: 0 | DN58: 0 | DO58: 0 | DP58: 0 | DQ58: 0 | DR58: 0 | DS58: 0 | DT58: 0 | DU58: 0 | DV58: 0 | DW58: 0 | DX58: 0 | DY58: 0 | DZ58: 0 | EA58: 0 | EB58: 0 | EC58: 0 | ED58: =+ED48 -> 0 | EE58: 0 | EF58: 0 | EG58: 0
B59: Debt Proceeds | E59: =+E73 -> 5213195.484 | F59: =+F73 -> 0 | G59: 0 | H59: 0 | I59: 0 | J59: 0 | K59: 0 | L59: 0 | M59: 0 | N59: 0 | O59: 0 | P59: 0 | Q59: 0 | R59: 0 | S59: 0 | T59: 0 | U59: 0 | V59: 0 | W59: 0 | X59: 0 | Y59: 0 | Z59: 0 | AA59: 0 | AB59: 0 | AC59: 0 | AD59: 0 | AE59: 0 | AF59: 0 | AG59: 0 | AH59: 0 | AI59: 0 | AJ59: 0 | AK59: 0 | AL59: 0 | AM59: 0 | AN59: 0 | AO59: 0 | AP59: 0 | AQ59: 0 | AR59: 0 | AS59: 0 | AT59: 0 | AU59: 0 | AV59: 0 | AW59: 0 | AX59: 0 | AY59: 0 | AZ59: 0 | BA59: 0 | BB59: 0 | BC59: 0 | BD59: 0 | BE59: 0 | BF59: 0 | BG59: 0 | BH59: 0 | BI59: 0 | BJ59: 0 | BK59: 0 | BL59: 0 | BM59: 0 | BN59: 0 | BO59: 0 | BP59: 0 | BQ59: 0 | BR59: =+BR73 -> 0 | BS59: 0 | BT59: 0 | BU59: 0 | BV59: 0 | BW59: 0 | BX59: 0 | BY59: 0 | BZ59: 0 | CA59: 0 | CB59: 0 | CC59: 0 | CD59: 0 | CE59: 0 | CF59: 0 | CG59: 0 | CH59: 0 | CI59: 0 | CJ59: 0 | CK59: 0 | CL59: 0 | CM59: 0 | CN59: 0 | CO59: 0 | CP59: 0 | CQ59: 0 | CR59: 0 | CS59: 0 | CT59: 0 | CU59: 0 | CV59: 0 | CW59: 0 | CX59: 0 | CY59: 0 | CZ59: 0 | DA59: 0 | DB59: 0 | DC59: 0 | DD59: 0 | DE59: 0 | DF59: 0 | DG59: 0 | DH59: 0 | DI59: 0 | DJ59: 0 | DK59: 0 | DL59: 0 | DM59: 0 | DN59: 0 | DO59: 0 | DP59: 0 | DQ59: 0 | DR59: 0 | DS59: 0 | DT59: 0 | DU59: 0 | DV59: 0 | DW59: 0 | DX59: 0 | DY59: 0 | DZ59: 0 | EA59: 0 | EB59: 0 | EC59: 0 | ED59: =+ED73 -> 0 | EE59: 0 | EF59: 0 | EG59: 0
B60: Financing Fees | E60: 0 | F60: 0 | G60: 0 | H60: 0 | I60: 0 | J60: 0 | K60: 0 | L60: 0 | M60: 0 | N60: 0 | O60: 0 | P60: 0 | Q60: 0 | R60: 0 | S60: 0 | T60: 0 | U60: 0 | V60: 0 | W60: 0 | X60: 0 | Y60: 0 | Z60: 0 | AA60: 0 | AB60: 0 | AC60: 0 | AD60: 0 | AE60: 0 | AF60: 0 | AG60: 0 | AH60: 0 | AI60: 0 | AJ60: 0 | AK60: 0 | AL60: 0 | AM60: 0 | AN60: 0 | AO60: 0 | AP60: 0 | AQ60: 0 | AR60: 0 | AS60: 0 | AT60: 0 | AU60: 0 | AV60: 0 | AW60: 0 | AX60: 0 | AY60: 0 | AZ60: 0 | BA60: 0 | BB60: 0 | BC60: 0 | BD60: 0 | BE60: 0 | BF60: 0 | BG60: 0 | BH60: 0 | BI60: 0 | BJ60: 0 | BK60: 0 | BL60: 0 | BM60: 0 | BN60: 0 | BO60: 0 | BP60: 0 | BQ60: 0 | BR60: 0 | BS60: 0 | BT60: 0 | BU60: 0 | BV60: 0 | BW60: 0 | BX60: 0 | BY60: 0 | BZ60: 0 | CA60: 0 | CB60: 0 | CC60: 0 | CD60: 0 | CE60: 0 | CF60: 0 | CG60: 0 | CH60: 0 | CI60: 0 | CJ60: 0 | CK60: 0 | CL60: 0 | CM60: 0 | CN60: 0 | CO60: 0 | CP60: 0 | CQ60: 0 | CR60: 0 | CS60: 0 | CT60: 0 | CU60: 0 | CV60: 0 | CW60: 0 | CX60: 0 | CY60: 0 | CZ60: 0 | DA60: 0 | DB60: 0 | DC60: 0 | DD60: 0 | DE60: 0 | DF60: 0 | DG60: 0 | DH60: 0 | DI60: 0 | DJ60: 0 | DK60: 0 | DL60: 0 | DM60: 0 | DN60: 0 | DO60: 0 | DP60: 0 | DQ60: 0 | DR60: 0 | DS60: 0 | DT60: 0 | DU60: 0 | DV60: 0 | DW60: 0 | DX60: 0 | DY60: 0 | DZ60: 0 | EA60: 0 | EB60: 0 | EC60: 0 | ED60: 0 | EE60: 0 | EF60: 0 | EG60: 0
B61: Debt Service | E61: =+E75 -> 0 | F61: =+F75 -> -29871.45175 | G61: =+G75 -> -29871.45175 | H61: -29871.45175 | I61: -29871.45175 | J61: -29871.45175 | K61: -29871.45175 | L61: -29871.45175 | M61: -29871.45175 | N61: -29871.45175 | O61: -29871.45175 | P61: -29871.45175 | Q61: -29871.45175 | R61: -29871.45175 | S61: -29871.45175 | T61: -29871.45175 | U61: -29871.45175 | V61: -29871.45175 | W61: -29871.45175 | X61: -29871.45175 | Y61: -29871.45175 | Z61: -29871.45175 | AA61: -29871.45175 | AB61: -29871.45175 | AC61: -29871.45175 | AD61: -29871.45175 | AE61: -29871.45175 | AF61: -29871.45175 | AG61: -29871.45175 | AH61: -29871.45175 | AI61: -29871.45175 | AJ61: -29871.45175 | AK61: -29871.45175 | AL61: -29871.45175 | AM61: -29871.45175 | AN61: -29871.45175 | AO61: -29871.45175 | AP61: 0 | AQ61: 0 | AR61: 0 | AS61: 0 | AT61: 0 | AU61: 0 | AV61: 0 | AW61: 0 | AX61: 0 | AY61: 0 | AZ61: 0 | BA61: 0 | BB61: 0 | BC61: 0 | BD61: 0 | BE61: 0 | BF61: 0 | BG61: 0 | BH61: 0 | BI61: 0 | BJ61: 0 | BK61: 0 | BL61: 0 | BM61: 0 | BN61: 0 | BO61: 0 | BP61: 0 | BQ61: 0 | BR61: =+BR75 -> 0 | BS61: 0 | BT61: 0 | BU61: 0 | BV61: 0 | BW61: 0 | BX61: 0 | BY61: 0 | BZ61: 0 | CA61: 0 | CB61: 0 | CC61: 0 | CD61: 0 | CE61: 0 | CF61: 0 | CG61: 0 | CH61: 0 | CI61: 0 | CJ61: 0 | CK61: 0 | CL61: 0 | CM61: 0 | CN61: 0 | CO61: 0 | CP61: 0 | CQ61: 0 | CR61: 0 | CS61: 0 | CT61: 0 | CU61: 0 | CV61: 0 | CW61: 0 | CX61: 0 | CY61: 0 | CZ61: 0 | DA61: 0 | DB61: 0 | DC61: 0 | DD61: 0 | DE61: 0 | DF61: 0 | DG61: 0 | DH61: 0 | DI61: 0 | DJ61: 0 | DK61: 0 | DL61: 0 | DM61: 0 | DN61: 0 | DO61: 0 | DP61: 0 | DQ61: 0 | DR61: 0 | DS61: 0 | DT61: 0 | DU61: 0 | DV61: 0 | DW61: 0 | DX61: 0 | DY61: 0 | DZ61: 0 | EA61: 0 | EB61: 0 | EC61: 0 | ED61: 0 | EE61: 0 | EF61: 0 | EG61: 0
B62: Debt Repayment | E62: =+E78 -> 0 | F62: =+F78 -> 0 | G62: 0 | H62: 0 | I62: 0 | J62: 0 | K62: 0 | L62: 0 | M62: 0 | N62: 0 | O62: 0 | P62: 0 | Q62: 0 | R62: 0 | S62: 0 | T62: 0 | U62: 0 | V62: 0 | W62: 0 | X62: 0 | Y62: 0 | Z62: 0 | AA62: 0 | AB62: 0 | AC62: 0 | AD62: 0 | AE62: 0 | AF62: 0 | AG62: 0 | AH62: 0 | AI62: 0 | AJ62: 0 | AK62: 0 | AL62: 0 | AM62: 0 | AN62: 0 | AO62: -4864731.142 | AP62: 0 | AQ62: 0 | AR62: 0 | AS62: 0 | AT62: 0 | AU62: 0 | AV62: 0 | AW62: 0 | AX62: 0 | AY62: 0 | AZ62: 0 | BA62: 0 | BB62: 0 | BC62: 0 | BD62: 0 | BE62: 0 | BF62: 0 | BG62: 0 | BH62: 0 | BI62: 0 | BJ62: 0 | BK62: 0 | BL62: 0 | BM62: =+BM78 -> 0 | BN62: 0 | BO62: 0 | BP62: 0 | BQ62: 0 | BR62: =+BR78 -> 0 | BS62: 0 | BT62: 0 | BU62: 0 | BV62: 0 | BW62: 0 | BX62: 0 | BY62: 0 | BZ62: 0 | CA62: 0 | CB62: 0 | CC62: 0 | CD62: 0 | CE62: 0 | CF62: 0 | CG62: 0 | CH62: 0 | CI62: 0 | CJ62: 0 | CK62: 0 | CL62: 0 | CM62: 0 | CN62: 0 | CO62: 0 | CP62: 0 | CQ62: 0 | CR62: 0 | CS62: 0 | CT62: 0 | CU62: 0 | CV62: 0 | CW62: 0 | CX62: 0 | CY62: 0 | CZ62: 0 | DA62: 0 | DB62: 0 | DC62: 0 | DD62: 0 | DE62: 0 | DF62: 0 | DG62: 0 | DH62: 0 | DI62: 0 | DJ62: 0 | DK62: 0 | DL62: 0 | DM62: 0 | DN62: 0 | DO62: 0 | DP62: 0 | DQ62: 0 | DR62: 0 | DS62: 0 | DT62: 0 | DU62: 0 | DV62: 0 | DW62: 0 | DX62: 0 | DY62: 0 | DZ62: 0 | EA62: 0 | EB62: 0 | EC62: 0 | ED62: =+ED78 -> 0 | EE62: 0 | EF62: 0 | EG62: 0
B63: Levered Cash Flow | E63: =SUM(E58:E62) -> -3094685.766 | F63: =SUM(F58:F62) -> 31613.42703 | G63: 31989.14296 | H63: 10536.64296 | I63: 35783.36828 | J63: 35883.36828 | K63: 36293.40466 | L63: 518.4046559 | M63: 41081.44331 | N63: 41081.44331 | O63: 41903.17365 | P63: -43646.82635 | Q63: 41829.99027 | R63: 41829.99027 | S63: 41829.99027 | T63: 49204.99027 | U63: 49204.99027 | V63: 49204.99027 | W63: 49679.45419 | X63: 49679.45419 | Y63: 49679.45419 | Z63: 49679.45419 | AA63: 49679.45419 | AB63: 49679.45419 | AC63: 49626.49625 | AD63: 49626.49625 | AE63: 49626.49625 | AF63: 49626.49625 | AG63: 49626.49625 | AH63: 49626.49625 | AI63: 50129.85502 | AJ63: 50129.85502 | AK63: 50129.85502 | AL63: 50129.85502 | AM63: 50129.85502 | AN63: 50129.85502 | AO63: 7227271.397 | AP63: 0 | AQ63: 0 | AR63: 0 | AS63: 0 | AT63: 0 | AU63: 0 | AV63: 0 | AW63: 0 | AX63: 0 | AY63: 0 | AZ63: 0 | BA63: 0 | BB63: 0 | BC63: 0 | BD63: 0 | BE63: 0 | BF63: 0 | BG63: 0 | BH63: 0 | BI63: 0 | BJ63: 0 | BK63: 0 | BL63: 0 | BM63: 0 | BN63: 0 | BO63: 0 | BP63: 0 | BQ63: 0 | BR63: =SUM(BR58:BR62) -> 0 | BS63: 0 | BT63: 0 | BU63: 0 | BV63: 0 | BW63: 0 | BX63: 0 | BY63: 0 | BZ63: 0 | CA63: 0 | CB63: 0 | CC63: 0 | CD63: 0 | CE63: 0 | CF63: 0 | CG63: 0 | CH63: 0 | CI63: 0 | CJ63: 0 | CK63: 0 | CL63: 0 | CM63: 0 | CN63: 0 | CO63: 0 | CP63: 0 | CQ63: 0 | CR63: 0 | CS63: 0 | CT63: 0 | CU63: 0 | CV63: 0 | CW63: 0 | CX63: 0 | CY63: 0 | CZ63: 0 | DA63: 0 | DB63: 0 | DC63: 0 | DD63: 0 | DE63: 0 | DF63: 0 | DG63: 0 | DH63: 0 | DI63: 0 | DJ63: 0 | DK63: 0 | DL63: 0 | DM63: 0 | DN63: 0 | DO63: 0 | DP63: 0 | DQ63: 0 | DR63: 0 | DS63: 0 | DT63: 0 | DU63: 0 | DV63: 0 | DW63: 0 | DX63: 0 | DY63: 0 | DZ63: 0 | EA63: 0 | EB63: 0 | EC63: 0 | ED63: =SUM(ED58:ED62) -> 0 | EE63: 0 | EF63: 0 | EG63: 0
B65: Levered IRR | D65: =((IRR(E63:GG63,0.1/12)+1)^12)-1 -> 0.4634872349
B66: Levered Multiple | D66: =+(SUM($E$63:$EG$63)+MAX($E$70:$EG$70))/MAX($E$70:$EG$70) -> 2.773343722
